Workbook

Sheet 00. PAINEL DE RESULTADOS
A1: Parque Estadual da Serra de Caldas Novas (PESCaN) | AM1: Sim | AN1: 0 | AO1: Obrigatório | AQ1: Aluguel - % do Faturamento
A2: Painel de Resultados | AM2: Não | AN2: 1 | AO2: Total | AQ2: Aluguel - R$/M²
B4: Fluxo do Projeto (FCFF)
B6: TIR Real: | C6: ='01. PAINEL DE CONTROLE'!$D$10 -> 0.09319759528
B7: Taxa de Desconto Real: | C7: ='01. PAINEL DE CONTROLE'!$D$30 -> 0.09319759528
B8: VPL (R$): | C8: ='01. PAINEL DE CONTROLE'!$D$14 -> 0
B9: Payback: | C9: ='01. PAINEL DE CONTROLE'!$D$17 -> 14
B10: Payback Descontado: | C10: ='01. PAINEL DE CONTROLE'!$E$17 -> 31
B17: Fluxo do Acionista (FCFE)
B21: TIR Real: | C21: ='01. PAINEL DE CONTROLE'!$D$11 -> 0.1064456299
B22: Taxa de Desconto Real: | C22: ='01. PAINEL DE CONTROLE'!$E$30 -> 0.1422229793
B23: VPL (R$): | C23: ='01. PAINEL DE CONTROLE'!$D$15 -> 0
B24: Payback: | C24: ='01. PAINEL DE CONTROLE'!$D$18 -> 14
B25: Payback Descontado: | C25: ='01. PAINEL DE CONTROLE'!$E$18 -> 0
B29: Fluxo do Acionista (DDM Sugerido)
B33: TIR Real: | C33: ='01. PAINEL DE CONTROLE'!$D$12 -> 0.05377310289
B34: Taxa de Desconto Real: | C34: ='01. PAINEL DE CONTROLE'!$E$30 -> 0.1422229793
B35: VPL (R$): | C35: ='01. PAINEL DE CONTROLE'!#REF! -> 
B36: Payback: | C36: ='01. PAINEL DE CONTROLE'!$D$19 -> 30
B37: Payback Descontado: | C37: ='01. PAINEL DE CONTROLE'!$E$19 -> 0
B46: Glossário das Siglas
B48: CMV | C48: Custo de Mercadoria Vendida
B49: CP | C49: Contraprestação do poder público ao parceiro privado
B50: CSLL | C50: Contribuição Social sobre o Lucro Líquido
B51: DDM | C51: Modelo Desconto de Dividendos
B52: EBIT / LAJIR | C52: Lucro Antes de Juros e Impostos
B53: EBITDA / LAJIDA | C53: Lucros antes de juros, impostos, depreciação e amortização
B54: EBT / LAIR | C54: Lucro antes do Imposto de Renda
B55: FCFE | C55: Fluxo de Caixa Livre do Acionista
B56: FCFF | C56: Fluxo de Ciaxa Livre do Projeto
B57: ICSD | C57: Índice de Cobertura do Serviço da Dívida
B58: IR | C58: Imposto de Renda
B59: SMD | C59: Sistema de Mensuração de Desempenho
B60: TIR | C60: Taxa Interna de Retorno
B61: VPL | C61: Valor Presente Líquido

Sheet 01. PAINEL DE CONTROLE
A1: ='00. PAINEL DE RESULTADOS'!A1 -> Parque Estadual da Serra de Caldas Novas (PESCaN)
A2: Painel de Controle
B4: Indicadores | J4: Financiamentos
B6: Prazo da Concessão (Anos) | D6: 30 | N6: Fin. 1 - Deb. Infra | P6: Fin. 2 | R6: Fin. 3 | AQ6: Ano | AR6: Visitantes | AS6: Receita | AT6: Opex | AU6: Receita/Visitante | AV6: Opex/Visitante | AW6: Margem Ebitida | BA6: Modelagem Anterior
B7: Termos Reais / Nominais | D7: Real | J7: Captação Total | O7: =SUM('09. DÍVIDA'!F28:AN28) -> 80384102.05 | Q7: =SUM('09. DÍVIDA'!F41:AN41) -> 0 | AQ7: 1 | AR7: =TRANSPOSE('04. RECEITA'!I41:AL41) -> 52781.40162 | AS7: =TRANSPOSE('04. RECEITA'!I6:AL6) -> 2079463.094 | AT7: =TRANSPOSE('05. OPEX'!G6:AJ6)*-1 -> 17767213.75 | AU7: =AS7/AR7 -> 39.39764822 | AV7: =AT7/AR7 -> 336.6188318 | AW7: =TRANSPOSE('10. DFs'!F77:AI77) -> -7.763215559 | AY7: Ano | AZ7: Visitantes | BA7: Outorga Fixa | BB7: Outorga Fixa / Média Visitantes
B8: Prazo de Construção (Anos) | D8: 0 | J8: % Alavancagem | O8: 0.4367506477 | Q8: 0 | S8: 0 | AQ8: 2 | AR8: 95605.33925 | AS8: 4371348.567 | AT8: 23060500.45 | AU8: =AS8/AR8 -> 45.7228498 | AV8: =AT8/AR8 -> 241.2051527 | AW8: -4.41064044 | AY8: 1 | AZ8: 24507.195 | BA8: 1500000 | BB8: =BA8/AZ38 -> 20.49878455
J9: Período de Captação (Anos) | N9: 1 | O9: 7 | P9: 1 | Q9: 1 | R9: 0 | S9: 0 | AQ9: 3 | AR9: 155190.3551 | AS9: 9876827.951 | AT9: 31358740.77 | AU9: 63.64331045 | AV9: 202.0662994 | AW9: -2.249057512 | AY9: 2 | AZ9: 51846.43093
B10: TIR do Projeto | D10: =IRR('10. DFs'!F162:AI162) -> 0.09319759528 | E10: ='10. DFs'!D170 -> 0 | J10: Prazo (Até Ano) | O10: 30 | Q10: 30 | S10: 0 | AQ10: 4 | AR10: 274858.2936 | AS10: 20079101.87 | AT10: 35832886.57 | AU10: 73.05255958 | AV10: 130.3685841 | AW10: -0.8272856578 | AY10: 3 | AZ10: 54842.10658
B11: TIR do Acionista (Caixa Livre) | D11: =IRR('10. DFs'!F163:AI163) -> 0.1064456299 | E11: ='10. DFs'!D179 -> 9.033828974e-08 | J11: Carência de Principal (Até Ano) | O11: 6 | Q11: 0 | S11: 0 | AQ11: 5 | AR11: 444415.4723 | AS11: 32078961.63 | AT11: 37916290.97 | AU11: 72.18236903 | AV11: 85.31721627 | AW11: -0.2797758823 | AY11: 4 | AZ11: 58010.87173
B12: TIR do Acionista (DDM) | D12: =IRR('10. DFs'!F164:AN164) -> 0.05377310289 | E12: ='10. DFs'!D188 -> 2.980232239e-07 | J12: Carência de Juros (Até Ano) | O12: 6 | Q12: 0 | S12: 0 | AQ12: 6 | AR12: 651384.1747 | AS12: 47105121.77 | AT12: 40131727.15 | AU12: 72.31542245 | AV12: 61.60992039 | AW12: 0.06621537075 | AY12: 5 | AZ12: 61362.72745
J13: Custo da Dívida Termos Reais (% a.a.) | O13: =((1+'02. WACC-CAPM'!G10)/(1+'02. WACC-CAPM'!D12))-1 -> 0.06413540998 | Q13: 0 | S13: 0 | AQ13: 7 | AR13: 926893.0771 | AS13: 67509279.95 | AT13: 43464153.69 | AU13: 72.8339456 | AV13: 46.89230588 | AW13: 0.2886982374 | AY13: 6 | AZ13: 62451.42729
B14: VPL do Projeto | D14: ='10. DFs'!D172 -> 0 | J14: % Inflação | O14: =IF($D$7="real",0,'03. DADOS MACROECONÔMICOS'!$H$7) -> 0 | Q14: =IF($D$7="real",0,'03. DADOS MACROECONÔMICOS'!$H$7) -> 0 | S14: =IF($D$7="real",0,'03. DADOS MACROECONÔMICOS'!$H$7) -> 0 | AQ14: 8 | AR14: 1163194.238 | AS14: 85734294.3 | AT14: 46245416.98 | AU14: 73.70591383 | AV14: =AT14/AR14 -> 39.75726105 | AW14: 0.4017361806 | AY14: 7 | AZ14: 63567.34464
J15: Custo da Dívida (% a.a.) | O15: =(1+O13)*(1+O14)-1 -> 0.06413540998 | Q15: =(1+Q13)*(1+Q14)-1 -> 0 | S15: =(1+S13)*(1+S14)-1 -> 0 | AQ15: 9 | AR15: 1309641.1 | AS15: 97910415.59 | AT15: 47684179.51 | AU15: 74.76125757 | AV15: 36.4101123 | AW15: 0.4588402524 | AY15: 8 | AZ15: 64711.15992
D16: Simples | E16: Descontado | J16: Fee (% do Total Captado) | O16: 0 | Q16: 0 | S16: 0 | AQ16: 10 | AR16: 1425125.651 | AS16: 108120948 | AT16: 48940958.21 | AU16: 75.86765974 | AV16: 34.34150397 | AW16: 0.4964372854 | AY16: 9 | AZ16: 65883.57058
B17: Payback (Projeto) | D17: ='10. DFs'!C176 -> 14 | E17: ='10. DFs'!C177 -> 31 | J17: Custo Efetivo (% a.a.) | O17: ='09. DÍVIDA'!C37 -> 0.06413540998 | Q17: ='09. DÍVIDA'!C61 -> n.a. | S17: ='09. DÍVIDA'!C85 -> n.a. | AQ17: 11 | AR17: 1507703.919 | AS17: 114299607.4 | AT17: 49579349.45 | AU17: 75.81038022 | AV17: 32.88400913 | AW17: 0.5170633853 | AY17: 10 | AZ17: 67085.2915
B18: Payback (Caixa Livre) | D18: ='10. DFs'!C185 -> 14 | E18: ='10. DFs'!C186 -> 0 | AQ18: 12 | AR18: 1572309.497 | AS18: 119133516.7 | AT18: 50078814.5 | AU18: 75.7697622 | AV18: 31.85048147 | AW18: 0.531717846 | AY18: 11 | AZ18: 68317.05545
B19: Payback (DDM) | D19: ='10. DFs'!C194 -> 30 | E19: ='10. DFs'!C195 -> 0 | J19: Controle de Capital, Covenants e Tributação | AQ19: 13 | AR19: 1618105.648 | AS19: 122560069.8 | AT19: 50432615.4 | AU19: 75.74293428 | AV19: 31.16769011 | AW19: 0.5414127608 | AY19: 12 | AZ19: 69579.6135
AQ20: 14 | AR20: 1661276.036 | AS20: 125790158.4 | AT20: 50765986.22 | AU20: 75.71899892 | AV20: 30.55842926 | AW20: 0.5500678142 | AY20: 13 | AZ20: 70873.7355
D21: % Próprio | E21: % Alavancagem | J21: Ano | K21: Aportes | L21: Retiradas | M21: Caixa Mínimo | N21: Distribuição | O21: Tributação | P21: Tributação Ótima | Q21: Necessidade | R21: Dividendos | S21: ICSD | AQ21: 15 | AR21: 1684791.954 | AS21: 127549663 | AT21: 50947232.11 | AU21: 75.70647683 | AV21: 30.2394797 | AW21: 0.5545983051 | AY21: 14 | AZ21: 72200.21055
B22: Estrutura Média de Capital | D22: ='10. DFs'!C212 -> 0.7949421588 | E22: ='10. DFs'!C213 -> 0.2050578412 | J22: 1 | K22: 182693013 | L22: 0 | M22: 0 | N22: Não | O22: Lucro Real | P22: =TRANSPOSE('08. TRIBUTOS'!F159:AN159) -> Lucro Real | Q22: =TRANSPOSE('11. AUX BP'!F179:AN179) -> 0 | R22: =TRANSPOSE('11. AUX BP'!F194:AN194) -> 0 | S22: =TRANSPOSE('09. DÍVIDA'!F108:AN108) -> n.a. | AQ22: 16 | AR22: 1688380.695 | AS22: 127818179.3 | AT22: 50974087.85 | AU22: 75.70459652 | AV22: 30.19111034 | AW22: 0.5552372378 | AY22: 15 | AZ22: 73559.84747
J23: 2 | K23: 0 | L23: 0 | M23: 0 | N23: Não | O23: Lucro Real | P23: Lucro Real | Q23: 0 | R23: 0 | S23: n.a. | AQ23: 17 | AR23: 1691977.079 | AS23: 128087267.4 | AT23: 51001153.86 | AU23: 75.70272022 | AV23: 30.14293426 | AW23: 0.555875655 | AY23: 16 | AZ23: 74953.47532
B24: Valor de Outorga | D24: 1704980.384 | J24: 3 | K24: 0 | L24: 0 | M24: 0 | N24: Não | O24: Lucro Real | P24: Lucro Real | Q24: 0 | R24: 0 | S24: n.a. | AQ24: 18 | AR24: 1695581.124 | AS24: 128356928.8 | AT24: 51028277.55 | AU24: 75.7008479 | AV24: =AT24/AR24 -> 30.09486059 | AW24: 0.5565147586 | AY24: 17 | AZ24: 76381.94387
B25: Parcelamento da outorga (até ano) | D25: 1 | J25: 4 | K25: 0 | L25: 0 | M25: 0 | N25: Não | O25: Lucro Real | P25: Lucro Real | Q25: 0 | R25: 0 | S25: n.a. | AQ25: 19 | AR25: 1699192.846 | AS25: 128627164.5 | AT25: 51055459.03 | AU25: 75.69897956 | AV25: 30.04688912 | AW25: 0.5571544735 | AY25: 18 | AZ25: 77846.12413
J26: 5 | K26: 0 | L26: 0 | M26: 0 | N26: Não | O26: Lucro Real | P26: Lucro Real | Q26: 0 | R26: 0 | S26: n.a. | AQ26: 20 | AR26: 1702812.261 | AS26: 128897975.9 | AT26: 51082698.43 | AU26: 75.69711519 | AV26: 29.99901962 | AW26: 0.5578324188 | AY26: 19 | AZ26: 79346.90889
B27: Taxa de Desconto | J27: 6 | K27: 0 | L27: 0 | M27: 0 | N27: Não | O27: Lucro Real | P27: Lucro Real | Q27: 0 | R27: 0 | S27: n.a. | AQ27: 21 | AR27: 1706439.386 | AS27: 129169364.1 | AT27: 51110526.25 | AU27: =AS27/AR27 -> 75.69525478 | AV27: 29.95156269 | AW27: 0.558478344 | AY27: 20 | AZ27: 80885.21327
J28: 7 | K28: 0 | L28: 0 | M28: 0 | N28: Não | O28: Lucro Real | P28: Lucro Real | Q28: 0 | R28: 0 | S28: 1.300933846 | AQ28: 22 | AR28: 1710074.237 | AS28: 129441330.4 | AT28: 51138666.57 | AU28: 75.69339833 | AV28: 29.90435471 | AW28: 0.5591163363 | AY28: 21 | AZ28: 82461.97527
D29: WACC | E29: CAPM | J29: 8 | K29: 0 | L29: 0 | M29: 0 | N29: Não | O29: Lucro Real | P29: Lucro Real | Q29: 0 | R29: 0 | S29: 2.362018049 | AQ29: 23 | AR29: 1713716.831 | AS29: 129713876 | AT29: 51166866.82 | AU29: 75.69154582 | AV29: 29.85724707 | AW29: 0.5597780568 | AY29: 22 | AZ29: 84078.15631
B30: Taxa de Desconto Utilizada | D30: =IF($D$7="Real",D31,D32) -> 0.09319759528 | E30: =IF($D$7="Real",E31,E32) -> 0.1422229793 | J30: 9 | K30: 0 | L30: 0 | M30: 0 | N30: Não | O30: Lucro Real | P30: Lucro Real | Q30: 0 | R30: 0 | S30: 3.173185339 | AQ30: 24 | AR30: 1717367.183 | AS30: 129987002.2 | AT30: 51195127.14 | AU30: 75.68969726 | AV30: 29.81023956 | AW30: 0.5604110019 | AY30: 23 | AZ30: 85734.74188
B31: Taxa de Desconto - Termos Reais | D31: ='02. WACC-CAPM'!D25 -> 0.09319759528 | E31: ='02. WACC-CAPM'!D16 -> 0.1422229793 | J31: 10 | K31: 0 | L31: 0 | M31: 0 | N31: Não | O31: Lucro Real | P31: Lucro Real | Q31: 0 | R31: 0 | S31: 3.887324089 | AQ31: 25 | AR31: 1721025.311 | AS31: 130260710.1 | AT31: 51223447.66 | AU31: 75.68785262 | AV31: 29.76333196 | AW31: 0.561046271 | AY31: 24 | AZ31: 87432.74209
B32: Taxa de Desconto - Termos Nominais | D32: ='02. WACC-CAPM'!D21 -> 0.1344262307 | E32: ='02. WACC-CAPM'!D15 -> 0.1853005483 | J32: 11 | K32: 0 | L32: 0 | M32: 0 | N32: Não | O32: Lucro Real | P32: Lucro Real | Q32: 0 | R32: 0 | S32: 4.408273531 | AQ32: 26 | AR32: 1724691.231 | AS32: 130535001.1 | AT32: 51251828.5 | AU32: 75.6860119 | AV32: 29.71652408 | AW32: 0.5616988034 | AY32: 25 | AZ32: 89173.1923
J33: 12 | K33: 0 | L33: 0 | M33: 0 | N33: Não | O33: Lucro Real | P33: Lucro Real | Q33: 0 | R33: 0 | S33: 4.856025171 | AQ33: 27 | AR33: 1728364.96 | AS33: 130809876.3 | AT33: 51280269.8 | AU33: 75.68417509 | AV33: 29.66981568 | AW33: 0.5623556459 | AY33: 26 | AZ33: 90957.15377
B34: Checks | J34: 13 | K34: 0 | L34: 0 | M34: 0 | N34: Não | O34: Lucro Real | P34: Lucro Real | Q34: 0 | R34: 0 | S34: 5.150369125 | AQ34: 28 | AR34: 1732046.514 | AS34: 131085337 | AT34: 51308771.68 | AU34: 75.68234219 | AV34: 29.62320657 | AW34: 0.5629873176 | AY34: 27 | AZ34: 92785.71428
J35: 14 | K35: 0 | L35: 0 | M35: 0 | N35: Não | O35: Lucro Real | P35: Lucro Real | Q35: 0 | R35: 0 | S35: 4.93449487 | AQ35: 29 | AR35: 1735735.911 | AS35: 131361384.5 | AT35: 51332753.09 | AU35: 75.68051319 | AV35: 29.57405719 | AW35: 0.5636565255 | AY35: 28 | AZ35: 94659.9888
B36: Balanço Patrimonial | D36: =IF(ROUND(SUM('10. DFs'!F129:AI129),0)=0,"OK","Checar Balanço") -> OK | J36: 15 | K36: 0 | L36: 0 | M36: 0 | N36: Não | O36: Lucro Real | P36: Lucro Real | Q36: 0 | R36: 0 | S36: 5.244608505 | AQ36: 30 | AR36: 1739433.165 | AS36: 131638019.9 | AT36: 51361376.52 | AU36: 75.67868807 | AV36: 29.52765162 | AW36: 0.5648644393 | AY36: 29 | AZ36: 96581.12018
B37: Capital | D37: =IF(SUM(Q22:Q51)>0,"Necessidade de Aporte","OK") -> OK | J37: 16 | K37: 0 | L37: 0 | M37: 0 | N37: Não | O37: Lucro Real | P37: Lucro Real | Q37: 0 | R37: 0 | S37: 5.414620639 | AS37: =AVERAGE(_xlfn.ANCHORARRAY(AS7)) -> 100999606.5 | AY37: 30 | AZ37: 98550.27985
B38: TIR | D38: =IF(ABS(SUM(E10:E12))>100000,"Recalcular TIR","OK") -> OK | J38: 17 | K38: 0 | L38: 0 | M38: 0 | N38: Não | O38: Lucro Real | P38: Lucro Real | Q38: 0 | R38: 0 | S38: 5.589858566 | AQ38: Média - Projeto | AR38: =AVERAGE(_xlfn.ANCHORARRAY(AR7)) -> 1341670.496 | AS38: =SUM(_xlfn.ANCHORARRAY(AS7)) -> 3029988195 | AU38: =AVERAGE(AU7:AU36) -> 72.58684091 | AV38: =AVERAGE(AV7:AV36) -> 60.63866942 | AW38: =AVERAGE(AW9:AW36) -> 0.3374169882 | AY38: Média | AZ38: =AVERAGE(AZ8:AZ36) -> 73175.07029
B39: ICSD Máximo | D39: 1.3 | J39: 18 | K39: 0 | L39: 0 | M39: 0 | N39: Não | O39: Lucro Real | P39: Lucro Real | Q39: 0 | R39: 0 | S39: 5.79656894
B40: ICSD Atual | D40: =_xlfn.MINIFS(S22:S56,J22:J56,"<"&(O10+1),J22:J56,">"&O11) -> 1.300933846 | J40: 19 | K40: 0 | L40: 0 | M40: 0 | N40: Não | O40: Lucro Real | P40: Lucro Real | Q40: 0 | R40: 0 | S40: 6.018563393 | AQ40: Ibitipoca/Itacolomi - MG | AU40: 96.2 | AV40: 51.87 | AW40: 0.42
B41: Alavancagem Máxima (BNDES) | D41: 0.8 | J41: 20 | K41: 0 | L41: 0 | M41: 0 | N41: Não | O41: Lucro Real | P41: Lucro Real | Q41: 0 | R41: 0 | S41: 6.263147457 | AQ41: Serra Furada - SC | AU41: 78 | AV41: 36 | AW41: 0.59
B42: Necessidade de Capital | D42: =-MIN(Q22:Q56) -> 0 | J42: 21 | K42: 0 | L42: 0 | M42: 0 | N42: Não | O42: Lucro Real | P42: Lucro Real | Q42: 0 | R42: 0 | S42: 6.523331752 | AQ42: Modelo Antigo | AU42: 190 | AV42: 122.16
B43: Sensibilidade CAPEX | D43: 1 | J43: 22 | K43: 0 | L43: 0 | M43: 0 | N43: Não | O43: Lucro Real | P43: Lucro Real | Q43: 0 | R43: 0 | S43: 6.803553897
B44: Sensibilidade OPEX | D44: 1 | J44: 23 | K44: 0 | L44: 0 | M44: 0 | N44: Não | O44: Lucro Real | P44: Lucro Real | Q44: 0 | R44: 0 | S44: 7.111701689
J45: 24 | K45: 0 | L45: 0 | M45: 0 | N45: Não | O45: Lucro Real | P45: Lucro Real | Q45: 0 | R45: 0 | S45: 7.44270948
B46: Controle UGC | J46: 25 | K46: 0 | L46: 0 | M46: 0 | N46: Não | O46: Lucro Real | P46: Lucro Real | Q46: 0 | R46: 0 | S46: 7.804600996
J47: 26 | K47: 0 | L47: 0 | M47: 0 | N47: Não | O47: Lucro Real | P47: Lucro Real | Q47: 0 | R47: 0 | S47: 8.205350199
B48: Unida de Caixa | D48: ROB Total ("000.000) | E48: OPEX Associado ("000.000) | F48: CAPEX Associado ("000.000) | J48: 27 | K48: 0 | L48: 0 | M48: 0 | N48: Não | O48: Lucro Real | P48: Lucro Real | Q48: 0 | R48: 0 | S48: 8.648554501
J49: 28 | K49: 0 | L49: 0 | M49: 0 | N49: Não | O49: Lucro Real | P49: Lucro Real | Q49: 0 | R49: 0 | S49: 9.134393103
B50: ='04. RECEITA'!B8 -> Bilheteria | D50: =SUM('04. RECEITA'!I8:AQ8)/1000000 -> 1364.575637 | E50: =-SUM('05. OPEX'!G8:AO8)/1000000 -> 53.14787995 | F50: =-SUM('06. CAPEX'!O801:AR801)/1000000 -> 0.0435385 | J50: 29 | K50: 0 | L50: 0 | M50: 0 | N50: Não | O50: Lucro Real | P50: Lucro Real | Q50: 0 | R50: 0 | S50: 9.675866931
B51: ='04. RECEITA'!B9 -> Teleférico | D51: =SUM('04. RECEITA'!I9:AQ9)/1000000 -> 895.2103764 | E51: =-SUM('05. OPEX'!G9:AO9)/1000000 -> 133.0721524 | F51: =-SUM('06. CAPEX'!O804:AR804)/1000000 -> 140.2769581 | J51: 30 | K51: 0 | L51: 0 | M51: 0 | N51: Não | O51: Lucro Real | P51: Lucro Real | Q51: 0 | R51: -834426532.6 | S51: 11.47762358
B52: ='04. RECEITA'!B10 -> Tirolesa | D52: =SUM('04. RECEITA'!I10:AQ10)/1000000 -> 0 | E52: =-SUM('05. OPEX'!G24:AO24)/1000000 -> 0 | F52: n/c | J52: 31 | K52: 0 | L52: 0 | M52: 0 | N52: Não | O52: Lucro Real | P52: Lucro Presumido | Q52: 0 | R52: 0 | S52: n.a.
B53: ='04. RECEITA'!B11 -> Trenó de Montanha | D53: =SUM('04. RECEITA'!I11:AQ11)/1000000 -> 0 | E53: =-SUM('05. OPEX'!G10:AO10)/1000000 -> 0 | F53: n/c | J53: 32 | K53: 0 | L53: 0 | M53: 0 | N53: Não | O53: Lucro Real | P53: Lucro Presumido | Q53: 0 | R53: 0 | S53: n.a.
B54: ='04. RECEITA'!B12 -> Cachoeiras | D54: =SUM('04. RECEITA'!I12:AQ12)/1000000 -> 0 | E54: =-SUM('05. OPEX'!G11:AO11)/1000000 -> 0 | F54: =-SUM('06. CAPEX'!O820:AR820)/1000000 -> 0.0028767 | J54: 33 | K54: 0 | L54: 0 | M54: 0 | N54: Não | O54: Lucro Real | P54: Lucro Presumido | Q54: 0 | R54: 0 | S54: n.a.
B55: ='04. RECEITA'!B13 -> Mirantes | D55: =SUM('04. RECEITA'!I13:AQ13)/1000000 -> 0 | E55: =-SUM('05. OPEX'!G12:AO12)/1000000 -> 0 | F55: =-SUM('06. CAPEX'!O821:AR821)/1000000 -> 2.5776797 | J55: 34 | K55: 0 | L55: 0 | M55: 0 | N55: Não | O55: Lucro Real | P55: Lucro Presumido | Q55: 0 | R55: 0 | S55: n.a.
B56: ='04. RECEITA'!B14 -> Trilhas autoguiadas | D56: =SUM('04. RECEITA'!I14:AQ14)/1000000 -> 0 | E56: 0 | F56: =-SUM('06. CAPEX'!O822:AR822)/1000000 -> 0 | J56: 35 | K56: 0 | L56: 0 | M56: 0 | N56: Não | O56: Lucro Real | P56: Lucro Presumido | Q56: 0 | R56: 0 | S56: n.a.
B57: ='04. RECEITA'!B15 -> Trilhas guiadas | D57: =SUM('04. RECEITA'!I15:AQ15)/1000000 -> 221.1842301 | E57: =-SUM('05. OPEX'!G13:AO13)/1000000 -> 34.73235288 | F57: =-SUM('06. CAPEX'!O823:AR823)/1000000 -> 0.7480722
B58: ='04. RECEITA'!B16 -> Atividades de educação ambiental | D58: =SUM('04. RECEITA'!I16:AQ16)/1000000 -> 0 | E58: =-SUM('05. OPEX'!G14:AO14)/1000000 -> 83.85284812 | F58: =-SUM('06. CAPEX'!O824:AR824)/1000000 -> 0 | J58: Premissas de Operação
B59: ='04. RECEITA'!B17 -> Avistamento de aves | D59: =SUM('04. RECEITA'!I17:AQ17)/1000000 -> 0 | E59: =-SUM('05. OPEX'!G15:AO15)/1000000 -> 0 | F59: =-SUM('06. CAPEX'!O825:AR825)/1000000 -> 0.5978455
B60: ='04. RECEITA'!B18 -> Locação de bicicleta | D60: =SUM('04. RECEITA'!I18:AQ18)/1000000 -> 0 | E60: =-SUM('05. OPEX'!G16:AO16)/1000000 -> 0 | F60: =-SUM('06. CAPEX'!O826:AR826)/1000000 -> 0 | J60: UGC | K60: 1 | L60: 2 | M60: 3 | N60: 4 | O60: 5 | P60: 6 | Q60: 7 | R60: 8 | S60: 9 | T60: 10 | U60: 11 | V60: 12 | W60: 13 | X60: 14 | Y60: 15 | Z60: 16 | AA60: 17 | AB60: 18 | AC60: 19 | AD60: 20 | AE60: 21 | AF60: 22 | AG60: 23 | AH60: 24 | AI60: 25 | AJ60: 26 | AK60: 27 | AL60: 28 | AM60: 29 | AN60: 30
B61: ='04. RECEITA'!B19 -> Locação de bicicleta / quadriciclo elétricos | D61: =SUM('04. RECEITA'!I19:AQ19)/1000000 -> 0 | E61: =-SUM('05. OPEX'!G17:AO17)/1000000 -> 0 | F61: =-SUM('06. CAPEX'!O827:AR827)/1000000 -> 0
B62: ='04. RECEITA'!B20 -> Pista de voo livre (parapente) | D62: =SUM('04. RECEITA'!I20:AQ20)/1000000 -> 0 | E62: =-SUM('05. OPEX'!G18:AO18)/1000000 -> 0 | F62: =-SUM('06. CAPEX'!O828:AR828)/1000000 -> 0 | J62: =B72 -> Bilheteria | K62: 1 | L62: 1 | M62: 1 | N62: 1 | O62: 1 | P62: 1 | Q62: 1 | R62: 1 | S62: 1 | T62: 1 | U62: 1 | V62: 1 | W62: 1 | X62: 1 | Y62: 1 | Z62: 1 | AA62: 1 | AB62: 1 | AC62: 1 | AD62: 1 | AE62: 1 | AF62: 1 | AG62: 1 | AH62: 1 | AI62: 1 | AJ62: 1 | AK62: 1 | AL62: 1 | AM62: 1 | AN62: 1
B63: ='04. RECEITA'!B21 -> Restaurante panorâmico | D63: =SUM('04. RECEITA'!I21:AQ21)/1000000 -> 13.7696 | E63: =-SUM('05. OPEX'!G19:AO19)/1000000 -> 0 | F63: =-SUM('06. CAPEX'!O831:AR831)/1000000 -> 11.09000948 | J63: Teleférico | K63: ='06. CAPEX'!O806 -> 0 | L63: ='06. CAPEX'!P806 -> 0 | M63: ='06. CAPEX'!Q806 -> 0.2631578947 | N63: ='06. CAPEX'!R806 -> 0.6842105263 | O63: ='06. CAPEX'!S806 -> 0.7368421053 | P63: ='06. CAPEX'!T806 -> 0.7894736842 | Q63: ='06. CAPEX'!U806 -> 0.8421052632 | R63: ='06. CAPEX'!V806 -> 0.8947368421 | S63: ='06. CAPEX'!W806 -> 0.9473684211 | T63: ='06. CAPEX'!X806 -> 1 | U63: ='06. CAPEX'!Y806 -> 1 | V63: ='06. CAPEX'!Z806 -> 1 | W63: ='06. CAPEX'!AA806 -> 1 | X63: ='06. CAPEX'!AB806 -> 1 | Y63: ='06. CAPEX'!AC806 -> 1 | Z63: ='06. CAPEX'!AD806 -> 1 | AA63: ='06. CAPEX'!AE806 -> 1 | AB63: ='06. CAPEX'!AF806 -> 1 | AC63: ='06. CAPEX'!AG806 -> 1 | AD63: ='06. CAPEX'!AH806 -> 1 | AE63: ='06. CAPEX'!AI806 -> 1 | AF63: ='06. CAPEX'!AJ806 -> 1 | AG63: ='06. CAPEX'!AK806 -> 1 | AH63: ='06. CAPEX'!AL806 -> 1 | AI63: ='06. CAPEX'!AM806 -> 1 | AJ63: ='06. CAPEX'!AN806 -> 1 | AK63: ='06. CAPEX'!AO806 -> 1 | AL63: ='06. CAPEX'!AP806 -> 1 | AM63: ='06. CAPEX'!AQ806 -> 1 | AN63: ='06. CAPEX'!AR806 -> 1
B64: ='04. RECEITA'!B22 -> Lanchonete / snack-bar | D64: =SUM('04. RECEITA'!I22:AQ22)/1000000 -> 16.6824 | E64: =-SUM('05. OPEX'!G20:AO20)/1000000 -> 0 | F64: =-SUM('06. CAPEX'!O837:AR837)/1000000 -> 1.78791295 | J64: Tirolesa | K64: n.a | L64: n.a | M64: n.a | N64: n.a | O64: n.a | P64: n.a | Q64: n.a | R64: n.a | S64: n.a | T64: n.a | U64: n.a | V64: n.a | W64: n.a | X64: n.a | Y64: n.a | Z64: n.a | AA64: n.a | AB64: n.a | AC64: n.a | AD64: n.a | AE64: n.a | AF64: n.a | AG64: n.a | AH64: n.a | AI64: n.a | AJ64: n.a | AK64: n.a | AL64: n.a | AM64: n.a | AN64: n.a
B65: ='04. RECEITA'!B23 -> Loja de souvenirs | D65: =SUM('04. RECEITA'!I23:AQ23)/1000000 -> 10.6582 | E65: =-SUM('05. OPEX'!G21:AO21)/1000000 -> 0 | F65: - | J65: Trenó de Montanha | K65: n.a | L65: n.a | M65: n.a | N65: n.a | O65: n.a | P65: n.a | Q65: n.a | R65: n.a | S65: n.a | T65: n.a | U65: n.a | V65: n.a | W65: n.a | X65: n.a | Y65: n.a | Z65: n.a | AA65: n.a | AB65: n.a | AC65: n.a | AD65: n.a | AE65: n.a | AF65: n.a | AG65: n.a | AH65: n.a | AI65: n.a | AJ65: n.a | AK65: n.a | AL65: n.a | AM65: n.a | AN65: n.a
B66: ='04. RECEITA'!B24 -> Transporte interno | D66: =SUM('04. RECEITA'!I24:AQ24)/1000000 -> 507.9077516 | E66: =-SUM('05. OPEX'!G22:AO22)/1000000 -> 8.90022282 | F66: =-SUM('06. CAPEX'!O839:AR839)/1000000 -> 3.08191915 | J66: Cachoeiras | K66: 1 | L66: 1 | M66: 1 | N66: 1 | O66: 1 | P66: 1 | Q66: 1 | R66: 1 | S66: 1 | T66: 1 | U66: 1 | V66: 1 | W66: 1 | X66: 1 | Y66: 1 | Z66: 1 | AA66: 1 | AB66: 1 | AC66: 1 | AD66: 1 | AE66: 1 | AF66: 1 | AG66: 1 | AH66: 1 | AI66: 1 | AJ66: 1 | AK66: 1 | AL66: 1 | AM66: 1 | AN66: 1
B67: ='04. RECEITA'!B25 -> Estacionamento (carros) | D67: =SUM('04. RECEITA'!I25:AQ25)/1000000 -> 0 | E67: =-SUM('05. OPEX'!G23:AO23)/1000000 -> 24.22929737 | F67: =-SUM('06. CAPEX'!O840:AR840)/1000000 -> 0.405328 | J67: Mirantes | K67: 1 | L67: 1 | M67: 1 | N67: 1 | O67: 1 | P67: 1 | Q67: 1 | R67: 1 | S67: 1 | T67: 1 | U67: 1 | V67: 1 | W67: 1 | X67: 1 | Y67: 1 | Z67: 1 | AA67: 1 | AB67: 1 | AC67: 1 | AD67: 1 | AE67: 1 | AF67: 1 | AG67: 1 | AH67: 1 | AI67: 1 | AJ67: 1 | AK67: 1 | AL67: 1 | AM67: 1 | AN67: 1
J68: Trilhas autoguiadas | K68: 1 | L68: 1 | M68: 1 | N68: 1 | O68: 1 | P68: 1 | Q68: 1 | R68: 1 | S68: 1 | T68: 1 | U68: 1 | V68: 1 | W68: 1 | X68: 1 | Y68: 1 | Z68: 1 | AA68: 1 | AB68: 1 | AC68: 1 | AD68: 1 | AE68: 1 | AF68: 1 | AG68: 1 | AH68: 1 | AI68: 1 | AJ68: 1 | AK68: 1 | AL68: 1 | AM68: 1 | AN68: 1
J69: Trilhas guiadas | K69: 1 | L69: 1 | M69: 1 | N69: 1 | O69: 1 | P69: 1 | Q69: 1 | R69: 1 | S69: 1 | T69: 1 | U69: 1 | V69: 1 | W69: 1 | X69: 1 | Y69: 1 | Z69: 1 | AA69: 1 | AB69: 1 | AC69: 1 | AD69: 1 | AE69: 1 | AF69: 1 | AG69: 1 | AH69: 1 | AI69: 1 | AJ69: 1 | AK69: 1 | AL69: 1 | AM69: 1 | AN69: 1
B70: Unidade de Caixa | D70: Cobrança | E70: Operação | F70: Investimentos | J70: Atividades de educação ambiental | K70: 1 | L70: 1 | M70: 1 | N70: 1 | O70: 1 | P70: 1 | Q70: 1 | R70: 1 | S70: 1 | T70: 1 | U70: 1 | V70: 1 | W70: 1 | X70: 1 | Y70: 1 | Z70: 1 | AA70: 1 | AB70: 1 | AC70: 1 | AD70: 1 | AE70: 1 | AF70: 1 | AG70: 1 | AH70: 1 | AI70: 1 | AJ70: 1 | AK70: 1 | AL70: 1 | AM70: 1 | AN70: 1
J71: Avistamento de aves | K71: 1 | L71: 1 | M71: 1 | N71: 1 | O71: 1 | P71: 1 | Q71: 1 | R71: 1 | S71: 1 | T71: 1 | U71: 1 | V71: 1 | W71: 1 | X71: 1 | Y71: 1 | Z71: 1 | AA71: 1 | AB71: 1 | AC71: 1 | AD71: 1 | AE71: 1 | AF71: 1 | AG71: 1 | AH71: 1 | AI71: 1 | AJ71: 1 | AK71: 1 | AL71: 1 | AM71: 1 | AN71: 1
B72: =B50 -> Bilheteria | D72: 1 | E72: 1 | F72: 1 | J72: Locação de bicicleta | K72: =SUM('06.01 Premissas CAPEX'!$I$974:I974) -> 0 | L72: =SUM('06.01 Premissas CAPEX'!$I$974:J974) -> 0.5 | M72: =SUM('06.01 Premissas CAPEX'!$I$974:K974) -> 1 | N72: =SUM('06.01 Premissas CAPEX'!$I$974:L974) -> 1 | O72: =SUM('06.01 Premissas CAPEX'!$I$974:M974) -> 1 | P72: =SUM('06.01 Premissas CAPEX'!$I$974:N974) -> 1 | Q72: =SUM('06.01 Premissas CAPEX'!$I$974:O974) -> 1 | R72: =SUM('06.01 Premissas CAPEX'!$I$974:P974) -> 1 | S72: =SUM('06.01 Premissas CAPEX'!$I$974:Q974) -> 1 | T72: =SUM('06.01 Premissas CAPEX'!$I$974:R974) -> 1 | U72: =SUM('06.01 Premissas CAPEX'!$I$974:S974) -> 1 | V72: =SUM('06.01 Premissas CAPEX'!$I$974:T974) -> 1 | W72: =SUM('06.01 Premissas CAPEX'!$I$974:U974) -> 1 | X72: =SUM('06.01 Premissas CAPEX'!$I$974:V974) -> 1 | Y72: =SUM('06.01 Premissas CAPEX'!$I$974:W974) -> 1 | Z72: =SUM('06.01 Premissas CAPEX'!$I$974:X974) -> 1 | AA72: =SUM('06.01 Premissas CAPEX'!$I$974:Y974) -> 1 | AB72: =SUM('06.01 Premissas CAPEX'!$I$974:Z974) -> 1 | AC72: =SUM('06.01 Premissas CAPEX'!$I$974:AA974) -> 1 | AD72: =SUM('06.01 Premissas CAPEX'!$I$974:AB974) -> 1 | AE72: =SUM('06.01 Premissas CAPEX'!$I$974:AC974) -> 1 | AF72: =SUM('06.01 Premissas CAPEX'!$I$974:AD974) -> 1 | AG72: =SUM('06.01 Premissas CAPEX'!$I$974:AE974) -> 1 | AH72: =SUM('06.01 Premissas CAPEX'!$I$974:AF974) -> 1 | AI72: =SUM('06.01 Premissas CAPEX'!$I$974:AG974) -> 1 | AJ72: =SUM('06.01 Premissas CAPEX'!$I$974:AH974) -> 1 | AK72: =SUM('06.01 Premissas CAPEX'!$I$974:AI974) -> 1 | AL72: =SUM('06.01 Premissas CAPEX'!$I$974:AJ974) -> 1 | AM72: =SUM('06.01 Premissas CAPEX'!$I$974:AK974) -> 1 | AN72: =SUM('06.01 Premissas CAPEX'!$I$974:AL974) -> 1
B73: Teleférico | D73: 1 | E73: 1 | F73: 1 | J73: Locação de bicicleta / quadriciclo elétricos | K73: =SUM('06.01 Premissas CAPEX'!$I$974:I974) -> 0 | L73: =SUM('06.01 Premissas CAPEX'!$I$974:J974) -> 0.5 | M73: =SUM('06.01 Premissas CAPEX'!$I$974:K974) -> 1 | N73: =SUM('06.01 Premissas CAPEX'!$I$974:L974) -> 1 | O73: =SUM('06.01 Premissas CAPEX'!$I$974:M974) -> 1 | P73: =SUM('06.01 Premissas CAPEX'!$I$974:N974) -> 1 | Q73: =SUM('06.01 Premissas CAPEX'!$I$974:O974) -> 1 | R73: =SUM('06.01 Premissas CAPEX'!$I$974:P974) -> 1 | S73: =SUM('06.01 Premissas CAPEX'!$I$974:Q974) -> 1 | T73: =SUM('06.01 Premissas CAPEX'!$I$974:R974) -> 1 | U73: =SUM('06.01 Premissas CAPEX'!$I$974:S974) -> 1 | V73: =SUM('06.01 Premissas CAPEX'!$I$974:T974) -> 1 | W73: =SUM('06.01 Premissas CAPEX'!$I$974:U974) -> 1 | X73: =SUM('06.01 Premissas CAPEX'!$I$974:V974) -> 1 | Y73: =SUM('06.01 Premissas CAPEX'!$I$974:W974) -> 1 | Z73: =SUM('06.01 Premissas CAPEX'!$I$974:X974) -> 1 | AA73: =SUM('06.01 Premissas CAPEX'!$I$974:Y974) -> 1 | AB73: =SUM('06.01 Premissas CAPEX'!$I$974:Z974) -> 1 | AC73: =SUM('06.01 Premissas CAPEX'!$I$974:AA974) -> 1 | AD73: =SUM('06.01 Premissas CAPEX'!$I$974:AB974) -> 1 | AE73: =SUM('06.01 Premissas CAPEX'!$I$974:AC974) -> 1 | AF73: =SUM('06.01 Premissas CAPEX'!$I$974:AD974) -> 1 | AG73: =SUM('06.01 Premissas CAPEX'!$I$974:AE974) -> 1 | AH73: =SUM('06.01 Premissas CAPEX'!$I$974:AF974) -> 1 | AI73: =SUM('06.01 Premissas CAPEX'!$I$974:AG974) -> 1 | AJ73: =SUM('06.01 Premissas CAPEX'!$I$974:AH974) -> 1 | AK73: =SUM('06.01 Premissas CAPEX'!$I$974:AI974) -> 1 | AL73: =SUM('06.01 Premissas CAPEX'!$I$974:AJ974) -> 1 | AM73: =SUM('06.01 Premissas CAPEX'!$I$974:AK974) -> 1 | AN73: =SUM('06.01 Premissas CAPEX'!$I$974:AL974) -> 1
B74: Tirolesa | D74: 0 | E74: 0 | F74: 0 | J74: Pista de voo livre (parapente) | K74: n.a | L74: n.a | M74: n.a | N74: n.a | O74: n.a | P74: n.a | Q74: n.a | R74: n.a | S74: n.a | T74: n.a | U74: n.a | V74: n.a | W74: n.a | X74: n.a | Y74: n.a | Z74: n.a | AA74: n.a | AB74: n.a | AC74: n.a | AD74: n.a | AE74: n.a | AF74: n.a | AG74: n.a | AH74: n.a | AI74: n.a | AJ74: n.a | AK74: n.a | AL74: n.a | AM74: n.a | AN74: n.a
B75: Trenó de Montanha | D75: 0 | E75: 0 | F75: 0 | J75: Restaurante panorâmico | K75: ='06. CAPEX'!O833 -> 0 | L75: ='06. CAPEX'!P833 -> 0 | M75: ='06. CAPEX'!Q833 -> 0.5833333333 | N75: ='06. CAPEX'!R833 -> 1 | O75: ='06. CAPEX'!S833 -> 1 | P75: ='06. CAPEX'!T833 -> 1 | Q75: ='06. CAPEX'!U833 -> 1 | R75: ='06. CAPEX'!V833 -> 1 | S75: ='06. CAPEX'!W833 -> 1 | T75: ='06. CAPEX'!X833 -> 1 | U75: ='06. CAPEX'!Y833 -> 1 | V75: ='06. CAPEX'!Z833 -> 1 | W75: ='06. CAPEX'!AA833 -> 1 | X75: ='06. CAPEX'!AB833 -> 1 | Y75: ='06. CAPEX'!AC833 -> 1 | Z75: ='06. CAPEX'!AD833 -> 1 | AA75: ='06. CAPEX'!AE833 -> 1 | AB75: ='06. CAPEX'!AF833 -> 1 | AC75: ='06. CAPEX'!AG833 -> 1 | AD75: ='06. CAPEX'!AH833 -> 1 | AE75: ='06. CAPEX'!AI833 -> 1 | AF75: ='06. CAPEX'!AJ833 -> 1 | AG75: ='06. CAPEX'!AK833 -> 1 | AH75: ='06. CAPEX'!AL833 -> 1 | AI75: ='06. CAPEX'!AM833 -> 1 | AJ75: ='06. CAPEX'!AN833 -> 1 | AK75: ='06. CAPEX'!AO833 -> 1 | AL75: ='06. CAPEX'!AP833 -> 1 | AM75: ='06. CAPEX'!AQ833 -> 1 | AN75: ='06. CAPEX'!AR833 -> 1
B76: Cachoeiras | D76: 0 | E76: 1 | F76: 1 | J76: Lanchonete / snack-bar | K76: =K75 -> 0 | L76: =L75 -> 0 | M76: 0.5833333333 | N76: 1 | O76: 1 | P76: 1 | Q76: 1 | R76: 1 | S76: 1 | T76: 1 | U76: 1 | V76: 1 | W76: 1 | X76: 1 | Y76: 1 | Z76: 1 | AA76: 1 | AB76: 1 | AC76: 1 | AD76: 1 | AE76: 1 | AF76: 1 | AG76: 1 | AH76: 1 | AI76: 1 | AJ76: 1 | AK76: 1 | AL76: 1 | AM76: 1 | AN76: 1
B77: Mirantes | D77: 0 | E77: 1 | F77: 1 | J77: Loja de souvenirs | K77: =K76 -> 0 | L77: 0 | M77: 0.5833333333 | N77: 1 | O77: 1 | P77: 1 | Q77: 1 | R77: 1 | S77: 1 | T77: 1 | U77: 1 | V77: 1 | W77: 1 | X77: 1 | Y77: 1 | Z77: 1 | AA77: 1 | AB77: 1 | AC77: 1 | AD77: 1 | AE77: 1 | AF77: 1 | AG77: 1 | AH77: 1 | AI77: 1 | AJ77: 1 | AK77: 1 | AL77: 1 | AM77: 1 | AN77: 1
B78: Trilhas autoguiadas | D78: 1 | E78: 1 | F78: 1 | G78: 1 | J78: Transporte interno | K78: =SUM('06.01 Premissas CAPEX'!$I$974:I974) -> 0 | L78: =SUM('06.01 Premissas CAPEX'!$I$974:J974) -> 0.5 | M78: =SUM('06.01 Premissas CAPEX'!$I$974:K974) -> 1 | N78: =SUM('06.01 Premissas CAPEX'!$I$974:L974) -> 1 | O78: =SUM('06.01 Premissas CAPEX'!$I$974:M974) -> 1 | P78: =SUM('06.01 Premissas CAPEX'!$I$974:N974) -> 1 | Q78: =SUM('06.01 Premissas CAPEX'!$I$974:O974) -> 1 | R78: =SUM('06.01 Premissas CAPEX'!$I$974:P974) -> 1 | S78: =SUM('06.01 Premissas CAPEX'!$I$974:Q974) -> 1 | T78: =SUM('06.01 Premissas CAPEX'!$I$974:R974) -> 1 | U78: =SUM('06.01 Premissas CAPEX'!$I$974:S974) -> 1 | V78: =SUM('06.01 Premissas CAPEX'!$I$974:T974) -> 1 | W78: =SUM('06.01 Premissas CAPEX'!$I$974:U974) -> 1 | X78: =SUM('06.01 Premissas CAPEX'!$I$974:V974) -> 1 | Y78: =SUM('06.01 Premissas CAPEX'!$I$974:W974) -> 1 | Z78: =SUM('06.01 Premissas CAPEX'!$I$974:X974) -> 1 | AA78: =SUM('06.01 Premissas CAPEX'!$I$974:Y974) -> 1 | AB78: =SUM('06.01 Premissas CAPEX'!$I$974:Z974) -> 1 | AC78: =SUM('06.01 Premissas CAPEX'!$I$974:AA974) -> 1 | AD78: =SUM('06.01 Premissas CAPEX'!$I$974:AB974) -> 1 | AE78: =SUM('06.01 Premissas CAPEX'!$I$974:AC974) -> 1 | AF78: =SUM('06.01 Premissas CAPEX'!$I$974:AD974) -> 1 | AG78: =SUM('06.01 Premissas CAPEX'!$I$974:AE974) -> 1 | AH78: =SUM('06.01 Premissas CAPEX'!$I$974:AF974) -> 1 | AI78: =SUM('06.01 Premissas CAPEX'!$I$974:AG974) -> 1 | AJ78: =SUM('06.01 Premissas CAPEX'!$I$974:AH974) -> 1 | AK78: =SUM('06.01 Premissas CAPEX'!$I$974:AI974) -> 1 | AL78: =SUM('06.01 Premissas CAPEX'!$I$974:AJ974) -> 1 | AM78: =SUM('06.01 Premissas CAPEX'!$I$974:AK974) -> 1 | AN78: =SUM('06.01 Premissas CAPEX'!$I$974:AL974) -> 1
B79: Trilhas guiadas | D79: 1 | E79: 1 | F79: 1 | G79: 1 | J79: Estacionamento (carros) | K79: 1 | L79: 1 | M79: 1 | N79: 1 | O79: 1 | P79: 1 | Q79: 1 | R79: 1 | S79: 1 | T79: 1 | U79: 1 | V79: 1 | W79: 1 | X79: 1 | Y79: 1 | Z79: 1 | AA79: 1 | AB79: 1 | AC79: 1 | AD79: 1 | AE79: 1 | AF79: 1 | AG79: 1 | AH79: 1 | AI79: 1 | AJ79: 1 | AK79: 1 | AL79: 1 | AM79: 1 | AN79: 1
B80: Atividades de educação ambiental | D80: 0 | E80: 1 | F80: 1 | G80: 0 | H80: 1
B81: Avistamento de aves | D81: 0 | E81: 0 | F81: 1 | G81: 0 | H81: 1
B82: Locação de bicicleta | D82: 0 | E82: 0 | F82: 0 | G82: 0 | H82: 0
B83: Locação de bicicleta / quadriciclo elétricos | D83: 0 | E83: 0 | F83: 0 | G83: 0 | H83: 0
B84: Pista de voo livre (parapente) | D84: 0 | E84: 0 | F84: 0 | G84: 1 | H84: 1
B85: Restaurante panorâmico | D85: 1 | E85: 0 | F85: 1 | G85: 1 | H85: 1
B86: Lanchonete / snack-bar | D86: 1 | E86: 0 | F86: 1 | G86: 0 | H86: 1
B87: Loja de souvenirs | D87: 1 | E87: 0 | F87: 1 | G87: 0 | H87: 1
B88: Transporte interno | D88: 1 | E88: 1 | F88: 1 | G88: 0 | H88: 1
B89: Estacionamento (carros) | D89: 0 | E89: 1 | F89: 1 | G89: 0 | H89: 1
G90: 0 | H90: 0
H91: 0
B92: Equipamento / Atividade | F92: Caderno de Encargos | H92: 0
B93: Teleférico | F93: Obrigatório
B94: Tirolesa | F94: Opcional
B95: Trenó de Montanha | F95: Opcional
B96: Cachoeiras | F96: Obrigatório
B97: Mirantes | F97: Obrigatório
B98: Trilhas autoguiadas | F98: Obrigatório
B99: Trilhas guiadas | F99: Obrigatório
B100: Atividades de educação ambiental | F100: Obrigatório
B101: Avistamento de aves | F101: Opcional
B102: Locação de bicicleta | F102: Opcional
B103: Locação de bicicleta / quadriciclo elétricos | F103: Opcional
B104: Pista de voo livre (parapente) | F104: Opcional
B105: Restaurante panorâmico | F105: Obrigatório
B106: Lanchonete / snack-bar | F106: Obrigatório
B107: Loja de souvenirs | F107: Obrigatório
B108: Transporte interno | F108: Obrigatório
B109: Estacionamento | F109: Obrigatório
B111: Premissas Fiscais/Contábeis
B113: Classificação dos Ativos
E114: % Bens Reversíveis | F114: % Imobilizado
B115: ='06. CAPEX'!B8 -> Outorga | E115: 1 | F115: 0
B116: ='06. CAPEX'!B9 -> Portal | E116: 1 | F116: 0
B117: ='06. CAPEX'!B10 -> Portaria | E117: 1 | F117: 0
B118: ='06. CAPEX'!B11 -> Estacionamento de visitantes (portaria) | E118: 1 | F118: 0
B119: ='06. CAPEX'!B12 -> Estacionamento de visitantes/ônibus (casa do pesquisador) | E119: 1 | F119: 0
B120: ='06. CAPEX'!B13 -> Estacionamento frota parque/concessionário | E120: 1 | F120: 0
B121: ='06. CAPEX'!B14 -> Base de apoio ao visitante - Setor Caldas Novas | E121: 1 | F121: 0
B122: ='06. CAPEX'!B15 -> Centro de visitantes | E122: 1 | F122: 0
B123: ='06. CAPEX'!B16 -> Torre e estação metereológica | E123: 1 | F123: 0
B124: ='06. CAPEX'!B17 -> Fonte de água | E124: 1 | F124: 0
B125: ='06. CAPEX'!B18 -> Reservatório de água | E125: 1 | F125: 0
B126: ='06. CAPEX'!B19 -> Alojamento de Estudantes | E126: 1 | F126: 0
B127: ='06. CAPEX'!B20 -> Alojamento de pesquisadores | E127: 1 | F127: 0
B128: ='06. CAPEX'!B21 -> Receptivo Pedra do Amor | E128: 1 | F128: 0
B129: ='06. CAPEX'!B22 -> Cachoeira Cascatinha | E129: 1 | F129: 0
B130: ='06. CAPEX'!B23 -> Mirante Paredão | E130: 1 | F130: 0
B131: ='06. CAPEX'!B24 -> Paredão de Escalada | E131: 1 | F131: 0
B132: ='06. CAPEX'!B25 -> Praça Sensitiva | E132: 1 | F132: 0
B133: ='06. CAPEX'!B26 -> Aquisição de ativos | E133: 1 | F133: 0
B134: ='06. CAPEX'!B27 -> Serviços Gerais | E134: 1 | F134: 0
B135: ='06. CAPEX'!B28 -> Acesso Rio Quente | E135: 1 | F135: 0
B136: ='06. CAPEX'!B29 -> Base de apoio ao visitante - Setor Rio Quente | E136: 1 | F136: 0
B137: ='06. CAPEX'!B30 -> Torre e estação metereológica | E137: 1 | F137: 0
B138: ='06. CAPEX'!B31 -> Mirante da Pousada e Mirante México | E138: 1 | F138: 0
B139: ='06. CAPEX'!B32 -> Trilha Cachoeira México | E139: 1 | F139: 0
B140: ='06. CAPEX'!B33 -> Estação Teleférico | E140: 1 | F140: 0
B141: ='06. CAPEX'!B34 -> Serviços Gerais - Setor Rio Quente | E141: 1 | F141: 0
B142: ='06. CAPEX'!B35 -> Acesso Rua de Pedra | E142: 1 | F142: 0
B143: ='06. CAPEX'!B36 -> Torre e estação metereológica | E143: 1 | F143: 0
B144: ='06. CAPEX'!B37 -> Mirante e trilha do Minério | E144: 1 | F144: 0
B145: ='06. CAPEX'!B38 -> Campos de Murundum | E145: 1 | F145: 0
B146: ='06. CAPEX'!B39 -> Base de apoio ao visitante - Setor Rua da Pedra | E146: 1 | F146: 0
B147: ='06. CAPEX'!B40 -> Serviços Gerais - Setor Rua da Pedra | E147: 1 | F147: 0
B148: ='06. CAPEX'!B41 -> Base de apoio ao visitante - Setor Platô | E148: 1 | F148: 0
B149: ='06. CAPEX'!B42 -> Trilha Circundante | E149: 1 | F149: 0
B150: ='06. CAPEX'!B43 -> Torre e estação metereológica | E150: 1 | F150: 0
B151: ='06. CAPEX'!B44 -> Estradas existentes | E151: 1 | F151: 0
B152: ='06. CAPEX'!B45 -> Serviços Gerais - Setor Platô | E152: 1 | F152: 0
B153: ='06. CAPEX'!B46 -> Torre e estação metereológica | E153: 1 | F153: 0
B154: ='06. CAPEX'!B47 -> Base de apoio ao visitante - Setor Quebra Canela | E154: 1 | F154: 0
B155: ='06. CAPEX'!B48 -> Serviços Gerais - Setor Quebra Canela | E155: 1 | F155: 0
B156: ='06. CAPEX'!B49 -> Praça de Chegada | E156: 1 | F156: 0
B157: ='06. CAPEX'!B50 -> Outros | E157: 1 | F157: 0
B158: Ressarcimento | E158: 1 | F158: 0
B160: Tributos
B162: Limite de Tributação Lucro Presumido (Anual) | F162: 78000000
B163: PIS/COFINS - Presumido | F163: 0.0365
B164: PIS/COFINS - Real | F164: 0.0925
B165: Crédito de PIS/COFINS (% OPEX e CAPEX) | F165: 0.6548091047
B166: ISS | F166: 0.025 | H166: Opex Total
B167: Alíquota de Presunção s/ Receita Bruta | F167: 0.32 | H167: Salarios
B168: Limite IR Adicional | F168: 240000
B169: IR | F169: 0.15
B170: IR Adicional | F170: 0.1
B171: CSLL | F171: 0.09
B172: Limite de Dedutibilidade de Base Negativa | F172: 0.3
B173: ICMS | F173: 0
B174: ICMS c/ benefício - Bares e Restaurantes | F174: 0
B176: Vida Útil Fiscal | F176: Prazo (Anos)
B178: =B115 -> Outorga | F178: =D6 -> 30
B179: Portal | F179: 30
B180: Portaria | F180: 30
B181: Estacionamento de visitantes (portaria) | F181: 30
B182: Estacionamento de visitantes/ônibus (casa do pesquisador) | F182: 30
B183: Estacionamento frota parque/concessionário | F183: 30
B184: Base de apoio ao visitante - Setor Caldas Novas | F184: 30
B185: Centro de visitantes | F185: 30
B186: Torre e estação metereológica | F186: 10
B187: Fonte de água | F187: 30
B188: Reservatório de água | F188: 30
B189: Alojamento de Estudantes | F189: 30
B190: Alojamento de pesquisadores | F190: 30
B191: Receptivo Pedra do Amor | F191: 30
B192: Cachoeira Cascatinha | F192: 30
B193: Mirante Paredão | F193: 30
B194: Paredão de Escalada | F194: 30
B195: Praça Sensitiva | F195: 30
B196: Aquisição de ativos | F196: 5
B197: Serviços Gerais | F197: 30
B198: Acesso Rio Quente | F198: 30
B199: Base de apoio ao visitante - Setor Rio Quente | F199: 30
B200: Torre e estação metereológica | F200: 15
B201: Mirante da Pousada e Mirante México | F201: 30
B202: Trilha Cachoeira México | F202: 30
B203: Estação Teleférico | F203: 12
B204: Serviços Gerais - Setor Rio Quente | F204: 30
B205: Acesso Rua de Pedra | F205: 30
B206: Torre e estação metereológica | F206: 10
B207: Mirante e trilha do Minério | F207: 30
B208: Campos de Murundum | F208: 30
... 175 more rows

Sheet 02. WACC-CAPM
A1: ='00. PAINEL DE RESULTADOS'!A1 -> Parque Estadual da Serra de Caldas Novas (PESCaN)
A2: Càlculo WACC e CAPM
B3: Taxa de desconto
C5: Càlculo WACC | F5: Custo do capital de terceiros
B7: (a) | C7: Taxa livre de risco | D7: 0.03957532971 | K7: a) Retorno de títulos do governo norte americano (T Bonds de 10 anos) para o ano de 2023 (Dados: Federal Reserve)
B8: (b) | C8: Prêmio de mercado de grandes empresas | D8: 0.05965329821 | K8: b) Média anual do prêmio de risco de grandes empresas norte americanas S&P 500 sobre o retorno de títulos norte americanos de longo prazo (T Bonds) de 1995 a 2023 (Dados: Federal Reserve e BR Investing)
C9: Beta Realavancado | D9: =G33 -> 1.367256602 | K9: c) Damodaran: beta de empresas norte americanas no setor de lazer (http://pages.stern.nyu.edu/~adamodar/. Leveraged and Unleveraged Betas by Industry - US)
B10: (d) | C10: Risco país | D10: 0.03674627806 | F10: Custo do capital de terceiros nominal (R$) | G10: 0.104268 | K10: d) Média do CDS de 1998 a 2023 ponderado pelo multiplicador de volatilidade Ipeadata (https://br.investing.com/rates-bonds/brazil-cds-10-years-usd-historical-data)
B11: (e) | C11: CPI (Inflação Americana) | D11: 0.02246496063 | K11: e) Inflação implícita, a partir da rentabilidade da Treasury nominal de 10 anos e da Treasury real de 10 anos (Treasury Inflation-Protected Securities - TIPS) para o ano de 2023. (Dados: Federal Reserve)
B12: (f) | C12: IPCA | D12: 0.0377138 | F12: Taxa efetiva de imposto de renda | G12: 0.34 | K12: f) Expectativa da Inflação de longo prazo do sistema de expectativas do Bacen (https://www3.bcb.gov.br/sgspub/localizarseries/localizarSeries.do?method=prepararTelaLocalizarSeries)
B13: (g) | C13: Prêmio de risco específico | D13: 0.01
F14: Custo do capital de terceiros nominal - Post Tax (R$) | G14: =G10*(1-G12) -> 0.06881688
C15: Custo do capital próprio nominal (R$) | D15: =D34 -> 0.1853005483 | F15: Custo do capital de terceiros real - Post Tax (R$) | G15: =(1+G14)/(1+D12)-1 -> 0.02997269575
C16: Custo do capital próprio real | D16: =D32 -> 0.1422229793
C17: Participação do capital próprio | D17: =1-G17 -> 0.5632493523 | F17: Participação do capital de terceiros | G17: =Alavancagem -> 0.4367506477
C19: Custo do capital próprio ponderado nominal (R$) | D19: =D15*D17 -> 0.1043704138 | F19: Custo do capital de terceiros ponderado nominal (R$) | G19: =G14*G17 -> 0.03005581691
C21: WACC Nominal | D21: =D19+G19 -> 0.1344262307
C23: Custo do capital próprio ponderado (Real) | D23: =D16*D17 -> 0.080107001 | F23: Custo do capital de terceiros ponderado real | G23: =G15*G17 -> 0.01309059428
C25: WACC Real | D25: =D23+G23 -> 0.09319759528
C28: Cálculo CAPM | F28: Realavancagem Beta
C30: CAPM Nominal (US$) | D30: =D7+(D8*D9)+D10+D13 -> 0.1678829736 | F30: Beta desalavancado | G30: 0.9044064274 | H30: (c)
C31: CPI | D31: =D11 -> 0.02246496063 | F31: D/E Ratio | G31: =G17/D17 -> 0.7754126053
C32: CAPM Real | D32: =(1+D30)/(1+D31)-1 -> 0.1422229793 | F32: Taxa efetiva de imposto de renda | G32: =G12 -> 0.34
C33: IPCA | D33: =D12 -> 0.0377138 | F33: Beta Realavancado | G33: =G30*(1+G31*(1-G32)) -> 1.367256602
C34: CAPM Nominal (R$) | D34: =(1+D32)*(1+D33)-1 -> 0.1853005483
B37: a) Fonte | C37: https://www.federalreserve.gov/datadownload/Choose.aspx?rel=H15
B38: b) Fonte | C38: https://br.investing.com/indices/us-spx-500-historical-data
B39: c) Fonte | C39: https://pages.stern.nyu.edu/~adamodar/
B40: d) Fonte | C40: https://br.investing.com/rates-bonds/brazil-cds-10-years-usd-historical-data
B41: e) Fonte | C41: https://www.federalreserve.gov/datadownload
B42: f) Fonte | C42: https://www3.bcb.gov.br/expectativas2/#/consultaSeriesEstatisticas

Sheet 03. DADOS MACROECONÔMICOS
A1: ='00. PAINEL DE RESULTADOS'!A1 -> Parque Estadual da Serra de Caldas Novas (PESCaN)
A2: Dados Macroeconômicos
B4: ANO | F4: =C4+1 -> 1 | G4: =F4+1 -> 2 | H4: 3 | I4: 4 | J4: 5 | K4: 6 | L4: 7 | M4: 8 | N4: 9 | O4: 10 | P4: 11 | Q4: 12 | R4: 13 | S4: 14 | T4: 15 | U4: 16 | V4: 17 | W4: 18 | X4: 19 | Y4: 20 | Z4: 21 | AA4: 22 | AB4: 23 | AC4: 24 | AD4: 25 | AE4: 26 | AF4: 27 | AG4: 28 | AH4: 29 | AI4: 30 | AJ4: 31 | AK4: 32 | AL4: 33 | AM4: 34 | AN4: 35
B7: IPCA | F7: 0.044569 | G7: 0.039 | H7: 0.035 | I7: 0.035 | J7: 0.035 | K7: =J7 -> 0.035 | L7: =K7 -> 0.035 | M7: 0.035 | N7: 0.035 | O7: 0.035 | P7: 0.035 | Q7: 0.035 | R7: 0.035 | S7: 0.035 | T7: 0.035 | U7: 0.035 | V7: 0.035 | W7: 0.035 | X7: 0.035 | Y7: 0.035 | Z7: 0.035 | AA7: 0.035 | AB7: 0.035 | AC7: 0.035 | AD7: 0.035 | AE7: 0.035 | AF7: 0.035 | AG7: 0.035 | AH7: 0.035 | AI7: 0.035 | AJ7: 0.035 | AK7: 0.035 | AL7: 0.035 | AM7: 0.035 | AN7: 0.035
B8: IPCA Acumulado | F8: =F7 -> 0.044569 | G8: =(1+F8)*(1+G7)-1 -> 0.085307191 | H8: =(1+G8)*(1+H7)-1 -> 0.1232929427 | I8: 0.1626081957 | J8: 0.2032994825 | K8: 0.2454149644 | L8: 0.2890044882 | M8: 0.3341196453 | N8: 0.3808138328 | O8: 0.429142317 | P8: 0.4791622981 | Q8: 0.5309329785 | R8: 0.5845156328 | S8: 0.6399736799 | T8: 0.6973727587 | U8: 0.7567808053 | V8: 0.8182681334 | W8: 0.8819075181 | X8: 0.9477742813 | Y8: 1.015946381 | Z8: 1.086504504 | AA8: 1.159532162 | AB8: 1.235115788 | AC8: 1.31334484 | AD8: 1.39431191 | AE8: 1.478112827 | AF8: 1.564846776 | AG8: 1.654616413 | AH8: 1.747527987 | AI8: 1.843691467 | AJ8: 1.943220668 | AK8: 2.046233391 | AL8: 2.15285156 | AM8: 2.263201365 | AN8: 2.377413412
B9: Índice de Inflação | E9: 1 | F9: =E9*(1+F7) -> 1.044569 | G9: =F9*(1+G7) -> 1.085307191 | H9: 1.123292943 | I9: 1.162608196 | J9: 1.203299483 | K9: 1.245414964 | L9: 1.289004488 | M9: 1.334119645 | N9: 1.380813833 | O9: 1.429142317 | P9: 1.479162298 | Q9: 1.530932979 | R9: 1.584515633 | S9: 1.63997368 | T9: 1.697372759 | U9: 1.756780805 | V9: 1.818268133 | W9: 1.881907518 | X9: 1.947774281 | Y9: 2.015946381 | Z9: 2.086504504 | AA9: 2.159532162 | AB9: 2.235115788 | AC9: 2.31334484 | AD9: 2.39431191 | AE9: 2.478112827 | AF9: 2.564846776 | AG9: 2.654616413 | AH9: 2.747527987 | AI9: 2.843691467 | AJ9: 2.943220668 | AK9: 3.046233391 | AL9: 3.15285156 | AM9: 3.263201365 | AN9: 3.377413412
B11: IPCA Acumulado Ano a Ano
B13: 1 | F13: =IF(F$4<$B13,0,(1+E13)*(1+F$7)-1) -> 0.044569 | G13: =IF(G$4<$B13,0,(1+F13)*(1+G$7)-1) -> 0.085307191 | H13: 0.1232929427 | I13: 0.1626081957 | J13: 0.2032994825 | K13: 0.2454149644 | L13: 0.2890044882 | M13: 0.3341196453 | N13: 0.3808138328 | O13: 0.429142317 | P13: 0.4791622981 | Q13: 0.5309329785 | R13: 0.5845156328 | S13: 0.6399736799 | T13: 0.6973727587 | U13: 0.7567808053 | V13: 0.8182681334 | W13: 0.8819075181 | X13: 0.9477742813 | Y13: 1.015946381 | Z13: 1.086504504 | AA13: 1.159532162 | AB13: 1.235115788 | AC13: 1.31334484 | AD13: 1.39431191 | AE13: 1.478112827 | AF13: 1.564846776 | AG13: 1.654616413 | AH13: 1.747527987 | AI13: 1.843691467 | AJ13: 1.943220668 | AK13: 2.046233391 | AL13: 2.15285156 | AM13: 2.263201365 | AN13: =IF(AN$4<$B13,0,(1+AM13)*(1+AN$7)-1) -> 2.377413412
B14: =B13+1 -> 2 | F14: =IF(F$4<$B14,0,(1+E14)*(1+F$7)-1) -> 0 | G14: 0.039 | H14: 0.075365 | I14: 0.113002775 | J14: 0.1519578721 | K14: 0.1922763976 | L14: 0.2340060716 | M14: 0.2771962841 | N14: 0.321898154 | O14: 0.3681645894 | P14: 0.41605035 | Q14: 0.4656121123 | R14: 0.5169085362 | S14: 0.570000335 | T14: 0.6249503467 | U14: 0.6818236088 | V14: 0.7406874352 | W14: 0.8016114954 | X14: 0.8646678977 | Y14: 0.9299312741 | Z14: 0.9974788687 | AA14: 1.067390629 | AB14: 1.139749301 | AC14: 1.214640527 | AD14: 1.292152945 | AE14: 1.372378298 | AF14: 1.455411539 | AG14: 1.541350943 | AH14: 1.630298225 | AI14: 1.722358663 | AJ14: 1.817641217 | AK14: 1.916258659 | AL14: 2.018327712 | AM14: 2.123969182 | AN14: 2.233308104
B15: =B14+1 -> 3 | F15: =IF(F$4<$B15,0,(1+E15)*(1+F$7)-1) -> 0 | G15: 0 | H15: 0.035 | I15: 0.071225 | J15: 0.108717875 | K15: 0.1475230006 | L15: 0.1876863056 | M15: 0.2292553263 | N15: 0.2722792628 | O15: 0.316809037 | P15: 0.3628973533 | Q15: 0.4105987606 | R15: 0.4599697172 | S15: 0.5110686573 | T15: 0.5639560604 | U15: 0.6186945225 | V15: 0.6753488308 | W15: 0.7339860398 | X15: 0.7946755512 | Y15: 0.8574891955 | Z15: 0.9225013174 | AA15: 0.9897888635 | AB15: 1.059431474 | AC15: 1.131511575 | AD15: 1.20611448 | AE15: 1.283328487 | AF15: 1.363244984 | AG15: 1.445958559 | AH15: 1.531567108 | AI15: 1.620171957 | AJ15: 1.711877976 | AK15: 1.806793705 | AL15: 1.905031484 | AM15: 2.006707586 | AN15: 2.111942352
B16: 4 | F16: =IF(F$4<$B16,0,(1+E16)*(1+F$7)-1) -> 0 | G16: 0 | H16: 0 | I16: 0.035 | J16: 0.071225 | K16: 0.108717875 | L16: 0.1475230006 | M16: 0.1876863056 | N16: 0.2292553263 | O16: 0.2722792628 | P16: 0.316809037 | Q16: 0.3628973533 | R16: 0.4105987606 | S16: 0.4599697172 | T16: 0.5110686573 | U16: 0.5639560604 | V16: 0.6186945225 | W16: 0.6753488308 | X16: 0.7339860398 | Y16: 0.7946755512 | Z16: 0.8574891955 | AA16: 0.9225013174 | AB16: 0.9897888635 | AC16: 1.059431474 | AD16: 1.131511575 | AE16: 1.20611448 | AF16: 1.283328487 | AG16: 1.363244984 | AH16: 1.445958559 | AI16: 1.531567108 | AJ16: 1.620171957 | AK16: 1.711877976 | AL16: 1.806793705 | AM16: 1.905031484 | AN16: 2.006707586
B17: 5 | F17: =IF(F$4<$B17,0,(1+E17)*(1+F$7)-1) -> 0 | G17: 0 | H17: 0 | I17: 0 | J17: 0.035 | K17: 0.071225 | L17: 0.108717875 | M17: 0.1475230006 | N17: 0.1876863056 | O17: 0.2292553263 | P17: 0.2722792628 | Q17: 0.316809037 | R17: 0.3628973533 | S17: 0.4105987606 | T17: 0.4599697172 | U17: 0.5110686573 | V17: 0.5639560604 | W17: 0.6186945225 | X17: 0.6753488308 | Y17: 0.7339860398 | Z17: 0.7946755512 | AA17: 0.8574891955 | AB17: 0.9225013174 | AC17: 0.9897888635 | AD17: 1.059431474 | AE17: 1.131511575 | AF17: 1.20611448 | AG17: 1.283328487 | AH17: 1.363244984 | AI17: 1.445958559 | AJ17: 1.531567108 | AK17: 1.620171957 | AL17: 1.711877976 | AM17: 1.806793705 | AN17: 1.905031484
B18: 6 | F18: =IF(F$4<$B18,0,(1+E18)*(1+F$7)-1) -> 0 | G18: 0 | H18: 0 | I18: 0 | J18: 0 | K18: 0.035 | L18: 0.071225 | M18: 0.108717875 | N18: 0.1475230006 | O18: 0.1876863056 | P18: 0.2292553263 | Q18: 0.2722792628 | R18: 0.316809037 | S18: 0.3628973533 | T18: 0.4105987606 | U18: 0.4599697172 | V18: 0.5110686573 | W18: 0.5639560604 | X18: 0.6186945225 | Y18: 0.6753488308 | Z18: 0.7339860398 | AA18: 0.7946755512 | AB18: 0.8574891955 | AC18: 0.9225013174 | AD18: 0.9897888635 | AE18: 1.059431474 | AF18: 1.131511575 | AG18: 1.20611448 | AH18: 1.283328487 | AI18: 1.363244984 | AJ18: 1.445958559 | AK18: 1.531567108 | AL18: 1.620171957 | AM18: 1.711877976 | AN18: 1.806793705
B19: 7 | F19: =IF(F$4<$B19,0,(1+E19)*(1+F$7)-1) -> 0 | G19: 0 | H19: 0 | I19: 0 | J19: 0 | K19: 0 | L19: 0.035 | M19: 0.071225 | N19: 0.108717875 | O19: 0.1475230006 | P19: 0.1876863056 | Q19: 0.2292553263 | R19: 0.2722792628 | S19: 0.316809037 | T19: 0.3628973533 | U19: 0.4105987606 | V19: 0.4599697172 | W19: 0.5110686573 | X19: 0.5639560604 | Y19: 0.6186945225 | Z19: 0.6753488308 | AA19: 0.7339860398 | AB19: 0.7946755512 | AC19: 0.8574891955 | AD19: 0.9225013174 | AE19: 0.9897888635 | AF19: 1.059431474 | AG19: 1.131511575 | AH19: 1.20611448 | AI19: 1.283328487 | AJ19: 1.363244984 | AK19: 1.445958559 | AL19: 1.531567108 | AM19: 1.620171957 | AN19: 1.711877976
B20: 8 | F20: =IF(F$4<$B20,0,(1+E20)*(1+F$7)-1) -> 0 | G20: 0 | H20: 0 | I20: 0 | J20: 0 | K20: 0 | L20: 0 | M20: 0.035 | N20: 0.071225 | O20: 0.108717875 | P20: 0.1475230006 | Q20: 0.1876863056 | R20: 0.2292553263 | S20: 0.2722792628 | T20: 0.316809037 | U20: 0.3628973533 | V20: 0.4105987606 | W20: 0.4599697172 | X20: 0.5110686573 | Y20: 0.5639560604 | Z20: 0.6186945225 | AA20: 0.6753488308 | AB20: 0.7339860398 | AC20: 0.7946755512 | AD20: 0.8574891955 | AE20: 0.9225013174 | AF20: 0.9897888635 | AG20: 1.059431474 | AH20: 1.131511575 | AI20: 1.20611448 | AJ20: 1.283328487 | AK20: 1.363244984 | AL20: 1.445958559 | AM20: 1.531567108 | AN20: 1.620171957
B21: 9 | F21: =IF(F$4<$B21,0,(1+E21)*(1+F$7)-1) -> 0 | G21: 0 | H21: 0 | I21: 0 | J21: 0 | K21: 0 | L21: 0 | M21: 0 | N21: 0.035 | O21: 0.071225 | P21: 0.108717875 | Q21: 0.1475230006 | R21: 0.1876863056 | S21: 0.2292553263 | T21: 0.2722792628 | U21: 0.316809037 | V21: 0.3628973533 | W21: 0.4105987606 | X21: 0.4599697172 | Y21: 0.5110686573 | Z21: 0.5639560604 | AA21: 0.6186945225 | AB21: 0.6753488308 | AC21: 0.7339860398 | AD21: 0.7946755512 | AE21: 0.8574891955 | AF21: 0.9225013174 | AG21: 0.9897888635 | AH21: 1.059431474 | AI21: 1.131511575 | AJ21: 1.20611448 | AK21: 1.283328487 | AL21: 1.363244984 | AM21: 1.445958559 | AN21: 1.531567108
B22: 10 | F22: =IF(F$4<$B22,0,(1+E22)*(1+F$7)-1) -> 0 | G22: 0 | H22: 0 | I22: 0 | J22: 0 | K22: 0 | L22: 0 | M22: 0 | N22: 0 | O22: 0.035 | P22: 0.071225 | Q22: 0.108717875 | R22: 0.1475230006 | S22: 0.1876863056 | T22: 0.2292553263 | U22: 0.2722792628 | V22: 0.316809037 | W22: 0.3628973533 | X22: 0.4105987606 | Y22: 0.4599697172 | Z22: 0.5110686573 | AA22: 0.5639560604 | AB22: 0.6186945225 | AC22: 0.6753488308 | AD22: 0.7339860398 | AE22: 0.7946755512 | AF22: 0.8574891955 | AG22: 0.9225013174 | AH22: 0.9897888635 | AI22: 1.059431474 | AJ22: 1.131511575 | AK22: 1.20611448 | AL22: 1.283328487 | AM22: 1.363244984 | AN22: 1.445958559
B23: 11 | F23: =IF(F$4<$B23,0,(1+E23)*(1+F$7)-1) -> 0 | G23: 0 | H23: 0 | I23: 0 | J23: 0 | K23: 0 | L23: 0 | M23: 0 | N23: 0 | O23: 0 | P23: 0.035 | Q23: 0.071225 | R23: 0.108717875 | S23: 0.1475230006 | T23: 0.1876863056 | U23: 0.2292553263 | V23: 0.2722792628 | W23: 0.316809037 | X23: 0.3628973533 | Y23: 0.4105987606 | Z23: 0.4599697172 | AA23: 0.5110686573 | AB23: 0.5639560604 | AC23: 0.6186945225 | AD23: 0.6753488308 | AE23: 0.7339860398 | AF23: 0.7946755512 | AG23: 0.8574891955 | AH23: 0.9225013174 | AI23: 0.9897888635 | AJ23: 1.059431474 | AK23: 1.131511575 | AL23: 1.20611448 | AM23: 1.283328487 | AN23: 1.363244984
B24: 12 | F24: =IF(F$4<$B24,0,(1+E24)*(1+F$7)-1) -> 0 | G24: 0 | H24: 0 | I24: 0 | J24: 0 | K24: 0 | L24: 0 | M24: 0 | N24: 0 | O24: 0 | P24: 0 | Q24: 0.035 | R24: 0.071225 | S24: 0.108717875 | T24: 0.1475230006 | U24: 0.1876863056 | V24: 0.2292553263 | W24: 0.2722792628 | X24: 0.316809037 | Y24: 0.3628973533 | Z24: 0.4105987606 | AA24: 0.4599697172 | AB24: 0.5110686573 | AC24: 0.5639560604 | AD24: 0.6186945225 | AE24: 0.6753488308 | AF24: 0.7339860398 | AG24: 0.7946755512 | AH24: 0.8574891955 | AI24: 0.9225013174 | AJ24: 0.9897888635 | AK24: 1.059431474 | AL24: 1.131511575 | AM24: 1.20611448 | AN24: 1.283328487
B25: 13 | F25: =IF(F$4<$B25,0,(1+E25)*(1+F$7)-1) -> 0 | G25: 0 | H25: 0 | I25: 0 | J25: 0 | K25: 0 | L25: 0 | M25: 0 | N25: 0 | O25: 0 | P25: 0 | Q25: 0 | R25: 0.035 | S25: 0.071225 | T25: 0.108717875 | U25: 0.1475230006 | V25: 0.1876863056 | W25: 0.2292553263 | X25: 0.2722792628 | Y25: 0.316809037 | Z25: 0.3628973533 | AA25: 0.4105987606 | AB25: 0.4599697172 | AC25: 0.5110686573 | AD25: 0.5639560604 | AE25: 0.6186945225 | AF25: 0.6753488308 | AG25: 0.7339860398 | AH25: 0.7946755512 | AI25: 0.8574891955 | AJ25: 0.9225013174 | AK25: 0.9897888635 | AL25: 1.059431474 | AM25: 1.131511575 | AN25: 1.20611448
B26: 14 | F26: =IF(F$4<$B26,0,(1+E26)*(1+F$7)-1) -> 0 | G26: 0 | H26: 0 | I26: 0 | J26: 0 | K26: 0 | L26: 0 | M26: 0 | N26: 0 | O26: 0 | P26: 0 | Q26: 0 | R26: 0 | S26: 0.035 | T26: 0.071225 | U26: 0.108717875 | V26: 0.1475230006 | W26: 0.1876863056 | X26: 0.2292553263 | Y26: 0.2722792628 | Z26: 0.316809037 | AA26: 0.3628973533 | AB26: 0.4105987606 | AC26: 0.4599697172 | AD26: 0.5110686573 | AE26: 0.5639560604 | AF26: 0.6186945225 | AG26: 0.6753488308 | AH26: 0.7339860398 | AI26: 0.7946755512 | AJ26: 0.8574891955 | AK26: 0.9225013174 | AL26: 0.9897888635 | AM26: 1.059431474 | AN26: 1.131511575
B27: 15 | F27: =IF(F$4<$B27,0,(1+E27)*(1+F$7)-1) -> 0 | G27: 0 | H27: 0 | I27: 0 | J27: 0 | K27: 0 | L27: 0 | M27: 0 | N27: 0 | O27: 0 | P27: 0 | Q27: 0 | R27: 0 | S27: 0 | T27: 0.035 | U27: 0.071225 | V27: 0.108717875 | W27: 0.1475230006 | X27: 0.1876863056 | Y27: 0.2292553263 | Z27: 0.2722792628 | AA27: 0.316809037 | AB27: 0.3628973533 | AC27: 0.4105987606 | AD27: 0.4599697172 | AE27: 0.5110686573 | AF27: 0.5639560604 | AG27: 0.6186945225 | AH27: 0.6753488308 | AI27: 0.7339860398 | AJ27: 0.7946755512 | AK27: 0.8574891955 | AL27: 0.9225013174 | AM27: 0.9897888635 | AN27: 1.059431474
B28: 16 | F28: =IF(F$4<$B28,0,(1+E28)*(1+F$7)-1) -> 0 | G28: 0 | H28: 0 | I28: 0 | J28: 0 | K28: 0 | L28: 0 | M28: 0 | N28: 0 | O28: 0 | P28: 0 | Q28: 0 | R28: 0 | S28: 0 | T28: 0 | U28: 0.035 | V28: 0.071225 | W28: 0.108717875 | X28: 0.1475230006 | Y28: 0.1876863056 | Z28: 0.2292553263 | AA28: 0.2722792628 | AB28: 0.316809037 | AC28: 0.3628973533 | AD28: 0.4105987606 | AE28: 0.4599697172 | AF28: 0.5110686573 | AG28: 0.5639560604 | AH28: 0.6186945225 | AI28: 0.6753488308 | AJ28: 0.7339860398 | AK28: 0.7946755512 | AL28: 0.8574891955 | AM28: 0.9225013174 | AN28: 0.9897888635
B29: 17 | F29: =IF(F$4<$B29,0,(1+E29)*(1+F$7)-1) -> 0 | G29: 0 | H29: 0 | I29: 0 | J29: 0 | K29: 0 | L29: 0 | M29: 0 | N29: 0 | O29: 0 | P29: 0 | Q29: 0 | R29: 0 | S29: 0 | T29: 0 | U29: 0 | V29: 0.035 | W29: 0.071225 | X29: 0.108717875 | Y29: 0.1475230006 | Z29: 0.1876863056 | AA29: 0.2292553263 | AB29: 0.2722792628 | AC29: 0.316809037 | AD29: 0.3628973533 | AE29: 0.4105987606 | AF29: 0.4599697172 | AG29: 0.5110686573 | AH29: 0.5639560604 | AI29: 0.6186945225 | AJ29: 0.6753488308 | AK29: 0.7339860398 | AL29: 0.7946755512 | AM29: 0.8574891955 | AN29: 0.9225013174
B30: 18 | F30: =IF(F$4<$B30,0,(1+E30)*(1+F$7)-1) -> 0 | G30: 0 | H30: 0 | I30: 0 | J30: 0 | K30: 0 | L30: 0 | M30: 0 | N30: 0 | O30: 0 | P30: 0 | Q30: 0 | R30: 0 | S30: 0 | T30: 0 | U30: 0 | V30: 0 | W30: 0.035 | X30: 0.071225 | Y30: 0.108717875 | Z30: 0.1475230006 | AA30: 0.1876863056 | AB30: 0.2292553263 | AC30: 0.2722792628 | AD30: 0.316809037 | AE30: 0.3628973533 | AF30: 0.4105987606 | AG30: 0.4599697172 | AH30: 0.5110686573 | AI30: 0.5639560604 | AJ30: 0.6186945225 | AK30: 0.6753488308 | AL30: 0.7339860398 | AM30: 0.7946755512 | AN30: 0.8574891955
B31: 19 | F31: =IF(F$4<$B31,0,(1+E31)*(1+F$7)-1) -> 0 | G31: 0 | H31: 0 | I31: 0 | J31: 0 | K31: 0 | L31: 0 | M31: 0 | N31: 0 | O31: 0 | P31: 0 | Q31: 0 | R31: 0 | S31: 0 | T31: 0 | U31: 0 | V31: 0 | W31: 0 | X31: 0.035 | Y31: 0.071225 | Z31: 0.108717875 | AA31: 0.1475230006 | AB31: 0.1876863056 | AC31: 0.2292553263 | AD31: 0.2722792628 | AE31: 0.316809037 | AF31: 0.3628973533 | AG31: 0.4105987606 | AH31: 0.4599697172 | AI31: 0.5110686573 | AJ31: 0.5639560604 | AK31: 0.6186945225 | AL31: 0.6753488308 | AM31: 0.7339860398 | AN31: 0.7946755512
B32: 20 | F32: =IF(F$4<$B32,0,(1+E32)*(1+F$7)-1) -> 0 | G32: 0 | H32: 0 | I32: 0 | J32: 0 | K32: 0 | L32: 0 | M32: 0 | N32: 0 | O32: 0 | P32: 0 | Q32: 0 | R32: 0 | S32: 0 | T32: 0 | U32: 0 | V32: 0 | W32: 0 | X32: 0 | Y32: 0.035 | Z32: 0.071225 | AA32: 0.108717875 | AB32: 0.1475230006 | AC32: 0.1876863056 | AD32: 0.2292553263 | AE32: 0.2722792628 | AF32: 0.316809037 | AG32: 0.3628973533 | AH32: 0.4105987606 | AI32: 0.4599697172 | AJ32: 0.5110686573 | AK32: 0.5639560604 | AL32: 0.6186945225 | AM32: 0.6753488308 | AN32: 0.7339860398
B33: 21 | F33: =IF(F$4<$B33,0,(1+E33)*(1+F$7)-1) -> 0 | G33: 0 | H33: 0 | I33: 0 | J33: 0 | K33: 0 | L33: 0 | M33: 0 | N33: 0 | O33: 0 | P33: 0 | Q33: 0 | R33: 0 | S33: 0 | T33: 0 | U33: 0 | V33: 0 | W33: 0 | X33: 0 | Y33: 0 | Z33: 0.035 | AA33: 0.071225 | AB33: 0.108717875 | AC33: 0.1475230006 | AD33: 0.1876863056 | AE33: 0.2292553263 | AF33: 0.2722792628 | AG33: 0.316809037 | AH33: 0.3628973533 | AI33: 0.4105987606 | AJ33: 0.4599697172 | AK33: 0.5110686573 | AL33: 0.5639560604 | AM33: 0.6186945225 | AN33: 0.6753488308
B34: 22 | F34: =IF(F$4<$B34,0,(1+E34)*(1+F$7)-1) -> 0 | G34: 0 | H34: 0 | I34: 0 | J34: 0 | K34: 0 | L34: 0 | M34: 0 | N34: 0 | O34: 0 | P34: 0 | Q34: 0 | R34: 0 | S34: 0 | T34: 0 | U34: 0 | V34: 0 | W34: 0 | X34: 0 | Y34: 0 | Z34: 0 | AA34: 0.035 | AB34: 0.071225 | AC34: 0.108717875 | AD34: 0.1475230006 | AE34: 0.1876863056 | AF34: 0.2292553263 | AG34: 0.2722792628 | AH34: 0.316809037 | AI34: 0.3628973533 | AJ34: 0.4105987606 | AK34: 0.4599697172 | AL34: 0.5110686573 | AM34: 0.5639560604 | AN34: 0.6186945225
B35: 23 | F35: =IF(F$4<$B35,0,(1+E35)*(1+F$7)-1) -> 0 | G35: 0 | H35: 0 | I35: 0 | J35: 0 | K35: 0 | L35: 0 | M35: 0 | N35: 0 | O35: 0 | P35: 0 | Q35: 0 | R35: 0 | S35: 0 | T35: 0 | U35: 0 | V35: 0 | W35: 0 | X35: 0 | Y35: 0 | Z35: 0 | AA35: 0 | AB35: 0.035 | AC35: 0.071225 | AD35: 0.108717875 | AE35: 0.1475230006 | AF35: 0.1876863056 | AG35: 0.2292553263 | AH35: 0.2722792628 | AI35: 0.316809037 | AJ35: 0.3628973533 | AK35: 0.4105987606 | AL35: 0.4599697172 | AM35: 0.5110686573 | AN35: 0.5639560604
B36: 24 | F36: =IF(F$4<$B36,0,(1+E36)*(1+F$7)-1) -> 0 | G36: 0 | H36: 0 | I36: 0 | J36: 0 | K36: 0 | L36: 0 | M36: 0 | N36: 0 | O36: 0 | P36: 0 | Q36: 0 | R36: 0 | S36: 0 | T36: 0 | U36: 0 | V36: 0 | W36: 0 | X36: 0 | Y36: 0 | Z36: 0 | AA36: 0 | AB36: 0 | AC36: 0.035 | AD36: 0.071225 | AE36: 0.108717875 | AF36: 0.1475230006 | AG36: 0.1876863056 | AH36: 0.2292553263 | AI36: 0.2722792628 | AJ36: 0.316809037 | AK36: 0.3628973533 | AL36: 0.4105987606 | AM36: 0.4599697172 | AN36: 0.5110686573
B37: 25 | F37: =IF(F$4<$B37,0,(1+E37)*(1+F$7)-1) -> 0 | G37: 0 | H37: 0 | I37: 0 | J37: 0 | K37: 0 | L37: 0 | M37: 0 | N37: 0 | O37: 0 | P37: 0 | Q37: 0 | R37: 0 | S37: 0 | T37: 0 | U37: 0 | V37: 0 | W37: 0 | X37: 0 | Y37: 0 | Z37: 0 | AA37: 0 | AB37: 0 | AC37: 0 | AD37: 0.035 | AE37: 0.071225 | AF37: 0.108717875 | AG37: 0.1475230006 | AH37: 0.1876863056 | AI37: 0.2292553263 | AJ37: 0.2722792628 | AK37: 0.316809037 | AL37: 0.3628973533 | AM37: 0.4105987606 | AN37: 0.4599697172
B38: 26 | F38: =IF(F$4<$B38,0,(1+E38)*(1+F$7)-1) -> 0 | G38: 0 | H38: 0 | I38: 0 | J38: 0 | K38: 0 | L38: 0 | M38: 0 | N38: 0 | O38: 0 | P38: 0 | Q38: 0 | R38: 0 | S38: 0 | T38: 0 | U38: 0 | V38: 0 | W38: 0 | X38: 0 | Y38: 0 | Z38: 0 | AA38: 0 | AB38: 0 | AC38: 0 | AD38: 0 | AE38: 0.035 | AF38: 0.071225 | AG38: 0.108717875 | AH38: 0.1475230006 | AI38: 0.1876863056 | AJ38: 0.2292553263 | AK38: 0.2722792628 | AL38: 0.316809037 | AM38: 0.3628973533 | AN38: 0.4105987606
B39: 27 | F39: =IF(F$4<$B39,0,(1+E39)*(1+F$7)-1) -> 0 | G39: 0 | H39: 0 | I39: 0 | J39: 0 | K39: 0 | L39: 0 | M39: 0 | N39: 0 | O39: 0 | P39: 0 | Q39: 0 | R39: 0 | S39: 0 | T39: 0 | U39: 0 | V39: 0 | W39: 0 | X39: 0 | Y39: 0 | Z39: 0 | AA39: 0 | AB39: 0 | AC39: 0 | AD39: 0 | AE39: 0 | AF39: 0.035 | AG39: 0.071225 | AH39: 0.108717875 | AI39: 0.1475230006 | AJ39: 0.1876863056 | AK39: 0.2292553263 | AL39: 0.2722792628 | AM39: 0.316809037 | AN39: 0.3628973533
B40: 28 | F40: =IF(F$4<$B40,0,(1+E40)*(1+F$7)-1) -> 0 | G40: 0 | H40: 0 | I40: 0 | J40: 0 | K40: 0 | L40: 0 | M40: 0 | N40: 0 | O40: 0 | P40: 0 | Q40: 0 | R40: 0 | S40: 0 | T40: 0 | U40: 0 | V40: 0 | W40: 0 | X40: 0 | Y40: 0 | Z40: 0 | AA40: 0 | AB40: 0 | AC40: 0 | AD40: 0 | AE40: 0 | AF40: 0 | AG40: 0.035 | AH40: 0.071225 | AI40: 0.108717875 | AJ40: 0.1475230006 | AK40: 0.1876863056 | AL40: 0.2292553263 | AM40: 0.2722792628 | AN40: 0.316809037
B41: 29 | F41: =IF(F$4<$B41,0,(1+E41)*(1+F$7)-1) -> 0 | G41: 0 | H41: 0 | I41: 0 | J41: 0 | K41: 0 | L41: 0 | M41: 0 | N41: 0 | O41: 0 | P41: 0 | Q41: 0 | R41: 0 | S41: 0 | T41: 0 | U41: 0 | V41: 0 | W41: 0 | X41: 0 | Y41: 0 | Z41: 0 | AA41: 0 | AB41: 0 | AC41: 0 | AD41: 0 | AE41: 0 | AF41: 0 | AG41: 0 | AH41: 0.035 | AI41: 0.071225 | AJ41: 0.108717875 | AK41: 0.1475230006 | AL41: 0.1876863056 | AM41: 0.2292553263 | AN41: 0.2722792628
B42: 30 | F42: =IF(F$4<$B42,0,(1+E42)*(1+F$7)-1) -> 0 | G42: 0 | H42: 0 | I42: 0 | J42: 0 | K42: 0 | L42: 0 | M42: 0 | N42: 0 | O42: 0 | P42: 0 | Q42: 0 | R42: 0 | S42: 0 | T42: 0 | U42: 0 | V42: 0 | W42: 0 | X42: 0 | Y42: 0 | Z42: 0 | AA42: 0 | AB42: 0 | AC42: 0 | AD42: 0 | AE42: 0 | AF42: 0 | AG42: 0 | AH42: 0 | AI42: 0.035 | AJ42: 0.071225 | AK42: 0.108717875 | AL42: 0.1475230006 | AM42: 0.1876863056 | AN42: 0.2292553263
B43: 31 | F43: =IF(F$4<$B43,0,(1+E43)*(1+F$7)-1) -> 0 | G43: =IF(G$4<$B43,0,(1+F43)*(1+G$7)-1) -> 0 | H43: =IF(H$4<$B43,0,(1+G43)*(1+H$7)-1) -> 0 | I43: =IF(I$4<$B43,0,(1+H43)*(1+I$7)-1) -> 0 | J43: =IF(J$4<$B43,0,(1+I43)*(1+J$7)-1) -> 0 | K43: =IF(K$4<$B43,0,(1+J43)*(1+K$7)-1) -> 0 | L43: =IF(L$4<$B43,0,(1+K43)*(1+L$7)-1) -> 0 | M43: =IF(M$4<$B43,0,(1+L43)*(1+M$7)-1) -> 0 | N43: =IF(N$4<$B43,0,(1+M43)*(1+N$7)-1) -> 0 | O43: =IF(O$4<$B43,0,(1+N43)*(1+O$7)-1) -> 0 | P43: =IF(P$4<$B43,0,(1+O43)*(1+P$7)-1) -> 0 | Q43: =IF(Q$4<$B43,0,(1+P43)*(1+Q$7)-1) -> 0 | R43: =IF(R$4<$B43,0,(1+Q43)*(1+R$7)-1) -> 0 | S43: =IF(S$4<$B43,0,(1+R43)*(1+S$7)-1) -> 0 | T43: =IF(T$4<$B43,0,(1+S43)*(1+T$7)-1) -> 0 | U43: =IF(U$4<$B43,0,(1+T43)*(1+U$7)-1) -> 0 | V43: =IF(V$4<$B43,0,(1+U43)*(1+V$7)-1) -> 0 | W43: =IF(W$4<$B43,0,(1+V43)*(1+W$7)-1) -> 0 | X43: =IF(X$4<$B43,0,(1+W43)*(1+X$7)-1) -> 0 | Y43: =IF(Y$4<$B43,0,(1+X43)*(1+Y$7)-1) -> 0 | Z43: =IF(Z$4<$B43,0,(1+Y43)*(1+Z$7)-1) -> 0 | AA43: =IF(AA$4<$B43,0,(1+Z43)*(1+AA$7)-1) -> 0 | AB43: =IF(AB$4<$B43,0,(1+AA43)*(1+AB$7)-1) -> 0 | AC43: =IF(AC$4<$B43,0,(1+AB43)*(1+AC$7)-1) -> 0 | AD43: =IF(AD$4<$B43,0,(1+AC43)*(1+AD$7)-1) -> 0 | AE43: =IF(AE$4<$B43,0,(1+AD43)*(1+AE$7)-1) -> 0 | AF43: =IF(AF$4<$B43,0,(1+AE43)*(1+AF$7)-1) -> 0 | AG43: =IF(AG$4<$B43,0,(1+AF43)*(1+AG$7)-1) -> 0 | AH43: =IF(AH$4<$B43,0,(1+AG43)*(1+AH$7)-1) -> 0 | AI43: =IF(AI$4<$B43,0,(1+AH43)*(1+AI$7)-1) -> 0 | AJ43: 0.035 | AK43: 0.071225 | AL43: 0.108717875 | AM43: 0.1475230006 | AN43: 0.1876863056
B44: 32 | F44: 0 | G44: 0 | H44: 0 | I44: 0 | J44: 0 | K44: 0 | L44: 0 | M44: 0 | N44: 0 | O44: 0 | P44: 0 | Q44: 0 | R44: 0 | S44: 0 | T44: 0 | U44: 0 | V44: 0 | W44: 0 | X44: 0 | Y44: 0 | Z44: 0 | AA44: 0 | AB44: 0 | AC44: 0 | AD44: 0 | AE44: 0 | AF44: 0 | AG44: 0 | AH44: 0 | AI44: 0 | AJ44: 0 | AK44: 0.035 | AL44: 0.071225 | AM44: 0.108717875 | AN44: 0.1475230006
B45: 33 | F45: 0 | G45: 0 | H45: 0 | I45: 0 | J45: 0 | K45: 0 | L45: 0 | M45: 0 | N45: 0 | O45: 0 | P45: 0 | Q45: 0 | R45: 0 | S45: 0 | T45: 0 | U45: 0 | V45: 0 | W45: 0 | X45: 0 | Y45: 0 | Z45: 0 | AA45: 0 | AB45: 0 | AC45: 0 | AD45: 0 | AE45: 0 | AF45: 0 | AG45: 0 | AH45: 0 | AI45: 0 | AJ45: 0 | AK45: 0 | AL45: 0.035 | AM45: 0.071225 | AN45: 0.108717875
B46: 34 | F46: 0 | G46: 0 | H46: 0 | I46: 0 | J46: 0 | K46: 0 | L46: 0 | M46: 0 | N46: 0 | O46: 0 | P46: 0 | Q46: 0 | R46: 0 | S46: 0 | T46: 0 | U46: 0 | V46: 0 | W46: 0 | X46: 0 | Y46: 0 | Z46: 0 | AA46: 0 | AB46: 0 | AC46: 0 | AD46: 0 | AE46: 0 | AF46: 0 | AG46: 0 | AH46: 0 | AI46: 0 | AJ46: 0 | AK46: 0 | AL46: 0 | AM46: 0.035 | AN46: 0.071225
B47: 35 | F47: 0 | G47: =IF(G$4<$B47,0,(1+F47)*(1+G$7)-1) -> 0 | H47: 0 | I47: 0 | J47: 0 | K47: 0 | L47: 0 | M47: 0 | N47: 0 | O47: 0 | P47: 0 | Q47: 0 | R47: 0 | S47: 0 | T47: 0 | U47: 0 | V47: 0 | W47: 0 | X47: 0 | Y47: 0 | Z47: 0 | AA47: 0 | AB47: 0 | AC47: 0 | AD47: 0 | AE47: 0 | AF47: 0 | AG47: 0 | AH47: 0 | AI47: 0 | AJ47: 0 | AK47: 0 | AL47: 0 | AM47: 0 | AN47: 0.035

Sheet 04. RECEITA
A1: ='00. PAINEL DE RESULTADOS'!A1 -> Parque Estadual da Serra de Caldas Novas (PESCaN)
A2: Receita
B4: ANO | I4: =D4+1 -> 1 | J4: =I4+1 -> 2 | K4: 3 | L4: 4 | M4: 5 | N4: 6 | O4: 7 | P4: 8 | Q4: 9 | R4: 10 | S4: 11 | T4: 12 | U4: 13 | V4: 14 | W4: 15 | X4: 16 | Y4: 17 | Z4: 18 | AA4: 19 | AB4: 20 | AC4: 21 | AD4: 22 | AE4: 23 | AF4: 24 | AG4: 25 | AH4: 26 | AI4: 27 | AJ4: 28 | AK4: 29 | AL4: 30 | AM4: 31 | AN4: 32 | AO4: 33 | AP4: 34 | AQ4: 35
B6: Receita Total | I6: =SUM(I8:I25) -> 2079463.094 | J6: =SUM(J8:J25) -> 4371348.567 | K6: =SUM(K8:K25) -> 9876827.951 | L6: 20079101.87 | M6: 32078961.63 | N6: 47105121.77 | O6: =SUM(O8:O25) -> 67509279.95 | P6: 85734294.3 | Q6: 97910415.59 | R6: 108120948 | S6: 114299607.4 | T6: 119133516.7 | U6: 122560069.8 | V6: 125790158.4 | W6: 127549663 | X6: 127818179.3 | Y6: 128087267.4 | Z6: 128356928.8 | AA6: 128627164.5 | AB6: 128897975.9 | AC6: 129169364.1 | AD6: 129441330.4 | AE6: 129713876 | AF6: 129987002.2 | AG6: 130260710.1 | AH6: 130535001.1 | AI6: 130809876.3 | AJ6: 131085337 | AK6: 131361384.5 | AL6: =SUM(AL8:AL25) -> 131638019.9 | AM6: 0 | AN6: 0 | AO6: 0 | AP6: 0 | AQ6: 0
K7: =SUM(K8,K9,K15,K24) -> 9007427.951 | L7: 18588701.87 | M7: 30588561.63 | N7: 45614721.77 | O7: 66018879.95 | P7: 84243894.3 | Q7: 96420015.59 | R7: 106630548 | S7: 112809207.4 | T7: 117643116.7 | U7: 121069669.8 | V7: 124299758.4 | W7: 126059263 | X7: 126327779.3 | Y7: 126596867.4 | Z7: 126866528.8 | AA7: 127136764.5 | AB7: 127407575.9 | AC7: 127678964.1 | AD7: 127950930.4 | AE7: 128223476 | AF7: 128496602.2 | AG7: 128770310.1 | AH7: 129044601.1 | AI7: 129319476.3 | AJ7: 129594937 | AK7: 129870984.5 | AL7: 130147619.9 | AM7: 0 | AN7: 0 | AO7: 0 | AP7: 0 | AQ7: 0
B8: =B33 -> Bilheteria | I8: =IF(I$4>'01. PAINEL DE CONTROLE'!$D$6,0,I33*I$31) -> 1789416.377 | J8: =IF(J$4>'01. PAINEL DE CONTROLE'!$D$6,0,J33*J$31) -> 3241250.791 | K8: =IF(K$4>'01. PAINEL DE CONTROLE'!$D$6,0,K33*K$31) -> 5261326.044 | L8: =IF(L$4>'01. PAINEL DE CONTROLE'!$D$6,0,L33*L$31) -> 9318356.783 | M8: =IF(M$4>'01. PAINEL DE CONTROLE'!$D$6,0,M33*M$31) -> 15066752.68 | N8: =IF(N$4>'01. PAINEL DE CONTROLE'!$D$6,0,N33*N$31) -> 22083489.14 | O8: =IF(O$4>'01. PAINEL DE CONTROLE'!$D$6,0,O33*O$31) -> 31423903.13 | P8: =IF(P$4>'01. PAINEL DE CONTROLE'!$D$6,0,P33*P$31) -> 39435080.46 | Q8: =IF(Q$4>'01. PAINEL DE CONTROLE'!$D$6,0,Q33*Q$31) -> 44399981.05 | R8: =IF(R$4>'01. PAINEL DE CONTROLE'!$D$6,0,R33*R$31) -> 48315184.91 | S8: =IF(S$4>'01. PAINEL DE CONTROLE'!$D$6,0,S33*S$31) -> 51114786.68 | T8: =IF(T$4>'01. PAINEL DE CONTROLE'!$D$6,0,T33*T$31) -> 53305071.05 | U8: =IF(U$4>'01. PAINEL DE CONTROLE'!$D$6,0,U33*U$31) -> 54857670.63 | V8: =IF(V$4>'01. PAINEL DE CONTROLE'!$D$6,0,V33*V$31) -> 56321250.55 | W8: =IF(W$4>'01. PAINEL DE CONTROLE'!$D$6,0,W33*W$31) -> 57118496.7 | X8: =IF(X$4>'01. PAINEL DE CONTROLE'!$D$6,0,X33*X$31) -> 57240163.62 | Y8: =IF(Y$4>'01. PAINEL DE CONTROLE'!$D$6,0,Y33*Y$31) -> 57362089.7 | Z8: =IF(Z$4>'01. PAINEL DE CONTROLE'!$D$6,0,Z33*Z$31) -> 57484275.49 | AA8: =IF(AA$4>'01. PAINEL DE CONTROLE'!$D$6,0,AA33*AA$31) -> 57606721.55 | AB8: =IF(AB$4>'01. PAINEL DE CONTROLE'!$D$6,0,AB33*AB$31) -> 57729428.42 | AC8: =IF(AC$4>'01. PAINEL DE CONTROLE'!$D$6,0,AC33*AC$31) -> 57852396.68 | AD8: =IF(AD$4>'01. PAINEL DE CONTROLE'!$D$6,0,AD33*AD$31) -> 57975626.86 | AE8: =IF(AE$4>'01. PAINEL DE CONTROLE'!$D$6,0,AE33*AE$31) -> 58099119.53 | AF8: =IF(AF$4>'01. PAINEL DE CONTROLE'!$D$6,0,AF33*AF$31) -> 58222875.26 | AG8: =IF(AG$4>'01. PAINEL DE CONTROLE'!$D$6,0,AG33*AG$31) -> 58346894.59 | AH8: =IF(AH$4>'01. PAINEL DE CONTROLE'!$D$6,0,AH33*AH$31) -> 58471178.09 | AI8: =IF(AI$4>'01. PAINEL DE CONTROLE'!$D$6,0,AI33*AI$31) -> 58595726.33 | AJ8: =IF(AJ$4>'01. PAINEL DE CONTROLE'!$D$6,0,AJ33*AJ$31) -> 58720539.87 | AK8: =IF(AK$4>'01. PAINEL DE CONTROLE'!$D$6,0,AK33*AK$31) -> 58845619.26 | AL8: =IF(AL$4>'01. PAINEL DE CONTROLE'!$D$6,0,AL33*AL$31) -> 58970965.09 | AM8: =IF(AM$4>'01. PAINEL DE CONTROLE'!$D$6,0,AM33*AM$31) -> 0 | AN8: =IF(AN$4>'01. PAINEL DE CONTROLE'!$D$6,0,AN33*AN$31) -> 0 | AO8: =IF(AO$4>'01. PAINEL DE CONTROLE'!$D$6,0,AO33*AO$31) -> 0 | AP8: =IF(AP$4>'01. PAINEL DE CONTROLE'!$D$6,0,AP33*AP$31) -> 0 | AQ8: =IF(AQ$4>'01. PAINEL DE CONTROLE'!$D$6,0,AQ33*AQ$31) -> 0
B9: =B51 -> Teleférico | I9: =IF(I$4>'01. PAINEL DE CONTROLE'!$D$6,0,I51*I$31) -> 0 | J9: =IF(J$4>'01. PAINEL DE CONTROLE'!$D$6,0,J51*J$31) -> 0 | K9: =IF(K$4>'01. PAINEL DE CONTROLE'!$D$6,0,K51*K$31) -> 930072.3727 | L9: =IF(L$4>'01. PAINEL DE CONTROLE'!$D$6,0,L51*L$31) -> 4282863.281 | M9: =IF(M$4>'01. PAINEL DE CONTROLE'!$D$6,0,M51*M$31) -> 7457602.289 | N9: =IF(N$4>'01. PAINEL DE CONTROLE'!$D$6,0,N51*N$31) -> 11711444.78 | O9: =IF(O$4>'01. PAINEL DE CONTROLE'!$D$6,0,O51*O$31) -> 17775901.45 | P9: =IF(P$4>'01. PAINEL DE CONTROLE'!$D$6,0,P51*P$31) -> 23701900.82 | Q9: =IF(Q$4>'01. PAINEL DE CONTROLE'!$D$6,0,Q51*Q$31) -> 28255748.33 | R9: =IF(R$4>'01. PAINEL DE CONTROLE'!$D$6,0,R51*R$31) -> 32455534.88 | S9: =IF(S$4>'01. PAINEL DE CONTROLE'!$D$6,0,S51*S$31) -> 34336156.32 | T9: =IF(T$4>'01. PAINEL DE CONTROLE'!$D$6,0,T51*T$31) -> 35807471.21 | U9: =IF(U$4>'01. PAINEL DE CONTROLE'!$D$6,0,U51*U$31) -> 36850423.85 | V9: =IF(V$4>'01. PAINEL DE CONTROLE'!$D$6,0,V51*V$31) -> 37833577.89 | W9: =IF(W$4>'01. PAINEL DE CONTROLE'!$D$6,0,W51*W$31) -> 38369124.85 | X9: =IF(X$4>'01. PAINEL DE CONTROLE'!$D$6,0,X51*X$31) -> 38450854.12 | Y9: =IF(Y$4>'01. PAINEL DE CONTROLE'!$D$6,0,Y51*Y$31) -> 38532757.48 | Z9: =IF(Z$4>'01. PAINEL DE CONTROLE'!$D$6,0,Z51*Z$31) -> 38614835.31 | AA9: =IF(AA$4>'01. PAINEL DE CONTROLE'!$D$6,0,AA51*AA$31) -> 38697087.96 | AB9: =IF(AB$4>'01. PAINEL DE CONTROLE'!$D$6,0,AB51*AB$31) -> 38779515.82 | AC9: =IF(AC$4>'01. PAINEL DE CONTROLE'!$D$6,0,AC51*AC$31) -> 38862119.26 | AD9: =IF(AD$4>'01. PAINEL DE CONTROLE'!$D$6,0,AD51*AD$31) -> 38944898.65 | AE9: =IF(AE$4>'01. PAINEL DE CONTROLE'!$D$6,0,AE51*AE$31) -> 39027854.37 | AF9: =IF(AF$4>'01. PAINEL DE CONTROLE'!$D$6,0,AF51*AF$31) -> 39110986.78 | AG9: =IF(AG$4>'01. PAINEL DE CONTROLE'!$D$6,0,AG51*AG$31) -> 39194296.28 | AH9: =IF(AH$4>'01. PAINEL DE CONTROLE'!$D$6,0,AH51*AH$31) -> 39277783.24 | AI9: =IF(AI$4>'01. PAINEL DE CONTROLE'!$D$6,0,AI51*AI$31) -> 39361448.02 | AJ9: =IF(AJ$4>'01. PAINEL DE CONTROLE'!$D$6,0,AJ51*AJ$31) -> 39445291.02 | AK9: =IF(AK$4>'01. PAINEL DE CONTROLE'!$D$6,0,AK51*AK$31) -> 39529312.61 | AL9: =IF(AL$4>'01. PAINEL DE CONTROLE'!$D$6,0,AL51*AL$31) -> 39613513.18 | AM9: =IF(AM$4>'01. PAINEL DE CONTROLE'!$D$6,0,AM51*AM$31) -> 0 | AN9: =IF(AN$4>'01. PAINEL DE CONTROLE'!$D$6,0,AN51*AN$31) -> 0 | AO9: =IF(AO$4>'01. PAINEL DE CONTROLE'!$D$6,0,AO51*AO$31) -> 0 | AP9: =IF(AP$4>'01. PAINEL DE CONTROLE'!$D$6,0,AP51*AP$31) -> 0 | AQ9: =IF(AQ$4>'01. PAINEL DE CONTROLE'!$D$6,0,AQ51*AQ$31) -> 0
B10: =B74 -> Tirolesa | I10: =IF(I$4>'01. PAINEL DE CONTROLE'!$D$6,0,I74*I$31) -> 0 | J10: =IF(J$4>'01. PAINEL DE CONTROLE'!$D$6,0,J74*J$31) -> 0 | K10: =IF(K$4>'01. PAINEL DE CONTROLE'!$D$6,0,K74*K$31) -> 0 | L10: =IF(L$4>'01. PAINEL DE CONTROLE'!$D$6,0,L74*L$31) -> 0 | M10: =IF(M$4>'01. PAINEL DE CONTROLE'!$D$6,0,M74*M$31) -> 0 | N10: =IF(N$4>'01. PAINEL DE CONTROLE'!$D$6,0,N74*N$31) -> 0 | O10: =IF(O$4>'01. PAINEL DE CONTROLE'!$D$6,0,O74*O$31) -> 0 | P10: =IF(P$4>'01. PAINEL DE CONTROLE'!$D$6,0,P74*P$31) -> 0 | Q10: =IF(Q$4>'01. PAINEL DE CONTROLE'!$D$6,0,Q74*Q$31) -> 0 | R10: =IF(R$4>'01. PAINEL DE CONTROLE'!$D$6,0,R74*R$31) -> 0 | S10: =IF(S$4>'01. PAINEL DE CONTROLE'!$D$6,0,S74*S$31) -> 0 | T10: =IF(T$4>'01. PAINEL DE CONTROLE'!$D$6,0,T74*T$31) -> 0 | U10: =IF(U$4>'01. PAINEL DE CONTROLE'!$D$6,0,U74*U$31) -> 0 | V10: =IF(V$4>'01. PAINEL DE CONTROLE'!$D$6,0,V74*V$31) -> 0 | W10: =IF(W$4>'01. PAINEL DE CONTROLE'!$D$6,0,W74*W$31) -> 0 | X10: =IF(X$4>'01. PAINEL DE CONTROLE'!$D$6,0,X74*X$31) -> 0 | Y10: =IF(Y$4>'01. PAINEL DE CONTROLE'!$D$6,0,Y74*Y$31) -> 0 | Z10: =IF(Z$4>'01. PAINEL DE CONTROLE'!$D$6,0,Z74*Z$31) -> 0 | AA10: =IF(AA$4>'01. PAINEL DE CONTROLE'!$D$6,0,AA74*AA$31) -> 0 | AB10: =IF(AB$4>'01. PAINEL DE CONTROLE'!$D$6,0,AB74*AB$31) -> 0 | AC10: =IF(AC$4>'01. PAINEL DE CONTROLE'!$D$6,0,AC74*AC$31) -> 0 | AD10: =IF(AD$4>'01. PAINEL DE CONTROLE'!$D$6,0,AD74*AD$31) -> 0 | AE10: =IF(AE$4>'01. PAINEL DE CONTROLE'!$D$6,0,AE74*AE$31) -> 0 | AF10: =IF(AF$4>'01. PAINEL DE CONTROLE'!$D$6,0,AF74*AF$31) -> 0 | AG10: =IF(AG$4>'01. PAINEL DE CONTROLE'!$D$6,0,AG74*AG$31) -> 0 | AH10: =IF(AH$4>'01. PAINEL DE CONTROLE'!$D$6,0,AH74*AH$31) -> 0 | AI10: =IF(AI$4>'01. PAINEL DE CONTROLE'!$D$6,0,AI74*AI$31) -> 0 | AJ10: =IF(AJ$4>'01. PAINEL DE CONTROLE'!$D$6,0,AJ74*AJ$31) -> 0 | AK10: =IF(AK$4>'01. PAINEL DE CONTROLE'!$D$6,0,AK74*AK$31) -> 0 | AL10: =IF(AL$4>'01. PAINEL DE CONTROLE'!$D$6,0,AL74*AL$31) -> 0 | AM10: =IF(AM$4>'01. PAINEL DE CONTROLE'!$D$6,0,AM74*AM$31) -> 0 | AN10: =IF(AN$4>'01. PAINEL DE CONTROLE'!$D$6,0,AN74*AN$31) -> 0 | AO10: =IF(AO$4>'01. PAINEL DE CONTROLE'!$D$6,0,AO74*AO$31) -> 0 | AP10: =IF(AP$4>'01. PAINEL DE CONTROLE'!$D$6,0,AP74*AP$31) -> 0 | AQ10: =IF(AQ$4>'01. PAINEL DE CONTROLE'!$D$6,0,AQ74*AQ$31) -> 0
B11: =B87 -> Trenó de Montanha | I11: =IF(I$4>'01. PAINEL DE CONTROLE'!$D$6,0,I87*I$31) -> 0 | J11: =IF(J$4>'01. PAINEL DE CONTROLE'!$D$6,0,J87*J$31) -> 0 | K11: =IF(K$4>'01. PAINEL DE CONTROLE'!$D$6,0,K87*K$31) -> 0 | L11: =IF(L$4>'01. PAINEL DE CONTROLE'!$D$6,0,L87*L$31) -> 0 | M11: =IF(M$4>'01. PAINEL DE CONTROLE'!$D$6,0,M87*M$31) -> 0 | N11: =IF(N$4>'01. PAINEL DE CONTROLE'!$D$6,0,N87*N$31) -> 0 | O11: =IF(O$4>'01. PAINEL DE CONTROLE'!$D$6,0,O87*O$31) -> 0 | P11: =IF(P$4>'01. PAINEL DE CONTROLE'!$D$6,0,P87*P$31) -> 0 | Q11: =IF(Q$4>'01. PAINEL DE CONTROLE'!$D$6,0,Q87*Q$31) -> 0 | R11: =IF(R$4>'01. PAINEL DE CONTROLE'!$D$6,0,R87*R$31) -> 0 | S11: =IF(S$4>'01. PAINEL DE CONTROLE'!$D$6,0,S87*S$31) -> 0 | T11: =IF(T$4>'01. PAINEL DE CONTROLE'!$D$6,0,T87*T$31) -> 0 | U11: =IF(U$4>'01. PAINEL DE CONTROLE'!$D$6,0,U87*U$31) -> 0 | V11: =IF(V$4>'01. PAINEL DE CONTROLE'!$D$6,0,V87*V$31) -> 0 | W11: =IF(W$4>'01. PAINEL DE CONTROLE'!$D$6,0,W87*W$31) -> 0 | X11: =IF(X$4>'01. PAINEL DE CONTROLE'!$D$6,0,X87*X$31) -> 0 | Y11: =IF(Y$4>'01. PAINEL DE CONTROLE'!$D$6,0,Y87*Y$31) -> 0 | Z11: =IF(Z$4>'01. PAINEL DE CONTROLE'!$D$6,0,Z87*Z$31) -> 0 | AA11: =IF(AA$4>'01. PAINEL DE CONTROLE'!$D$6,0,AA87*AA$31) -> 0 | AB11: =IF(AB$4>'01. PAINEL DE CONTROLE'!$D$6,0,AB87*AB$31) -> 0 | AC11: =IF(AC$4>'01. PAINEL DE CONTROLE'!$D$6,0,AC87*AC$31) -> 0 | AD11: =IF(AD$4>'01. PAINEL DE CONTROLE'!$D$6,0,AD87*AD$31) -> 0 | AE11: =IF(AE$4>'01. PAINEL DE CONTROLE'!$D$6,0,AE87*AE$31) -> 0 | AF11: =IF(AF$4>'01. PAINEL DE CONTROLE'!$D$6,0,AF87*AF$31) -> 0 | AG11: =IF(AG$4>'01. PAINEL DE CONTROLE'!$D$6,0,AG87*AG$31) -> 0 | AH11: =IF(AH$4>'01. PAINEL DE CONTROLE'!$D$6,0,AH87*AH$31) -> 0 | AI11: =IF(AI$4>'01. PAINEL DE CONTROLE'!$D$6,0,AI87*AI$31) -> 0 | AJ11: =IF(AJ$4>'01. PAINEL DE CONTROLE'!$D$6,0,AJ87*AJ$31) -> 0 | AK11: =IF(AK$4>'01. PAINEL DE CONTROLE'!$D$6,0,AK87*AK$31) -> 0 | AL11: =IF(AL$4>'01. PAINEL DE CONTROLE'!$D$6,0,AL87*AL$31) -> 0 | AM11: =IF(AM$4>'01. PAINEL DE CONTROLE'!$D$6,0,AM87*AM$31) -> 0 | AN11: =IF(AN$4>'01. PAINEL DE CONTROLE'!$D$6,0,AN87*AN$31) -> 0 | AO11: =IF(AO$4>'01. PAINEL DE CONTROLE'!$D$6,0,AO87*AO$31) -> 0 | AP11: =IF(AP$4>'01. PAINEL DE CONTROLE'!$D$6,0,AP87*AP$31) -> 0 | AQ11: =IF(AQ$4>'01. PAINEL DE CONTROLE'!$D$6,0,AQ87*AQ$31) -> 0
B12: =B100 -> Cachoeiras | I12: =IF(I$4>'01. PAINEL DE CONTROLE'!$D$6,0,I100*I$31) -> 0 | J12: =IF(J$4>'01. PAINEL DE CONTROLE'!$D$6,0,J100*J$31) -> 0 | K12: =IF(K$4>'01. PAINEL DE CONTROLE'!$D$6,0,K100*K$31) -> 0 | L12: =IF(L$4>'01. PAINEL DE CONTROLE'!$D$6,0,L100*L$31) -> 0 | M12: =IF(M$4>'01. PAINEL DE CONTROLE'!$D$6,0,M100*M$31) -> 0 | N12: =IF(N$4>'01. PAINEL DE CONTROLE'!$D$6,0,N100*N$31) -> 0 | O12: =IF(O$4>'01. PAINEL DE CONTROLE'!$D$6,0,O100*O$31) -> 0 | P12: =IF(P$4>'01. PAINEL DE CONTROLE'!$D$6,0,P100*P$31) -> 0 | Q12: =IF(Q$4>'01. PAINEL DE CONTROLE'!$D$6,0,Q100*Q$31) -> 0 | R12: =IF(R$4>'01. PAINEL DE CONTROLE'!$D$6,0,R100*R$31) -> 0 | S12: =IF(S$4>'01. PAINEL DE CONTROLE'!$D$6,0,S100*S$31) -> 0 | T12: =IF(T$4>'01. PAINEL DE CONTROLE'!$D$6,0,T100*T$31) -> 0 | U12: =IF(U$4>'01. PAINEL DE CONTROLE'!$D$6,0,U100*U$31) -> 0 | V12: =IF(V$4>'01. PAINEL DE CONTROLE'!$D$6,0,V100*V$31) -> 0 | W12: =IF(W$4>'01. PAINEL DE CONTROLE'!$D$6,0,W100*W$31) -> 0 | X12: =IF(X$4>'01. PAINEL DE CONTROLE'!$D$6,0,X100*X$31) -> 0 | Y12: =IF(Y$4>'01. PAINEL DE CONTROLE'!$D$6,0,Y100*Y$31) -> 0 | Z12: =IF(Z$4>'01. PAINEL DE CONTROLE'!$D$6,0,Z100*Z$31) -> 0 | AA12: =IF(AA$4>'01. PAINEL DE CONTROLE'!$D$6,0,AA100*AA$31) -> 0 | AB12: =IF(AB$4>'01. PAINEL DE CONTROLE'!$D$6,0,AB100*AB$31) -> 0 | AC12: =IF(AC$4>'01. PAINEL DE CONTROLE'!$D$6,0,AC100*AC$31) -> 0 | AD12: =IF(AD$4>'01. PAINEL DE CONTROLE'!$D$6,0,AD100*AD$31) -> 0 | AE12: =IF(AE$4>'01. PAINEL DE CONTROLE'!$D$6,0,AE100*AE$31) -> 0 | AF12: =IF(AF$4>'01. PAINEL DE CONTROLE'!$D$6,0,AF100*AF$31) -> 0 | AG12: =IF(AG$4>'01. PAINEL DE CONTROLE'!$D$6,0,AG100*AG$31) -> 0 | AH12: =IF(AH$4>'01. PAINEL DE CONTROLE'!$D$6,0,AH100*AH$31) -> 0 | AI12: =IF(AI$4>'01. PAINEL DE CONTROLE'!$D$6,0,AI100*AI$31) -> 0 | AJ12: =IF(AJ$4>'01. PAINEL DE CONTROLE'!$D$6,0,AJ100*AJ$31) -> 0 | AK12: =IF(AK$4>'01. PAINEL DE CONTROLE'!$D$6,0,AK100*AK$31) -> 0 | AL12: =IF(AL$4>'01. PAINEL DE CONTROLE'!$D$6,0,AL100*AL$31) -> 0 | AM12: =IF(AM$4>'01. PAINEL DE CONTROLE'!$D$6,0,AM100*AM$31) -> 0 | AN12: =IF(AN$4>'01. PAINEL DE CONTROLE'!$D$6,0,AN100*AN$31) -> 0 | AO12: =IF(AO$4>'01. PAINEL DE CONTROLE'!$D$6,0,AO100*AO$31) -> 0 | AP12: =IF(AP$4>'01. PAINEL DE CONTROLE'!$D$6,0,AP100*AP$31) -> 0 | AQ12: =IF(AQ$4>'01. PAINEL DE CONTROLE'!$D$6,0,AQ100*AQ$31) -> 0
B13: =B118 -> Mirantes | I13: =IF(I$4>'01. PAINEL DE CONTROLE'!$D$6,0,I118*I$31) -> 0 | J13: =IF(J$4>'01. PAINEL DE CONTROLE'!$D$6,0,J118*J$31) -> 0 | K13: =IF(K$4>'01. PAINEL DE CONTROLE'!$D$6,0,K118*K$31) -> 0 | L13: =IF(L$4>'01. PAINEL DE CONTROLE'!$D$6,0,L118*L$31) -> 0 | M13: =IF(M$4>'01. PAINEL DE CONTROLE'!$D$6,0,M118*M$31) -> 0 | N13: =IF(N$4>'01. PAINEL DE CONTROLE'!$D$6,0,N118*N$31) -> 0 | O13: =IF(O$4>'01. PAINEL DE CONTROLE'!$D$6,0,O118*O$31) -> 0 | P13: =IF(P$4>'01. PAINEL DE CONTROLE'!$D$6,0,P118*P$31) -> 0 | Q13: =IF(Q$4>'01. PAINEL DE CONTROLE'!$D$6,0,Q118*Q$31) -> 0 | R13: =IF(R$4>'01. PAINEL DE CONTROLE'!$D$6,0,R118*R$31) -> 0 | S13: =IF(S$4>'01. PAINEL DE CONTROLE'!$D$6,0,S118*S$31) -> 0 | T13: =IF(T$4>'01. PAINEL DE CONTROLE'!$D$6,0,T118*T$31) -> 0 | U13: =IF(U$4>'01. PAINEL DE CONTROLE'!$D$6,0,U118*U$31) -> 0 | V13: =IF(V$4>'01. PAINEL DE CONTROLE'!$D$6,0,V118*V$31) -> 0 | W13: =IF(W$4>'01. PAINEL DE CONTROLE'!$D$6,0,W118*W$31) -> 0 | X13: =IF(X$4>'01. PAINEL DE CONTROLE'!$D$6,0,X118*X$31) -> 0 | Y13: =IF(Y$4>'01. PAINEL DE CONTROLE'!$D$6,0,Y118*Y$31) -> 0 | Z13: =IF(Z$4>'01. PAINEL DE CONTROLE'!$D$6,0,Z118*Z$31) -> 0 | AA13: =IF(AA$4>'01. PAINEL DE CONTROLE'!$D$6,0,AA118*AA$31) -> 0 | AB13: =IF(AB$4>'01. PAINEL DE CONTROLE'!$D$6,0,AB118*AB$31) -> 0 | AC13: =IF(AC$4>'01. PAINEL DE CONTROLE'!$D$6,0,AC118*AC$31) -> 0 | AD13: =IF(AD$4>'01. PAINEL DE CONTROLE'!$D$6,0,AD118*AD$31) -> 0 | AE13: =IF(AE$4>'01. PAINEL DE CONTROLE'!$D$6,0,AE118*AE$31) -> 0 | AF13: =IF(AF$4>'01. PAINEL DE CONTROLE'!$D$6,0,AF118*AF$31) -> 0 | AG13: =IF(AG$4>'01. PAINEL DE CONTROLE'!$D$6,0,AG118*AG$31) -> 0 | AH13: =IF(AH$4>'01. PAINEL DE CONTROLE'!$D$6,0,AH118*AH$31) -> 0 | AI13: =IF(AI$4>'01. PAINEL DE CONTROLE'!$D$6,0,AI118*AI$31) -> 0 | AJ13: =IF(AJ$4>'01. PAINEL DE CONTROLE'!$D$6,0,AJ118*AJ$31) -> 0 | AK13: =IF(AK$4>'01. PAINEL DE CONTROLE'!$D$6,0,AK118*AK$31) -> 0 | AL13: =IF(AL$4>'01. PAINEL DE CONTROLE'!$D$6,0,AL118*AL$31) -> 0 | AM13: =IF(AM$4>'01. PAINEL DE CONTROLE'!$D$6,0,AM118*AM$31) -> 0 | AN13: =IF(AN$4>'01. PAINEL DE CONTROLE'!$D$6,0,AN118*AN$31) -> 0 | AO13: =IF(AO$4>'01. PAINEL DE CONTROLE'!$D$6,0,AO118*AO$31) -> 0 | AP13: =IF(AP$4>'01. PAINEL DE CONTROLE'!$D$6,0,AP118*AP$31) -> 0 | AQ13: =IF(AQ$4>'01. PAINEL DE CONTROLE'!$D$6,0,AQ118*AQ$31) -> 0
B14: =B133 -> Trilhas autoguiadas | I14: =IF(I$4>'01. PAINEL DE CONTROLE'!$D$6,0,I133*I$31) -> 0 | J14: =IF(J$4>'01. PAINEL DE CONTROLE'!$D$6,0,J133*J$31) -> 0 | K14: =IF(K$4>'01. PAINEL DE CONTROLE'!$D$6,0,K133*K$31) -> 0 | L14: =IF(L$4>'01. PAINEL DE CONTROLE'!$D$6,0,L133*L$31) -> 0 | M14: =IF(M$4>'01. PAINEL DE CONTROLE'!$D$6,0,M133*M$31) -> 0 | N14: =IF(N$4>'01. PAINEL DE CONTROLE'!$D$6,0,N133*N$31) -> 0 | O14: =IF(O$4>'01. PAINEL DE CONTROLE'!$D$6,0,O133*O$31) -> 0 | P14: =IF(P$4>'01. PAINEL DE CONTROLE'!$D$6,0,P133*P$31) -> 0 | Q14: =IF(Q$4>'01. PAINEL DE CONTROLE'!$D$6,0,Q133*Q$31) -> 0 | R14: =IF(R$4>'01. PAINEL DE CONTROLE'!$D$6,0,R133*R$31) -> 0 | S14: =IF(S$4>'01. PAINEL DE CONTROLE'!$D$6,0,S133*S$31) -> 0 | T14: =IF(T$4>'01. PAINEL DE CONTROLE'!$D$6,0,T133*T$31) -> 0 | U14: =IF(U$4>'01. PAINEL DE CONTROLE'!$D$6,0,U133*U$31) -> 0 | V14: =IF(V$4>'01. PAINEL DE CONTROLE'!$D$6,0,V133*V$31) -> 0 | W14: =IF(W$4>'01. PAINEL DE CONTROLE'!$D$6,0,W133*W$31) -> 0 | X14: =IF(X$4>'01. PAINEL DE CONTROLE'!$D$6,0,X133*X$31) -> 0 | Y14: =IF(Y$4>'01. PAINEL DE CONTROLE'!$D$6,0,Y133*Y$31) -> 0 | Z14: =IF(Z$4>'01. PAINEL DE CONTROLE'!$D$6,0,Z133*Z$31) -> 0 | AA14: =IF(AA$4>'01. PAINEL DE CONTROLE'!$D$6,0,AA133*AA$31) -> 0 | AB14: =IF(AB$4>'01. PAINEL DE CONTROLE'!$D$6,0,AB133*AB$31) -> 0 | AC14: =IF(AC$4>'01. PAINEL DE CONTROLE'!$D$6,0,AC133*AC$31) -> 0 | AD14: =IF(AD$4>'01. PAINEL DE CONTROLE'!$D$6,0,AD133*AD$31) -> 0 | AE14: =IF(AE$4>'01. PAINEL DE CONTROLE'!$D$6,0,AE133*AE$31) -> 0 | AF14: =IF(AF$4>'01. PAINEL DE CONTROLE'!$D$6,0,AF133*AF$31) -> 0 | AG14: =IF(AG$4>'01. PAINEL DE CONTROLE'!$D$6,0,AG133*AG$31) -> 0 | AH14: =IF(AH$4>'01. PAINEL DE CONTROLE'!$D$6,0,AH133*AH$31) -> 0 | AI14: =IF(AI$4>'01. PAINEL DE CONTROLE'!$D$6,0,AI133*AI$31) -> 0 | AJ14: =IF(AJ$4>'01. PAINEL DE CONTROLE'!$D$6,0,AJ133*AJ$31) -> 0 | AK14: =IF(AK$4>'01. PAINEL DE CONTROLE'!$D$6,0,AK133*AK$31) -> 0 | AL14: =IF(AL$4>'01. PAINEL DE CONTROLE'!$D$6,0,AL133*AL$31) -> 0 | AM14: =IF(AM$4>'01. PAINEL DE CONTROLE'!$D$6,0,AM133*AM$31) -> 0 | AN14: =IF(AN$4>'01. PAINEL DE CONTROLE'!$D$6,0,AN133*AN$31) -> 0 | AO14: =IF(AO$4>'01. PAINEL DE CONTROLE'!$D$6,0,AO133*AO$31) -> 0 | AP14: =IF(AP$4>'01. PAINEL DE CONTROLE'!$D$6,0,AP133*AP$31) -> 0 | AQ14: =IF(AQ$4>'01. PAINEL DE CONTROLE'!$D$6,0,AQ133*AQ$31) -> 0
B15: =B144 -> Trilhas guiadas | I15: =IF(I$4>'01. PAINEL DE CONTROLE'!$D$6,0,I144*I$31) -> 290046.7169 | J15: =IF(J$4>'01. PAINEL DE CONTROLE'!$D$6,0,J144*J$31) -> 525374.7326 | K15: =IF(K$4>'01. PAINEL DE CONTROLE'!$D$6,0,K144*K$31) -> 852808.9747 | L15: =IF(L$4>'01. PAINEL DE CONTROLE'!$D$6,0,L144*L$31) -> 1510413.578 | M15: =IF(M$4>'01. PAINEL DE CONTROLE'!$D$6,0,M144*M$31) -> 2442171.763 | N15: =IF(N$4>'01. PAINEL DE CONTROLE'!$D$6,0,N144*N$31) -> 3579515.426 | O15: =IF(O$4>'01. PAINEL DE CONTROLE'!$D$6,0,O144*O$31) -> 5093504.258 | P15: =IF(P$4>'01. PAINEL DE CONTROLE'!$D$6,0,P144*P$31) -> 6392036.959 | Q15: =IF(Q$4>'01. PAINEL DE CONTROLE'!$D$6,0,Q144*Q$31) -> 7196798.297 | R15: =IF(R$4>'01. PAINEL DE CONTROLE'!$D$6,0,R144*R$31) -> 7831414.165 | S15: =IF(S$4>'01. PAINEL DE CONTROLE'!$D$6,0,S144*S$31) -> 8285201.954 | T15: =IF(T$4>'01. PAINEL DE CONTROLE'!$D$6,0,T144*T$31) -> 8640225.412 | U15: =IF(U$4>'01. PAINEL DE CONTROLE'!$D$6,0,U144*U$31) -> 8891886.466 | V15: =IF(V$4>'01. PAINEL DE CONTROLE'!$D$6,0,V144*V$31) -> 9129118.312 | W15: =IF(W$4>'01. PAINEL DE CONTROLE'!$D$6,0,W144*W$31) -> 9258344.037 | X15: =IF(X$4>'01. PAINEL DE CONTROLE'!$D$6,0,X144*X$31) -> 9278065.042 | Y15: =IF(Y$4>'01. PAINEL DE CONTROLE'!$D$6,0,Y144*Y$31) -> 9297828.055 | Z15: =IF(Z$4>'01. PAINEL DE CONTROLE'!$D$6,0,Z144*Z$31) -> 9317633.165 | AA15: =IF(AA$4>'01. PAINEL DE CONTROLE'!$D$6,0,AA144*AA$31) -> 9337480.461 | AB15: =IF(AB$4>'01. PAINEL DE CONTROLE'!$D$6,0,AB144*AB$31) -> 9357370.034 | AC15: =IF(AC$4>'01. PAINEL DE CONTROLE'!$D$6,0,AC144*AC$31) -> 9377301.972 | AD15: =IF(AD$4>'01. PAINEL DE CONTROLE'!$D$6,0,AD144*AD$31) -> 9397276.368 | AE15: =IF(AE$4>'01. PAINEL DE CONTROLE'!$D$6,0,AE144*AE$31) -> 9417293.31 | AF15: =IF(AF$4>'01. PAINEL DE CONTROLE'!$D$6,0,AF144*AF$31) -> 9437352.89 | AG15: =IF(AG$4>'01. PAINEL DE CONTROLE'!$D$6,0,AG144*AG$31) -> 9457455.199 | AH15: =IF(AH$4>'01. PAINEL DE CONTROLE'!$D$6,0,AH144*AH$31) -> 9477600.327 | AI15: =IF(AI$4>'01. PAINEL DE CONTROLE'!$D$6,0,AI144*AI$31) -> 9497788.366 | AJ15: =IF(AJ$4>'01. PAINEL DE CONTROLE'!$D$6,0,AJ144*AJ$31) -> 9518019.407 | AK15: =IF(AK$4>'01. PAINEL DE CONTROLE'!$D$6,0,AK144*AK$31) -> 9538293.542 | AL15: =IF(AL$4>'01. PAINEL DE CONTROLE'!$D$6,0,AL144*AL$31) -> 9558610.862 | AM15: =IF(AM$4>'01. PAINEL DE CONTROLE'!$D$6,0,AM144*AM$31) -> 0 | AN15: =IF(AN$4>'01. PAINEL DE CONTROLE'!$D$6,0,AN144*AN$31) -> 0 | AO15: =IF(AO$4>'01. PAINEL DE CONTROLE'!$D$6,0,AO144*AO$31) -> 0 | AP15: =IF(AP$4>'01. PAINEL DE CONTROLE'!$D$6,0,AP144*AP$31) -> 0 | AQ15: =IF(AQ$4>'01. PAINEL DE CONTROLE'!$D$6,0,AQ144*AQ$31) -> 0
B16: =B168 -> Atividades de educação ambiental | I16: =IF(I$4>'01. PAINEL DE CONTROLE'!$D$6,0,I168*I$31) -> 0 | J16: =IF(J$4>'01. PAINEL DE CONTROLE'!$D$6,0,J168*J$31) -> 0 | K16: =IF(K$4>'01. PAINEL DE CONTROLE'!$D$6,0,K168*K$31) -> 0 | L16: =IF(L$4>'01. PAINEL DE CONTROLE'!$D$6,0,L168*L$31) -> 0 | M16: =IF(M$4>'01. PAINEL DE CONTROLE'!$D$6,0,M168*M$31) -> 0 | N16: =IF(N$4>'01. PAINEL DE CONTROLE'!$D$6,0,N168*N$31) -> 0 | O16: =IF(O$4>'01. PAINEL DE CONTROLE'!$D$6,0,O168*O$31) -> 0 | P16: =IF(P$4>'01. PAINEL DE CONTROLE'!$D$6,0,P168*P$31) -> 0 | Q16: =IF(Q$4>'01. PAINEL DE CONTROLE'!$D$6,0,Q168*Q$31) -> 0 | R16: =IF(R$4>'01. PAINEL DE CONTROLE'!$D$6,0,R168*R$31) -> 0 | S16: =IF(S$4>'01. PAINEL DE CONTROLE'!$D$6,0,S168*S$31) -> 0 | T16: =IF(T$4>'01. PAINEL DE CONTROLE'!$D$6,0,T168*T$31) -> 0 | U16: =IF(U$4>'01. PAINEL DE CONTROLE'!$D$6,0,U168*U$31) -> 0 | V16: =IF(V$4>'01. PAINEL DE CONTROLE'!$D$6,0,V168*V$31) -> 0 | W16: =IF(W$4>'01. PAINEL DE CONTROLE'!$D$6,0,W168*W$31) -> 0 | X16: =IF(X$4>'01. PAINEL DE CONTROLE'!$D$6,0,X168*X$31) -> 0 | Y16: =IF(Y$4>'01. PAINEL DE CONTROLE'!$D$6,0,Y168*Y$31) -> 0 | Z16: =IF(Z$4>'01. PAINEL DE CONTROLE'!$D$6,0,Z168*Z$31) -> 0 | AA16: =IF(AA$4>'01. PAINEL DE CONTROLE'!$D$6,0,AA168*AA$31) -> 0 | AB16: =IF(AB$4>'01. PAINEL DE CONTROLE'!$D$6,0,AB168*AB$31) -> 0 | AC16: =IF(AC$4>'01. PAINEL DE CONTROLE'!$D$6,0,AC168*AC$31) -> 0 | AD16: =IF(AD$4>'01. PAINEL DE CONTROLE'!$D$6,0,AD168*AD$31) -> 0 | AE16: =IF(AE$4>'01. PAINEL DE CONTROLE'!$D$6,0,AE168*AE$31) -> 0 | AF16: =IF(AF$4>'01. PAINEL DE CONTROLE'!$D$6,0,AF168*AF$31) -> 0 | AG16: =IF(AG$4>'01. PAINEL DE CONTROLE'!$D$6,0,AG168*AG$31) -> 0 | AH16: =IF(AH$4>'01. PAINEL DE CONTROLE'!$D$6,0,AH168*AH$31) -> 0 | AI16: =IF(AI$4>'01. PAINEL DE CONTROLE'!$D$6,0,AI168*AI$31) -> 0 | AJ16: =IF(AJ$4>'01. PAINEL DE CONTROLE'!$D$6,0,AJ168*AJ$31) -> 0 | AK16: =IF(AK$4>'01. PAINEL DE CONTROLE'!$D$6,0,AK168*AK$31) -> 0 | AL16: =IF(AL$4>'01. PAINEL DE CONTROLE'!$D$6,0,AL168*AL$31) -> 0 | AM16: =IF(AM$4>'01. PAINEL DE CONTROLE'!$D$6,0,AM168*AM$31) -> 0 | AN16: =IF(AN$4>'01. PAINEL DE CONTROLE'!$D$6,0,AN168*AN$31) -> 0 | AO16: =IF(AO$4>'01. PAINEL DE CONTROLE'!$D$6,0,AO168*AO$31) -> 0 | AP16: =IF(AP$4>'01. PAINEL DE CONTROLE'!$D$6,0,AP168*AP$31) -> 0 | AQ16: =IF(AQ$4>'01. PAINEL DE CONTROLE'!$D$6,0,AQ168*AQ$31) -> 0
B17: =B188 -> Avistamento de aves | I17: =IF(I$4>'01. PAINEL DE CONTROLE'!$D$6,0,I188*I$31) -> 0 | J17: =IF(J$4>'01. PAINEL DE CONTROLE'!$D$6,0,J188*J$31) -> 0 | K17: =IF(K$4>'01. PAINEL DE CONTROLE'!$D$6,0,K188*K$31) -> 0 | L17: =IF(L$4>'01. PAINEL DE CONTROLE'!$D$6,0,L188*L$31) -> 0 | M17: =IF(M$4>'01. PAINEL DE CONTROLE'!$D$6,0,M188*M$31) -> 0 | N17: =IF(N$4>'01. PAINEL DE CONTROLE'!$D$6,0,N188*N$31) -> 0 | O17: =IF(O$4>'01. PAINEL DE CONTROLE'!$D$6,0,O188*O$31) -> 0 | P17: =IF(P$4>'01. PAINEL DE CONTROLE'!$D$6,0,P188*P$31) -> 0 | Q17: =IF(Q$4>'01. PAINEL DE CONTROLE'!$D$6,0,Q188*Q$31) -> 0 | R17: =IF(R$4>'01. PAINEL DE CONTROLE'!$D$6,0,R188*R$31) -> 0 | S17: =IF(S$4>'01. PAINEL DE CONTROLE'!$D$6,0,S188*S$31) -> 0 | T17: =IF(T$4>'01. PAINEL DE CONTROLE'!$D$6,0,T188*T$31) -> 0 | U17: =IF(U$4>'01. PAINEL DE CONTROLE'!$D$6,0,U188*U$31) -> 0 | V17: =IF(V$4>'01. PAINEL DE CONTROLE'!$D$6,0,V188*V$31) -> 0 | W17: =IF(W$4>'01. PAINEL DE CONTROLE'!$D$6,0,W188*W$31) -> 0 | X17: =IF(X$4>'01. PAINEL DE CONTROLE'!$D$6,0,X188*X$31) -> 0 | Y17: =IF(Y$4>'01. PAINEL DE CONTROLE'!$D$6,0,Y188*Y$31) -> 0 | Z17: =IF(Z$4>'01. PAINEL DE CONTROLE'!$D$6,0,Z188*Z$31) -> 0 | AA17: =IF(AA$4>'01. PAINEL DE CONTROLE'!$D$6,0,AA188*AA$31) -> 0 | AB17: =IF(AB$4>'01. PAINEL DE CONTROLE'!$D$6,0,AB188*AB$31) -> 0 | AC17: =IF(AC$4>'01. PAINEL DE CONTROLE'!$D$6,0,AC188*AC$31) -> 0 | AD17: =IF(AD$4>'01. PAINEL DE CONTROLE'!$D$6,0,AD188*AD$31) -> 0 | AE17: =IF(AE$4>'01. PAINEL DE CONTROLE'!$D$6,0,AE188*AE$31) -> 0 | AF17: =IF(AF$4>'01. PAINEL DE CONTROLE'!$D$6,0,AF188*AF$31) -> 0 | AG17: =IF(AG$4>'01. PAINEL DE CONTROLE'!$D$6,0,AG188*AG$31) -> 0 | AH17: =IF(AH$4>'01. PAINEL DE CONTROLE'!$D$6,0,AH188*AH$31) -> 0 | AI17: =IF(AI$4>'01. PAINEL DE CONTROLE'!$D$6,0,AI188*AI$31) -> 0 | AJ17: =IF(AJ$4>'01. PAINEL DE CONTROLE'!$D$6,0,AJ188*AJ$31) -> 0 | AK17: =IF(AK$4>'01. PAINEL DE CONTROLE'!$D$6,0,AK188*AK$31) -> 0 | AL17: =IF(AL$4>'01. PAINEL DE CONTROLE'!$D$6,0,AL188*AL$31) -> 0 | AM17: =IF(AM$4>'01. PAINEL DE CONTROLE'!$D$6,0,AM188*AM$31) -> 0 | AN17: =IF(AN$4>'01. PAINEL DE CONTROLE'!$D$6,0,AN188*AN$31) -> 0 | AO17: =IF(AO$4>'01. PAINEL DE CONTROLE'!$D$6,0,AO188*AO$31) -> 0 | AP17: =IF(AP$4>'01. PAINEL DE CONTROLE'!$D$6,0,AP188*AP$31) -> 0 | AQ17: =IF(AQ$4>'01. PAINEL DE CONTROLE'!$D$6,0,AQ188*AQ$31) -> 0
B18: =B204 -> Locação de bicicleta | I18: =IF(I$4>'01. PAINEL DE CONTROLE'!$D$6,0,I204*I$31) -> 0 | J18: =IF(J$4>'01. PAINEL DE CONTROLE'!$D$6,0,J204*J$31) -> 0 | K18: =IF(K$4>'01. PAINEL DE CONTROLE'!$D$6,0,K204*K$31) -> 0 | L18: =IF(L$4>'01. PAINEL DE CONTROLE'!$D$6,0,L204*L$31) -> 0 | M18: =IF(M$4>'01. PAINEL DE CONTROLE'!$D$6,0,M204*M$31) -> 0 | N18: =IF(N$4>'01. PAINEL DE CONTROLE'!$D$6,0,N204*N$31) -> 0 | O18: =IF(O$4>'01. PAINEL DE CONTROLE'!$D$6,0,O204*O$31) -> 0 | P18: =IF(P$4>'01. PAINEL DE CONTROLE'!$D$6,0,P204*P$31) -> 0 | Q18: =IF(Q$4>'01. PAINEL DE CONTROLE'!$D$6,0,Q204*Q$31) -> 0 | R18: =IF(R$4>'01. PAINEL DE CONTROLE'!$D$6,0,R204*R$31) -> 0 | S18: =IF(S$4>'01. PAINEL DE CONTROLE'!$D$6,0,S204*S$31) -> 0 | T18: =IF(T$4>'01. PAINEL DE CONTROLE'!$D$6,0,T204*T$31) -> 0 | U18: =IF(U$4>'01. PAINEL DE CONTROLE'!$D$6,0,U204*U$31) -> 0 | V18: =IF(V$4>'01. PAINEL DE CONTROLE'!$D$6,0,V204*V$31) -> 0 | W18: =IF(W$4>'01. PAINEL DE CONTROLE'!$D$6,0,W204*W$31) -> 0 | X18: =IF(X$4>'01. PAINEL DE CONTROLE'!$D$6,0,X204*X$31) -> 0 | Y18: =IF(Y$4>'01. PAINEL DE CONTROLE'!$D$6,0,Y204*Y$31) -> 0 | Z18: =IF(Z$4>'01. PAINEL DE CONTROLE'!$D$6,0,Z204*Z$31) -> 0 | AA18: =IF(AA$4>'01. PAINEL DE CONTROLE'!$D$6,0,AA204*AA$31) -> 0 | AB18: =IF(AB$4>'01. PAINEL DE CONTROLE'!$D$6,0,AB204*AB$31) -> 0 | AC18: =IF(AC$4>'01. PAINEL DE CONTROLE'!$D$6,0,AC204*AC$31) -> 0 | AD18: =IF(AD$4>'01. PAINEL DE CONTROLE'!$D$6,0,AD204*AD$31) -> 0 | AE18: =IF(AE$4>'01. PAINEL DE CONTROLE'!$D$6,0,AE204*AE$31) -> 0 | AF18: =IF(AF$4>'01. PAINEL DE CONTROLE'!$D$6,0,AF204*AF$31) -> 0 | AG18: =IF(AG$4>'01. PAINEL DE CONTROLE'!$D$6,0,AG204*AG$31) -> 0 | AH18: =IF(AH$4>'01. PAINEL DE CONTROLE'!$D$6,0,AH204*AH$31) -> 0 | AI18: =IF(AI$4>'01. PAINEL DE CONTROLE'!$D$6,0,AI204*AI$31) -> 0 | AJ18: =IF(AJ$4>'01. PAINEL DE CONTROLE'!$D$6,0,AJ204*AJ$31) -> 0 | AK18: =IF(AK$4>'01. PAINEL DE CONTROLE'!$D$6,0,AK204*AK$31) -> 0 | AL18: =IF(AL$4>'01. PAINEL DE CONTROLE'!$D$6,0,AL204*AL$31) -> 0 | AM18: =IF(AM$4>'01. PAINEL DE CONTROLE'!$D$6,0,AM204*AM$31) -> 0 | AN18: =IF(AN$4>'01. PAINEL DE CONTROLE'!$D$6,0,AN204*AN$31) -> 0 | AO18: =IF(AO$4>'01. PAINEL DE CONTROLE'!$D$6,0,AO204*AO$31) -> 0 | AP18: =IF(AP$4>'01. PAINEL DE CONTROLE'!$D$6,0,AP204*AP$31) -> 0 | AQ18: =IF(AQ$4>'01. PAINEL DE CONTROLE'!$D$6,0,AQ204*AQ$31) -> 0
B19: =B230 -> Locação de bicicleta / quadriciclo elétricos | I19: =IF(I$4>'01. PAINEL DE CONTROLE'!$D$6,0,I230*I$31) -> 0 | J19: =IF(J$4>'01. PAINEL DE CONTROLE'!$D$6,0,J230*J$31) -> 0 | K19: =IF(K$4>'01. PAINEL DE CONTROLE'!$D$6,0,K230*K$31) -> 0 | L19: =IF(L$4>'01. PAINEL DE CONTROLE'!$D$6,0,L230*L$31) -> 0 | M19: =IF(M$4>'01. PAINEL DE CONTROLE'!$D$6,0,M230*M$31) -> 0 | N19: =IF(N$4>'01. PAINEL DE CONTROLE'!$D$6,0,N230*N$31) -> 0 | O19: =IF(O$4>'01. PAINEL DE CONTROLE'!$D$6,0,O230*O$31) -> 0 | P19: =IF(P$4>'01. PAINEL DE CONTROLE'!$D$6,0,P230*P$31) -> 0 | Q19: =IF(Q$4>'01. PAINEL DE CONTROLE'!$D$6,0,Q230*Q$31) -> 0 | R19: =IF(R$4>'01. PAINEL DE CONTROLE'!$D$6,0,R230*R$31) -> 0 | S19: =IF(S$4>'01. PAINEL DE CONTROLE'!$D$6,0,S230*S$31) -> 0 | T19: =IF(T$4>'01. PAINEL DE CONTROLE'!$D$6,0,T230*T$31) -> 0 | U19: =IF(U$4>'01. PAINEL DE CONTROLE'!$D$6,0,U230*U$31) -> 0 | V19: =IF(V$4>'01. PAINEL DE CONTROLE'!$D$6,0,V230*V$31) -> 0 | W19: =IF(W$4>'01. PAINEL DE CONTROLE'!$D$6,0,W230*W$31) -> 0 | X19: =IF(X$4>'01. PAINEL DE CONTROLE'!$D$6,0,X230*X$31) -> 0 | Y19: =IF(Y$4>'01. PAINEL DE CONTROLE'!$D$6,0,Y230*Y$31) -> 0 | Z19: =IF(Z$4>'01. PAINEL DE CONTROLE'!$D$6,0,Z230*Z$31) -> 0 | AA19: =IF(AA$4>'01. PAINEL DE CONTROLE'!$D$6,0,AA230*AA$31) -> 0 | AB19: =IF(AB$4>'01. PAINEL DE CONTROLE'!$D$6,0,AB230*AB$31) -> 0 | AC19: =IF(AC$4>'01. PAINEL DE CONTROLE'!$D$6,0,AC230*AC$31) -> 0 | AD19: =IF(AD$4>'01. PAINEL DE CONTROLE'!$D$6,0,AD230*AD$31) -> 0 | AE19: =IF(AE$4>'01. PAINEL DE CONTROLE'!$D$6,0,AE230*AE$31) -> 0 | AF19: =IF(AF$4>'01. PAINEL DE CONTROLE'!$D$6,0,AF230*AF$31) -> 0 | AG19: =IF(AG$4>'01. PAINEL DE CONTROLE'!$D$6,0,AG230*AG$31) -> 0 | AH19: =IF(AH$4>'01. PAINEL DE CONTROLE'!$D$6,0,AH230*AH$31) -> 0 | AI19: =IF(AI$4>'01. PAINEL DE CONTROLE'!$D$6,0,AI230*AI$31) -> 0 | AJ19: =IF(AJ$4>'01. PAINEL DE CONTROLE'!$D$6,0,AJ230*AJ$31) -> 0 | AK19: =IF(AK$4>'01. PAINEL DE CONTROLE'!$D$6,0,AK230*AK$31) -> 0 | AL19: =IF(AL$4>'01. PAINEL DE CONTROLE'!$D$6,0,AL230*AL$31) -> 0 | AM19: =IF(AM$4>'01. PAINEL DE CONTROLE'!$D$6,0,AM230*AM$31) -> 0 | AN19: =IF(AN$4>'01. PAINEL DE CONTROLE'!$D$6,0,AN230*AN$31) -> 0 | AO19: =IF(AO$4>'01. PAINEL DE CONTROLE'!$D$6,0,AO230*AO$31) -> 0 | AP19: =IF(AP$4>'01. PAINEL DE CONTROLE'!$D$6,0,AP230*AP$31) -> 0 | AQ19: =IF(AQ$4>'01. PAINEL DE CONTROLE'!$D$6,0,AQ230*AQ$31) -> 0
B20: =B259 -> Pista de voo livre (parapente) | I20: =IF(I$4>'01. PAINEL DE CONTROLE'!$D$6,0,I259*I$31) -> 0 | J20: =IF(J$4>'01. PAINEL DE CONTROLE'!$D$6,0,J259*J$31) -> 0 | K20: =IF(K$4>'01. PAINEL DE CONTROLE'!$D$6,0,K259*K$31) -> 0 | L20: =IF(L$4>'01. PAINEL DE CONTROLE'!$D$6,0,L259*L$31) -> 0 | M20: =IF(M$4>'01. PAINEL DE CONTROLE'!$D$6,0,M259*M$31) -> 0 | N20: =IF(N$4>'01. PAINEL DE CONTROLE'!$D$6,0,N259*N$31) -> 0 | O20: =IF(O$4>'01. PAINEL DE CONTROLE'!$D$6,0,O259*O$31) -> 0 | P20: =IF(P$4>'01. PAINEL DE CONTROLE'!$D$6,0,P259*P$31) -> 0 | Q20: =IF(Q$4>'01. PAINEL DE CONTROLE'!$D$6,0,Q259*Q$31) -> 0 | R20: =IF(R$4>'01. PAINEL DE CONTROLE'!$D$6,0,R259*R$31) -> 0 | S20: =IF(S$4>'01. PAINEL DE CONTROLE'!$D$6,0,S259*S$31) -> 0 | T20: =IF(T$4>'01. PAINEL DE CONTROLE'!$D$6,0,T259*T$31) -> 0 | U20: =IF(U$4>'01. PAINEL DE CONTROLE'!$D$6,0,U259*U$31) -> 0 | V20: =IF(V$4>'01. PAINEL DE CONTROLE'!$D$6,0,V259*V$31) -> 0 | W20: =IF(W$4>'01. PAINEL DE CONTROLE'!$D$6,0,W259*W$31) -> 0 | X20: =IF(X$4>'01. PAINEL DE CONTROLE'!$D$6,0,X259*X$31) -> 0 | Y20: =IF(Y$4>'01. PAINEL DE CONTROLE'!$D$6,0,Y259*Y$31) -> 0 | Z20: =IF(Z$4>'01. PAINEL DE CONTROLE'!$D$6,0,Z259*Z$31) -> 0 | AA20: =IF(AA$4>'01. PAINEL DE CONTROLE'!$D$6,0,AA259*AA$31) -> 0 | AB20: =IF(AB$4>'01. PAINEL DE CONTROLE'!$D$6,0,AB259*AB$31) -> 0 | AC20: =IF(AC$4>'01. PAINEL DE CONTROLE'!$D$6,0,AC259*AC$31) -> 0 | AD20: =IF(AD$4>'01. PAINEL DE CONTROLE'!$D$6,0,AD259*AD$31) -> 0 | AE20: =IF(AE$4>'01. PAINEL DE CONTROLE'!$D$6,0,AE259*AE$31) -> 0 | AF20: =IF(AF$4>'01. PAINEL DE CONTROLE'!$D$6,0,AF259*AF$31) -> 0 | AG20: =IF(AG$4>'01. PAINEL DE CONTROLE'!$D$6,0,AG259*AG$31) -> 0 | AH20: =IF(AH$4>'01. PAINEL DE CONTROLE'!$D$6,0,AH259*AH$31) -> 0 | AI20: =IF(AI$4>'01. PAINEL DE CONTROLE'!$D$6,0,AI259*AI$31) -> 0 | AJ20: =IF(AJ$4>'01. PAINEL DE CONTROLE'!$D$6,0,AJ259*AJ$31) -> 0 | AK20: =IF(AK$4>'01. PAINEL DE CONTROLE'!$D$6,0,AK259*AK$31) -> 0 | AL20: =IF(AL$4>'01. PAINEL DE CONTROLE'!$D$6,0,AL259*AL$31) -> 0 | AM20: =IF(AM$4>'01. PAINEL DE CONTROLE'!$D$6,0,AM259*AM$31) -> 0 | AN20: =IF(AN$4>'01. PAINEL DE CONTROLE'!$D$6,0,AN259*AN$31) -> 0 | AO20: =IF(AO$4>'01. PAINEL DE CONTROLE'!$D$6,0,AO259*AO$31) -> 0 | AP20: =IF(AP$4>'01. PAINEL DE CONTROLE'!$D$6,0,AP259*AP$31) -> 0 | AQ20: =IF(AQ$4>'01. PAINEL DE CONTROLE'!$D$6,0,AQ259*AQ$31) -> 0
B21: =B282 -> Restaurante panorâmico | I21: =IF(I$4>'01. PAINEL DE CONTROLE'!$D$6,0,I282*I$31) -> 0 | J21: =IF(J$4>'01. PAINEL DE CONTROLE'!$D$6,0,J282*J$31) -> 0 | K21: =IF(K$4>'01. PAINEL DE CONTROLE'!$D$6,0,K282*K$31) -> 291200 | L21: =IF(L$4>'01. PAINEL DE CONTROLE'!$D$6,0,L282*L$31) -> 499200 | M21: =IF(M$4>'01. PAINEL DE CONTROLE'!$D$6,0,M282*M$31) -> 499200 | N21: =IF(N$4>'01. PAINEL DE CONTROLE'!$D$6,0,N282*N$31) -> 499200 | O21: =IF(O$4>'01. PAINEL DE CONTROLE'!$D$6,0,O282*O$31) -> 499200 | P21: =IF(P$4>'01. PAINEL DE CONTROLE'!$D$6,0,P282*P$31) -> 499200 | Q21: =IF(Q$4>'01. PAINEL DE CONTROLE'!$D$6,0,Q282*Q$31) -> 499200 | R21: =IF(R$4>'01. PAINEL DE CONTROLE'!$D$6,0,R282*R$31) -> 499200 | S21: =IF(S$4>'01. PAINEL DE CONTROLE'!$D$6,0,S282*S$31) -> 499200 | T21: =IF(T$4>'01. PAINEL DE CONTROLE'!$D$6,0,T282*T$31) -> 499200 | U21: =IF(U$4>'01. PAINEL DE CONTROLE'!$D$6,0,U282*U$31) -> 499200 | V21: =IF(V$4>'01. PAINEL DE CONTROLE'!$D$6,0,V282*V$31) -> 499200 | W21: =IF(W$4>'01. PAINEL DE CONTROLE'!$D$6,0,W282*W$31) -> 499200 | X21: =IF(X$4>'01. PAINEL DE CONTROLE'!$D$6,0,X282*X$31) -> 499200 | Y21: =IF(Y$4>'01. PAINEL DE CONTROLE'!$D$6,0,Y282*Y$31) -> 499200 | Z21: =IF(Z$4>'01. PAINEL DE CONTROLE'!$D$6,0,Z282*Z$31) -> 499200 | AA21: =IF(AA$4>'01. PAINEL DE CONTROLE'!$D$6,0,AA282*AA$31) -> 499200 | AB21: =IF(AB$4>'01. PAINEL DE CONTROLE'!$D$6,0,AB282*AB$31) -> 499200 | AC21: =IF(AC$4>'01. PAINEL DE CONTROLE'!$D$6,0,AC282*AC$31) -> 499200 | AD21: =IF(AD$4>'01. PAINEL DE CONTROLE'!$D$6,0,AD282*AD$31) -> 499200 | AE21: =IF(AE$4>'01. PAINEL DE CONTROLE'!$D$6,0,AE282*AE$31) -> 499200 | AF21: =IF(AF$4>'01. PAINEL DE CONTROLE'!$D$6,0,AF282*AF$31) -> 499200 | AG21: =IF(AG$4>'01. PAINEL DE CONTROLE'!$D$6,0,AG282*AG$31) -> 499200 | AH21: =IF(AH$4>'01. PAINEL DE CONTROLE'!$D$6,0,AH282*AH$31) -> 499200 | AI21: =IF(AI$4>'01. PAINEL DE CONTROLE'!$D$6,0,AI282*AI$31) -> 499200 | AJ21: =IF(AJ$4>'01. PAINEL DE CONTROLE'!$D$6,0,AJ282*AJ$31) -> 499200 | AK21: =IF(AK$4>'01. PAINEL DE CONTROLE'!$D$6,0,AK282*AK$31) -> 499200 | AL21: =IF(AL$4>'01. PAINEL DE CONTROLE'!$D$6,0,AL282*AL$31) -> 499200 | AM21: =IF(AM$4>'01. PAINEL DE CONTROLE'!$D$6,0,AM282*AM$31) -> 0 | AN21: =IF(AN$4>'01. PAINEL DE CONTROLE'!$D$6,0,AN282*AN$31) -> 0 | AO21: =IF(AO$4>'01. PAINEL DE CONTROLE'!$D$6,0,AO282*AO$31) -> 0 | AP21: =IF(AP$4>'01. PAINEL DE CONTROLE'!$D$6,0,AP282*AP$31) -> 0 | AQ21: =IF(AQ$4>'01. PAINEL DE CONTROLE'!$D$6,0,AQ282*AQ$31) -> 0
B22: =B323 -> Lanchonete / snack-bar | I22: =IF(I$4>'01. PAINEL DE CONTROLE'!$D$6,0,I323*I$31) -> 0 | J22: =IF(J$4>'01. PAINEL DE CONTROLE'!$D$6,0,J323*J$31) -> 0 | K22: =IF(K$4>'01. PAINEL DE CONTROLE'!$D$6,0,K323*K$31) -> 352800 | L22: =IF(L$4>'01. PAINEL DE CONTROLE'!$D$6,0,L323*L$31) -> 604800 | M22: =IF(M$4>'01. PAINEL DE CONTROLE'!$D$6,0,M323*M$31) -> 604800 | N22: =IF(N$4>'01. PAINEL DE CONTROLE'!$D$6,0,N323*N$31) -> 604800 | O22: =IF(O$4>'01. PAINEL DE CONTROLE'!$D$6,0,O323*O$31) -> 604800 | P22: =IF(P$4>'01. PAINEL DE CONTROLE'!$D$6,0,P323*P$31) -> 604800 | Q22: =IF(Q$4>'01. PAINEL DE CONTROLE'!$D$6,0,Q323*Q$31) -> 604800 | R22: =IF(R$4>'01. PAINEL DE CONTROLE'!$D$6,0,R323*R$31) -> 604800 | S22: =IF(S$4>'01. PAINEL DE CONTROLE'!$D$6,0,S323*S$31) -> 604800 | T22: =IF(T$4>'01. PAINEL DE CONTROLE'!$D$6,0,T323*T$31) -> 604800 | U22: =IF(U$4>'01. PAINEL DE CONTROLE'!$D$6,0,U323*U$31) -> 604800 | V22: =IF(V$4>'01. PAINEL DE CONTROLE'!$D$6,0,V323*V$31) -> 604800 | W22: =IF(W$4>'01. PAINEL DE CONTROLE'!$D$6,0,W323*W$31) -> 604800 | X22: =IF(X$4>'01. PAINEL DE CONTROLE'!$D$6,0,X323*X$31) -> 604800 | Y22: =IF(Y$4>'01. PAINEL DE CONTROLE'!$D$6,0,Y323*Y$31) -> 604800 | Z22: =IF(Z$4>'01. PAINEL DE CONTROLE'!$D$6,0,Z323*Z$31) -> 604800 | AA22: =IF(AA$4>'01. PAINEL DE CONTROLE'!$D$6,0,AA323*AA$31) -> 604800 | AB22: =IF(AB$4>'01. PAINEL DE CONTROLE'!$D$6,0,AB323*AB$31) -> 604800 | AC22: =IF(AC$4>'01. PAINEL DE CONTROLE'!$D$6,0,AC323*AC$31) -> 604800 | AD22: =IF(AD$4>'01. PAINEL DE CONTROLE'!$D$6,0,AD323*AD$31) -> 604800 | AE22: =IF(AE$4>'01. PAINEL DE CONTROLE'!$D$6,0,AE323*AE$31) -> 604800 | AF22: =IF(AF$4>'01. PAINEL DE CONTROLE'!$D$6,0,AF323*AF$31) -> 604800 | AG22: =IF(AG$4>'01. PAINEL DE CONTROLE'!$D$6,0,AG323*AG$31) -> 604800 | AH22: =IF(AH$4>'01. PAINEL DE CONTROLE'!$D$6,0,AH323*AH$31) -> 604800 | AI22: =IF(AI$4>'01. PAINEL DE CONTROLE'!$D$6,0,AI323*AI$31) -> 604800 | AJ22: =IF(AJ$4>'01. PAINEL DE CONTROLE'!$D$6,0,AJ323*AJ$31) -> 604800 | AK22: =IF(AK$4>'01. PAINEL DE CONTROLE'!$D$6,0,AK323*AK$31) -> 604800 | AL22: =IF(AL$4>'01. PAINEL DE CONTROLE'!$D$6,0,AL323*AL$31) -> 604800 | AM22: =IF(AM$4>'01. PAINEL DE CONTROLE'!$D$6,0,AM323*AM$31) -> 0 | AN22: =IF(AN$4>'01. PAINEL DE CONTROLE'!$D$6,0,AN323*AN$31) -> 0 | AO22: =IF(AO$4>'01. PAINEL DE CONTROLE'!$D$6,0,AO323*AO$31) -> 0 | AP22: =IF(AP$4>'01. PAINEL DE CONTROLE'!$D$6,0,AP323*AP$31) -> 0 | AQ22: =IF(AQ$4>'01. PAINEL DE CONTROLE'!$D$6,0,AQ323*AQ$31) -> 0
B23: =B361 -> Loja de souvenirs | I23: =IF(I$4>'01. PAINEL DE CONTROLE'!$D$6,0,I361*I$31) -> 0 | J23: =IF(J$4>'01. PAINEL DE CONTROLE'!$D$6,0,J361*J$31) -> 0 | K23: =IF(K$4>'01. PAINEL DE CONTROLE'!$D$6,0,K361*K$31) -> 225400 | L23: =IF(L$4>'01. PAINEL DE CONTROLE'!$D$6,0,L361*L$31) -> 386400 | M23: =IF(M$4>'01. PAINEL DE CONTROLE'!$D$6,0,M361*M$31) -> 386400 | N23: =IF(N$4>'01. PAINEL DE CONTROLE'!$D$6,0,N361*N$31) -> 386400 | O23: =IF(O$4>'01. PAINEL DE CONTROLE'!$D$6,0,O361*O$31) -> 386400 | P23: =IF(P$4>'01. PAINEL DE CONTROLE'!$D$6,0,P361*P$31) -> 386400 | Q23: =IF(Q$4>'01. PAINEL DE CONTROLE'!$D$6,0,Q361*Q$31) -> 386400 | R23: =IF(R$4>'01. PAINEL DE CONTROLE'!$D$6,0,R361*R$31) -> 386400 | S23: =IF(S$4>'01. PAINEL DE CONTROLE'!$D$6,0,S361*S$31) -> 386400 | T23: =IF(T$4>'01. PAINEL DE CONTROLE'!$D$6,0,T361*T$31) -> 386400 | U23: =IF(U$4>'01. PAINEL DE CONTROLE'!$D$6,0,U361*U$31) -> 386400 | V23: =IF(V$4>'01. PAINEL DE CONTROLE'!$D$6,0,V361*V$31) -> 386400 | W23: =IF(W$4>'01. PAINEL DE CONTROLE'!$D$6,0,W361*W$31) -> 386400 | X23: =IF(X$4>'01. PAINEL DE CONTROLE'!$D$6,0,X361*X$31) -> 386400 | Y23: =IF(Y$4>'01. PAINEL DE CONTROLE'!$D$6,0,Y361*Y$31) -> 386400 | Z23: =IF(Z$4>'01. PAINEL DE CONTROLE'!$D$6,0,Z361*Z$31) -> 386400 | AA23: =IF(AA$4>'01. PAINEL DE CONTROLE'!$D$6,0,AA361*AA$31) -> 386400 | AB23: =IF(AB$4>'01. PAINEL DE CONTROLE'!$D$6,0,AB361*AB$31) -> 386400 | AC23: =IF(AC$4>'01. PAINEL DE CONTROLE'!$D$6,0,AC361*AC$31) -> 386400 | AD23: =IF(AD$4>'01. PAINEL DE CONTROLE'!$D$6,0,AD361*AD$31) -> 386400 | AE23: =IF(AE$4>'01. PAINEL DE CONTROLE'!$D$6,0,AE361*AE$31) -> 386400 | AF23: =IF(AF$4>'01. PAINEL DE CONTROLE'!$D$6,0,AF361*AF$31) -> 386400 | AG23: =IF(AG$4>'01. PAINEL DE CONTROLE'!$D$6,0,AG361*AG$31) -> 386400 | AH23: =IF(AH$4>'01. PAINEL DE CONTROLE'!$D$6,0,AH361*AH$31) -> 386400 | AI23: =IF(AI$4>'01. PAINEL DE CONTROLE'!$D$6,0,AI361*AI$31) -> 386400 | AJ23: =IF(AJ$4>'01. PAINEL DE CONTROLE'!$D$6,0,AJ361*AJ$31) -> 386400 | AK23: =IF(AK$4>'01. PAINEL DE CONTROLE'!$D$6,0,AK361*AK$31) -> 386400 | AL23: =IF(AL$4>'01. PAINEL DE CONTROLE'!$D$6,0,AL361*AL$31) -> 386400 | AM23: =IF(AM$4>'01. PAINEL DE CONTROLE'!$D$6,0,AM361*AM$31) -> 0 | AN23: =IF(AN$4>'01. PAINEL DE CONTROLE'!$D$6,0,AN361*AN$31) -> 0 | AO23: =IF(AO$4>'01. PAINEL DE CONTROLE'!$D$6,0,AO361*AO$31) -> 0 | AP23: =IF(AP$4>'01. PAINEL DE CONTROLE'!$D$6,0,AP361*AP$31) -> 0 | AQ23: =IF(AQ$4>'01. PAINEL DE CONTROLE'!$D$6,0,AQ361*AQ$31) -> 0
B24: =B401 -> Transporte interno | I24: =IF(I$4>'01. PAINEL DE CONTROLE'!$D$6,0,I401*I$31) -> 0 | J24: =IF(J$4>'01. PAINEL DE CONTROLE'!$D$6,0,J401*J$31) -> 604723.0429 | K24: =IF(K$4>'01. PAINEL DE CONTROLE'!$D$6,0,K401*K$31) -> 1963220.559 | L24: =IF(L$4>'01. PAINEL DE CONTROLE'!$D$6,0,L401*L$31) -> 3477068.226 | M24: =IF(M$4>'01. PAINEL DE CONTROLE'!$D$6,0,M401*M$31) -> 5622034.896 | N24: =IF(N$4>'01. PAINEL DE CONTROLE'!$D$6,0,N401*N$31) -> 8240272.422 | O24: =IF(O$4>'01. PAINEL DE CONTROLE'!$D$6,0,O401*O$31) -> 11725571.11 | P24: =IF(P$4>'01. PAINEL DE CONTROLE'!$D$6,0,P401*P$31) -> 14714876.07 | Q24: =IF(Q$4>'01. PAINEL DE CONTROLE'!$D$6,0,Q401*Q$31) -> 16567487.91 | R24: =IF(R$4>'01. PAINEL DE CONTROLE'!$D$6,0,R401*R$31) -> 18028414.04 | S24: =IF(S$4>'01. PAINEL DE CONTROLE'!$D$6,0,S401*S$31) -> 19073062.43 | T24: =IF(T$4>'01. PAINEL DE CONTROLE'!$D$6,0,T401*T$31) -> 19890349.03 | U24: =IF(U$4>'01. PAINEL DE CONTROLE'!$D$6,0,U401*U$31) -> 20469688.8 | V24: =IF(V$4>'01. PAINEL DE CONTROLE'!$D$6,0,V401*V$31) -> 21015811.62 | W24: =IF(W$4>'01. PAINEL DE CONTROLE'!$D$6,0,W401*W$31) -> 21313297.46 | X24: =IF(X$4>'01. PAINEL DE CONTROLE'!$D$6,0,X401*X$31) -> 21358696.47 | Y24: =IF(Y$4>'01. PAINEL DE CONTROLE'!$D$6,0,Y401*Y$31) -> 21404192.19 | Z24: =IF(Z$4>'01. PAINEL DE CONTROLE'!$D$6,0,Z401*Z$31) -> 21449784.81 | AA24: =IF(AA$4>'01. PAINEL DE CONTROLE'!$D$6,0,AA401*AA$31) -> 21495474.55 | AB24: =IF(AB$4>'01. PAINEL DE CONTROLE'!$D$6,0,AB401*AB$31) -> 21541261.61 | AC24: =IF(AC$4>'01. PAINEL DE CONTROLE'!$D$6,0,AC401*AC$31) -> 21587146.21 | AD24: =IF(AD$4>'01. PAINEL DE CONTROLE'!$D$6,0,AD401*AD$31) -> 21633128.54 | AE24: =IF(AE$4>'01. PAINEL DE CONTROLE'!$D$6,0,AE401*AE$31) -> 21679208.81 | AF24: =IF(AF$4>'01. PAINEL DE CONTROLE'!$D$6,0,AF401*AF$31) -> 21725387.24 | AG24: =IF(AG$4>'01. PAINEL DE CONTROLE'!$D$6,0,AG401*AG$31) -> 21771664.04 | AH24: =IF(AH$4>'01. PAINEL DE CONTROLE'!$D$6,0,AH401*AH$31) -> 21818039.41 | AI24: =IF(AI$4>'01. PAINEL DE CONTROLE'!$D$6,0,AI401*AI$31) -> 21864513.56 | AJ24: =IF(AJ$4>'01. PAINEL DE CONTROLE'!$D$6,0,AJ401*AJ$31) -> 21911086.7 | AK24: =IF(AK$4>'01. PAINEL DE CONTROLE'!$D$6,0,AK401*AK$31) -> 21957759.05 | AL24: =IF(AL$4>'01. PAINEL DE CONTROLE'!$D$6,0,AL401*AL$31) -> 22004530.81 | AM24: =IF(AM$4>'01. PAINEL DE CONTROLE'!$D$6,0,AM401*AM$31) -> 0 | AN24: =IF(AN$4>'01. PAINEL DE CONTROLE'!$D$6,0,AN401*AN$31) -> 0 | AO24: =IF(AO$4>'01. PAINEL DE CONTROLE'!$D$6,0,AO401*AO$31) -> 0 | AP24: =IF(AP$4>'01. PAINEL DE CONTROLE'!$D$6,0,AP401*AP$31) -> 0 | AQ24: =IF(AQ$4>'01. PAINEL DE CONTROLE'!$D$6,0,AQ401*AQ$31) -> 0
B25: =B434 -> Estacionamento (carros) | I25: =IF(I$4>'01. PAINEL DE CONTROLE'!$D$6,0,I434*I$31) -> 0 | J25: =IF(J$4>'01. PAINEL DE CONTROLE'!$D$6,0,J434*J$31) -> 0 | K25: =IF(K$4>'01. PAINEL DE CONTROLE'!$D$6,0,K434*K$31) -> 0 | L25: =IF(L$4>'01. PAINEL DE CONTROLE'!$D$6,0,L434*L$31) -> 0 | M25: =IF(M$4>'01. PAINEL DE CONTROLE'!$D$6,0,M434*M$31) -> 0 | N25: =IF(N$4>'01. PAINEL DE CONTROLE'!$D$6,0,N434*N$31) -> 0 | O25: =IF(O$4>'01. PAINEL DE CONTROLE'!$D$6,0,O434*O$31) -> 0 | P25: =IF(P$4>'01. PAINEL DE CONTROLE'!$D$6,0,P434*P$31) -> 0 | Q25: =IF(Q$4>'01. PAINEL DE CONTROLE'!$D$6,0,Q434*Q$31) -> 0 | R25: =IF(R$4>'01. PAINEL DE CONTROLE'!$D$6,0,R434*R$31) -> 0 | S25: =IF(S$4>'01. PAINEL DE CONTROLE'!$D$6,0,S434*S$31) -> 0 | T25: =IF(T$4>'01. PAINEL DE CONTROLE'!$D$6,0,T434*T$31) -> 0 | U25: =IF(U$4>'01. PAINEL DE CONTROLE'!$D$6,0,U434*U$31) -> 0 | V25: =IF(V$4>'01. PAINEL DE CONTROLE'!$D$6,0,V434*V$31) -> 0 | W25: =IF(W$4>'01. PAINEL DE CONTROLE'!$D$6,0,W434*W$31) -> 0 | X25: =IF(X$4>'01. PAINEL DE CONTROLE'!$D$6,0,X434*X$31) -> 0 | Y25: =IF(Y$4>'01. PAINEL DE CONTROLE'!$D$6,0,Y434*Y$31) -> 0 | Z25: =IF(Z$4>'01. PAINEL DE CONTROLE'!$D$6,0,Z434*Z$31) -> 0 | AA25: =IF(AA$4>'01. PAINEL DE CONTROLE'!$D$6,0,AA434*AA$31) -> 0 | AB25: =IF(AB$4>'01. PAINEL DE CONTROLE'!$D$6,0,AB434*AB$31) -> 0 | AC25: =IF(AC$4>'01. PAINEL DE CONTROLE'!$D$6,0,AC434*AC$31) -> 0 | AD25: =IF(AD$4>'01. PAINEL DE CONTROLE'!$D$6,0,AD434*AD$31) -> 0 | AE25: =IF(AE$4>'01. PAINEL DE CONTROLE'!$D$6,0,AE434*AE$31) -> 0 | AF25: =IF(AF$4>'01. PAINEL DE CONTROLE'!$D$6,0,AF434*AF$31) -> 0 | AG25: =IF(AG$4>'01. PAINEL DE CONTROLE'!$D$6,0,AG434*AG$31) -> 0 | AH25: =IF(AH$4>'01. PAINEL DE CONTROLE'!$D$6,0,AH434*AH$31) -> 0 | AI25: =IF(AI$4>'01. PAINEL DE CONTROLE'!$D$6,0,AI434*AI$31) -> 0 | AJ25: =IF(AJ$4>'01. PAINEL DE CONTROLE'!$D$6,0,AJ434*AJ$31) -> 0 | AK25: =IF(AK$4>'01. PAINEL DE CONTROLE'!$D$6,0,AK434*AK$31) -> 0 | AL25: =IF(AL$4>'01. PAINEL DE CONTROLE'!$D$6,0,AL434*AL$31) -> 0 | AM25: =IF(AM$4>'01. PAINEL DE CONTROLE'!$D$6,0,AM434*AM$31) -> 0 | AN25: =IF(AN$4>'01. PAINEL DE CONTROLE'!$D$6,0,AN434*AN$31) -> 0 | AO25: =IF(AO$4>'01. PAINEL DE CONTROLE'!$D$6,0,AO434*AO$31) -> 0 | AP25: =IF(AP$4>'01. PAINEL DE CONTROLE'!$D$6,0,AP434*AP$31) -> 0 | AQ25: =IF(AQ$4>'01. PAINEL DE CONTROLE'!$D$6,0,AQ434*AQ$31) -> 0
B27: =B468 -> Valor Médio Total por Pessoa | H27: =SUM(I27:AQ27) -> 8278529537 | I27: =IF(I$4>'01. PAINEL DE CONTROLE'!$D$6,0,I468*I31) -> 10855929.07 | J27: =IF(J$4>'01. PAINEL DE CONTROLE'!$D$6,0,J468*J31) -> 19663835.17 | K27: =IF(K$4>'01. PAINEL DE CONTROLE'!$D$6,0,K468*K31) -> 31919112.34 | L27: =IF(L$4>'01. PAINEL DE CONTROLE'!$D$6,0,L468*L31) -> 56532074.7 | M27: =IF(M$4>'01. PAINEL DE CONTROLE'!$D$6,0,M468*M31) -> 91406114.58 | N27: =IF(N$4>'01. PAINEL DE CONTROLE'!$D$6,0,N468*N31) -> 133974850.6 | O27: =IF(O$4>'01. PAINEL DE CONTROLE'!$D$6,0,O468*O31) -> 190640740.7 | P27: =IF(P$4>'01. PAINEL DE CONTROLE'!$D$6,0,P468*P31) -> 239242493.7 | Q27: =IF(Q$4>'01. PAINEL DE CONTROLE'!$D$6,0,Q468*Q31) -> 269363269.1 | R27: =IF(R$4>'01. PAINEL DE CONTROLE'!$D$6,0,R468*R31) -> 293115804.2 | S27: =IF(S$4>'01. PAINEL DE CONTROLE'!$D$6,0,S468*S31) -> 310100268.3 | T27: =IF(T$4>'01. PAINEL DE CONTROLE'!$D$6,0,T468*T31) -> 323388160.5 | U27: =IF(U$4>'01. PAINEL DE CONTROLE'!$D$6,0,U468*U31) -> 332807382.9 | V27: =IF(V$4>'01. PAINEL DE CONTROLE'!$D$6,0,V468*V31) -> 341686546 | W27: =IF(W$4>'01. PAINEL DE CONTROLE'!$D$6,0,W468*W31) -> 346523233.4 | X27: =IF(X$4>'01. PAINEL DE CONTROLE'!$D$6,0,X468*X31) -> 347261355.3 | Y27: =IF(Y$4>'01. PAINEL DE CONTROLE'!$D$6,0,Y468*Y31) -> 348001049.5 | Z27: =IF(Z$4>'01. PAINEL DE CONTROLE'!$D$6,0,Z468*Z31) -> 348742319.2 | AA27: =IF(AA$4>'01. PAINEL DE CONTROLE'!$D$6,0,AA468*AA31) -> 349485168 | AB27: =IF(AB$4>'01. PAINEL DE CONTROLE'!$D$6,0,AB468*AB31) -> 350229599.1 | AC27: =IF(AC$4>'01. PAINEL DE CONTROLE'!$D$6,0,AC468*AC31) -> 350975615.8 | AD27: =IF(AD$4>'01. PAINEL DE CONTROLE'!$D$6,0,AD468*AD31) -> 351723221.7 | AE27: =IF(AE$4>'01. PAINEL DE CONTROLE'!$D$6,0,AE468*AE31) -> 352472420 | AF27: =IF(AF$4>'01. PAINEL DE CONTROLE'!$D$6,0,AF468*AF31) -> 353223214.1 | AG27: =IF(AG$4>'01. PAINEL DE CONTROLE'!$D$6,0,AG468*AG31) -> 353975607.5 | AH27: =IF(AH$4>'01. PAINEL DE CONTROLE'!$D$6,0,AH468*AH31) -> 354729603.6 | AI27: =IF(AI$4>'01. PAINEL DE CONTROLE'!$D$6,0,AI468*AI31) -> 355485205.7 | AJ27: =IF(AJ$4>'01. PAINEL DE CONTROLE'!$D$6,0,AJ468*AJ31) -> 356242417.3 | AK27: =IF(AK$4>'01. PAINEL DE CONTROLE'!$D$6,0,AK468*AK31) -> 357001241.9 | AL27: =IF(AL$4>'01. PAINEL DE CONTROLE'!$D$6,0,AL468*AL31) -> 357761682.8 | AM27: =IF(AM$4>'01. PAINEL DE CONTROLE'!$D$6,0,AM468*AM31) -> 0 | AN27: =IF(AN$4>'01. PAINEL DE CONTROLE'!$D$6,0,AN468*AN31) -> 0 | AO27: =IF(AO$4>'01. PAINEL DE CONTROLE'!$D$6,0,AO468*AO31) -> 0 | AP27: =IF(AP$4>'01. PAINEL DE CONTROLE'!$D$6,0,AP468*AP31) -> 0 | AQ27: =IF(AQ$4>'01. PAINEL DE CONTROLE'!$D$6,0,AQ468*AQ31) -> 0
B31: Índice de Inflação | I31: =IF('01. PAINEL DE CONTROLE'!$D$7="Real",1,'03. DADOS MACROECONÔMICOS'!F9) -> 1 | J31: =IF('01. PAINEL DE CONTROLE'!$D$7="Real",1,'03. DADOS MACROECONÔMICOS'!G9) -> 1 | K31: =IF('01. PAINEL DE CONTROLE'!$D$7="Real",1,'03. DADOS MACROECONÔMICOS'!H9) -> 1 | L31: =IF('01. PAINEL DE CONTROLE'!$D$7="Real",1,'03. DADOS MACROECONÔMICOS'!I9) -> 1 | M31: =IF('01. PAINEL DE CONTROLE'!$D$7="Real",1,'03. DADOS MACROECONÔMICOS'!J9) -> 1 | N31: =IF('01. PAINEL DE CONTROLE'!$D$7="Real",1,'03. DADOS MACROECONÔMICOS'!K9) -> 1 | O31: =IF('01. PAINEL DE CONTROLE'!$D$7="Real",1,'03. DADOS MACROECONÔMICOS'!L9) -> 1 | P31: =IF('01. PAINEL DE CONTROLE'!$D$7="Real",1,'03. DADOS MACROECONÔMICOS'!M9) -> 1 | Q31: =IF('01. PAINEL DE CONTROLE'!$D$7="Real",1,'03. DADOS MACROECONÔMICOS'!N9) -> 1 | R31: =IF('01. PAINEL DE CONTROLE'!$D$7="Real",1,'03. DADOS MACROECONÔMICOS'!O9) -> 1 | S31: =IF('01. PAINEL DE CONTROLE'!$D$7="Real",1,'03. DADOS MACROECONÔMICOS'!P9) -> 1 | T31: =IF('01. PAINEL DE CONTROLE'!$D$7="Real",1,'03. DADOS MACROECONÔMICOS'!Q9) -> 1 | U31: =IF('01. PAINEL DE CONTROLE'!$D$7="Real",1,'03. DADOS MACROECONÔMICOS'!R9) -> 1 | V31: =IF('01. PAINEL DE CONTROLE'!$D$7="Real",1,'03. DADOS MACROECONÔMICOS'!S9) -> 1 | W31: =IF('01. PAINEL DE CONTROLE'!$D$7="Real",1,'03. DADOS MACROECONÔMICOS'!T9) -> 1 | X31: =IF('01. PAINEL DE CONTROLE'!$D$7="Real",1,'03. DADOS MACROECONÔMICOS'!U9) -> 1 | Y31: =IF('01. PAINEL DE CONTROLE'!$D$7="Real",1,'03. DADOS MACROECONÔMICOS'!V9) -> 1 | Z31: =IF('01. PAINEL DE CONTROLE'!$D$7="Real",1,'03. DADOS MACROECONÔMICOS'!W9) -> 1 | AA31: =IF('01. PAINEL DE CONTROLE'!$D$7="Real",1,'03. DADOS MACROECONÔMICOS'!X9) -> 1 | AB31: =IF('01. PAINEL DE CONTROLE'!$D$7="Real",1,'03. DADOS MACROECONÔMICOS'!Y9) -> 1 | AC31: =IF('01. PAINEL DE CONTROLE'!$D$7="Real",1,'03. DADOS MACROECONÔMICOS'!Z9) -> 1 | AD31: =IF('01. PAINEL DE CONTROLE'!$D$7="Real",1,'03. DADOS MACROECONÔMICOS'!AA9) -> 1 | AE31: =IF('01. PAINEL DE CONTROLE'!$D$7="Real",1,'03. DADOS MACROECONÔMICOS'!AB9) -> 1 | AF31: =IF('01. PAINEL DE CONTROLE'!$D$7="Real",1,'03. DADOS MACROECONÔMICOS'!AC9) -> 1 | AG31: =IF('01. PAINEL DE CONTROLE'!$D$7="Real",1,'03. DADOS MACROECONÔMICOS'!AD9) -> 1 | AH31: =IF('01. PAINEL DE CONTROLE'!$D$7="Real",1,'03. DADOS MACROECONÔMICOS'!AE9) -> 1 | AI31: =IF('01. PAINEL DE CONTROLE'!$D$7="Real",1,'03. DADOS MACROECONÔMICOS'!AF9) -> 1 | AJ31: =IF('01. PAINEL DE CONTROLE'!$D$7="Real",1,'03. DADOS MACROECONÔMICOS'!AG9) -> 1 | AK31: =IF('01. PAINEL DE CONTROLE'!$D$7="Real",1,'03. DADOS MACROECONÔMICOS'!AH9) -> 1 | AL31: =IF('01. PAINEL DE CONTROLE'!$D$7="Real",1,'03. DADOS MACROECONÔMICOS'!AI9) -> 1 | AM31: =IF('01. PAINEL DE CONTROLE'!$D$7="Real",1,'03. DADOS MACROECONÔMICOS'!AJ9) -> 1 | AN31: =IF('01. PAINEL DE CONTROLE'!$D$7="Real",1,'03. DADOS MACROECONÔMICOS'!AK9) -> 1 | AO31: =IF('01. PAINEL DE CONTROLE'!$D$7="Real",1,'03. DADOS MACROECONÔMICOS'!AL9) -> 1 | AP31: =IF('01. PAINEL DE CONTROLE'!$D$7="Real",1,'03. DADOS MACROECONÔMICOS'!AM9) -> 1 | AQ31: =IF('01. PAINEL DE CONTROLE'!$D$7="Real",1,'03. DADOS MACROECONÔMICOS'!AN9) -> 1
B33: ='1.4_ReceitasEstimadas'!B6 -> Bilheteria | I33: =I41*I45*'01. PAINEL DE CONTROLE'!$D$72*'01. PAINEL DE CONTROLE'!K62 -> 1789416.377 | J33: =J41*J45*'01. PAINEL DE CONTROLE'!$D$72*'01. PAINEL DE CONTROLE'!L62 -> 3241250.791 | K33: =K41*K45*'01. PAINEL DE CONTROLE'!$D$72*'01. PAINEL DE CONTROLE'!M62 -> 5261326.044 | L33: =L41*L45*'01. PAINEL DE CONTROLE'!$D$72*'01. PAINEL DE CONTROLE'!N62 -> 9318356.783 | M33: =M41*M45*'01. PAINEL DE CONTROLE'!$D$72*'01. PAINEL DE CONTROLE'!O62 -> 15066752.68 | N33: =N41*N45*'01. PAINEL DE CONTROLE'!$D$72*'01. PAINEL DE CONTROLE'!P62 -> 22083489.14 | O33: =O41*O45*'01. PAINEL DE CONTROLE'!$D$72*'01. PAINEL DE CONTROLE'!Q62 -> 31423903.13 | P33: =P41*P45*'01. PAINEL DE CONTROLE'!$D$72*'01. PAINEL DE CONTROLE'!R62 -> 39435080.46 | Q33: =Q41*Q45*'01. PAINEL DE CONTROLE'!$D$72*'01. PAINEL DE CONTROLE'!S62 -> 44399981.05 | R33: =R41*R45*'01. PAINEL DE CONTROLE'!$D$72*'01. PAINEL DE CONTROLE'!T62 -> 48315184.91 | S33: =S41*S45*'01. PAINEL DE CONTROLE'!$D$72*'01. PAINEL DE CONTROLE'!U62 -> 51114786.68 | T33: =T41*T45*'01. PAINEL DE CONTROLE'!$D$72*'01. PAINEL DE CONTROLE'!V62 -> 53305071.05 | U33: =U41*U45*'01. PAINEL DE CONTROLE'!$D$72*'01. PAINEL DE CONTROLE'!W62 -> 54857670.63 | V33: =V41*V45*'01. PAINEL DE CONTROLE'!$D$72*'01. PAINEL DE CONTROLE'!X62 -> 56321250.55 | W33: =W41*W45*'01. PAINEL DE CONTROLE'!$D$72*'01. PAINEL DE CONTROLE'!Y62 -> 57118496.7 | X33: =X41*X45*'01. PAINEL DE CONTROLE'!$D$72*'01. PAINEL DE CONTROLE'!Z62 -> 57240163.62 | Y33: =Y41*Y45*'01. PAINEL DE CONTROLE'!$D$72*'01. PAINEL DE CONTROLE'!AA62 -> 57362089.7 | Z33: =Z41*Z45*'01. PAINEL DE CONTROLE'!$D$72*'01. PAINEL DE CONTROLE'!AB62 -> 57484275.49 | AA33: =AA41*AA45*'01. PAINEL DE CONTROLE'!$D$72*'01. PAINEL DE CONTROLE'!AC62 -> 57606721.55 | AB33: =AB41*AB45*'01. PAINEL DE CONTROLE'!$D$72*'01. PAINEL DE CONTROLE'!AD62 -> 57729428.42 | AC33: =AC41*AC45*'01. PAINEL DE CONTROLE'!$D$72*'01. PAINEL DE CONTROLE'!AE62 -> 57852396.68 | AD33: =AD41*AD45*'01. PAINEL DE CONTROLE'!$D$72*'01. PAINEL DE CONTROLE'!AF62 -> 57975626.86 | AE33: =AE41*AE45*'01. PAINEL DE CONTROLE'!$D$72*'01. PAINEL DE CONTROLE'!AG62 -> 58099119.53 | AF33: =AF41*AF45*'01. PAINEL DE CONTROLE'!$D$72*'01. PAINEL DE CONTROLE'!AH62 -> 58222875.26 | AG33: =AG41*AG45*'01. PAINEL DE CONTROLE'!$D$72*'01. PAINEL DE CONTROLE'!AI62 -> 58346894.59 | AH33: =AH41*AH45*'01. PAINEL DE CONTROLE'!$D$72*'01. PAINEL DE CONTROLE'!AJ62 -> 58471178.09 | AI33: =AI41*AI45*'01. PAINEL DE CONTROLE'!$D$72*'01. PAINEL DE CONTROLE'!AK62 -> 58595726.33 | AJ33: =AJ41*AJ45*'01. PAINEL DE CONTROLE'!$D$72*'01. PAINEL DE CONTROLE'!AL62 -> 58720539.87 | AK33: =AK41*AK45*'01. PAINEL DE CONTROLE'!$D$72*'01. PAINEL DE CONTROLE'!AM62 -> 58845619.26 | AL33: =AL41*AL45*'01. PAINEL DE CONTROLE'!$D$72*'01. PAINEL DE CONTROLE'!AN62 -> 58970965.09
B35: ='1.2_CenarioDemanda'!B3 -> Demanda Potencial Total | I35: ='1.2_CenarioDemanda'!D3 -> 1595386.089 | J35: ='1.2_CenarioDemanda'!E3 -> 1651311.404 | K35: ='1.2_CenarioDemanda'!F3 -> 1705756.03 | L35: ='1.2_CenarioDemanda'!G3 -> 1749041.516 | M35: ='1.2_CenarioDemanda'!H3 -> 1791070.946 | N35: ='1.2_CenarioDemanda'!I3 -> 1831528.247 | O35: ='1.2_CenarioDemanda'!J3 -> 1867769.423 | P35: ='1.2_CenarioDemanda'!K3 -> 1900489.156 | Q35: ='1.2_CenarioDemanda'!L3 -> 1931004.638 | R35: ='1.2_CenarioDemanda'!M3 -> 1958012.042 | S35: ='1.2_CenarioDemanda'!N3 -> 1981404.339 | T35: ='1.2_CenarioDemanda'!O3 -> 2001056.291 | U35: ='1.2_CenarioDemanda'!P3 -> 2016879.784 | V35: ='1.2_CenarioDemanda'!Q3 -> 2028857.193 | W35: ='1.2_CenarioDemanda'!R3 -> 2037000.583 | X35: ='1.2_CenarioDemanda'!S3 -> 2041339.555 | Y35: ='1.2_CenarioDemanda'!T3 -> 2045687.77 | Z35: ='1.2_CenarioDemanda'!U3 -> 2050045.247 | AA35: ='1.2_CenarioDemanda'!V3 -> 2054412.005 | AB35: ='1.2_CenarioDemanda'!W3 -> 2058788.066 | AC35: ='1.2_CenarioDemanda'!X3 -> 2063173.447 | AD35: ='1.2_CenarioDemanda'!Y3 -> 2067568.17 | AE35: ='1.2_CenarioDemanda'!Z3 -> 2071972.254 | AF35: ='1.2_CenarioDemanda'!AA3 -> 2076385.719 | AG35: ='1.2_CenarioDemanda'!AB3 -> 2080808.585 | AH35: ='1.2_CenarioDemanda'!AC3 -> 2085240.871 | AI35: ='1.2_CenarioDemanda'!AD3 -> 2089682.6 | AJ35: ='1.2_CenarioDemanda'!AE3 -> 2094133.789 | AK35: ='1.2_CenarioDemanda'!AF3 -> 2098594.46 | AL35: ='1.2_CenarioDemanda'!AG3 -> 2103064.632
F36: Elasticidade do Ticket
B37: Demanda após ticket | F37: ='1.2_CenarioDemanda'!C4 -> 0.8270944882 | I37: =I35*$F37 -> 1319535.041 | J37: =J35*$F37 -> 1365790.561 | K37: 1410821.41 | L37: 1446622.598 | M37: 1481384.908 | N37: 1514846.918 | O37: 1544821.795 | P37: 1571884.106 | Q37: 1597123.293 | R37: 1619460.967 | S37: 1638808.608 | T37: 1655062.629 | U37: 1668150.153 | V37: 1678056.602 | W37: =W35*$F37 -> 1684791.954 | X37: =X35*$F37 -> 1688380.695 | Y37: 1691977.079 | Z37: 1695581.124 | AA37: 1699192.846 | AB37: 1702812.261 | AC37: 1706439.386 | AD37: 1710074.237 | AE37: 1713716.831 | AF37: 1717367.183 | AG37: 1721025.311 | AH37: 1724691.231 | AI37: 1728364.96 | AJ37: 1732046.514 | AK37: 1735735.911 | AL37: 1739433.165
B39: Ramp up (% da demanda total) | I39: ='1.2_CenarioDemanda'!D6 -> 0.04 | J39: ='1.2_CenarioDemanda'!E6 -> 0.07 | K39: ='1.2_CenarioDemanda'!F6 -> 0.11 | L39: ='1.2_CenarioDemanda'!G6 -> 0.19 | M39: ='1.2_CenarioDemanda'!H6 -> 0.3 | N39: ='1.2_CenarioDemanda'!I6 -> 0.43 | O39: ='1.2_CenarioDemanda'!J6 -> 0.6 | P39: ='1.2_CenarioDemanda'!K6 -> 0.74 | Q39: ='1.2_CenarioDemanda'!L6 -> 0.82 | R39: ='1.2_CenarioDemanda'!M6 -> 0.88 | S39: ='1.2_CenarioDemanda'!N6 -> 0.92 | T39: ='1.2_CenarioDemanda'!O6 -> 0.95 | U39: ='1.2_CenarioDemanda'!P6 -> 0.97 | V39: ='1.2_CenarioDemanda'!Q6 -> 0.99 | W39: ='1.2_CenarioDemanda'!R6 -> 1 | X39: =W39 -> 1 | Y39: =X39 -> 1 | Z39: 1 | AA39: 1 | AB39: 1 | AC39: 1 | AD39: 1 | AE39: 1 | AF39: 1 | AG39: 1 | AH39: 1 | AI39: 1 | AJ39: 1 | AK39: 1 | AL39: 1
B41: ='1.2_CenarioDemanda'!B7 -> Total de Visitantes Potenciais | I41: =I37*I39 -> 52781.40162 | J41: =J37*J39 -> 95605.33925 | K41: 155190.3551 | L41: 274858.2936 | M41: 444415.4723 | N41: 651384.1747 | O41: 926893.0771 | P41: 1163194.238 | Q41: 1309641.1 | R41: 1425125.651 | S41: 1507703.919 | T41: 1572309.497 | U41: 1618105.648 | V41: 1661276.036 | W41: =W37*W39 -> 1684791.954 | X41: =X37*X39 -> 1688380.695 | Y41: 1691977.079 | Z41: 1695581.124 | AA41: 1699192.846 | AB41: 1702812.261 | AC41: 1706439.386 | AD41: 1710074.237 | AE41: 1713716.831 | AF41: 1717367.183 | AG41: 1721025.311 | AH41: 1724691.231 | AI41: 1728364.96 | AJ41: 1732046.514 | AK41: 1735735.911 | AL41: 1739433.165
B43: Tx de Captura | I43: =I41/I35 -> 0.03308377953 | J43: =J41/J35 -> 0.05789661417 | K43: 0.0909803937 | L43: 0.1571479528 | M43: 0.2481283465 | N43: 0.3556506299 | O43: 0.4962566929 | P43: 0.6120499213 | Q43: 0.6782174803 | R43: 0.7278431496 | S43: 0.7609269291 | T43: 0.7857397638 | U43: 0.8022816535 | V43: 0.8188235433 | W43: 0.8270944882 | X43: 0.8270944882 | Y43: 0.8270944882 | Z43: 0.8270944882 | AA43: 0.8270944882 | AB43: 0.8270944882 | AC43: 0.8270944882 | AD43: 0.8270944882 | AE43: 0.8270944882 | AF43: 0.8270944882 | AG43: 0.8270944882 | AH43: 0.8270944882 | AI43: 0.8270944882 | AJ43: 0.8270944882 | AK43: 0.8270944882 | AL43: 0.8270944882
F44: Ticket Médio
B45: Ticket Médio | F45: ='1.4_ReceitasEstimadas'!C6 -> 33.90240353 | I45: =$F45*'01. PAINEL DE CONTROLE'!$F$234 -> 33.90240353 | J45: =$F45*'01. PAINEL DE CONTROLE'!$F$234 -> 33.90240353 | K45: =$F45*'01. PAINEL DE CONTROLE'!$F$234 -> 33.90240353 | L45: =$F45*'01. PAINEL DE CONTROLE'!$F$234 -> 33.90240353 | M45: =$F45*'01. PAINEL DE CONTROLE'!$F$234 -> 33.90240353 | N45: =$F45*'01. PAINEL DE CONTROLE'!$F$234 -> 33.90240353 | O45: =$F45*'01. PAINEL DE CONTROLE'!$F$234 -> 33.90240353 | P45: =$F45*'01. PAINEL DE CONTROLE'!$F$234 -> 33.90240353 | Q45: =$F45*'01. PAINEL DE CONTROLE'!$F$234 -> 33.90240353 | R45: =$F45*'01. PAINEL DE CONTROLE'!$F$234 -> 33.90240353 | S45: =$F45*'01. PAINEL DE CONTROLE'!$F$234 -> 33.90240353 | T45: =$F45*'01. PAINEL DE CONTROLE'!$F$234 -> 33.90240353 | U45: =$F45*'01. PAINEL DE CONTROLE'!$F$234 -> 33.90240353 | V45: =$F45*'01. PAINEL DE CONTROLE'!$F$234 -> 33.90240353 | W45: =$F45*'01. PAINEL DE CONTROLE'!$F$234 -> 33.90240353 | X45: =$F45*'01. PAINEL DE CONTROLE'!$F$234 -> 33.90240353 | Y45: =$F45*'01. PAINEL DE CONTROLE'!$F$234 -> 33.90240353 | Z45: =$F45*'01. PAINEL DE CONTROLE'!$F$234 -> 33.90240353 | AA45: =$F45*'01. PAINEL DE CONTROLE'!$F$234 -> 33.90240353 | AB45: =$F45*'01. PAINEL DE CONTROLE'!$F$234 -> 33.90240353 | AC45: =$F45*'01. PAINEL DE CONTROLE'!$F$234 -> 33.90240353 | AD45: =$F45*'01. PAINEL DE CONTROLE'!$F$234 -> 33.90240353 | AE45: =$F45*'01. PAINEL DE CONTROLE'!$F$234 -> 33.90240353 | AF45: =$F45*'01. PAINEL DE CONTROLE'!$F$234 -> 33.90240353 | AG45: =$F45*'01. PAINEL DE CONTROLE'!$F$234 -> 33.90240353 | AH45: =$F45*'01. PAINEL DE CONTROLE'!$F$234 -> 33.90240353 | AI45: =$F45*'01. PAINEL DE CONTROLE'!$F$234 -> 33.90240353 | AJ45: =$F45*'01. PAINEL DE CONTROLE'!$F$234 -> 33.90240353 | AK45: =$F45*'01. PAINEL DE CONTROLE'!$F$234 -> 33.90240353 | AL45: =$F45*'01. PAINEL DE CONTROLE'!$F$234 -> 33.90240353
B47: Ticket Médio - R$/Visitante | I47: =I6/I41 -> 39.39764822 | J47: =J6/J41 -> 45.7228498 | K47: 63.64331045 | L47: 73.05255958 | M47: 72.18236903 | N47: 72.31542245 | O47: 72.8339456 | P47: 73.70591383 | Q47: 74.76125757 | R47: 75.86765974 | S47: 75.81038022 | T47: 75.7697622 | U47: 75.74293428 | V47: 75.71899892 | W47: 75.70647683 | X47: 75.70459652 | Y47: 75.70272022 | Z47: 75.7008479 | AA47: 75.69897956 | AB47: 75.69711519 | AC47: 75.69525478 | AD47: 75.69339833 | AE47: 75.69154582 | AF47: 75.68969726 | AG47: 75.68785262 | AH47: 75.6860119 | AI47: 75.68417509 | AJ47: 75.68234219 | AK47: 75.68051319 | AL47: 75.67868807
B49: Check | I49: =IF(I33='1.4_ReceitasEstimadas'!D6*1000,"ok","error") -> ok | J49: =IF(J33='1.4_ReceitasEstimadas'!E6*1000,"ok","error") -> ok | K49: =IF(K33='1.4_ReceitasEstimadas'!F6*1000,"ok","error") -> ok | L49: =IF(L33='1.4_ReceitasEstimadas'!G6*1000,"ok","error") -> ok | M49: =IF(M33='1.4_ReceitasEstimadas'!H6*1000,"ok","error") -> ok | N49: =IF(N33='1.4_ReceitasEstimadas'!I6*1000,"ok","error") -> ok | O49: =IF(O33='1.4_ReceitasEstimadas'!J6*1000,"ok","error") -> ok | P49: =IF(P33='1.4_ReceitasEstimadas'!K6*1000,"ok","error") -> ok | Q49: =IF(Q33='1.4_ReceitasEstimadas'!L6*1000,"ok","error") -> ok | R49: =IF(R33='1.4_ReceitasEstimadas'!M6*1000,"ok","error") -> ok | S49: =IF(S33='1.4_ReceitasEstimadas'!N6*1000,"ok","error") -> ok | T49: =IF(T33='1.4_ReceitasEstimadas'!O6*1000,"ok","error") -> ok | U49: =IF(U33='1.4_ReceitasEstimadas'!P6*1000,"ok","error") -> ok | V49: =IF(V33='1.4_ReceitasEstimadas'!Q6*1000,"ok","error") -> ok | W49: =IF(W33='1.4_ReceitasEstimadas'!R6*1000,"ok","error") -> ok | X49: =IF(X33='1.4_ReceitasEstimadas'!S6*1000,"ok","error") -> ok | Y49: =IF(Y33='1.4_ReceitasEstimadas'!T6*1000,"ok","error") -> ok | Z49: =IF(Z33='1.4_ReceitasEstimadas'!U6*1000,"ok","error") -> ok | AA49: =IF(AA33='1.4_ReceitasEstimadas'!V6*1000,"ok","error") -> ok | AB49: =IF(AB33='1.4_ReceitasEstimadas'!W6*1000,"ok","error") -> ok | AC49: =IF(AC33='1.4_ReceitasEstimadas'!X6*1000,"ok","error") -> ok | AD49: =IF(AD33='1.4_ReceitasEstimadas'!Y6*1000,"ok","error") -> ok | AE49: =IF(AE33='1.4_ReceitasEstimadas'!Z6*1000,"ok","error") -> ok | AF49: =IF(AF33='1.4_ReceitasEstimadas'!AA6*1000,"ok","error") -> ok | AG49: =IF(AG33='1.4_ReceitasEstimadas'!AB6*1000,"ok","error") -> ok | AH49: =IF(AH33='1.4_ReceitasEstimadas'!AC6*1000,"ok","error") -> ok | AI49: =IF(AI33='1.4_ReceitasEstimadas'!AD6*1000,"ok","error") -> ok | AJ49: =IF(AJ33='1.4_ReceitasEstimadas'!AE6*1000,"ok","error") -> ok | AK49: =IF(AK33='1.4_ReceitasEstimadas'!AF6*1000,"ok","error") -> ok | AL49: =IF(AL33='1.4_ReceitasEstimadas'!AG6*1000,"ok","error") -> ok
B51: ='1.4_ReceitasEstimadas'!B9 -> Teleférico | I51: =I54*I60*'01. PAINEL DE CONTROLE'!$D$73*'01. PAINEL DE CONTROLE'!K63 -> 0 | J51: =J54*J60*'01. PAINEL DE CONTROLE'!$D$73*'01. PAINEL DE CONTROLE'!L63 -> 0 | K51: =K54*K60*'01. PAINEL DE CONTROLE'!$D$73*'01. PAINEL DE CONTROLE'!M63 -> 930072.3727 | L51: =L54*L60*'01. PAINEL DE CONTROLE'!$D$73*'01. PAINEL DE CONTROLE'!N63 -> 4282863.281 | M51: =M54*M60*'01. PAINEL DE CONTROLE'!$D$73*'01. PAINEL DE CONTROLE'!O63 -> 7457602.289 | N51: =N54*N60*'01. PAINEL DE CONTROLE'!$D$73*'01. PAINEL DE CONTROLE'!P63 -> 11711444.78 | O51: =O54*O60*'01. PAINEL DE CONTROLE'!$D$73*'01. PAINEL DE CONTROLE'!Q63 -> 17775901.45 | P51: =P54*P60*'01. PAINEL DE CONTROLE'!$D$73*'01. PAINEL DE CONTROLE'!R63 -> 23701900.82 | Q51: =Q54*Q60*'01. PAINEL DE CONTROLE'!$D$73*'01. PAINEL DE CONTROLE'!S63 -> 28255748.33 | R51: =R54*R60*'01. PAINEL DE CONTROLE'!$D$73*'01. PAINEL DE CONTROLE'!T63 -> 32455534.88 | S51: =S54*S60*'01. PAINEL DE CONTROLE'!$D$73*'01. PAINEL DE CONTROLE'!U63 -> 34336156.32 | T51: =T54*T60*'01. PAINEL DE CONTROLE'!$D$73*'01. PAINEL DE CONTROLE'!V63 -> 35807471.21 | U51: =U54*U60*'01. PAINEL DE CONTROLE'!$D$73*'01. PAINEL DE CONTROLE'!W63 -> 36850423.85 | V51: =V54*V60*'01. PAINEL DE CONTROLE'!$D$73*'01. PAINEL DE CONTROLE'!X63 -> 37833577.89 | W51: =W54*W60*'01. PAINEL DE CONTROLE'!$D$73*'01. PAINEL DE CONTROLE'!Y63 -> 38369124.85 | X51: =X54*X60*'01. PAINEL DE CONTROLE'!$D$73*'01. PAINEL DE CONTROLE'!Z63 -> 38450854.12 | Y51: =Y54*Y60*'01. PAINEL DE CONTROLE'!$D$73*'01. PAINEL DE CONTROLE'!AA63 -> 38532757.48 | Z51: =Z54*Z60*'01. PAINEL DE CONTROLE'!$D$73*'01. PAINEL DE CONTROLE'!AB63 -> 38614835.31 | AA51: =AA54*AA60*'01. PAINEL DE CONTROLE'!$D$73*'01. PAINEL DE CONTROLE'!AC63 -> 38697087.96 | AB51: =AB54*AB60*'01. PAINEL DE CONTROLE'!$D$73*'01. PAINEL DE CONTROLE'!AD63 -> 38779515.82 | AC51: =AC54*AC60*'01. PAINEL DE CONTROLE'!$D$73*'01. PAINEL DE CONTROLE'!AE63 -> 38862119.26 | AD51: =AD54*AD60*'01. PAINEL DE CONTROLE'!$D$73*'01. PAINEL DE CONTROLE'!AF63 -> 38944898.65 | AE51: =AE54*AE60*'01. PAINEL DE CONTROLE'!$D$73*'01. PAINEL DE CONTROLE'!AG63 -> 39027854.37 | AF51: =AF54*AF60*'01. PAINEL DE CONTROLE'!$D$73*'01. PAINEL DE CONTROLE'!AH63 -> 39110986.78 | AG51: =AG54*AG60*'01. PAINEL DE CONTROLE'!$D$73*'01. PAINEL DE CONTROLE'!AI63 -> 39194296.28 | AH51: =AH54*AH60*'01. PAINEL DE CONTROLE'!$D$73*'01. PAINEL DE CONTROLE'!AJ63 -> 39277783.24 | AI51: =AI54*AI60*'01. PAINEL DE CONTROLE'!$D$73*'01. PAINEL DE CONTROLE'!AK63 -> 39361448.02 | AJ51: =AJ54*AJ60*'01. PAINEL DE CONTROLE'!$D$73*'01. PAINEL DE CONTROLE'!AL63 -> 39445291.02 | AK51: =AK54*AK60*'01. PAINEL DE CONTROLE'!$D$73*'01. PAINEL DE CONTROLE'!AM63 -> 39529312.61 | AL51: =AL54*AL60*'01. PAINEL DE CONTROLE'!$D$73*'01. PAINEL DE CONTROLE'!AN63 -> 39613513.18
D53: Captura de demanda | F53: Aceitação do Ticket
B54: Volume de visitantes | D54: ='1.3_DemandaAtrativosDesejo'!C6 -> 0.6195234783 | F54: ='1.3_DemandaAtrativosDesejo'!F6 -> 0.7888454545 | I54: =$D$54*$F$54*I41 -> 25794.70799 | J54: =$D$54*$F$54*J41 -> 46723.12089 | K54: =$D$54*$F$54*K41 -> 75842.81151 | L54: =$D$54*$F$54*L41 -> 134325.5238 | M54: 217189.521 | N54: 318336.8395 | O54: 452980.3213 | P54: 568462.6553 | Q54: 640032.4491 | R54: 696470.7056 | S54: 736827.3889 | T54: 768400.6697 | U54: 790781.6278 | V54: 811879.3539 | W54: 823371.7778 | X54: 825125.6249 | Y54: 826883.2078 | Z54: 828644.5344 | AA54: 830409.6129 | AB54: 832178.4511 | AC54: 833951.0571 | AD54: 835727.4388 | AE54: 837507.6044 | AF54: 839291.5619 | AG54: 841079.3194 | AH54: 842870.8849 | AI54: 844666.2666 | AJ54: 846465.4726 | AK54: 848268.511 | AL54: 850075.3901
B55: Mês | I55: =I54/12 -> 2149.558999 | J55: =J54/12 -> 3893.593407 | K55: 6320.234292 | L55: 11193.79365 | M55: 18099.12675 | N55: 26528.06996 | O55: 37748.36011 | P55: 47371.88794 | Q55: 53336.03742 | R55: 58039.22546 | S55: 61402.28241 | T55: 64033.38914 | U55: 65898.46898 | V55: 67656.61282 | W55: 68614.31482 | X55: 68760.46874 | Y55: 68906.93398 | Z55: 69053.7112 | AA55: 69200.80107 | AB55: 69348.20426 | AC55: 69495.92142 | AD55: 69643.95324 | AE55: 69792.30037 | AF55: 69940.96349 | AG55: 70089.94328 | AH55: 70239.24041 | AI55: 70388.85555 | AJ55: 70538.78938 | AK55: 70689.04259 | AL55: 70839.61584
B56: Dia | I56: =I55/30 -> 71.65196665 | J56: =J55/30 -> 129.7864469 | K56: 210.6744764 | L56: 373.1264551 | M56: 603.304225 | N56: 884.2689986 | O56: 1258.27867 | P56: 1579.062931 | Q56: 1777.867914 | R56: 1934.640849 | S56: 2046.742747 | T56: 2134.446305 | U56: 2196.615633 | V56: 2255.220427 | W56: 2287.143827 | X56: 2292.015625 | Y56: 2296.897799 | Z56: 2301.790373 | AA56: 2306.693369 | AB56: 2311.606809 | AC56: 2316.530714 | AD56: 2321.465108 | AE56: 2326.410012 | AF56: 2331.36545 | AG56: 2336.331443 | AH56: 2341.308014 | AI56: 2346.295185 | AJ56: 2351.292979 | AK56: 2356.30142 | AL56: 2361.320528
B58: Tx de Captura | I58: =I54/I$41 -> 0.4887082798 | J58: =J54/J$41 -> 0.4887082798 | K58: =K54/K$41 -> 0.4887082798 | L58: 0.4887082798 | M58: 0.4887082798 | N58: 0.4887082798 | O58: 0.4887082798 | P58: 0.4887082798 | Q58: 0.4887082798 | R58: 0.4887082798 | S58: 0.4887082798 | T58: 0.4887082798 | U58: 0.4887082798 | V58: 0.4887082798 | W58: 0.4887082798 | X58: 0.4887082798 | Y58: 0.4887082798 | Z58: 0.4887082798 | AA58: 0.4887082798 | AB58: 0.4887082798 | AC58: 0.4887082798 | AD58: 0.4887082798 | AE58: 0.4887082798 | AF58: 0.4887082798 | AG58: 0.4887082798 | AH58: 0.4887082798 | AI58: 0.4887082798 | AJ58: 0.4887082798 | AK58: 0.4887082798 | AL58: 0.4887082798
F59: Ticket Médio
B60: Ticket Médio | F60: 46.6 | I60: =$F60 -> 46.6 | J60: =$F60 -> 46.6 | K60: 46.6 | L60: 46.6 | M60: 46.6 | N60: 46.6 | O60: 46.6 | P60: 46.6 | Q60: 46.6 | R60: 46.6 | S60: 46.6 | T60: 46.6 | U60: 46.6 | V60: 46.6 | W60: 46.6 | X60: 46.6 | Y60: 46.6 | Z60: 46.6 | AA60: 46.6 | AB60: 46.6 | AC60: 46.6 | AD60: 46.6 | AE60: 46.6 | AF60: 46.6 | AG60: 46.6 | AH60: 46.6 | AI60: 46.6 | AJ60: 46.6 | AK60: 46.6 | AL60: 46.6
B62: Ticket Médio Por Visitante | I62: =I51/I$41 -> 0 | J62: 0 | K62: 5.9931068 | L62: 15.58207768 | M62: 16.78069904 | N62: 17.9793204 | O62: 19.17794176 | P62: 20.37656312 | Q62: 21.57518448 | R62: 22.77380584 | S62: 22.77380584 | T62: 22.77380584 | U62: 22.77380584 | V62: 22.77380584 | W62: 22.77380584 | X62: 22.77380584 | Y62: 22.77380584 | Z62: 22.77380584 | AA62: 22.77380584 | AB62: 22.77380584 | AC62: 22.77380584 | AD62: 22.77380584 | AE62: 22.77380584 | AF62: 22.77380584 | AG62: 22.77380584 | AH62: 22.77380584 | AI62: 22.77380584 | AJ62: 22.77380584 | AK62: 22.77380584 | AL62: 22.77380584
B64: Teste de Capacidade
D65: Horas/dia | F65: Passageiros/Hora - ano 1 a 7 - ano | H65: Passageiros/Hora - ano 8 a 30 - ano
B66: Capacidade p/ transporte de visitantes | D66: 12 | F66: 1500 | H66: 3000 | I66: =IF(I$4>7,$H$66*($D$66*30*12),$F$66*($D$66*30*12)) -> 6480000 | J66: 6480000 | K66: 6480000 | L66: 6480000 | M66: 6480000 | N66: 6480000 | O66: 6480000 | P66: 12960000 | Q66: 12960000 | R66: 12960000 | S66: 12960000 | T66: 12960000 | U66: 12960000 | V66: 12960000 | W66: 12960000 | X66: 12960000 | Y66: 12960000 | Z66: 12960000 | AA66: 12960000 | AB66: 12960000 | AC66: 12960000 | AD66: 12960000 | AE66: 12960000 | AF66: 12960000 | AG66: 12960000 | AH66: 12960000 | AI66: 12960000 | AJ66: 12960000 | AK66: 12960000 | AL66: 12960000
F67: Média (Ramp-Up) | H67: Média (Excluindo Ramp-Up)
B68: Volume de visitantes projetado | F68: =AVERAGE(I68:O68) -> 181598.978 | H68: =AVERAGE(P68:AL68) -> 799972.6768 | I68: =I54 -> 25794.70799 | J68: 46723.12089 | K68: 75842.81151 | L68: 134325.5238 | M68: 217189.521 | N68: 318336.8395 | O68: 452980.3213 | P68: 568462.6553 | Q68: 640032.4491 | R68: 696470.7056 | S68: 736827.3889 | T68: 768400.6697 | U68: 790781.6278 | V68: 811879.3539 | W68: 823371.7778 | X68: 825125.6249 | Y68: 826883.2078 | Z68: 828644.5344 | AA68: 830409.6129 | AB68: 832178.4511 | AC68: 833951.0571 | AD68: 835727.4388 | AE68: 837507.6044 | AF68: 839291.5619 | AG68: 841079.3194 | AH68: 842870.8849 | AI68: 844666.2666 | AJ68: 846465.4726 | AK68: 848268.511 | AL68: 850075.3901
H69: Média (Excluindo Ramp-Up)
B70: Ociosidade (%) | H70: =AVERAGE(R70:AL70) -> 0.9368354039 | I70: =1-I68/I66 -> 0.9960193352 | J70: 0.9927896418 | K70: 0.9882958624 | L70: 0.9792707525 | M70: 0.9664830986 | N70: 0.9508739445 | O70: 0.9300956294 | P70: 0.9561371408 | Q70: 0.9506147802 | R70: 0.9462599764 | S70: 0.9431460348 | T70: 0.9407098249 | U70: 0.9389828991 | V70: 0.9373549881 | W70: 0.936468227 | X70: 0.9363328993 | Y70: 0.9361972834 | Z70: 0.9360613785 | AA70: 0.9359251842 | AB70: 0.9357886998 | AC70: 0.9356519246 | AD70: 0.9355148581 | AE70: 0.9353774997 | AF70: 0.9352398486 | AG70: 0.9351019044 | AH70: 0.9349636663 | AI70: 0.9348251338 | AJ70: 0.9346863061 | AK70: 0.9345471828 | AL70: 0.9344077631
B72: Check | I72: =IF(I51='1.4_ReceitasEstimadas'!D9*1000,"ok","ok") -> ok | J72: =IF(J51='1.4_ReceitasEstimadas'!E9*1000,"ok","ok") -> ok | K72: =IF(K51='1.4_ReceitasEstimadas'!F9*1000,"ok","ok") -> ok | L72: =IF(L51='1.4_ReceitasEstimadas'!G9*1000,"ok","ok") -> ok | M72: =IF(M51='1.4_ReceitasEstimadas'!H9*1000,"ok","ok") -> ok | N72: =IF(N51='1.4_ReceitasEstimadas'!I9*1000,"ok","ok") -> ok | O72: =IF(O51='1.4_ReceitasEstimadas'!J9*1000,"ok","ok") -> ok | P72: =IF(P51='1.4_ReceitasEstimadas'!K9*1000,"ok","ok") -> ok | Q72: =IF(Q51='1.4_ReceitasEstimadas'!L9*1000,"ok","ok") -> ok | R72: =IF(R51='1.4_ReceitasEstimadas'!M9*1000,"ok","ok") -> ok | S72: =IF(S51='1.4_ReceitasEstimadas'!N9*1000,"ok","ok") -> ok | T72: =IF(T51='1.4_ReceitasEstimadas'!O9*1000,"ok","ok") -> ok | U72: =IF(U51='1.4_ReceitasEstimadas'!P9*1000,"ok","ok") -> ok | V72: =IF(V51='1.4_ReceitasEstimadas'!Q9*1000,"ok","ok") -> ok | W72: =IF(W51='1.4_ReceitasEstimadas'!R9*1000,"ok","ok") -> ok | X72: =IF(X51='1.4_ReceitasEstimadas'!S9*1000,"ok","ok") -> ok | Y72: =IF(Y51='1.4_ReceitasEstimadas'!T9*1000,"ok","ok") -> ok | Z72: =IF(Z51='1.4_ReceitasEstimadas'!U9*1000,"ok","ok") -> ok | AA72: =IF(AA51='1.4_ReceitasEstimadas'!V9*1000,"ok","ok") -> ok | AB72: =IF(AB51='1.4_ReceitasEstimadas'!W9*1000,"ok","ok") -> ok | AC72: =IF(AC51='1.4_ReceitasEstimadas'!X9*1000,"ok","ok") -> ok | AD72: =IF(AD51='1.4_ReceitasEstimadas'!Y9*1000,"ok","ok") -> ok | AE72: =IF(AE51='1.4_ReceitasEstimadas'!Z9*1000,"ok","ok") -> ok | AF72: =IF(AF51='1.4_ReceitasEstimadas'!AA9*1000,"ok","ok") -> ok | AG72: =IF(AG51='1.4_ReceitasEstimadas'!AB9*1000,"ok","ok") -> ok | AH72: =IF(AH51='1.4_ReceitasEstimadas'!AC9*1000,"ok","ok") -> ok | AI72: =IF(AI51='1.4_ReceitasEstimadas'!AD9*1000,"ok","ok") -> ok | AJ72: =IF(AJ51='1.4_ReceitasEstimadas'!AE9*1000,"ok","ok") -> ok | AK72: =IF(AK51='1.4_ReceitasEstimadas'!AF9*1000,"ok","ok") -> ok | AL72: =IF(AL51='1.4_ReceitasEstimadas'!AG9*1000,"ok","ok") -> ok
B74: ='1.4_ReceitasEstimadas'!B11 -> Tirolesa | I74: =I77*I81*'01. PAINEL DE CONTROLE'!$D$74 -> 0 | J74: =J77*J81*'01. PAINEL DE CONTROLE'!$D$74 -> 0 | K74: =K77*K81*'01. PAINEL DE CONTROLE'!$D$74 -> 0 | L74: =L77*L81*'01. PAINEL DE CONTROLE'!$D$74 -> 0 | M74: =M77*M81*'01. PAINEL DE CONTROLE'!$D$74 -> 0 | N74: =N77*N81*'01. PAINEL DE CONTROLE'!$D$74 -> 0 | O74: =O77*O81*'01. PAINEL DE CONTROLE'!$D$74 -> 0 | P74: =P77*P81*'01. PAINEL DE CONTROLE'!$D$74 -> 0 | Q74: =Q77*Q81*'01. PAINEL DE CONTROLE'!$D$74 -> 0 | R74: =R77*R81*'01. PAINEL DE CONTROLE'!$D$74 -> 0 | S74: =S77*S81*'01. PAINEL DE CONTROLE'!$D$74 -> 0 | T74: =T77*T81*'01. PAINEL DE CONTROLE'!$D$74 -> 0 | U74: =U77*U81*'01. PAINEL DE CONTROLE'!$D$74 -> 0 | V74: =V77*V81*'01. PAINEL DE CONTROLE'!$D$74 -> 0 | W74: =W77*W81*'01. PAINEL DE CONTROLE'!$D$74 -> 0 | X74: =X77*X81*'01. PAINEL DE CONTROLE'!$D$74 -> 0 | Y74: =Y77*Y81*'01. PAINEL DE CONTROLE'!$D$74 -> 0 | Z74: =Z77*Z81*'01. PAINEL DE CONTROLE'!$D$74 -> 0 | AA74: =AA77*AA81*'01. PAINEL DE CONTROLE'!$D$74 -> 0 | AB74: =AB77*AB81*'01. PAINEL DE CONTROLE'!$D$74 -> 0 | AC74: =AC77*AC81*'01. PAINEL DE CONTROLE'!$D$74 -> 0 | AD74: =AD77*AD81*'01. PAINEL DE CONTROLE'!$D$74 -> 0 | AE74: =AE77*AE81*'01. PAINEL DE CONTROLE'!$D$74 -> 0 | AF74: =AF77*AF81*'01. PAINEL DE CONTROLE'!$D$74 -> 0 | AG74: =AG77*AG81*'01. PAINEL DE CONTROLE'!$D$74 -> 0 | AH74: =AH77*AH81*'01. PAINEL DE CONTROLE'!$D$74 -> 0 | AI74: =AI77*AI81*'01. PAINEL DE CONTROLE'!$D$74 -> 0 | AJ74: =AJ77*AJ81*'01. PAINEL DE CONTROLE'!$D$74 -> 0 | AK74: =AK77*AK81*'01. PAINEL DE CONTROLE'!$D$74 -> 0 | AL74: =AL77*AL81*'01. PAINEL DE CONTROLE'!$D$74 -> 0
D76: Captura de demanda | F76: Aceitação do Ticket
B77: =B54 -> Volume de visitantes | D77: ='1.3_DemandaAtrativosDesejo'!C8 -> 0.4924417391 | F77: ='1.3_DemandaAtrativosDesejo'!F8 -> 0.5189772727 | I77: =$D$77*$F$77*I41 -> 13489.13542 | J77: 24433.4809 | K77: 39661.38928 | L77: 70244.4541 | M77: 113577.516 | N77: 166471.6941 | O77: 236882.4217 | P77: 297272.981 | Q77: 334699.83 | R77: 364213.763 | S77: 385317.9665 | T77: 401828.9602 | U77: 413532.9025 | V77: 424565.789 | W77: 430575.6598 | X77: 431492.82 | Y77: 432411.9339 | Z77: 433333.0055 | AA77: 434256.0391 | AB77: 435181.0389 | AC77: 436108.0089 | AD77: 437036.9535 | AE77: 437967.8768 | AF77: 438900.783 | AG77: 439835.6765 | AH77: 440772.5613 | AI77: 441711.4417 | AJ77: 442652.322 | AK77: 443595.2065 | AL77: 444540.0994
B79: Tx de Captura | I79: =I77/I$41 -> 0.2555660708 | J79: =J77/J$41 -> 0.2555660708 | K79: 0.2555660708 | L79: 0.2555660708 | M79: 0.2555660708 | N79: 0.2555660708 | O79: 0.2555660708 | P79: 0.2555660708 | Q79: 0.2555660708 | R79: 0.2555660708 | S79: 0.2555660708 | T79: 0.2555660708 | U79: 0.2555660708 | V79: 0.2555660708 | W79: 0.2555660708 | X79: 0.2555660708 | Y79: 0.2555660708 | Z79: 0.2555660708 | AA79: 0.2555660708 | AB79: 0.2555660708 | AC79: 0.2555660708 | AD79: 0.2555660708 | AE79: 0.2555660708 | AF79: 0.2555660708 | AG79: 0.2555660708 | AH79: 0.2555660708 | AI79: 0.2555660708 | AJ79: 0.2555660708 | AK79: 0.2555660708 | AL79: 0.2555660708
F80: Ticket Médio
B81: Ticket Médio | F81: ='1.4_ReceitasEstimadas'!C11 -> 100 | I81: =$F$81 -> 100 | J81: 100 | K81: 100 | L81: 100 | M81: 100 | N81: 100 | O81: 100 | P81: 100 | Q81: 100 | R81: 100 | S81: 100 | T81: 100 | U81: 100 | V81: 100 | W81: 100 | X81: 100 | Y81: 100 | Z81: 100 | AA81: 100 | AB81: 100 | AC81: 100 | AD81: 100 | AE81: 100 | AF81: 100 | AG81: 100 | AH81: 100 | AI81: 100 | AJ81: 100 | AK81: 100 | AL81: 100
B83: Ticket Médio Por Visitante | I83: =I74/I$41 -> 0 | J83: 0 | K83: 0 | L83: 0 | M83: 0 | N83: 0 | O83: 0 | P83: 0 | Q83: 0 | R83: 0 | S83: 0 | T83: 0 | U83: 0 | V83: 0 | W83: 0 | X83: 0 | Y83: 0 | Z83: 0 | AA83: 0 | AB83: 0 | AC83: 0 | AD83: 0 | AE83: 0 | AF83: 0 | AG83: 0 | AH83: 0 | AI83: 0 | AJ83: 0 | AK83: 0 | AL83: 0
B87: ='1.3_DemandaAtrativosDesejo'!B10 -> Trenó de Montanha | I87: =I90*I94*'01. PAINEL DE CONTROLE'!$D$75 -> 0 | J87: =J90*J94*'01. PAINEL DE CONTROLE'!$D$75 -> 0 | K87: =K90*K94*'01. PAINEL DE CONTROLE'!$D$75 -> 0 | L87: =L90*L94*'01. PAINEL DE CONTROLE'!$D$75 -> 0 | M87: =M90*M94*'01. PAINEL DE CONTROLE'!$D$75 -> 0 | N87: =N90*N94*'01. PAINEL DE CONTROLE'!$D$75 -> 0 | O87: =O90*O94*'01. PAINEL DE CONTROLE'!$D$75 -> 0 | P87: =P90*P94*'01. PAINEL DE CONTROLE'!$D$75 -> 0 | Q87: =Q90*Q94*'01. PAINEL DE CONTROLE'!$D$75 -> 0 | R87: =R90*R94*'01. PAINEL DE CONTROLE'!$D$75 -> 0 | S87: =S90*S94*'01. PAINEL DE CONTROLE'!$D$75 -> 0 | T87: =T90*T94*'01. PAINEL DE CONTROLE'!$D$75 -> 0 | U87: =U90*U94*'01. PAINEL DE CONTROLE'!$D$75 -> 0 | V87: =V90*V94*'01. PAINEL DE CONTROLE'!$D$75 -> 0 | W87: =W90*W94*'01. PAINEL DE CONTROLE'!$D$75 -> 0 | X87: =X90*X94*'01. PAINEL DE CONTROLE'!$D$75 -> 0 | Y87: =Y90*Y94*'01. PAINEL DE CONTROLE'!$D$75 -> 0 | Z87: =Z90*Z94*'01. PAINEL DE CONTROLE'!$D$75 -> 0 | AA87: =AA90*AA94*'01. PAINEL DE CONTROLE'!$D$75 -> 0 | AB87: =AB90*AB94*'01. PAINEL DE CONTROLE'!$D$75 -> 0 | AC87: =AC90*AC94*'01. PAINEL DE CONTROLE'!$D$75 -> 0 | AD87: =AD90*AD94*'01. PAINEL DE CONTROLE'!$D$75 -> 0 | AE87: =AE90*AE94*'01. PAINEL DE CONTROLE'!$D$75 -> 0 | AF87: =AF90*AF94*'01. PAINEL DE CONTROLE'!$D$75 -> 0 | AG87: =AG90*AG94*'01. PAINEL DE CONTROLE'!$D$75 -> 0 | AH87: =AH90*AH94*'01. PAINEL DE CONTROLE'!$D$75 -> 0 | AI87: =AI90*AI94*'01. PAINEL DE CONTROLE'!$D$75 -> 0 | AJ87: =AJ90*AJ94*'01. PAINEL DE CONTROLE'!$D$75 -> 0 | AK87: =AK90*AK94*'01. PAINEL DE CONTROLE'!$D$75 -> 0 | AL87: =AL90*AL94*'01. PAINEL DE CONTROLE'!$D$75 -> 0
D89: Captura de demanda | F89: Aceitação do Ticket
B90: =B77 -> Volume de visitantes | D90: ='1.3_DemandaAtrativosDesejo'!C10 -> 0.5559826087 | F90: ='1.3_DemandaAtrativosDesejo'!F10 -> 0.8335883495 | I90: =$D$90*$F$90*I41 -> 24462.10139 | J90: 44309.3103 | K90: 71924.61901 | L90: 127385.9966 | M90: 205969.0726 | N90: 301890.9168 | O90: 429578.445 | P90: 539094.7289 | Q90: 606967.0829 | R90: 660489.6253 | S90: 698761.401 | T90: 728703.5425 | U90: 749928.2551 | V90: 769936.0302 | W90: 780834.7324 | X90: 782497.9722 | Y90: 784164.7548 | Z90: 785835.0878 | AA90: 787508.9787 | AB90: 789186.4352 | AC90: 790867.4647 | AD90: 792552.075 | AE90: 794240.2737 | AF90: 795932.0683 | AG90: 797627.4666 | AH90: 799326.4763 | AI90: 801029.1049 | AJ90: 802735.3603 | AK90: 804445.2502 | AL90: 806158.7822
B92: Tx de Captura | I92: =I90/I$41 -> 0.4634606251 | J92: =J90/J$41 -> 0.4634606251 | K92: 0.4634606251 | L92: 0.4634606251 | M92: 0.4634606251 | N92: 0.4634606251 | O92: 0.4634606251 | P92: 0.4634606251 | Q92: 0.4634606251 | R92: 0.4634606251 | S92: 0.4634606251 | T92: 0.4634606251 | U92: 0.4634606251 | V92: 0.4634606251 | W92: 0.4634606251 | X92: 0.4634606251 | Y92: 0.4634606251 | Z92: 0.4634606251 | AA92: 0.4634606251 | AB92: 0.4634606251 | AC92: 0.4634606251 | AD92: 0.4634606251 | AE92: 0.4634606251 | AF92: 0.4634606251 | AG92: 0.4634606251 | AH92: 0.4634606251 | AI92: 0.4634606251 | AJ92: 0.4634606251 | AK92: 0.4634606251 | AL92: 0.4634606251
F93: Ticket Médio
B94: Ticket Médio | F94: ='1.4_ReceitasEstimadas'!C13 -> 50 | I94: =$F$94 -> 50 | J94: 50 | K94: 50 | L94: 50 | M94: 50 | N94: 50 | O94: 50 | P94: 50 | Q94: 50 | R94: 50 | S94: 50 | T94: 50 | U94: 50 | V94: 50 | W94: 50 | X94: 50 | Y94: 50 | Z94: 50 | AA94: 50 | AB94: 50 | AC94: 50 | AD94: 50 | AE94: 50 | AF94: 50 | AG94: 50 | AH94: 50 | AI94: 50 | AJ94: 50 | AK94: 50 | AL94: 50
B96: Ticket Médio Por Visitante | I96: =I87/I$41 -> 0 | J96: 0 | K96: 0 | L96: 0 | M96: 0 | N96: 0 | O96: 0 | P96: 0 | Q96: 0 | R96: 0 | S96: 0 | T96: 0 | U96: 0 | V96: 0 | W96: 0 | X96: 0 | Y96: 0 | Z96: 0 | AA96: 0 | AB96: 0 | AC96: 0 | AD96: 0 | AE96: 0 | AF96: 0 | AG96: 0 | AH96: 0 | AI96: 0 | AJ96: 0 | AK96: 0 | AL96: 0
B100: ='1.3_DemandaAtrativosDesejo'!B13 -> Cachoeiras | I100: =I103*I107*'01. PAINEL DE CONTROLE'!$D$76*'01. PAINEL DE CONTROLE'!K66 -> 0 | J100: =J103*J107*'01. PAINEL DE CONTROLE'!$D$76*'01. PAINEL DE CONTROLE'!L66 -> 0 | K100: =K103*K107*'01. PAINEL DE CONTROLE'!$D$76*'01. PAINEL DE CONTROLE'!M66 -> 0 | L100: =L103*L107*'01. PAINEL DE CONTROLE'!$D$76*'01. PAINEL DE CONTROLE'!N66 -> 0 | M100: =M103*M107*'01. PAINEL DE CONTROLE'!$D$76*'01. PAINEL DE CONTROLE'!O66 -> 0 | N100: =N103*N107*'01. PAINEL DE CONTROLE'!$D$76*'01. PAINEL DE CONTROLE'!P66 -> 0 | O100: =O103*O107*'01. PAINEL DE CONTROLE'!$D$76*'01. PAINEL DE CONTROLE'!Q66 -> 0 | P100: =P103*P107*'01. PAINEL DE CONTROLE'!$D$76*'01. PAINEL DE CONTROLE'!R66 -> 0 | Q100: =Q103*Q107*'01. PAINEL DE CONTROLE'!$D$76*'01. PAINEL DE CONTROLE'!S66 -> 0 | R100: =R103*R107*'01. PAINEL DE CONTROLE'!$D$76*'01. PAINEL DE CONTROLE'!T66 -> 0 | S100: =S103*S107*'01. PAINEL DE CONTROLE'!$D$76*'01. PAINEL DE CONTROLE'!U66 -> 0 | T100: =T103*T107*'01. PAINEL DE CONTROLE'!$D$76*'01. PAINEL DE CONTROLE'!V66 -> 0 | U100: =U103*U107*'01. PAINEL DE CONTROLE'!$D$76*'01. PAINEL DE CONTROLE'!W66 -> 0 | V100: =V103*V107*'01. PAINEL DE CONTROLE'!$D$76*'01. PAINEL DE CONTROLE'!X66 -> 0 | W100: =W103*W107*'01. PAINEL DE CONTROLE'!$D$76*'01. PAINEL DE CONTROLE'!Y66 -> 0 | X100: =X103*X107*'01. PAINEL DE CONTROLE'!$D$76*'01. PAINEL DE CONTROLE'!Z66 -> 0 | Y100: =Y103*Y107*'01. PAINEL DE CONTROLE'!$D$76*'01. PAINEL DE CONTROLE'!AA66 -> 0 | Z100: =Z103*Z107*'01. PAINEL DE CONTROLE'!$D$76*'01. PAINEL DE CONTROLE'!AB66 -> 0 | AA100: =AA103*AA107*'01. PAINEL DE CONTROLE'!$D$76*'01. PAINEL DE CONTROLE'!AC66 -> 0 | AB100: =AB103*AB107*'01. PAINEL DE CONTROLE'!$D$76*'01. PAINEL DE CONTROLE'!AD66 -> 0 | AC100: =AC103*AC107*'01. PAINEL DE CONTROLE'!$D$76*'01. PAINEL DE CONTROLE'!AE66 -> 0 | AD100: =AD103*AD107*'01. PAINEL DE CONTROLE'!$D$76*'01. PAINEL DE CONTROLE'!AF66 -> 0 | AE100: =AE103*AE107*'01. PAINEL DE CONTROLE'!$D$76*'01. PAINEL DE CONTROLE'!AG66 -> 0 | AF100: =AF103*AF107*'01. PAINEL DE CONTROLE'!$D$76*'01. PAINEL DE CONTROLE'!AH66 -> 0 | AG100: =AG103*AG107*'01. PAINEL DE CONTROLE'!$D$76*'01. PAINEL DE CONTROLE'!AI66 -> 0 | AH100: =AH103*AH107*'01. PAINEL DE CONTROLE'!$D$76*'01. PAINEL DE CONTROLE'!AJ66 -> 0 | AI100: =AI103*AI107*'01. PAINEL DE CONTROLE'!$D$76*'01. PAINEL DE CONTROLE'!AK66 -> 0 | AJ100: =AJ103*AJ107*'01. PAINEL DE CONTROLE'!$D$76*'01. PAINEL DE CONTROLE'!AL66 -> 0 | AK100: =AK103*AK107*'01. PAINEL DE CONTROLE'!$D$76*'01. PAINEL DE CONTROLE'!AM66 -> 0 | AL100: =AL103*AL107*'01. PAINEL DE CONTROLE'!$D$76*'01. PAINEL DE CONTROLE'!AN66 -> 0
D102: Grau de Interesse | F102: Aceitação para Utilizar
B103: =B90 -> Volume de visitantes | D103: ='1.3_DemandaAtrativosDesejo'!C13 -> 0.6779140625 | F103: ='1.3_DemandaAtrativosDesejo'!D13 -> 0.5351953125 | I103: =$D103*$F103*I$41 -> 19149.95963 | J103: =$D103*$F103*J$41 -> 34687.18774 | K103: 56305.6104 | L103: 99723.10443 | M103: 161241.2344 | N103: 236332.8799 | O103: 336292.0359 | P103: 422025.9793 | Q103: 475159.3065 | R103: 517058.999 | S103: 547019.7513 | T103: 570459.7163 | U103: 587075.3122 | V103: 602738.2382 | W103: 611270.1997 | X103: 612572.2536 | Y103: 613877.081 | Z103: 615184.6877 | AA103: 616495.0798 | AB103: 617808.2631 | AC103: 619124.2436 | AD103: 620443.0273 | AE103: 621764.62 | AF103: 623089.0279 | AG103: 624416.2568 | AH103: 625746.3129 | AI103: 627079.202 | AJ103: 628414.9304 | AK103: 629753.5039 | AL103: 631094.9287
B105: Tx de Captura | I105: =I103/I$41 -> 0.3628164285 | J105: =J103/J$41 -> 0.3628164285 | K105: 0.3628164285 | L105: 0.3628164285 | M105: 0.3628164285 | N105: 0.3628164285 | O105: 0.3628164285 | P105: 0.3628164285 | Q105: 0.3628164285 | R105: 0.3628164285 | S105: 0.3628164285 | T105: 0.3628164285 | U105: 0.3628164285 | V105: 0.3628164285 | W105: 0.3628164285 | X105: 0.3628164285 | Y105: 0.3628164285 | Z105: 0.3628164285 | AA105: 0.3628164285 | AB105: 0.3628164285 | AC105: 0.3628164285 | AD105: 0.3628164285 | AE105: 0.3628164285 | AF105: 0.3628164285 | AG105: 0.3628164285 | AH105: 0.3628164285 | AI105: 0.3628164285 | AJ105: 0.3628164285 | AK105: 0.3628164285 | AL105: 0.3628164285
F106: Ticket Médio
B107: Ticket Médio | F107: ='1.4_ReceitasEstimadas'!C16 -> 0 | I107: =$F$107 -> 0 | J107: 0 | K107: 0 | L107: 0 | M107: 0 | N107: 0 | O107: 0 | P107: 0 | Q107: 0 | R107: 0 | S107: 0 | T107: 0 | U107: 0 | V107: 0 | W107: 0 | X107: 0 | Y107: 0 | Z107: 0 | AA107: 0 | AB107: 0 | AC107: 0 | AD107: 0 | AE107: 0 | AF107: 0 | AG107: 0 | AH107: 0 | AI107: 0 | AJ107: 0 | AK107: 0 | AL107: 0
B109: Ticket Médio Por Visitante | I109: =I100/I$41 -> 0 | J109: =J100/J$41 -> 0 | K109: 0 | L109: 0 | M109: 0 | N109: 0 | O109: 0 | P109: 0 | Q109: 0 | R109: 0 | S109: 0 | T109: 0 | U109: 0 | V109: 0 | W109: 0 | X109: 0 | Y109: 0 | Z109: 0 | AA109: 0 | AB109: 0 | AC109: 0 | AD109: 0 | AE109: 0 | AF109: 0 | AG109: 0 | AH109: 0 | AI109: 0 | AJ109: 0 | AK109: 0 | AL109: 0
B111: Análise de Capacidade
F112: Qtde de cachoeiras p/ banho | H112: Média (Excluindo Ramp-Up)
B113: Nº de banhistas por hora | F113: 1 | H113: =AVERAGE(R113:AL113) -> 140.6799563 | I113: =I103/12/30/12/$F$113 -> 4.432861025 | J113: 8.029441605 | K113: 13.03370611 | L113: 23.08405195 | M113: 37.32435982 | N113: 54.70668515 | O113: 77.84537867 | P113: 97.6911989 | Q113: 109.9905802 | R113: 119.6895831 | S113: 126.6249424 | T113: 132.0508603 | U113: 135.897063 | V113: 139.5227403 | W113: 141.4977314 | X113: 141.7991328 | Y113: 142.1011761 | Z113: 142.4038629 | AA113: 142.7071944 | AB113: 143.011172 | AC113: 143.3157971 | AD113: 143.6210711 | AE113: 143.9269954 | AF113: 144.2335713 | AG113: 144.5408002 | AH113: 144.8486835 | AI113: 145.1572227 | AJ113: 145.4664191 | AK113: 145.7762741 | AL113: 146.0867891
F114: Obs: Cachoeira da Cascatinha
B118: ='1.3_DemandaAtrativosDesejo'!B14 -> Mirantes | I118: =I121*I125*'01. PAINEL DE CONTROLE'!$D$77*'01. PAINEL DE CONTROLE'!K67 -> 0 | J118: =J121*J125*'01. PAINEL DE CONTROLE'!$D$77*'01. PAINEL DE CONTROLE'!L67 -> 0 | K118: =K121*K125*'01. PAINEL DE CONTROLE'!$D$77*'01. PAINEL DE CONTROLE'!M67 -> 0 | L118: =L121*L125*'01. PAINEL DE CONTROLE'!$D$77*'01. PAINEL DE CONTROLE'!N67 -> 0 | M118: =M121*M125*'01. PAINEL DE CONTROLE'!$D$77*'01. PAINEL DE CONTROLE'!O67 -> 0 | N118: =N121*N125*'01. PAINEL DE CONTROLE'!$D$77*'01. PAINEL DE CONTROLE'!P67 -> 0 | O118: =O121*O125*'01. PAINEL DE CONTROLE'!$D$77*'01. PAINEL DE CONTROLE'!Q67 -> 0 | P118: =P121*P125*'01. PAINEL DE CONTROLE'!$D$77*'01. PAINEL DE CONTROLE'!R67 -> 0 | Q118: =Q121*Q125*'01. PAINEL DE CONTROLE'!$D$77*'01. PAINEL DE CONTROLE'!S67 -> 0 | R118: =R121*R125*'01. PAINEL DE CONTROLE'!$D$77*'01. PAINEL DE CONTROLE'!T67 -> 0 | S118: =S121*S125*'01. PAINEL DE CONTROLE'!$D$77*'01. PAINEL DE CONTROLE'!U67 -> 0 | T118: =T121*T125*'01. PAINEL DE CONTROLE'!$D$77*'01. PAINEL DE CONTROLE'!V67 -> 0 | U118: =U121*U125*'01. PAINEL DE CONTROLE'!$D$77*'01. PAINEL DE CONTROLE'!W67 -> 0 | V118: =V121*V125*'01. PAINEL DE CONTROLE'!$D$77*'01. PAINEL DE CONTROLE'!X67 -> 0 | W118: =W121*W125*'01. PAINEL DE CONTROLE'!$D$77*'01. PAINEL DE CONTROLE'!Y67 -> 0 | X118: =X121*X125*'01. PAINEL DE CONTROLE'!$D$77*'01. PAINEL DE CONTROLE'!Z67 -> 0 | Y118: =Y121*Y125*'01. PAINEL DE CONTROLE'!$D$77*'01. PAINEL DE CONTROLE'!AA67 -> 0 | Z118: =Z121*Z125*'01. PAINEL DE CONTROLE'!$D$77*'01. PAINEL DE CONTROLE'!AB67 -> 0 | AA118: =AA121*AA125*'01. PAINEL DE CONTROLE'!$D$77*'01. PAINEL DE CONTROLE'!AC67 -> 0 | AB118: =AB121*AB125*'01. PAINEL DE CONTROLE'!$D$77*'01. PAINEL DE CONTROLE'!AD67 -> 0 | AC118: =AC121*AC125*'01. PAINEL DE CONTROLE'!$D$77*'01. PAINEL DE CONTROLE'!AE67 -> 0 | AD118: =AD121*AD125*'01. PAINEL DE CONTROLE'!$D$77*'01. PAINEL DE CONTROLE'!AF67 -> 0 | AE118: =AE121*AE125*'01. PAINEL DE CONTROLE'!$D$77*'01. PAINEL DE CONTROLE'!AG67 -> 0 | AF118: =AF121*AF125*'01. PAINEL DE CONTROLE'!$D$77*'01. PAINEL DE CONTROLE'!AH67 -> 0 | AG118: =AG121*AG125*'01. PAINEL DE CONTROLE'!$D$77*'01. PAINEL DE CONTROLE'!AI67 -> 0 | AH118: =AH121*AH125*'01. PAINEL DE CONTROLE'!$D$77*'01. PAINEL DE CONTROLE'!AJ67 -> 0 | AI118: =AI121*AI125*'01. PAINEL DE CONTROLE'!$D$77*'01. PAINEL DE CONTROLE'!AK67 -> 0 | AJ118: =AJ121*AJ125*'01. PAINEL DE CONTROLE'!$D$77*'01. PAINEL DE CONTROLE'!AL67 -> 0 | AK118: =AK121*AK125*'01. PAINEL DE CONTROLE'!$D$77*'01. PAINEL DE CONTROLE'!AM67 -> 0 | AL118: =AL121*AL125*'01. PAINEL DE CONTROLE'!$D$77*'01. PAINEL DE CONTROLE'!AN67 -> 0
D120: Grau de Interesse | F120: Aceitação para Utilizar
B121: =B103 -> Volume de visitantes | D121: ='1.3_DemandaAtrativosDesejo'!C14 -> 0.5637390625 | F121: ='1.3_DemandaAtrativosDesejo'!D14 -> 0.4923796875 | I121: =$D121*$F121*I$41 -> 14650.72701 | J121: =$D121*$F121*J$41 -> 26537.52426 | K121: 43076.75541 | L121: 76293.42347 | M121: 123358.0307 | N121: 180807.0917 | O121: 257281.107 | P121: 322872.086 | Q121: 363521.8779 | R121: 395577.3479 | S121: 418498.9003 | T121: 436431.7072 | U121: 449143.5125 | V121: 461126.4753 | W121: 467653.8749 | X121: 468650.0146 | Y121: 469648.2763 | Z121: 470648.6643 | AA121: 471651.1832 | AB121: 472655.8375 | AC121: 473662.6319 | AD121: 474671.5708 | AE121: 475682.6588 | AF121: 476695.9005 | AG121: 477711.3005 | AH121: 478728.8634 | AI121: 479748.5937 | AJ121: 480770.4962 | AK121: 481794.5754 | AL121: 482820.836
B123: Tx de Captura | I123: =I121/I$41 -> 0.2775736634 | J123: =J121/J$41 -> 0.2775736634 | K123: 0.2775736634 | L123: 0.2775736634 | M123: 0.2775736634 | N123: 0.2775736634 | O123: 0.2775736634 | P123: 0.2775736634 | Q123: 0.2775736634 | R123: 0.2775736634 | S123: 0.2775736634 | T123: 0.2775736634 | U123: 0.2775736634 | V123: 0.2775736634 | W123: 0.2775736634 | X123: 0.2775736634 | Y123: 0.2775736634 | Z123: 0.2775736634 | AA123: 0.2775736634 | AB123: 0.2775736634 | AC123: 0.2775736634 | AD123: 0.2775736634 | AE123: 0.2775736634 | AF123: 0.2775736634 | AG123: 0.2775736634 | AH123: 0.2775736634 | AI123: 0.2775736634 | AJ123: 0.2775736634 | AK123: 0.2775736634 | AL123: 0.2775736634
F124: Ticket Médio
B125: Ticket Médio | F125: ='1.3_DemandaAtrativosDesejo'!E14 -> 0 | I125: =$F$125 -> 0 | J125: 0 | K125: 0 | L125: 0 | M125: 0 | N125: 0 | O125: 0 | P125: 0 | Q125: 0 | R125: 0 | S125: 0 | T125: 0 | U125: 0 | V125: 0 | W125: 0 | X125: 0 | Y125: 0 | Z125: 0 | AA125: 0 | AB125: 0 | AC125: 0 | AD125: 0 | AE125: 0 | AF125: 0 | AG125: 0 | AH125: 0 | AI125: 0 | AJ125: 0 | AK125: 0 | AL125: 0
B127: Ticket Médio Por Visitante | I127: =I118/I$41 -> 0 | J127: 0 | K127: 0 | L127: 0 | M127: 0 | N127: 0 | O127: 0 | P127: 0 | Q127: 0 | R127: 0 | S127: 0 | T127: 0 | U127: 0 | V127: 0 | W127: 0 | X127: 0 | Y127: 0 | Z127: 0 | AA127: 0 | AB127: 0 | AC127: 0 | AD127: 0 | AE127: 0 | AF127: 0 | AG127: 0 | AH127: 0 | AI127: 0 | AJ127: 0 | AK127: 0 | AL127: 0
B129: Análise de Capacidade
F130: Nº de mirantes | H130: Média (Excluindo Ramp-Up)
B131: Visitantes/Hora/Mirante | F131: 5 | H131: =AVERAGE(R131:AL131) -> 21.52551416 | I131: =I121/12/30/12/$F$131 -> 0.6782743986 | J131: 1.228589086 | K131: 1.994294232 | L131: 3.532102938 | M131: 5.711019941 | N131: 8.370698688 | O131: 11.91116236 | P131: 14.94778176 | Q131: 16.82971657 | R131: 18.31376611 | S131: 19.37494909 | T131: 20.20517163 | U131: 20.79368113 | V131: 21.34844793 | W131: 21.65064235 | X131: 21.69675994 | Y131: 21.74297575 | Z131: 21.78929001 | AA131: 21.83570292 | AB131: 21.8822147 | AC131: 21.92882555 | AD131: 21.97553568 | AE131: 22.02234531 | AF131: 22.06925465 | AG131: 22.11626391 | AH131: 22.1633733 | AI131: 22.21058304 | AJ131: 22.25789334 | AK131: 22.30530442 | AL131: 22.35281648
B133: ='1.3_DemandaAtrativosDesejo'!B15 -> Trilhas autoguiadas | I133: =I136*I140*'01. PAINEL DE CONTROLE'!$D$78*'01. PAINEL DE CONTROLE'!K68 -> 0 | J133: =J136*J140*'01. PAINEL DE CONTROLE'!$D$78*'01. PAINEL DE CONTROLE'!L68 -> 0 | K133: =K136*K140*'01. PAINEL DE CONTROLE'!$D$78*'01. PAINEL DE CONTROLE'!M68 -> 0 | L133: =L136*L140*'01. PAINEL DE CONTROLE'!$D$78*'01. PAINEL DE CONTROLE'!N68 -> 0 | M133: =M136*M140*'01. PAINEL DE CONTROLE'!$D$78*'01. PAINEL DE CONTROLE'!O68 -> 0 | N133: =N136*N140*'01. PAINEL DE CONTROLE'!$D$78*'01. PAINEL DE CONTROLE'!P68 -> 0 | O133: =O136*O140*'01. PAINEL DE CONTROLE'!$D$78*'01. PAINEL DE CONTROLE'!Q68 -> 0 | P133: =P136*P140*'01. PAINEL DE CONTROLE'!$D$78*'01. PAINEL DE CONTROLE'!R68 -> 0 | Q133: =Q136*Q140*'01. PAINEL DE CONTROLE'!$D$78*'01. PAINEL DE CONTROLE'!S68 -> 0 | R133: =R136*R140*'01. PAINEL DE CONTROLE'!$D$78*'01. PAINEL DE CONTROLE'!T68 -> 0 | S133: =S136*S140*'01. PAINEL DE CONTROLE'!$D$78*'01. PAINEL DE CONTROLE'!U68 -> 0 | T133: =T136*T140*'01. PAINEL DE CONTROLE'!$D$78*'01. PAINEL DE CONTROLE'!V68 -> 0 | U133: =U136*U140*'01. PAINEL DE CONTROLE'!$D$78*'01. PAINEL DE CONTROLE'!W68 -> 0 | V133: =V136*V140*'01. PAINEL DE CONTROLE'!$D$78*'01. PAINEL DE CONTROLE'!X68 -> 0 | W133: =W136*W140*'01. PAINEL DE CONTROLE'!$D$78*'01. PAINEL DE CONTROLE'!Y68 -> 0 | X133: =X136*X140*'01. PAINEL DE CONTROLE'!$D$78*'01. PAINEL DE CONTROLE'!Z68 -> 0 | Y133: =Y136*Y140*'01. PAINEL DE CONTROLE'!$D$78*'01. PAINEL DE CONTROLE'!AA68 -> 0 | Z133: =Z136*Z140*'01. PAINEL DE CONTROLE'!$D$78*'01. PAINEL DE CONTROLE'!AB68 -> 0 | AA133: =AA136*AA140*'01. PAINEL DE CONTROLE'!$D$78*'01. PAINEL DE CONTROLE'!AC68 -> 0 | AB133: =AB136*AB140*'01. PAINEL DE CONTROLE'!$D$78*'01. PAINEL DE CONTROLE'!AD68 -> 0 | AC133: =AC136*AC140*'01. PAINEL DE CONTROLE'!$D$78*'01. PAINEL DE CONTROLE'!AE68 -> 0 | AD133: =AD136*AD140*'01. PAINEL DE CONTROLE'!$D$78*'01. PAINEL DE CONTROLE'!AF68 -> 0 | AE133: =AE136*AE140*'01. PAINEL DE CONTROLE'!$D$78*'01. PAINEL DE CONTROLE'!AG68 -> 0 | AF133: =AF136*AF140*'01. PAINEL DE CONTROLE'!$D$78*'01. PAINEL DE CONTROLE'!AH68 -> 0 | AG133: =AG136*AG140*'01. PAINEL DE CONTROLE'!$D$78*'01. PAINEL DE CONTROLE'!AI68 -> 0 | AH133: =AH136*AH140*'01. PAINEL DE CONTROLE'!$D$78*'01. PAINEL DE CONTROLE'!AJ68 -> 0 | AI133: =AI136*AI140*'01. PAINEL DE CONTROLE'!$D$78*'01. PAINEL DE CONTROLE'!AK68 -> 0 | AJ133: =AJ136*AJ140*'01. PAINEL DE CONTROLE'!$D$78*'01. PAINEL DE CONTROLE'!AL68 -> 0 | AK133: =AK136*AK140*'01. PAINEL DE CONTROLE'!$D$78*'01. PAINEL DE CONTROLE'!AM68 -> 0 | AL133: =AL136*AL140*'01. PAINEL DE CONTROLE'!$D$78*'01. PAINEL DE CONTROLE'!AN68 -> 0
D135: Grau de Interesse | F135: Aceitação para Utilizar
B136: =B121 -> Volume de visitantes | D136: ='1.3_DemandaAtrativosDesejo'!C15 -> 0.48524375 | F136: ='1.3_DemandaAtrativosDesejo'!D15 -> 0.528059375 | I136: =$D136*$F136*I$41 -> 13524.575 | J136: =$D136*$F136*J$41 -> 24497.6742 | K136: 39765.59039 | L136: 70429.00512 | M136: 113875.9146 | N136: 166909.0598 | O136: 237504.7754 | P136: 298053.9969 | Q136: 335579.1762 | R136: 365170.6503 | S136: 386330.3001 | T136: 402884.6726 | U136: 414619.3643 | V136: 425681.2371 | W136: 431706.8975 | X136: 432626.4674 | Y136: 433547.996 | Z136: 434471.4875 | AA136: 435396.9462 | AB136: 436324.3761 | AC136: 437253.7816 | AD136: 438185.1668 | AE136: 439118.5359 | AF136: 440053.8931 | AG136: 440991.2427 | AH136: 441930.589 | AI136: 442871.9361 | AJ136: 443815.2884 | AK136: 444760.6501 | AL136: 445708.0255
B138: Tx de Captura | I138: =I136/I$41 -> 0.2562375113 | J138: =J136/J$41 -> 0.2562375113 | K138: 0.2562375113 | L138: 0.2562375113 | M138: 0.2562375113 | N138: 0.2562375113 | O138: 0.2562375113 | P138: 0.2562375113 | Q138: 0.2562375113 | R138: 0.2562375113 | S138: 0.2562375113 | T138: 0.2562375113 | U138: 0.2562375113 | V138: 0.2562375113 | W138: 0.2562375113 | X138: 0.2562375113 | Y138: 0.2562375113 | Z138: 0.2562375113 | AA138: 0.2562375113 | AB138: 0.2562375113 | AC138: 0.2562375113 | AD138: 0.2562375113 | AE138: 0.2562375113 | AF138: 0.2562375113 | AG138: 0.2562375113 | AH138: 0.2562375113 | AI138: 0.2562375113 | AJ138: 0.2562375113 | AK138: 0.2562375113 | AL138: 0.2562375113
F139: Ticket Médio
B140: Ticket Médio | F140: ='1.3_DemandaAtrativosDesejo'!E15 -> 0 | I140: =$F$140 -> 0 | J140: =$F$140 -> 0 | K140: 0 | L140: 0 | M140: 0 | N140: 0 | O140: 0 | P140: 0 | Q140: 0 | R140: 0 | S140: 0 | T140: 0 | U140: 0 | V140: 0 | W140: 0 | X140: 0 | Y140: 0 | Z140: 0 | AA140: 0 | AB140: 0 | AC140: 0 | AD140: 0 | AE140: 0 | AF140: 0 | AG140: 0 | AH140: 0 | AI140: 0 | AJ140: 0 | AK140: 0 | AL140: 0
B142: Ticket Médio Por Visitante | I142: =I133/I$41 -> 0 | J142: 0 | K142: 0 | L142: 0 | M142: 0 | N142: 0 | O142: 0 | P142: 0 | Q142: 0 | R142: 0 | S142: 0 | T142: 0 | U142: 0 | V142: 0 | W142: 0 | X142: 0 | Y142: 0 | Z142: 0 | AA142: 0 | AB142: 0 | AC142: 0 | AD142: 0 | AE142: 0 | AF142: 0 | AG142: 0 | AH142: 0 | AI142: 0 | AJ142: 0 | AK142: 0 | AL142: 0
B144: ='1.3_DemandaAtrativosDesejo'!B16 -> Trilhas guiadas | I144: =I147*I151*'01. PAINEL DE CONTROLE'!$D$79*'01. PAINEL DE CONTROLE'!K69 -> 290046.7169 | J144: =J147*J151*'01. PAINEL DE CONTROLE'!$D$79*'01. PAINEL DE CONTROLE'!L69 -> 525374.7326 | K144: =K147*K151*'01. PAINEL DE CONTROLE'!$D$79*'01. PAINEL DE CONTROLE'!M69 -> 852808.9747 | L144: =L147*L151*'01. PAINEL DE CONTROLE'!$D$79*'01. PAINEL DE CONTROLE'!N69 -> 1510413.578 | M144: =M147*M151*'01. PAINEL DE CONTROLE'!$D$79*'01. PAINEL DE CONTROLE'!O69 -> 2442171.763 | N144: =N147*N151*'01. PAINEL DE CONTROLE'!$D$79*'01. PAINEL DE CONTROLE'!P69 -> 3579515.426 | O144: =O147*O151*'01. PAINEL DE CONTROLE'!$D$79*'01. PAINEL DE CONTROLE'!Q69 -> 5093504.258 | P144: =P147*P151*'01. PAINEL DE CONTROLE'!$D$79*'01. PAINEL DE CONTROLE'!R69 -> 6392036.959 | Q144: =Q147*Q151*'01. PAINEL DE CONTROLE'!$D$79*'01. PAINEL DE CONTROLE'!S69 -> 7196798.297 | R144: =R147*R151*'01. PAINEL DE CONTROLE'!$D$79*'01. PAINEL DE CONTROLE'!T69 -> 7831414.165 | S144: =S147*S151*'01. PAINEL DE CONTROLE'!$D$79*'01. PAINEL DE CONTROLE'!U69 -> 8285201.954 | T144: =T147*T151*'01. PAINEL DE CONTROLE'!$D$79*'01. PAINEL DE CONTROLE'!V69 -> 8640225.412 | U144: =U147*U151*'01. PAINEL DE CONTROLE'!$D$79*'01. PAINEL DE CONTROLE'!W69 -> 8891886.466 | V144: =V147*V151*'01. PAINEL DE CONTROLE'!$D$79*'01. PAINEL DE CONTROLE'!X69 -> 9129118.312 | W144: =W147*W151*'01. PAINEL DE CONTROLE'!$D$79*'01. PAINEL DE CONTROLE'!Y69 -> 9258344.037 | X144: =X147*X151*'01. PAINEL DE CONTROLE'!$D$79*'01. PAINEL DE CONTROLE'!Z69 -> 9278065.042 | Y144: =Y147*Y151*'01. PAINEL DE CONTROLE'!$D$79*'01. PAINEL DE CONTROLE'!AA69 -> 9297828.055 | Z144: =Z147*Z151*'01. PAINEL DE CONTROLE'!$D$79*'01. PAINEL DE CONTROLE'!AB69 -> 9317633.165 | AA144: =AA147*AA151*'01. PAINEL DE CONTROLE'!$D$79*'01. PAINEL DE CONTROLE'!AC69 -> 9337480.461 | AB144: =AB147*AB151*'01. PAINEL DE CONTROLE'!$D$79*'01. PAINEL DE CONTROLE'!AD69 -> 9357370.034 | AC144: =AC147*AC151*'01. PAINEL DE CONTROLE'!$D$79*'01. PAINEL DE CONTROLE'!AE69 -> 9377301.972 | AD144: =AD147*AD151*'01. PAINEL DE CONTROLE'!$D$79*'01. PAINEL DE CONTROLE'!AF69 -> 9397276.368 | AE144: =AE147*AE151*'01. PAINEL DE CONTROLE'!$D$79*'01. PAINEL DE CONTROLE'!AG69 -> 9417293.31 | AF144: =AF147*AF151*'01. PAINEL DE CONTROLE'!$D$79*'01. PAINEL DE CONTROLE'!AH69 -> 9437352.89 | AG144: =AG147*AG151*'01. PAINEL DE CONTROLE'!$D$79*'01. PAINEL DE CONTROLE'!AI69 -> 9457455.199 | AH144: =AH147*AH151*'01. PAINEL DE CONTROLE'!$D$79*'01. PAINEL DE CONTROLE'!AJ69 -> 9477600.327 | AI144: =AI147*AI151*'01. PAINEL DE CONTROLE'!$D$79*'01. PAINEL DE CONTROLE'!AK69 -> 9497788.366 | AJ144: =AJ147*AJ151*'01. PAINEL DE CONTROLE'!$D$79*'01. PAINEL DE CONTROLE'!AL69 -> 9518019.407 | AK144: =AK147*AK151*'01. PAINEL DE CONTROLE'!$D$79*'01. PAINEL DE CONTROLE'!AM69 -> 9538293.542 | AL144: =AL147*AL151*'01. PAINEL DE CONTROLE'!$D$79*'01. PAINEL DE CONTROLE'!AN69 -> 9558610.862
D146: Grau de Interesse | F146: Aceita Pagar | H146: Aceita o Ticket
B147: =B136 -> Volume de visitantes | D147: ='1.3_DemandaAtrativosDesejo'!C16 -> 0.5066515625 | F147: ='1.3_DemandaAtrativosDesejo'!D16 -> 0.6065546875 | H147: ='1.3_DemandaAtrativosDesejo'!F16 -> 0.3868517647 | I147: =$D$147*$F$147*$H$147*I41 -> 6274.871707 | J147: 11365.95884 | K147: 18449.6724 | L147: 32676.29272 | M147: 52833.95263 | N147: 77439.24947 | O147: 110192.8893 | P147: 138285.3504 | Q147: 155695.56 | R147: 169424.8419 | S147: 179242.0886 | T147: 186922.6674 | U147: 192367.1035 | V147: 197499.3781 | W147: 200295.0479 | X147: 200721.6922 | Y147: 201149.2453 | Z147: 201577.7091 | AA147: 202007.0856 | AB147: 202437.3766 | AC147: 202868.5843 | AD147: 203300.7104 | AE147: 203733.757 | AF147: 204167.7261 | AG147: 204602.6195 | AH147: 205038.4392 | AI147: 205475.1874 | AJ147: 205912.8658 | AK147: 206351.4765 | AL147: 206791.0214
B149: Tx de Captura | I149: =I147/I$41 -> 0.1188841432 | J149: =J147/J$41 -> 0.1188841432 | K149: 0.1188841432 | L149: 0.1188841432 | M149: 0.1188841432 | N149: 0.1188841432 | O149: 0.1188841432 | P149: 0.1188841432 | Q149: 0.1188841432 | R149: 0.1188841432 | S149: 0.1188841432 | T149: 0.1188841432 | U149: 0.1188841432 | V149: 0.1188841432 | W149: 0.1188841432 | X149: 0.1188841432 | Y149: 0.1188841432 | Z149: 0.1188841432 | AA149: 0.1188841432 | AB149: 0.1188841432 | AC149: 0.1188841432 | AD149: 0.1188841432 | AE149: 0.1188841432 | AF149: 0.1188841432 | AG149: 0.1188841432 | AH149: 0.1188841432 | AI149: 0.1188841432 | AJ149: 0.1188841432 | AK149: 0.1188841432 | AL149: 0.1188841432
F150: Ticket Médio
B151: Ticket Médio | F151: ='1.4_ReceitasEstimadas'!C19 -> 46.22352941 | I151: =$F$151 -> 46.22352941 | J151: 46.22352941 | K151: 46.22352941 | L151: 46.22352941 | M151: 46.22352941 | N151: 46.22352941 | O151: 46.22352941 | P151: 46.22352941 | Q151: 46.22352941 | R151: 46.22352941 | S151: 46.22352941 | T151: 46.22352941 | U151: 46.22352941 | V151: 46.22352941 | W151: 46.22352941 | X151: 46.22352941 | Y151: 46.22352941 | Z151: 46.22352941 | AA151: 46.22352941 | AB151: 46.22352941 | AC151: 46.22352941 | AD151: 46.22352941 | AE151: 46.22352941 | AF151: 46.22352941 | AG151: 46.22352941 | AH151: 46.22352941 | AI151: 46.22352941 | AJ151: 46.22352941 | AK151: 46.22352941 | AL151: 46.22352941
B153: Ticket Médio Por Visitante | I153: =I144/I$41 -> 5.495244688 | J153: 5.495244688 | K153: 5.495244688 | L153: 5.495244688 | M153: 5.495244688 | N153: 5.495244688 | O153: 5.495244688 | P153: 5.495244688 | Q153: 5.495244688 | R153: 5.495244688 | S153: 5.495244688 | T153: 5.495244688 | U153: 5.495244688 | V153: 5.495244688 | W153: 5.495244688 | X153: 5.495244688 | Y153: 5.495244688 | Z153: 5.495244688 | AA153: 5.495244688 | AB153: 5.495244688 | AC153: 5.495244688 | AD153: 5.495244688 | AE153: 5.495244688 | AF153: 5.495244688 | AG153: 5.495244688 | AH153: 5.495244688 | AI153: 5.495244688 | AJ153: 5.495244688 | AK153: 5.495244688 | AL153: 5.495244688
B155: Análise de Capacidade
H156: Média (Excluindo Ramp-Up)
B157: Pessoas por hora | H157: =AVERAGE(R157:AL157) -> 46.09663386 | I157: =I147/12/30/12 -> 1.452516599 | J157: =J147/12/30/12 -> 2.63100899 | K157: 4.2707575 | L157: 7.563956648 | M157: 12.23008163 | N157: 17.92575219 | O157: 25.50761326 | P157: 32.01049777 | Q157: 36.04063889 | R157: 39.21871341 | S157: 41.49122421 | T157: 43.26913596 | U157: 44.5294221 | V157: 45.71744863 | W157: 46.36459442 | X157: 46.46335467 | Y157: 46.5623253 | Z157: 46.66150673 | AA157: 46.76089944 | AB157: 46.86050385 | AC157: 46.96032044 | AD157: 47.06034964 | AE157: 47.16059191 | AF157: 47.2610477 | AG157: 47.36171747 | AH157: 47.46260168 | AI157: 47.56370078 | AJ157: 47.66501522 | AK157: 47.76654548 | AL157: 47.868292
D159: Nº de Monitores | F159: Pessoa/Grupo | H159: Média (Excluindo Ramp-Up)
B160: Nº de Grupos | D160: 14 | F160: 15 | H160: =AVERAGE(R160:AL160) -> 3.073108924 | I160: =I157/$F$160 -> 0.09683443992 | J160: =J157/$F$160 -> 0.1754005994 | K160: 0.2847171666 | L160: 0.5042637766 | M160: 0.8153387751 | N160: 1.195050146 | O160: 1.70050755 | P160: 2.134033185 | Q160: 2.402709259 | R160: 2.614580894 | S160: 2.766081614 | T160: 2.884609064 | U160: 2.96862814 | V160: 3.047829909 | W160: 3.090972961 | X160: 3.097556978 | Y160: 3.10415502 | Z160: 3.110767116 | AA160: 3.117393296 | AB160: 3.12403359 | AC160: 3.130688029 | AD160: 3.137356642 | AE160: 3.14403946 | AF160: 3.150736513 | AG160: 3.157447831 | AH160: 3.164173445 | AI160: 3.170913385 | AJ160: 3.177667682 | AK160: 3.184436365 | AL160: 3.191219467
H162: Média (Excluindo Ramp-Up)
B163: Trilhas Identificadas com potencialidade de exploração | F163: 12 | H163: =AVERAGE(R163:AL163) -> 3.841386155 | I163: =I157/$F$163 -> 0.1210430499 | J163: =J157/$F$163 -> 0.2192507492 | K163: 0.3558964583 | L163: 0.6303297207 | M163: 1.019173469 | N163: 1.493812683 | O163: 2.125634438 | P163: 2.667541481 | Q163: 3.003386574 | R163: 3.268226118 | S163: 3.457602017 | T163: 3.60576133 | U163: 3.710785175 | V163: 3.809787386 | W163: 3.863716201 | X163: 3.871946223 | Y163: 3.880193775 | Z163: 3.888458895 | AA163: 3.89674162 | AB163: 3.905041988 | AC163: 3.913360036 | AD163: 3.921695803 | AE163: 3.930049325 | AF163: 3.938420642 | AG163: 3.946809789 | AH163: 3.955216807 | AI163: 3.963641731 | AJ163: 3.972084602 | AK163: 3.980545457 | AL163: 3.989024333
B165: Check | I165: =IF(I144='1.4_ReceitasEstimadas'!D19*1000,"ok","error") -> ok | J165: =IF(J144='1.4_ReceitasEstimadas'!E19*1000,"ok","error") -> ok | K165: =IF(K144='1.4_ReceitasEstimadas'!F19*1000,"ok","error") -> ok | L165: =IF(L144='1.4_ReceitasEstimadas'!G19*1000,"ok","error") -> ok | M165: =IF(M144='1.4_ReceitasEstimadas'!H19*1000,"ok","error") -> ok | N165: =IF(N144='1.4_ReceitasEstimadas'!I19*1000,"ok","error") -> ok | O165: =IF(O144='1.4_ReceitasEstimadas'!J19*1000,"ok","error") -> ok | P165: =IF(P144='1.4_ReceitasEstimadas'!K19*1000,"ok","error") -> ok | Q165: =IF(Q144='1.4_ReceitasEstimadas'!L19*1000,"ok","error") -> ok | R165: =IF(R144='1.4_ReceitasEstimadas'!M19*1000,"ok","error") -> ok | S165: =IF(S144='1.4_ReceitasEstimadas'!N19*1000,"ok","error") -> ok | T165: =IF(T144='1.4_ReceitasEstimadas'!O19*1000,"ok","error") -> ok | U165: =IF(U144='1.4_ReceitasEstimadas'!P19*1000,"ok","error") -> ok | V165: =IF(V144='1.4_ReceitasEstimadas'!Q19*1000,"ok","error") -> ok | W165: =IF(W144='1.4_ReceitasEstimadas'!R19*1000,"ok","error") -> ok | X165: =IF(X144='1.4_ReceitasEstimadas'!S19*1000,"ok","error") -> ok | Y165: =IF(Y144='1.4_ReceitasEstimadas'!T19*1000,"ok","error") -> ok | Z165: =IF(Z144='1.4_ReceitasEstimadas'!U19*1000,"ok","error") -> ok | AA165: =IF(AA144='1.4_ReceitasEstimadas'!V19*1000,"ok","error") -> ok | AB165: =IF(AB144='1.4_ReceitasEstimadas'!W19*1000,"ok","error") -> ok | AC165: =IF(AC144='1.4_ReceitasEstimadas'!X19*1000,"ok","error") -> ok | AD165: =IF(AD144='1.4_ReceitasEstimadas'!Y19*1000,"ok","error") -> ok | AE165: =IF(AE144='1.4_ReceitasEstimadas'!Z19*1000,"ok","error") -> ok | AF165: =IF(AF144='1.4_ReceitasEstimadas'!AA19*1000,"ok","error") -> ok | AG165: =IF(AG144='1.4_ReceitasEstimadas'!AB19*1000,"ok","error") -> ok | AH165: =IF(AH144='1.4_ReceitasEstimadas'!AC19*1000,"ok","error") -> ok | AI165: =IF(AI144='1.4_ReceitasEstimadas'!AD19*1000,"ok","error") -> ok | AJ165: =IF(AJ144='1.4_ReceitasEstimadas'!AE19*1000,"ok","error") -> ok | AK165: =IF(AK144='1.4_ReceitasEstimadas'!AF19*1000,"ok","error") -> ok | AL165: =IF(AL144='1.4_ReceitasEstimadas'!AG19*1000,"ok","error") -> ok
B168: ='1.3_DemandaAtrativosDesejo'!B17 -> Atividades de educação ambiental | I168: =I171*I177*'01. PAINEL DE CONTROLE'!$D$80*'01. PAINEL DE CONTROLE'!K70 -> 0 | J168: =J171*J177*'01. PAINEL DE CONTROLE'!$D$80*'01. PAINEL DE CONTROLE'!L70 -> 0 | K168: =K171*K177*'01. PAINEL DE CONTROLE'!$D$80*'01. PAINEL DE CONTROLE'!M70 -> 0 | L168: =L171*L177*'01. PAINEL DE CONTROLE'!$D$80*'01. PAINEL DE CONTROLE'!N70 -> 0 | M168: =M171*M177*'01. PAINEL DE CONTROLE'!$D$80*'01. PAINEL DE CONTROLE'!O70 -> 0 | N168: =N171*N177*'01. PAINEL DE CONTROLE'!$D$80*'01. PAINEL DE CONTROLE'!P70 -> 0 | O168: =O171*O177*'01. PAINEL DE CONTROLE'!$D$80*'01. PAINEL DE CONTROLE'!Q70 -> 0 | P168: =P171*P177*'01. PAINEL DE CONTROLE'!$D$80*'01. PAINEL DE CONTROLE'!R70 -> 0 | Q168: =Q171*Q177*'01. PAINEL DE CONTROLE'!$D$80*'01. PAINEL DE CONTROLE'!S70 -> 0 | R168: =R171*R177*'01. PAINEL DE CONTROLE'!$D$80*'01. PAINEL DE CONTROLE'!T70 -> 0 | S168: =S171*S177*'01. PAINEL DE CONTROLE'!$D$80*'01. PAINEL DE CONTROLE'!U70 -> 0 | T168: =T171*T177*'01. PAINEL DE CONTROLE'!$D$80*'01. PAINEL DE CONTROLE'!V70 -> 0 | U168: =U171*U177*'01. PAINEL DE CONTROLE'!$D$80*'01. PAINEL DE CONTROLE'!W70 -> 0 | V168: =V171*V177*'01. PAINEL DE CONTROLE'!$D$80*'01. PAINEL DE CONTROLE'!X70 -> 0 | W168: =W171*W177*'01. PAINEL DE CONTROLE'!$D$80*'01. PAINEL DE CONTROLE'!Y70 -> 0 | X168: =X171*X177*'01. PAINEL DE CONTROLE'!$D$80*'01. PAINEL DE CONTROLE'!Z70 -> 0 | Y168: =Y171*Y177*'01. PAINEL DE CONTROLE'!$D$80*'01. PAINEL DE CONTROLE'!AA70 -> 0 | Z168: =Z171*Z177*'01. PAINEL DE CONTROLE'!$D$80*'01. PAINEL DE CONTROLE'!AB70 -> 0 | AA168: =AA171*AA177*'01. PAINEL DE CONTROLE'!$D$80*'01. PAINEL DE CONTROLE'!AC70 -> 0 | AB168: =AB171*AB177*'01. PAINEL DE CONTROLE'!$D$80*'01. PAINEL DE CONTROLE'!AD70 -> 0 | AC168: =AC171*AC177*'01. PAINEL DE CONTROLE'!$D$80*'01. PAINEL DE CONTROLE'!AE70 -> 0 | AD168: =AD171*AD177*'01. PAINEL DE CONTROLE'!$D$80*'01. PAINEL DE CONTROLE'!AF70 -> 0 | AE168: =AE171*AE177*'01. PAINEL DE CONTROLE'!$D$80*'01. PAINEL DE CONTROLE'!AG70 -> 0 | AF168: =AF171*AF177*'01. PAINEL DE CONTROLE'!$D$80*'01. PAINEL DE CONTROLE'!AH70 -> 0 | AG168: =AG171*AG177*'01. PAINEL DE CONTROLE'!$D$80*'01. PAINEL DE CONTROLE'!AI70 -> 0 | AH168: =AH171*AH177*'01. PAINEL DE CONTROLE'!$D$80*'01. PAINEL DE CONTROLE'!AJ70 -> 0 | AI168: =AI171*AI177*'01. PAINEL DE CONTROLE'!$D$80*'01. PAINEL DE CONTROLE'!AK70 -> 0 | AJ168: =AJ171*AJ177*'01. PAINEL DE CONTROLE'!$D$80*'01. PAINEL DE CONTROLE'!AL70 -> 0 | AK168: =AK171*AK177*'01. PAINEL DE CONTROLE'!$D$80*'01. PAINEL DE CONTROLE'!AM70 -> 0 | AL168: =AL171*AL177*'01. PAINEL DE CONTROLE'!$D$80*'01. PAINEL DE CONTROLE'!AN70 -> 0
D170: Grau de Interesse | F170: Aceita Pagar | H170: Aceita o Ticket
B171: =B147 -> Volume de visitantes | D171: ='1.3_DemandaAtrativosDesejo'!C17 -> 0.442428125 | F171: ='1.3_DemandaAtrativosDesejo'!D17 -> 0.470971875 | H171: ='1.3_DemandaAtrativosDesejo'!F17 -> 0.2767878788 | I171: =$D$171*$F$171*$H$171*I41 -> 3044.147463 | J171: 5514.00194 | K171: 8950.545295 | L171: 15852.34858 | M171: 25631.49502 | N171: 37568.33699 | O171: 53458.20919 | P171: 67086.78969 | Q171: 75533.05728 | R171: 82193.5853 | S171: 86956.25581 | T171: 90682.35818 | U171: 93323.63393 | V171: 95813.46981 | W171: 97169.74154 | X171: 97376.72078 | Y171: 97584.1409 | Z171: 97792.00285 | AA171: 98000.30755 | AB171: 98209.05596 | AC171: 98418.24903 | AD171: 98627.88769 | AE171: 98837.97289 | AF171: 99048.5056 | AG171: 99259.48676 | AH171: 99470.91732 | AI171: 99682.79825 | AJ171: 99895.1305 | AK171: 100107.915 | AL171: 100321.1528
B172: Mês | I172: =I171/12 -> 253.6789553 | J172: =J171/12 -> 459.5001617 | K172: 745.8787746 | L172: 1321.029048 | M172: 2135.957918 | N172: 3130.694749 | O172: 4454.850766 | P172: 5590.565807 | Q172: 6294.42144 | R172: 6849.465441 | S172: 7246.354651 | T172: 7556.863182 | U172: 7776.969494 | V172: 7984.455817 | W172: 8097.478462 | X172: 8114.726732 | Y172: 8132.011742 | Z172: 8149.333571 | AA172: 8166.692296 | AB172: 8184.087997 | AC172: 8201.520752 | AD172: 8218.990641 | AE172: 8236.497741 | AF172: 8254.042133 | AG172: 8271.623896 | AH172: 8289.24311 | AI172: 8306.899854 | AJ172: 8324.594208 | AK172: 8342.326253 | AL172: 8360.096068
B173: Dia | I173: =I172/30 -> 8.455965176 | J173: =J172/30 -> 15.31667206 | K173: 24.86262582 | L173: 44.03430162 | M173: 71.19859727 | N173: 104.3564916 | O173: 148.4950255 | P173: 186.3521936 | Q173: 209.814048 | R173: 228.3155147 | S173: 241.545155 | T173: 251.8954394 | U173: 259.2323165 | V173: 266.1485272 | W173: 269.9159487 | X173: 270.4908911 | Y173: 271.0670581 | Z173: 271.6444524 | AA173: 272.2230765 | AB173: 272.8029332 | AC173: 273.3840251 | AD173: 273.9663547 | AE173: 274.5499247 | AF173: 275.1347378 | AG173: 275.7207965 | AH173: 276.3081037 | AI173: 276.8966618 | AJ173: 277.4864736 | AK173: 278.0775418 | AL173: 278.6698689
B175: Tx de Captura | I175: =I171/I$41 -> 0.05767462344 | J175: =J171/J$41 -> 0.05767462344 | K175: 0.05767462344 | L175: 0.05767462344 | M175: 0.05767462344 | N175: 0.05767462344 | O175: 0.05767462344 | P175: 0.05767462344 | Q175: 0.05767462344 | R175: 0.05767462344 | S175: 0.05767462344 | T175: 0.05767462344 | U175: 0.05767462344 | V175: 0.05767462344 | W175: 0.05767462344 | X175: 0.05767462344 | Y175: 0.05767462344 | Z175: 0.05767462344 | AA175: 0.05767462344 | AB175: 0.05767462344 | AC175: 0.05767462344 | AD175: 0.05767462344 | AE175: 0.05767462344 | AF175: 0.05767462344 | AG175: 0.05767462344 | AH175: 0.05767462344 | AI175: 0.05767462344 | AJ175: 0.05767462344 | AK175: 0.05767462344 | AL175: 0.05767462344
F176: Ticket Médio
B177: Ticket Médio | F177: ='1.4_ReceitasEstimadas'!C20 -> 50.96969697 | I177: =$F$177 -> 50.96969697 | J177: 50.96969697 | K177: 50.96969697 | L177: 50.96969697 | M177: 50.96969697 | N177: 50.96969697 | O177: 50.96969697 | P177: 50.96969697 | Q177: 50.96969697 | R177: 50.96969697 | S177: 50.96969697 | T177: 50.96969697 | U177: 50.96969697 | V177: 50.96969697 | W177: 50.96969697 | X177: 50.96969697 | Y177: 50.96969697 | Z177: 50.96969697 | AA177: 50.96969697 | AB177: 50.96969697 | AC177: 50.96969697 | AD177: 50.96969697 | AE177: 50.96969697 | AF177: 50.96969697 | AG177: 50.96969697 | AH177: 50.96969697 | AI177: 50.96969697 | AJ177: 50.96969697 | AK177: 50.96969697 | AL177: 50.96969697
B179: Ticket Médio Por Visitante
B181: Análise de Capacidade
F182: Funcionamento do parque - hora | H182: Média (Excluindo Ramp-Up)
B183: Volume de visitantes por hora | F183: 12 | H183: =AVERAGE(R183:AL183) -> 22.36299921 | I183: =I171/12/30/$F$183 -> 0.7046637646 | J183: 1.276389338 | K183: 2.071885485 | L183: 3.669525135 | M183: 5.933216439 | N183: 8.696374303 | O183: 12.37458546 | P183: 15.52934946 | Q183: 17.484504 | R183: 19.02629289 | S183: 20.12876292 | T183: 20.99128662 | U183: 21.60269304 | V183: 22.17904394 | W183: 22.49299573 | X183: 22.54090759 | Y183: 22.58892151 | Z183: 22.6370377 | AA183: 22.68525638 | AB183: 22.73357777 | AC183: 22.78200209 | AD183: 22.83052956 | AE183: 22.87916039 | AF183: 22.92789481 | AG183: 22.97673305 | AH183: 23.02567531 | AI183: 23.07472182 | AJ183: 23.1238728 | AK183: 23.17312848 | AL183: 23.22248908
B188: ='1.3_DemandaAtrativosDesejo'!B18 -> Avistamento de aves | I188: =I191*I195*'01. PAINEL DE CONTROLE'!$D$81*'01. PAINEL DE CONTROLE'!K71 -> 0 | J188: =J191*J195*'01. PAINEL DE CONTROLE'!$D$81*'01. PAINEL DE CONTROLE'!L71 -> 0 | K188: =K191*K195*'01. PAINEL DE CONTROLE'!$D$81*'01. PAINEL DE CONTROLE'!M71 -> 0 | L188: =L191*L195*'01. PAINEL DE CONTROLE'!$D$81*'01. PAINEL DE CONTROLE'!N71 -> 0 | M188: =M191*M195*'01. PAINEL DE CONTROLE'!$D$81*'01. PAINEL DE CONTROLE'!O71 -> 0 | N188: =N191*N195*'01. PAINEL DE CONTROLE'!$D$81*'01. PAINEL DE CONTROLE'!P71 -> 0 | O188: =O191*O195*'01. PAINEL DE CONTROLE'!$D$81*'01. PAINEL DE CONTROLE'!Q71 -> 0 | P188: =P191*P195*'01. PAINEL DE CONTROLE'!$D$81*'01. PAINEL DE CONTROLE'!R71 -> 0 | Q188: =Q191*Q195*'01. PAINEL DE CONTROLE'!$D$81*'01. PAINEL DE CONTROLE'!S71 -> 0 | R188: =R191*R195*'01. PAINEL DE CONTROLE'!$D$81*'01. PAINEL DE CONTROLE'!T71 -> 0 | S188: =S191*S195*'01. PAINEL DE CONTROLE'!$D$81*'01. PAINEL DE CONTROLE'!U71 -> 0 | T188: =T191*T195*'01. PAINEL DE CONTROLE'!$D$81*'01. PAINEL DE CONTROLE'!V71 -> 0 | U188: =U191*U195*'01. PAINEL DE CONTROLE'!$D$81*'01. PAINEL DE CONTROLE'!W71 -> 0 | V188: =V191*V195*'01. PAINEL DE CONTROLE'!$D$81*'01. PAINEL DE CONTROLE'!X71 -> 0 | W188: =W191*W195*'01. PAINEL DE CONTROLE'!$D$81*'01. PAINEL DE CONTROLE'!Y71 -> 0 | X188: =X191*X195*'01. PAINEL DE CONTROLE'!$D$81*'01. PAINEL DE CONTROLE'!Z71 -> 0 | Y188: =Y191*Y195*'01. PAINEL DE CONTROLE'!$D$81*'01. PAINEL DE CONTROLE'!AA71 -> 0 | Z188: =Z191*Z195*'01. PAINEL DE CONTROLE'!$D$81*'01. PAINEL DE CONTROLE'!AB71 -> 0 | AA188: =AA191*AA195*'01. PAINEL DE CONTROLE'!$D$81*'01. PAINEL DE CONTROLE'!AC71 -> 0 | AB188: =AB191*AB195*'01. PAINEL DE CONTROLE'!$D$81*'01. PAINEL DE CONTROLE'!AD71 -> 0 | AC188: =AC191*AC195*'01. PAINEL DE CONTROLE'!$D$81*'01. PAINEL DE CONTROLE'!AE71 -> 0 | AD188: =AD191*AD195*'01. PAINEL DE CONTROLE'!$D$81*'01. PAINEL DE CONTROLE'!AF71 -> 0 | AE188: =AE191*AE195*'01. PAINEL DE CONTROLE'!$D$81*'01. PAINEL DE CONTROLE'!AG71 -> 0 | AF188: =AF191*AF195*'01. PAINEL DE CONTROLE'!$D$81*'01. PAINEL DE CONTROLE'!AH71 -> 0 | AG188: =AG191*AG195*'01. PAINEL DE CONTROLE'!$D$81*'01. PAINEL DE CONTROLE'!AI71 -> 0 | AH188: =AH191*AH195*'01. PAINEL DE CONTROLE'!$D$81*'01. PAINEL DE CONTROLE'!AJ71 -> 0 | AI188: =AI191*AI195*'01. PAINEL DE CONTROLE'!$D$81*'01. PAINEL DE CONTROLE'!AK71 -> 0 | AJ188: =AJ191*AJ195*'01. PAINEL DE CONTROLE'!$D$81*'01. PAINEL DE CONTROLE'!AL71 -> 0 | AK188: =AK191*AK195*'01. PAINEL DE CONTROLE'!$D$81*'01. PAINEL DE CONTROLE'!AM71 -> 0 | AL188: =AL191*AL195*'01. PAINEL DE CONTROLE'!$D$81*'01. PAINEL DE CONTROLE'!AN71 -> 0
D190: Grau de Interesse | F190: Aceita Pagar | H190: Aceita o Ticket
B191: =B171 -> Volume de visitantes | D191: ='1.3_DemandaAtrativosDesejo'!C18 -> 0.4495640625 | F191: ='1.3_DemandaAtrativosDesejo'!D18 -> 0.3996125 | H191: ='1.3_DemandaAtrativosDesejo'!F18 -> 0.3099035714 | I191: =$D$191*$F$191*$H$191*I41 -> 2938.584285 | J191: 5322.790583 | K191: 8640.163482 | L191: 15302.63004 | M191: 24742.66091 | N191: 36265.56401 | O191: 51604.41645 | P191: 64760.39295 | Q191: 72913.76577 | R191: 79343.32387 | S191: 83940.83726 | T191: 87537.72802 | U191: 90087.41114 | V191: 92490.90594 | W191: 93800.14566 | X191: 93999.9474 | Y191: 94200.17473 | Z191: 94400.82855 | AA191: 94601.90979 | AB191: 94803.41935 | AC191: 95005.35813 | AD191: 95207.72707 | AE191: 95410.52706 | AF191: 95613.75903 | AG191: 95817.42391 | AH191: 96021.52261 | AI191: 96226.05605 | AJ191: 96431.02517 | AK191: 96636.43088 | AL191: 96842.27413
B193: Tx de Captura | I193: =I191/I$41 -> 0.05567461634 | J193: =J191/J$41 -> 0.05567461634 | K193: 0.05567461634 | L193: 0.05567461634 | M193: 0.05567461634 | N193: 0.05567461634 | O193: 0.05567461634 | P193: 0.05567461634 | Q193: 0.05567461634 | R193: 0.05567461634 | S193: 0.05567461634 | T193: 0.05567461634 | U193: 0.05567461634 | V193: 0.05567461634 | W193: 0.05567461634 | X193: 0.05567461634 | Y193: 0.05567461634 | Z193: 0.05567461634 | AA193: 0.05567461634 | AB193: 0.05567461634 | AC193: 0.05567461634 | AD193: 0.05567461634 | AE193: 0.05567461634 | AF193: 0.05567461634 | AG193: 0.05567461634 | AH193: 0.05567461634 | AI193: 0.05567461634 | AJ193: 0.05567461634 | AK193: 0.05567461634 | AL193: 0.05567461634
F194: Ticket Médio
B195: Ticket Médio | F195: ='1.4_ReceitasEstimadas'!C21 -> 44.10714286 | I195: =$F$195 -> 44.10714286 | J195: 44.10714286 | K195: 44.10714286 | L195: 44.10714286 | M195: 44.10714286 | N195: 44.10714286 | O195: 44.10714286 | P195: 44.10714286 | Q195: 44.10714286 | R195: 44.10714286 | S195: 44.10714286 | T195: 44.10714286 | U195: 44.10714286 | V195: 44.10714286 | W195: 44.10714286 | X195: 44.10714286 | Y195: 44.10714286 | Z195: 44.10714286 | AA195: 44.10714286 | AB195: 44.10714286 | AC195: 44.10714286 | AD195: 44.10714286 | AE195: 44.10714286 | AF195: 44.10714286 | AG195: 44.10714286 | AH195: 44.10714286 | AI195: 44.10714286 | AJ195: 44.10714286 | AK195: 44.10714286 | AL195: 44.10714286
B197: Ticket Médio Por Visitante | I197: =I188/I$41 -> 0 | J197: 0 | K197: 0 | L197: 0 | M197: 0 | N197: 0 | O197: 0 | P197: 0 | Q197: 0 | R197: 0 | S197: 0 | T197: 0 | U197: 0 | V197: 0 | W197: 0 | X197: 0 | Y197: 0 | Z197: 0 | AA197: 0 | AB197: 0 | AC197: 0 | AD197: 0 | AE197: 0 | AF197: 0 | AG197: 0 | AH197: 0 | AI197: 0 | AJ197: 0 | AK197: 0 | AL197: 0
B199: Análise de Capacidade
F200: Funcionamento do parque - hora | H200: Média (Excluindo Ramp-Up)
B201: Volume de visitantes por hora | F201: 12 | H201: =AVERAGE(R201:AL201) -> 21.58750811 | I201: =I191/12/30/$F$201 -> 0.6802278438 | J201: 1.23212745 | K201: 2.000037843 | L201: 3.542275473 | M201: 5.727467804 | N201: 8.394806485 | O201: 11.94546677 | P201: 14.9908317 | Q201: 16.87818652 | R201: 18.36651016 | S201: 19.43074937 | T201: 20.26336297 | U201: 20.85356739 | V201: 21.40993193 | W201: 21.71299668 | X201: 21.75924708 | Y201: 21.805596 | Z201: 21.85204365 | AA201: 21.89859023 | AB201: 21.94523596 | AC201: 21.99198105 | AD201: 22.03882571 | AE201: 22.08577015 | AF201: 22.13281459 | AG201: 22.17995924 | AH201: 22.22720431 | AI201: 22.27455001 | AJ201: 22.32199657 | AK201: 22.36954419 | AL201: 22.41719309
B204: ='1.3_DemandaAtrativosDesejo'!B19 -> Locação de bicicleta | I204: =I207*I211*'01. PAINEL DE CONTROLE'!$D$82*'01. PAINEL DE CONTROLE'!K72 -> 0 | J204: =J207*J211*'01. PAINEL DE CONTROLE'!$D$82*'01. PAINEL DE CONTROLE'!L72 -> 0 | K204: =K207*K211*'01. PAINEL DE CONTROLE'!$D$82*'01. PAINEL DE CONTROLE'!M72 -> 0 | L204: =L207*L211*'01. PAINEL DE CONTROLE'!$D$82*'01. PAINEL DE CONTROLE'!N72 -> 0 | M204: =M207*M211*'01. PAINEL DE CONTROLE'!$D$82*'01. PAINEL DE CONTROLE'!O72 -> 0 | N204: =N207*N211*'01. PAINEL DE CONTROLE'!$D$82*'01. PAINEL DE CONTROLE'!P72 -> 0 | O204: =O207*O211*'01. PAINEL DE CONTROLE'!$D$82*'01. PAINEL DE CONTROLE'!Q72 -> 0 | P204: =P207*P211*'01. PAINEL DE CONTROLE'!$D$82*'01. PAINEL DE CONTROLE'!R72 -> 0 | Q204: =Q207*Q211*'01. PAINEL DE CONTROLE'!$D$82*'01. PAINEL DE CONTROLE'!S72 -> 0 | R204: =R207*R211*'01. PAINEL DE CONTROLE'!$D$82*'01. PAINEL DE CONTROLE'!T72 -> 0 | S204: =S207*S211*'01. PAINEL DE CONTROLE'!$D$82*'01. PAINEL DE CONTROLE'!U72 -> 0 | T204: =T207*T211*'01. PAINEL DE CONTROLE'!$D$82*'01. PAINEL DE CONTROLE'!V72 -> 0 | U204: =U207*U211*'01. PAINEL DE CONTROLE'!$D$82*'01. PAINEL DE CONTROLE'!W72 -> 0 | V204: =V207*V211*'01. PAINEL DE CONTROLE'!$D$82*'01. PAINEL DE CONTROLE'!X72 -> 0 | W204: =W207*W211*'01. PAINEL DE CONTROLE'!$D$82*'01. PAINEL DE CONTROLE'!Y72 -> 0 | X204: =X207*X211*'01. PAINEL DE CONTROLE'!$D$82*'01. PAINEL DE CONTROLE'!Z72 -> 0 | Y204: =Y207*Y211*'01. PAINEL DE CONTROLE'!$D$82*'01. PAINEL DE CONTROLE'!AA72 -> 0 | Z204: =Z207*Z211*'01. PAINEL DE CONTROLE'!$D$82*'01. PAINEL DE CONTROLE'!AB72 -> 0 | AA204: =AA207*AA211*'01. PAINEL DE CONTROLE'!$D$82*'01. PAINEL DE CONTROLE'!AC72 -> 0 | AB204: =AB207*AB211*'01. PAINEL DE CONTROLE'!$D$82*'01. PAINEL DE CONTROLE'!AD72 -> 0 | AC204: =AC207*AC211*'01. PAINEL DE CONTROLE'!$D$82*'01. PAINEL DE CONTROLE'!AE72 -> 0 | AD204: =AD207*AD211*'01. PAINEL DE CONTROLE'!$D$82*'01. PAINEL DE CONTROLE'!AF72 -> 0 | AE204: =AE207*AE211*'01. PAINEL DE CONTROLE'!$D$82*'01. PAINEL DE CONTROLE'!AG72 -> 0 | AF204: =AF207*AF211*'01. PAINEL DE CONTROLE'!$D$82*'01. PAINEL DE CONTROLE'!AH72 -> 0 | AG204: =AG207*AG211*'01. PAINEL DE CONTROLE'!$D$82*'01. PAINEL DE CONTROLE'!AI72 -> 0 | AH204: =AH207*AH211*'01. PAINEL DE CONTROLE'!$D$82*'01. PAINEL DE CONTROLE'!AJ72 -> 0 | AI204: =AI207*AI211*'01. PAINEL DE CONTROLE'!$D$82*'01. PAINEL DE CONTROLE'!AK72 -> 0 | AJ204: =AJ207*AJ211*'01. PAINEL DE CONTROLE'!$D$82*'01. PAINEL DE CONTROLE'!AL72 -> 0 | AK204: =AK207*AK211*'01. PAINEL DE CONTROLE'!$D$82*'01. PAINEL DE CONTROLE'!AM72 -> 0 | AL204: =AL207*AL211*'01. PAINEL DE CONTROLE'!$D$82*'01. PAINEL DE CONTROLE'!AN72 -> 0
D206: Grau de Interesse | F206: Aceita Pagar | H206: Aceita o Ticket
B207: =B191 -> Volume de visitantes | D207: ='1.3_DemandaAtrativosDesejo'!C19 -> 0.442428125 | F207: ='1.3_DemandaAtrativosDesejo'!D19 -> 0.59941875 | H207: ='1.3_DemandaAtrativosDesejo'!F19 -> 0.2609714286 | I207: =$D$207*$F$207*$H$207*I41 -> 3652.976956 | J207: 6616.802328 | K207: 10740.65435 | L207: 19022.8183 | M207: 30757.79402 | N207: 45082.00439 | O207: 64149.85103 | P207: 80504.14763 | Q207: 90639.66873 | R207: 98632.30235 | S207: 104347.507 | T207: 108818.8298 | U207: 111988.3607 | V207: 114976.1638 | W207: 116603.6898 | X207: 116852.0649 | Y207: 117100.9691 | Z207: 117350.4034 | AA207: 117600.3691 | AB207: 117850.8672 | AC207: 118101.8988 | AD207: 118353.4652 | AE207: 118605.5675 | AF207: 118858.2067 | AG207: 119111.3841 | AH207: 119365.1008 | AI207: 119619.3579 | AJ207: 119874.1566 | AK207: 120129.498 | AL207: 120385.3834
B209: Tx de Captura | I209: =I207/I$41 -> 0.06920954813 | J209: =J207/J$41 -> 0.06920954813 | K209: 0.06920954813 | L209: 0.06920954813 | M209: 0.06920954813 | N209: 0.06920954813 | O209: 0.06920954813 | P209: 0.06920954813 | Q209: 0.06920954813 | R209: 0.06920954813 | S209: 0.06920954813 | T209: 0.06920954813 | U209: 0.06920954813 | V209: 0.06920954813 | W209: 0.06920954813 | X209: 0.06920954813 | Y209: 0.06920954813 | Z209: 0.06920954813 | AA209: 0.06920954813 | AB209: 0.06920954813 | AC209: 0.06920954813 | AD209: 0.06920954813 | AE209: 0.06920954813 | AF209: 0.06920954813 | AG209: 0.06920954813 | AH209: 0.06920954813 | AI209: 0.06920954813 | AJ209: 0.06920954813 | AK209: 0.06920954813 | AL209: 0.06920954813
F210: Ticket Médio
B211: Ticket Médio | F211: ='1.4_ReceitasEstimadas'!C22 -> 32.54761905 | I211: =$F$211 -> 32.54761905 | J211: 32.54761905 | K211: 32.54761905 | L211: 32.54761905 | M211: 32.54761905 | N211: 32.54761905 | O211: 32.54761905 | P211: 32.54761905 | Q211: 32.54761905 | R211: 32.54761905 | S211: 32.54761905 | T211: 32.54761905 | U211: 32.54761905 | V211: 32.54761905 | W211: 32.54761905 | X211: 32.54761905 | Y211: 32.54761905 | Z211: 32.54761905 | AA211: 32.54761905 | AB211: 32.54761905 | AC211: 32.54761905 | AD211: 32.54761905 | AE211: 32.54761905 | AF211: 32.54761905 | AG211: 32.54761905 | AH211: 32.54761905 | AI211: 32.54761905 | AJ211: 32.54761905 | AK211: 32.54761905 | AL211: 32.54761905
B213: Ticket Médio Por Visitante | I213: =I204/I$41 -> 0 | J213: 0 | K213: 0 | L213: 0 | M213: 0 | N213: 0 | O213: 0 | P213: 0 | Q213: 0 | R213: 0 | S213: 0 | T213: 0 | U213: 0 | V213: 0 | W213: 0 | X213: 0 | Y213: 0 | Z213: 0 | AA213: 0 | AB213: 0 | AC213: 0 | AD213: 0 | AE213: 0 | AF213: 0 | AG213: 0 | AH213: 0 | AI213: 0 | AJ213: 0 | AK213: 0 | AL213: 0
B215: Análise de Capacidade
F216: Qtde
B217: ='06. CAPEX'!B281 -> Mountain Bike para aluguel | F217: ='06. CAPEX'!F281 -> 20 | I217: =$F$217 -> 20 | J217: =$F$217 -> 20 | K217: 20 | L217: 20 | M217: 20 | N217: 20 | O217: 20 | P217: 20 | Q217: 20 | R217: 20 | S217: 20 | T217: 20 | U217: 20 | V217: 20 | W217: 20 | X217: 20 | Y217: 20 | Z217: 20 | AA217: 20 | AB217: 20 | AC217: 20 | AD217: 20 | AE217: 20 | AF217: 20 | AG217: 20 | AH217: 20 | AI217: 20 | AJ217: 20 | AK217: 20 | AL217: 20
D219: h/veículo | F219: 1
B220: Duração da Locação | D220: 2 | F220: =(12/$D$220)*30*12 -> 2160 | I220: =$F$220 -> 2160 | J220: =$F$220 -> 2160 | K220: 2160 | L220: 2160 | M220: 2160 | N220: 2160 | O220: 2160 | P220: 2160 | Q220: 2160 | R220: 2160 | S220: 2160 | T220: 2160 | U220: 2160 | V220: 2160 | W220: 2160 | X220: 2160 | Y220: 2160 | Z220: 2160 | AA220: 2160 | AB220: 2160 | AC220: 2160 | AD220: 2160 | AE220: 2160 | AF220: 2160 | AG220: 2160 | AH220: 2160 | AI220: 2160 | AJ220: 2160 | AK220: 2160 | AL220: 2160
F222: pessoa/bike
B223: Qtde de Pessoas Transportadas | F223: 1 | I223: =I217*I220 -> 43200 | J223: =J217*J220 -> 43200 | K223: 43200 | L223: 43200 | M223: 43200 | N223: 43200 | O223: 43200 | P223: 43200 | Q223: 43200 | R223: 43200 | S223: 43200 | T223: 43200 | U223: 43200 | V223: 43200 | W223: 43200 | X223: 43200 | Y223: 43200 | Z223: 43200 | AA223: 43200 | AB223: 43200 | AC223: 43200 | AD223: 43200 | AE223: 43200 | AF223: 43200 | AG223: 43200 | AH223: 43200 | AI223: 43200 | AJ223: 43200 | AK223: 43200 | AL223: 43200
H224: Média (Excluindo Ramp-Up)
B225: Volume de visitantes sem equipamentos | H225: =AVERAGE(R225:AL225) -> 72729.78791 | I225: =IF((I207-I223)<0,0,(I207-I223)) -> 0 | J225: =IF((J207-J223)<0,0,(J207-J223)) -> 0 | K225: 0 | L225: 0 | M225: 0 | N225: 1882.004387 | O225: 20949.85103 | P225: 37304.14763 | Q225: 47439.66873 | R225: 55432.30235 | S225: 61147.50697 | T225: 65618.82982 | U225: 68788.36072 | V225: 71776.16377 | W225: 73403.68985 | X225: 73652.06494 | Y225: 73900.96908 | Z225: 74150.40342 | AA225: 74400.36906 | AB225: 74650.86716 | AC225: 74901.89883 | AD225: 75153.46522 | AE225: 75405.56747 | AF225: 75658.20672 | AG225: 75911.38411 | AH225: 76165.10078 | AI225: 76419.3579 | AJ225: 76674.1566 | AK225: 76929.49804 | AL225: 77185.38338
B230: ='1.3_DemandaAtrativosDesejo'!B20 -> Locação de bicicleta / quadriciclo elétricos | I230: =I233*I239*'01. PAINEL DE CONTROLE'!$D$83*'01. PAINEL DE CONTROLE'!K73 -> 0 | J230: =J233*J239*'01. PAINEL DE CONTROLE'!$D$83*'01. PAINEL DE CONTROLE'!L73 -> 0 | K230: =K233*K239*'01. PAINEL DE CONTROLE'!$D$83*'01. PAINEL DE CONTROLE'!M73 -> 0 | L230: =L233*L239*'01. PAINEL DE CONTROLE'!$D$83*'01. PAINEL DE CONTROLE'!N73 -> 0 | M230: =M233*M239*'01. PAINEL DE CONTROLE'!$D$83*'01. PAINEL DE CONTROLE'!O73 -> 0 | N230: =N233*N239*'01. PAINEL DE CONTROLE'!$D$83*'01. PAINEL DE CONTROLE'!P73 -> 0 | O230: =O233*O239*'01. PAINEL DE CONTROLE'!$D$83*'01. PAINEL DE CONTROLE'!Q73 -> 0 | P230: =P233*P239*'01. PAINEL DE CONTROLE'!$D$83*'01. PAINEL DE CONTROLE'!R73 -> 0 | Q230: =Q233*Q239*'01. PAINEL DE CONTROLE'!$D$83*'01. PAINEL DE CONTROLE'!S73 -> 0 | R230: =R233*R239*'01. PAINEL DE CONTROLE'!$D$83*'01. PAINEL DE CONTROLE'!T73 -> 0 | S230: =S233*S239*'01. PAINEL DE CONTROLE'!$D$83*'01. PAINEL DE CONTROLE'!U73 -> 0 | T230: =T233*T239*'01. PAINEL DE CONTROLE'!$D$83*'01. PAINEL DE CONTROLE'!V73 -> 0 | U230: =U233*U239*'01. PAINEL DE CONTROLE'!$D$83*'01. PAINEL DE CONTROLE'!W73 -> 0 | V230: =V233*V239*'01. PAINEL DE CONTROLE'!$D$83*'01. PAINEL DE CONTROLE'!X73 -> 0 | W230: =W233*W239*'01. PAINEL DE CONTROLE'!$D$83*'01. PAINEL DE CONTROLE'!Y73 -> 0 | X230: =X233*X239*'01. PAINEL DE CONTROLE'!$D$83*'01. PAINEL DE CONTROLE'!Z73 -> 0 | Y230: =Y233*Y239*'01. PAINEL DE CONTROLE'!$D$83*'01. PAINEL DE CONTROLE'!AA73 -> 0 | Z230: =Z233*Z239*'01. PAINEL DE CONTROLE'!$D$83*'01. PAINEL DE CONTROLE'!AB73 -> 0 | AA230: =AA233*AA239*'01. PAINEL DE CONTROLE'!$D$83*'01. PAINEL DE CONTROLE'!AC73 -> 0 | AB230: =AB233*AB239*'01. PAINEL DE CONTROLE'!$D$83*'01. PAINEL DE CONTROLE'!AD73 -> 0 | AC230: =AC233*AC239*'01. PAINEL DE CONTROLE'!$D$83*'01. PAINEL DE CONTROLE'!AE73 -> 0 | AD230: =AD233*AD239*'01. PAINEL DE CONTROLE'!$D$83*'01. PAINEL DE CONTROLE'!AF73 -> 0 | AE230: =AE233*AE239*'01. PAINEL DE CONTROLE'!$D$83*'01. PAINEL DE CONTROLE'!AG73 -> 0 | AF230: =AF233*AF239*'01. PAINEL DE CONTROLE'!$D$83*'01. PAINEL DE CONTROLE'!AH73 -> 0 | AG230: =AG233*AG239*'01. PAINEL DE CONTROLE'!$D$83*'01. PAINEL DE CONTROLE'!AI73 -> 0 | AH230: =AH233*AH239*'01. PAINEL DE CONTROLE'!$D$83*'01. PAINEL DE CONTROLE'!AJ73 -> 0 | AI230: =AI233*AI239*'01. PAINEL DE CONTROLE'!$D$83*'01. PAINEL DE CONTROLE'!AK73 -> 0 | AJ230: =AJ233*AJ239*'01. PAINEL DE CONTROLE'!$D$83*'01. PAINEL DE CONTROLE'!AL73 -> 0 | AK230: =AK233*AK239*'01. PAINEL DE CONTROLE'!$D$83*'01. PAINEL DE CONTROLE'!AM73 -> 0 | AL230: =AL233*AL239*'01. PAINEL DE CONTROLE'!$D$83*'01. PAINEL DE CONTROLE'!AN73 -> 0
D232: Grau de Interesse | F232: Aceita Pagar | H232: Aceita o Ticket
B233: =B207 -> Volume de visitantes | D233: ='1.3_DemandaAtrativosDesejo'!C20 -> 0.42815625 | F233: ='1.3_DemandaAtrativosDesejo'!D20 -> 0.59941875 | H233: ='1.3_DemandaAtrativosDesejo'!F20 -> 0.3805833333 | I233: =$D233*$F233*$H233*I$41 -> 5155.411027 | J233: =$D233*$F233*$H233*J$41 -> 9338.229092 | K233: =$D233*$F233*$H233*K$41 -> 15158.18155 | L233: 26846.71937 | M233: 43408.17704 | N233: 63623.79651 | O233: 90534.06395 | P233: 113614.7245 | Q233: 127918.8873 | R233: 139198.8138 | S233: 147264.6268 | T233: 153574.9614 | U233: 158048.0897 | V233: 162264.7473 | W233: 164561.6591 | X233: 164912.1884 | Y233: 165263.4644 | Z233: 165615.4887 | AA233: 165968.2628 | AB233: 166321.7883 | AC233: 166676.0669 | AD233: 167031.1001 | AE233: 167386.8896 | AF233: 167743.4369 | AG233: 168100.7437 | AH233: 168458.8116 | AI233: 168817.6422 | AJ233: 169177.2371 | AK233: 169537.598 | AL233: 169898.7265
B234: Mês | I234: =I233/12 -> 429.6175855 | J234: =J233/12 -> 778.1857577 | K234: 1263.181796 | L234: 2237.226614 | M234: 3617.348087 | N234: 5301.983043 | O234: 7544.505329 | P234: 9467.893706 | Q234: 10659.90728 | R234: 11599.90115 | S234: 12272.05223 | T234: 12797.91345 | U234: 13170.67414 | V234: 13522.06227 | W234: 13713.47159 | X234: 13742.68237 | Y234: 13771.95537 | Z234: 13801.29072 | AA234: 13830.68857 | AB234: 13860.14903 | AC234: 13889.67224 | AD234: 13919.25834 | AE234: 13948.90746 | AF234: 13978.61974 | AG234: 14008.39531 | AH234: 14038.2343 | AI234: 14068.13685 | AJ234: 14098.10309 | AK234: 14128.13317 | AL234: 14158.22721
B235: Dia | I235: =I234/30 -> 14.32058618 | J235: =J234/30 -> 25.93952526 | K235: 42.10605985 | L235: 74.57422048 | M235: 120.5782696 | N235: 176.7327681 | O235: 251.483511 | P235: 315.5964569 | Q235: 355.3302426 | R235: 386.6633717 | S235: 409.0684077 | T235: 426.5971151 | U235: 439.0224715 | V235: 450.735409 | W235: 457.1157196 | X235: 458.0894123 | Y235: 459.065179 | Z235: 460.0430241 | AA235: 461.0229522 | AB235: 462.0049676 | AC235: 462.9890747 | AD235: 463.9752781 | AE235: 464.9635822 | AF235: 465.9539914 | AG235: 466.9465103 | AH235: 467.9411433 | AI235: 468.937895 | AJ235: 469.9367698 | AK235: 470.9377723 | AL235: 471.9409071
B237: Tx de Captura | I237: =I233/I$41 -> 0.0976747655 | J237: =J233/J$41 -> 0.0976747655 | K237: 0.0976747655 | L237: 0.0976747655 | M237: 0.0976747655 | N237: 0.0976747655 | O237: 0.0976747655 | P237: 0.0976747655 | Q237: 0.0976747655 | R237: 0.0976747655 | S237: 0.0976747655 | T237: 0.0976747655 | U237: 0.0976747655 | V237: 0.0976747655 | W237: 0.0976747655 | X237: 0.0976747655 | Y237: 0.0976747655 | Z237: 0.0976747655 | AA237: 0.0976747655 | AB237: 0.0976747655 | AC237: 0.0976747655 | AD237: 0.0976747655 | AE237: 0.0976747655 | AF237: 0.0976747655 | AG237: 0.0976747655 | AH237: 0.0976747655 | AI237: 0.0976747655 | AJ237: 0.0976747655 | AK237: 0.0976747655 | AL237: 0.0976747655
F238: Ticket Médio
B239: Ticket Médio | F239: ='1.4_ReceitasEstimadas'!C23 -> 43.6547619 | I239: =$F$239 -> 43.6547619 | J239: 43.6547619 | K239: 43.6547619 | L239: 43.6547619 | M239: 43.6547619 | N239: 43.6547619 | O239: 43.6547619 | P239: 43.6547619 | Q239: 43.6547619 | R239: 43.6547619 | S239: 43.6547619 | T239: 43.6547619 | U239: 43.6547619 | V239: 43.6547619 | W239: 43.6547619 | X239: 43.6547619 | Y239: 43.6547619 | Z239: 43.6547619 | AA239: 43.6547619 | AB239: 43.6547619 | AC239: 43.6547619 | AD239: 43.6547619 | AE239: 43.6547619 | AF239: 43.6547619 | AG239: 43.6547619 | AH239: 43.6547619 | AI239: 43.6547619 | AJ239: 43.6547619 | AK239: 43.6547619 | AL239: 43.6547619
B241: Ticket Médio Por Visitante | I241: =I230/I$41 -> 0 | J241: 0 | K241: 0 | L241: 0 | M241: 0 | N241: 0 | O241: 0 | P241: 0 | Q241: 0 | R241: 0 | S241: 0 | T241: 0 | U241: 0 | V241: 0 | W241: 0 | X241: 0 | Y241: 0 | Z241: 0 | AA241: 0 | AB241: 0 | AC241: 0 | AD241: 0 | AE241: 0 | AF241: 0 | AG241: 0 | AH241: 0 | AI241: 0 | AJ241: 0 | AK241: 0 | AL241: 0
B243: Análise de Capacidade
B245: Qtde de Equipamento
B246: ='06. CAPEX'!B282 -> Bike elétrica para aluguel | F246: ='06. CAPEX'!F282 -> 10 | I246: =$F$246 -> 10 | J246: =$F$246 -> 10 | K246: =$F$246 -> 10 | L246: 10 | M246: 10 | N246: 10 | O246: 10 | P246: 10 | Q246: 10 | R246: 10 | S246: 10 | T246: 10 | U246: 10 | V246: 10 | W246: 10 | X246: 10 | Y246: 10 | Z246: 10 | AA246: 10 | AB246: 10 | AC246: 10 | AD246: 10 | AE246: 10 | AF246: 10 | AG246: 10 | AH246: 10 | AI246: 10 | AJ246: 10 | AK246: 10 | AL246: 10
B247: ='06. CAPEX'!B283 -> Quadriciclo | F247: ='06. CAPEX'!F283 -> 5 | I247: =$F$247 -> 5 | J247: =$F$247 -> 5 | K247: =$F$247 -> 5 | L247: 5 | M247: 5 | N247: 5 | O247: 5 | P247: 5 | Q247: 5 | R247: 5 | S247: 5 | T247: 5 | U247: 5 | V247: 5 | W247: 5 | X247: 5 | Y247: 5 | Z247: 5 | AA247: 5 | AB247: 5 | AC247: 5 | AD247: 5 | AE247: 5 | AF247: 5 | AG247: 5 | AH247: 5 | AI247: 5 | AJ247: 5 | AK247: 5 | AL247: 5
D249: h/veículo
B250: Bike elétrica | D250: 2 | F250: =(12/D250)*30*12 -> 2160 | I250: =$F$250 -> 2160 | J250: 2160 | K250: 2160 | L250: 2160 | M250: 2160 | N250: 2160 | O250: 2160 | P250: 2160 | Q250: 2160 | R250: 2160 | S250: 2160 | T250: 2160 | U250: 2160 | V250: 2160 | W250: 2160 | X250: 2160 | Y250: 2160 | Z250: 2160 | AA250: 2160 | AB250: 2160 | AC250: 2160 | AD250: 2160 | AE250: 2160 | AF250: 2160 | AG250: 2160 | AH250: 2160 | AI250: 2160 | AJ250: 2160 | AK250: 2160 | AL250: 2160
B251: Quadriciclo | F251: =(12/D250)*30*12 -> 2160 | I251: =$F$251 -> 2160 | J251: 2160 | K251: 2160 | L251: 2160 | M251: 2160 | N251: 2160 | O251: 2160 | P251: 2160 | Q251: 2160 | R251: 2160 | S251: 2160 | T251: 2160 | U251: 2160 | V251: 2160 | W251: 2160 | X251: 2160 | Y251: 2160 | Z251: 2160 | AA251: 2160 | AB251: 2160 | AC251: 2160 | AD251: 2160 | AE251: 2160 | AF251: 2160 | AG251: 2160 | AH251: 2160 | AI251: 2160 | AJ251: 2160 | AK251: 2160 | AL251: 2160
B253: Qtde de Pessoas Transportadas | I253: =SUM(I254:I255) -> 32400 | J253: 32400 | K253: 32400 | L253: 32400 | M253: 32400 | N253: 32400 | O253: 32400 | P253: 32400 | Q253: 32400 | R253: 32400 | S253: 32400 | T253: 32400 | U253: 32400 | V253: 32400 | W253: 32400 | X253: 32400 | Y253: 32400 | Z253: 32400 | AA253: 32400 | AB253: 32400 | AC253: 32400 | AD253: 32400 | AE253: 32400 | AF253: 32400 | AG253: 32400 | AH253: 32400 | AI253: 32400 | AJ253: 32400 | AK253: 32400 | AL253: 32400
B254: Bike elétrica | I254: =I246*I250 -> 21600 | J254: 21600 | K254: 21600 | L254: 21600 | M254: 21600 | N254: 21600 | O254: 21600 | P254: 21600 | Q254: 21600 | R254: 21600 | S254: 21600 | T254: 21600 | U254: 21600 | V254: 21600 | W254: 21600 | X254: 21600 | Y254: 21600 | Z254: 21600 | AA254: 21600 | AB254: 21600 | AC254: 21600 | AD254: 21600 | AE254: 21600 | AF254: 21600 | AG254: 21600 | AH254: 21600 | AI254: 21600 | AJ254: 21600 | AK254: 21600 | AL254: 21600
B255: Quadriciclo | I255: =I247*I251 -> 10800 | J255: 10800 | K255: 10800 | L255: 10800 | M255: 10800 | N255: 10800 | O255: 10800 | P255: 10800 | Q255: 10800 | R255: 10800 | S255: 10800 | T255: 10800 | U255: 10800 | V255: 10800 | W255: 10800 | X255: 10800 | Y255: 10800 | Z255: 10800 | AA255: 10800 | AB255: 10800 | AC255: 10800 | AD255: 10800 | AE255: 10800 | AF255: 10800 | AG255: 10800 | AH255: 10800 | AI255: 10800 | AJ255: 10800 | AK255: 10800 | AL255: 10800
H256: Média (Excluindo Ramp-Up)
B257: Volume de visitantes sem equipamentos | H257: =AVERAGE(S257:AL257) -> 132431.1765 | I257: =IF((I233-I253)<0,0,(I233-I253)) -> 0 | J257: 0 | K257: 0 | L257: 0 | M257: 11008.17704 | N257: 31223.79651 | O257: 58134.06395 | P257: 81214.72447 | Q257: 95518.88732 | R257: 106798.8138 | S257: 114864.6268 | T257: 121174.9614 | U257: 125648.0897 | V257: 129864.7473 | W257: 132161.6591 | X257: 132512.1884 | Y257: 132863.4644 | Z257: 133215.4887 | AA257: 133568.2628 | AB257: 133921.7883 | AC257: 134276.0669 | AD257: 134631.1001 | AE257: 134986.8896 | AF257: 135343.4369 | AG257: 135700.7437 | AH257: 136058.8116 | AI257: 136417.6422 | AJ257: 136777.2371 | AK257: 137137.598 | AL257: 137498.7265
B259: ='1.3_DemandaAtrativosDesejo'!B21 -> Pista de voo livre (parapente) | I259: =I262*I266*'01. PAINEL DE CONTROLE'!$D$84 -> 0 | J259: =J262*J266*'01. PAINEL DE CONTROLE'!$D$84 -> 0 | K259: =K262*K266*'01. PAINEL DE CONTROLE'!$D$84 -> 0 | L259: =L262*L266*'01. PAINEL DE CONTROLE'!$D$84 -> 0 | M259: =M262*M266*'01. PAINEL DE CONTROLE'!$D$84 -> 0 | N259: =N262*N266*'01. PAINEL DE CONTROLE'!$D$84 -> 0 | O259: =O262*O266*'01. PAINEL DE CONTROLE'!$D$84 -> 0 | P259: =P262*P266*'01. PAINEL DE CONTROLE'!$D$84 -> 0 | Q259: =Q262*Q266*'01. PAINEL DE CONTROLE'!$D$84 -> 0 | R259: =R262*R266*'01. PAINEL DE CONTROLE'!$D$84 -> 0 | S259: =S262*S266*'01. PAINEL DE CONTROLE'!$D$84 -> 0 | T259: =T262*T266*'01. PAINEL DE CONTROLE'!$D$84 -> 0 | U259: =U262*U266*'01. PAINEL DE CONTROLE'!$D$84 -> 0 | V259: =V262*V266*'01. PAINEL DE CONTROLE'!$D$84 -> 0 | W259: =W262*W266*'01. PAINEL DE CONTROLE'!$D$84 -> 0 | X259: =X262*X266*'01. PAINEL DE CONTROLE'!$D$84 -> 0 | Y259: =Y262*Y266*'01. PAINEL DE CONTROLE'!$D$84 -> 0 | Z259: =Z262*Z266*'01. PAINEL DE CONTROLE'!$D$84 -> 0 | AA259: =AA262*AA266*'01. PAINEL DE CONTROLE'!$D$84 -> 0 | AB259: =AB262*AB266*'01. PAINEL DE CONTROLE'!$D$84 -> 0 | AC259: =AC262*AC266*'01. PAINEL DE CONTROLE'!$D$84 -> 0 | AD259: =AD262*AD266*'01. PAINEL DE CONTROLE'!$D$84 -> 0 | AE259: =AE262*AE266*'01. PAINEL DE CONTROLE'!$D$84 -> 0 | AF259: =AF262*AF266*'01. PAINEL DE CONTROLE'!$D$84 -> 0 | AG259: =AG262*AG266*'01. PAINEL DE CONTROLE'!$D$84 -> 0 | AH259: =AH262*AH266*'01. PAINEL DE CONTROLE'!$D$84 -> 0 | AI259: =AI262*AI266*'01. PAINEL DE CONTROLE'!$D$84 -> 0 | AJ259: =AJ262*AJ266*'01. PAINEL DE CONTROLE'!$D$84 -> 0 | AK259: =AK262*AK266*'01. PAINEL DE CONTROLE'!$D$84 -> 0 | AL259: =AL262*AL266*'01. PAINEL DE CONTROLE'!$D$84 -> 0
D261: Grau de Interesse | F261: Aceita Pagar | H261: Aceita o Ticket
B262: =B233 -> Volume de visitantes | D262: ='1.3_DemandaAtrativosDesejo'!C21 -> 0.356796875 | F262: ='1.3_DemandaAtrativosDesejo'!D21 -> 0.5351953125 | H262: ='1.3_DemandaAtrativosDesejo'!F21 -> 0.04871466667 | I262: =$D262*$F262*$H262*I$41 -> 490.9915263 | J262: =$D262*$F262*$H262*J$41 -> 889.3551517 | K262: 1443.636338 | L262: 2556.830416 | M262: 4134.112099 | N262: 6059.409192 | O262: 8622.291805 | P262: 10820.44995 | Q262: 12182.75117 | R262: 13257.02989 | S262: 14025.20255 | T262: 14626.1868 | U262: 15052.19902 | V262: 15453.78545 | W262: 15672.53896 | X262: 15705.92271 | Y262: 15739.37756 | Z262: 15772.90368 | AA262: 15806.50122 | AB262: 15840.17032 | AC262: 15873.91113 | AD262: 15907.72382 | AE262: 15941.60853 | AF262: 15975.56542 | AG262: 16009.59464 | AH262: 16043.69634 | AI262: 16077.87068 | AJ262: 16112.11782 | AK262: 16146.43791 | AL262: 16180.8311
B264: Tx de Captura | I264: =I262/I$41 -> 0.009302358619 | J264: =J262/J$41 -> 0.009302358619 | K264: 0.009302358619 | L264: 0.009302358619 | M264: 0.009302358619 | N264: 0.009302358619 | O264: 0.009302358619 | P264: 0.009302358619 | Q264: 0.009302358619 | R264: 0.009302358619 | S264: 0.009302358619 | T264: 0.009302358619 | U264: 0.009302358619 | V264: 0.009302358619 | W264: 0.009302358619 | X264: 0.009302358619 | Y264: 0.009302358619 | Z264: 0.009302358619 | AA264: 0.009302358619 | AB264: 0.009302358619 | AC264: 0.009302358619 | AD264: 0.009302358619 | AE264: 0.009302358619 | AF264: 0.009302358619 | AG264: 0.009302358619 | AH264: 0.009302358619 | AI264: 0.009302358619 | AJ264: 0.009302358619 | AK264: 0.009302358619 | AL264: 0.009302358619
F265: Ticket Médio
B266: Ticket Médio | F266: ='1.4_ReceitasEstimadas'!C24 -> 200 | I266: =$F$266 -> 200 | J266: 200 | K266: 200 | L266: 200 | M266: 200 | N266: 200 | O266: 200 | P266: 200 | Q266: 200 | R266: 200 | S266: 200 | T266: 200 | U266: 200 | V266: 200 | W266: 200 | X266: 200 | Y266: 200 | Z266: 200 | AA266: 200 | AB266: 200 | AC266: 200 | AD266: 200 | AE266: 200 | AF266: 200 | AG266: 200 | AH266: 200 | AI266: 200 | AJ266: 200 | AK266: 200 | AL266: 200
B268: Ticket Médio Por Visitante | I268: =I259/I$41 -> 0 | J268: 0 | K268: 0 | L268: 0 | M268: 0 | N268: 0 | O268: 0 | P268: 0 | Q268: 0 | R268: 0 | S268: 0 | T268: 0 | U268: 0 | V268: 0 | W268: 0 | X268: 0 | Y268: 0 | Z268: 0 | AA268: 0 | AB268: 0 | AC268: 0 | AD268: 0 | AE268: 0 | AF268: 0 | AG268: 0 | AH268: 0 | AI268: 0 | AJ268: 0 | AK268: 0 | AL268: 0
B270: Análise de Capacidade
D272: Duração (horas)
B273: Quantidade de passeio - Hora/Pessoa/Equipamento | D273: 2 | I273: =12/$D$273 -> 6 | J273: 6 | K273: 6 | L273: 6 | M273: 6 | N273: 6 | O273: 6 | P273: 6 | Q273: 6 | R273: 6 | S273: 6 | T273: 6 | U273: 6 | V273: 6 | W273: 6 | X273: 6 | Y273: 6 | Z273: 6 | AA273: 6 | AB273: 6 | AC273: 6 | AD273: 6 | AE273: 6 | AF273: 6 | AG273: 6 | AH273: 6 | AI273: 6 | AJ273: 6 | AK273: 6 | AL273: 6
B275: Quantidade de passeio - Ano/Pessoa/Equipamento | I275: =I273*30*12 -> 2160 | J275: 2160 | K275: 2160 | L275: 2160 | M275: 2160 | N275: 2160 | O275: 2160 | P275: 2160 | Q275: 2160 | R275: 2160 | S275: 2160 | T275: 2160 | U275: 2160 | V275: 2160 | W275: 2160 | X275: 2160 | Y275: 2160 | Z275: 2160 | AA275: 2160 | AB275: 2160 | AC275: 2160 | AD275: 2160 | AE275: 2160 | AF275: 2160 | AG275: 2160 | AH275: 2160 | AI275: 2160 | AJ275: 2160 | AK275: 2160 | AL275: 2160
H276: Média (Excluindo Ramp-Up)
B277: Número de Equipamentos para atender a demanda | H277: =AVERAGE(S277:AL277) -> 7.267688557 | I277: =I262/I275 -> 0.2273108918 | J277: 0.4117384961 | K277: 0.6683501564 | L277: 1.183717785 | M277: 1.913940787 | N277: 2.805282033 | O277: 3.991801762 | P277: 5.009467569 | Q277: 5.64016258 | R277: 6.137513836 | S277: 6.493149329 | T277: 6.77138278 | U277: 6.968610658 | V277: 7.154530302 | W277: 7.255805073 | X277: 7.271260512 | Y277: 7.286748873 | Z277: 7.302270225 | AA277: 7.317824638 | AB277: 7.333412184 | AC277: 7.349032932 | AD277: 7.364686954 | AE277: 7.38037432 | AF277: 7.396095102 | AG277: 7.41184937 | AH277: 7.427637195 | AI277: 7.44345865 | AJ277: 7.459313807 | AK277: 7.475202735 | AL277: 7.491125509
B282: ='1.3_DemandaAtrativosDesejo'!B24 -> Restaurante panorâmico | C282: Aluguel - R$/M² | I282: =(_xlfn.IFS(I4=1,IF($C$282="Aluguel - R$/M²",I285*I287,I299*I305*$H$299),I4=2,IF($C$282="Aluguel - R$/M²",I285*I287,I299*I305*$H$299),I4>=3,IF($C$282="Aluguel - R$/M²",I285*I287,I299*I305*$H$299)))*'01. PAINEL DE CONTROLE'!$D$85*'01. PAINEL DE CONTROLE'!K75 -> 0 | J282: =(_xlfn.IFS(J4=1,IF($C$282="Aluguel - R$/M²",J285*J287,J299*J305*$H$299),J4=2,IF($C$282="Aluguel - R$/M²",J285*J287,J299*J305*$H$299),J4>=3,IF($C$282="Aluguel - R$/M²",J285*J287,J299*J305*$H$299)))*'01. PAINEL DE CONTROLE'!$D$85*'01. PAINEL DE CONTROLE'!L75 -> 0 | K282: =(_xlfn.IFS(K4=1,IF($C$282="Aluguel - R$/M²",K285*K287,K299*K305*$H$299),K4=2,IF($C$282="Aluguel - R$/M²",K285*K287,K299*K305*$H$299),K4>=3,IF($C$282="Aluguel - R$/M²",K285*K287,K299*K305*$H$299)))*'01. PAINEL DE CONTROLE'!$D$85*'01. PAINEL DE CONTROLE'!M75 -> 291200 | L282: =(_xlfn.IFS(L4=1,IF($C$282="Aluguel - R$/M²",L285*L287,L299*L305*$H$299),L4=2,IF($C$282="Aluguel - R$/M²",L285*L287,L299*L305*$H$299),L4>=3,IF($C$282="Aluguel - R$/M²",L285*L287,L299*L305*$H$299)))*'01. PAINEL DE CONTROLE'!$D$85*'01. PAINEL DE CONTROLE'!N75 -> 499200 | M282: =(_xlfn.IFS(M4=1,IF($C$282="Aluguel - R$/M²",M285*M287,M299*M305*$H$299),M4=2,IF($C$282="Aluguel - R$/M²",M285*M287,M299*M305*$H$299),M4>=3,IF($C$282="Aluguel - R$/M²",M285*M287,M299*M305*$H$299)))*'01. PAINEL DE CONTROLE'!$D$85*'01. PAINEL DE CONTROLE'!O75 -> 499200 | N282: =(_xlfn.IFS(N4=1,IF($C$282="Aluguel - R$/M²",N285*N287,N299*N305*$H$299),N4=2,IF($C$282="Aluguel - R$/M²",N285*N287,N299*N305*$H$299),N4>=3,IF($C$282="Aluguel - R$/M²",N285*N287,N299*N305*$H$299)))*'01. PAINEL DE CONTROLE'!$D$85*'01. PAINEL DE CONTROLE'!P75 -> 499200 | O282: =(_xlfn.IFS(O4=1,IF($C$282="Aluguel - R$/M²",O285*O287,O299*O305*$H$299),O4=2,IF($C$282="Aluguel - R$/M²",O285*O287,O299*O305*$H$299),O4>=3,IF($C$282="Aluguel - R$/M²",O285*O287,O299*O305*$H$299)))*'01. PAINEL DE CONTROLE'!$D$85*'01. PAINEL DE CONTROLE'!Q75 -> 499200 | P282: =(_xlfn.IFS(P4=1,IF($C$282="Aluguel - R$/M²",P285*P287,P299*P305*$H$299),P4=2,IF($C$282="Aluguel - R$/M²",P285*P287,P299*P305*$H$299),P4>=3,IF($C$282="Aluguel - R$/M²",P285*P287,P299*P305*$H$299)))*'01. PAINEL DE CONTROLE'!$D$85*'01. PAINEL DE CONTROLE'!R75 -> 499200 | Q282: =(_xlfn.IFS(Q4=1,IF($C$282="Aluguel - R$/M²",Q285*Q287,Q299*Q305*$H$299),Q4=2,IF($C$282="Aluguel - R$/M²",Q285*Q287,Q299*Q305*$H$299),Q4>=3,IF($C$282="Aluguel - R$/M²",Q285*Q287,Q299*Q305*$H$299)))*'01. PAINEL DE CONTROLE'!$D$85*'01. PAINEL DE CONTROLE'!S75 -> 499200 | R282: =(_xlfn.IFS(R4=1,IF($C$282="Aluguel - R$/M²",R285*R287,R299*R305*$H$299),R4=2,IF($C$282="Aluguel - R$/M²",R285*R287,R299*R305*$H$299),R4>=3,IF($C$282="Aluguel - R$/M²",R285*R287,R299*R305*$H$299)))*'01. PAINEL DE CONTROLE'!$D$85*'01. PAINEL DE CONTROLE'!T75 -> 499200 | S282: =(_xlfn.IFS(S4=1,IF($C$282="Aluguel - R$/M²",S285*S287,S299*S305*$H$299),S4=2,IF($C$282="Aluguel - R$/M²",S285*S287,S299*S305*$H$299),S4>=3,IF($C$282="Aluguel - R$/M²",S285*S287,S299*S305*$H$299)))*'01. PAINEL DE CONTROLE'!$D$85*'01. PAINEL DE CONTROLE'!U75 -> 499200 | T282: =(_xlfn.IFS(T4=1,IF($C$282="Aluguel - R$/M²",T285*T287,T299*T305*$H$299),T4=2,IF($C$282="Aluguel - R$/M²",T285*T287,T299*T305*$H$299),T4>=3,IF($C$282="Aluguel - R$/M²",T285*T287,T299*T305*$H$299)))*'01. PAINEL DE CONTROLE'!$D$85*'01. PAINEL DE CONTROLE'!V75 -> 499200 | U282: =(_xlfn.IFS(U4=1,IF($C$282="Aluguel - R$/M²",U285*U287,U299*U305*$H$299),U4=2,IF($C$282="Aluguel - R$/M²",U285*U287,U299*U305*$H$299),U4>=3,IF($C$282="Aluguel - R$/M²",U285*U287,U299*U305*$H$299)))*'01. PAINEL DE CONTROLE'!$D$85*'01. PAINEL DE CONTROLE'!W75 -> 499200 | V282: =(_xlfn.IFS(V4=1,IF($C$282="Aluguel - R$/M²",V285*V287,V299*V305*$H$299),V4=2,IF($C$282="Aluguel - R$/M²",V285*V287,V299*V305*$H$299),V4>=3,IF($C$282="Aluguel - R$/M²",V285*V287,V299*V305*$H$299)))*'01. PAINEL DE CONTROLE'!$D$85*'01. PAINEL DE CONTROLE'!X75 -> 499200 | W282: =(_xlfn.IFS(W4=1,IF($C$282="Aluguel - R$/M²",W285*W287,W299*W305*$H$299),W4=2,IF($C$282="Aluguel - R$/M²",W285*W287,W299*W305*$H$299),W4>=3,IF($C$282="Aluguel - R$/M²",W285*W287,W299*W305*$H$299)))*'01. PAINEL DE CONTROLE'!$D$85*'01. PAINEL DE CONTROLE'!Y75 -> 499200 | X282: =(_xlfn.IFS(X4=1,IF($C$282="Aluguel - R$/M²",X285*X287,X299*X305*$H$299),X4=2,IF($C$282="Aluguel - R$/M²",X285*X287,X299*X305*$H$299),X4>=3,IF($C$282="Aluguel - R$/M²",X285*X287,X299*X305*$H$299)))*'01. PAINEL DE CONTROLE'!$D$85*'01. PAINEL DE CONTROLE'!Z75 -> 499200 | Y282: =(_xlfn.IFS(Y4=1,IF($C$282="Aluguel - R$/M²",Y285*Y287,Y299*Y305*$H$299),Y4=2,IF($C$282="Aluguel - R$/M²",Y285*Y287,Y299*Y305*$H$299),Y4>=3,IF($C$282="Aluguel - R$/M²",Y285*Y287,Y299*Y305*$H$299)))*'01. PAINEL DE CONTROLE'!$D$85*'01. PAINEL DE CONTROLE'!AA75 -> 499200 | Z282: =(_xlfn.IFS(Z4=1,IF($C$282="Aluguel - R$/M²",Z285*Z287,Z299*Z305*$H$299),Z4=2,IF($C$282="Aluguel - R$/M²",Z285*Z287,Z299*Z305*$H$299),Z4>=3,IF($C$282="Aluguel - R$/M²",Z285*Z287,Z299*Z305*$H$299)))*'01. PAINEL DE CONTROLE'!$D$85*'01. PAINEL DE CONTROLE'!AB75 -> 499200 | AA282: =(_xlfn.IFS(AA4=1,IF($C$282="Aluguel - R$/M²",AA285*AA287,AA299*AA305*$H$299),AA4=2,IF($C$282="Aluguel - R$/M²",AA285*AA287,AA299*AA305*$H$299),AA4>=3,IF($C$282="Aluguel - R$/M²",AA285*AA287,AA299*AA305*$H$299)))*'01. PAINEL DE CONTROLE'!$D$85*'01. PAINEL DE CONTROLE'!AC75 -> 499200 | AB282: =(_xlfn.IFS(AB4=1,IF($C$282="Aluguel - R$/M²",AB285*AB287,AB299*AB305*$H$299),AB4=2,IF($C$282="Aluguel - R$/M²",AB285*AB287,AB299*AB305*$H$299),AB4>=3,IF($C$282="Aluguel - R$/M²",AB285*AB287,AB299*AB305*$H$299)))*'01. PAINEL DE CONTROLE'!$D$85*'01. PAINEL DE CONTROLE'!AD75 -> 499200 | AC282: =(_xlfn.IFS(AC4=1,IF($C$282="Aluguel - R$/M²",AC285*AC287,AC299*AC305*$H$299),AC4=2,IF($C$282="Aluguel - R$/M²",AC285*AC287,AC299*AC305*$H$299),AC4>=3,IF($C$282="Aluguel - R$/M²",AC285*AC287,AC299*AC305*$H$299)))*'01. PAINEL DE CONTROLE'!$D$85*'01. PAINEL DE CONTROLE'!AE75 -> 499200 | AD282: =(_xlfn.IFS(AD4=1,IF($C$282="Aluguel - R$/M²",AD285*AD287,AD299*AD305*$H$299),AD4=2,IF($C$282="Aluguel - R$/M²",AD285*AD287,AD299*AD305*$H$299),AD4>=3,IF($C$282="Aluguel - R$/M²",AD285*AD287,AD299*AD305*$H$299)))*'01. PAINEL DE CONTROLE'!$D$85*'01. PAINEL DE CONTROLE'!AF75 -> 499200 | AE282: =(_xlfn.IFS(AE4=1,IF($C$282="Aluguel - R$/M²",AE285*AE287,AE299*AE305*$H$299),AE4=2,IF($C$282="Aluguel - R$/M²",AE285*AE287,AE299*AE305*$H$299),AE4>=3,IF($C$282="Aluguel - R$/M²",AE285*AE287,AE299*AE305*$H$299)))*'01. PAINEL DE CONTROLE'!$D$85*'01. PAINEL DE CONTROLE'!AG75 -> 499200 | AF282: =(_xlfn.IFS(AF4=1,IF($C$282="Aluguel - R$/M²",AF285*AF287,AF299*AF305*$H$299),AF4=2,IF($C$282="Aluguel - R$/M²",AF285*AF287,AF299*AF305*$H$299),AF4>=3,IF($C$282="Aluguel - R$/M²",AF285*AF287,AF299*AF305*$H$299)))*'01. PAINEL DE CONTROLE'!$D$85*'01. PAINEL DE CONTROLE'!AH75 -> 499200 | AG282: =(_xlfn.IFS(AG4=1,IF($C$282="Aluguel - R$/M²",AG285*AG287,AG299*AG305*$H$299),AG4=2,IF($C$282="Aluguel - R$/M²",AG285*AG287,AG299*AG305*$H$299),AG4>=3,IF($C$282="Aluguel - R$/M²",AG285*AG287,AG299*AG305*$H$299)))*'01. PAINEL DE CONTROLE'!$D$85*'01. PAINEL DE CONTROLE'!AI75 -> 499200 | AH282: =(_xlfn.IFS(AH4=1,IF($C$282="Aluguel - R$/M²",AH285*AH287,AH299*AH305*$H$299),AH4=2,IF($C$282="Aluguel - R$/M²",AH285*AH287,AH299*AH305*$H$299),AH4>=3,IF($C$282="Aluguel - R$/M²",AH285*AH287,AH299*AH305*$H$299)))*'01. PAINEL DE CONTROLE'!$D$85*'01. PAINEL DE CONTROLE'!AJ75 -> 499200 | AI282: =(_xlfn.IFS(AI4=1,IF($C$282="Aluguel - R$/M²",AI285*AI287,AI299*AI305*$H$299),AI4=2,IF($C$282="Aluguel - R$/M²",AI285*AI287,AI299*AI305*$H$299),AI4>=3,IF($C$282="Aluguel - R$/M²",AI285*AI287,AI299*AI305*$H$299)))*'01. PAINEL DE CONTROLE'!$D$85*'01. PAINEL DE CONTROLE'!AK75 -> 499200 | AJ282: =(_xlfn.IFS(AJ4=1,IF($C$282="Aluguel - R$/M²",AJ285*AJ287,AJ299*AJ305*$H$299),AJ4=2,IF($C$282="Aluguel - R$/M²",AJ285*AJ287,AJ299*AJ305*$H$299),AJ4>=3,IF($C$282="Aluguel - R$/M²",AJ285*AJ287,AJ299*AJ305*$H$299)))*'01. PAINEL DE CONTROLE'!$D$85*'01. PAINEL DE CONTROLE'!AL75 -> 499200 | AK282: =(_xlfn.IFS(AK4=1,IF($C$282="Aluguel - R$/M²",AK285*AK287,AK299*AK305*$H$299),AK4=2,IF($C$282="Aluguel - R$/M²",AK285*AK287,AK299*AK305*$H$299),AK4>=3,IF($C$282="Aluguel - R$/M²",AK285*AK287,AK299*AK305*$H$299)))*'01. PAINEL DE CONTROLE'!$D$85*'01. PAINEL DE CONTROLE'!AM75 -> 499200 | AL282: =(_xlfn.IFS(AL4=1,IF($C$282="Aluguel - R$/M²",AL285*AL287,AL299*AL305*$H$299),AL4=2,IF($C$282="Aluguel - R$/M²",AL285*AL287,AL299*AL305*$H$299),AL4>=3,IF($C$282="Aluguel - R$/M²",AL285*AL287,AL299*AL305*$H$299)))*'01. PAINEL DE CONTROLE'!$D$85*'01. PAINEL DE CONTROLE'!AN75 -> 499200
F284: R$/m²/mês
B285: Aluguel - R$/m² - Ano | F285: 80 | I285: =$F$285*12 -> 960 | J285: =$F$285*12 -> 960 | K285: 960 | L285: =$F$285*12 -> 960 | M285: 960 | N285: 960 | O285: 960 | P285: 960 | Q285: 960 | R285: 960 | S285: 960 | T285: 960 | U285: 960 | V285: 960 | W285: 960 | X285: 960 | Y285: 960 | Z285: 960 | AA285: 960 | AB285: 960 | AC285: 960 | AD285: 960 | AE285: 960 | AF285: 960 | AG285: 960 | AH285: 960 | AI285: 960 | AJ285: 960 | AK285: 960 | AL285: 960
B287: Restaurante - m² | I287: =SUM(I291,I295:I296) -> 520 | J287: =SUM(J291,J295:J296) -> 520 | K287: 520 | L287: =SUM(L291,L295:L296) -> 520 | M287: 520 | N287: =SUM(N291,N295:N296) -> 520 | O287: 520 | P287: 520 | Q287: 520 | R287: 520 | S287: 520 | T287: 520 | U287: 520 | V287: 520 | W287: 520 | X287: 520 | Y287: 520 | Z287: 520 | AA287: 520 | AB287: 520 | AC287: 520 | AD287: 520 | AE287: 520 | AF287: 520 | AG287: 520 | AH287: 520 | AI287: 520 | AJ287: 520 | AK287: 520 | AL287: 520
B289: Setor Pedra do Amor
F290: m²
B291: Restaurante Panorâmico | F291: 300 | I291: =$F291 -> 300 | J291: =$F291 -> 300 | K291: 300 | L291: 300 | M291: 300 | N291: 300 | O291: 300 | P291: 300 | Q291: 300 | R291: 300 | S291: 300 | T291: 300 | U291: 300 | V291: 300 | W291: 300 | X291: 300 | Y291: 300 | Z291: 300 | AA291: 300 | AB291: 300 | AC291: 300 | AD291: 300 | AE291: 300 | AF291: 300 | AG291: 300 | AH291: 300 | AI291: 300 | AJ291: 300 | AK291: 300 | AL291: 300
B293: Setor Teleférico
F294: m²
B295: Restaurante (Acesso Rio Quente) | F295: 120 | I295: =$F295 -> 120 | J295: =$F295 -> 120 | K295: 120 | L295: 120 | M295: 120 | N295: 120 | O295: 120 | P295: 120 | Q295: 120 | R295: 120 | S295: 120 | T295: 120 | U295: 120 | V295: 120 | W295: 120 | X295: 120 | Y295: 120 | Z295: 120 | AA295: 120 | AB295: 120 | AC295: 120 | AD295: 120 | AE295: 120 | AF295: 120 | AG295: 120 | AH295: 120 | AI295: 120 | AJ295: 120 | AK295: 120 | AL295: 120
B296: Restaurante (Mirante dos Urubus) | F296: 100 | I296: =$F296 -> 100 | J296: 100 | K296: 100 | L296: 100 | M296: 100 | N296: 100 | O296: 100 | P296: 100 | Q296: 100 | R296: 100 | S296: 100 | T296: 100 | U296: 100 | V296: 100 | W296: 100 | X296: 100 | Y296: 100 | Z296: 100 | AA296: 100 | AB296: 100 | AC296: 100 | AD296: 100 | AE296: 100 | AF296: 100 | AG296: 100 | AH296: 100 | AI296: 100 | AJ296: 100 | AK296: 100 | AL296: 100
D298: Grau de Interesse | F298: Aceita Pagar | H298: Receita c/ Aluguel - % sobre Faturamento
B299: =B262 -> Volume de visitantes | D299: ='1.3_DemandaAtrativosDesejo'!C24 -> 0.5494671875 | F299: ='1.3_DemandaAtrativosDesejo'!D24 -> 0.77068125 | H299: 0.0751 | I299: =$D299*$F299*I$41 -> 22351.02657 | J299: =$D299*$F299*J$41 -> 40485.42501 | K299: 65717.53769 | L299: =$D299*$F299*L$41 -> 116392.6086 | M299: 188193.9797 | N299: 275837.7865 | O299: 392505.9046 | P299: 492570.9535 | Q299: 554585.9358 | R299: 603489.4927 | S299: 638458.4213 | T299: 665816.5615 | U299: 685209.5854 | V299: 703490.6932 | W299: 713448.8394 | X299: 714968.5419 | Y299: 716491.4814 | Z299: 718017.665 | AA299: 719547.0995 | AB299: 721079.7917 | AC299: 722615.7488 | AD299: 724154.9775 | AE299: 725697.4849 | AF299: 727243.278 | AG299: 728792.3638 | AH299: 730344.7492 | AI299: 731900.4413 | AJ299: 733459.4472 | AK299: 735021.7738 | AL299: 736587.4284
B300: Mês | I300: =I299/12 -> 1862.585547 | J300: 3373.785418 | K300: 5476.461474 | L300: 9699.384052 | M300: 15682.83164 | N300: 22986.48221 | O300: 32708.82538 | P300: 41047.57946 | Q300: 46215.49465 | R300: 50290.79106 | S300: 53204.86844 | T300: 55484.71346 | U300: 57100.79878 | V300: 58624.22443 | W300: 59454.06995 | X300: 59580.71182 | Y300: 59707.62345 | Z300: 59834.80542 | AA300: 59962.25829 | AB300: 60089.98265 | AC300: 60217.97906 | AD300: 60346.24813 | AE300: 60474.79041 | AF300: 60603.6065 | AG300: 60732.69698 | AH300: 60862.06243 | AI300: 60991.70344 | AJ300: 61121.6206 | AK300: 61251.81449 | AL300: 61382.2857
B301: Dia | I301: =I300/30 -> 62.0861849 | J301: 112.4595139 | K301: 182.5487158 | L301: 323.3128017 | M301: 522.7610548 | N301: 766.2160736 | O301: 1090.294179 | P301: 1368.252649 | Q301: 1540.516488 | R301: 1676.359702 | S301: 1773.495615 | T301: 1849.490449 | U301: 1903.359959 | V301: 1954.140814 | W301: 1981.802332 | X301: 1986.023727 | Y301: 1990.254115 | Z301: 1994.493514 | AA301: 1998.741943 | AB301: 2002.999422 | AC301: 2007.265969 | AD301: 2011.541604 | AE301: 2015.826347 | AF301: 2020.120217 | AG301: 2024.423233 | AH301: 2028.735414 | AI301: 2033.056781 | AJ301: 2037.387353 | AK301: 2041.72715 | AL301: 2046.07619
B303: Tx de Captura | I303: =I299/I$41 -> 0.4234640589 | J303: 0.4234640589 | K303: 0.4234640589 | L303: 0.4234640589 | M303: 0.4234640589 | N303: 0.4234640589 | O303: 0.4234640589 | P303: 0.4234640589 | Q303: 0.4234640589 | R303: 0.4234640589 | S303: 0.4234640589 | T303: 0.4234640589 | U303: 0.4234640589 | V303: 0.4234640589 | W303: 0.4234640589 | X303: 0.4234640589 | Y303: 0.4234640589 | Z303: 0.4234640589 | AA303: 0.4234640589 | AB303: 0.4234640589 | AC303: 0.4234640589 | AD303: 0.4234640589 | AE303: 0.4234640589 | AF303: 0.4234640589 | AG303: 0.4234640589 | AH303: 0.4234640589 | AI303: 0.4234640589 | AJ303: 0.4234640589 | AK303: 0.4234640589 | AL303: 0.4234640589
F304: Ticket Médio
B305: Ticket Médio | F305: ='1.4_ReceitasEstimadas'!C27 -> 77.05555556 | I305: =$F$305 -> 77.05555556 | J305: 77.05555556 | K305: 77.05555556 | L305: 77.05555556 | M305: 77.05555556 | N305: 77.05555556 | O305: 77.05555556 | P305: 77.05555556 | Q305: 77.05555556 | R305: 77.05555556 | S305: 77.05555556 | T305: 77.05555556 | U305: 77.05555556 | V305: 77.05555556 | W305: 77.05555556 | X305: 77.05555556 | Y305: 77.05555556 | Z305: 77.05555556 | AA305: 77.05555556 | AB305: 77.05555556 | AC305: 77.05555556 | AD305: 77.05555556 | AE305: 77.05555556 | AF305: 77.05555556 | AG305: 77.05555556 | AH305: 77.05555556 | AI305: 77.05555556 | AJ305: 77.05555556 | AK305: 77.05555556 | AL305: 77.05555556
... 105 more rows

Sheet 05. OPEX
A1: ='00. PAINEL DE RESULTADOS'!A1 -> Parque Estadual da Serra de Caldas Novas (PESCaN) | F1: =VPL_Projeto -> 0
A2: OPEX
B4: ANO | G4: =F4+1 -> 1 | H4: =G4+1 -> 2 | I4: 3 | J4: 4 | K4: 5 | L4: 6 | M4: 7 | N4: 8 | O4: 9 | P4: 10 | Q4: 11 | R4: 12 | S4: 13 | T4: 14 | U4: 15 | V4: 16 | W4: 17 | X4: 18 | Y4: 19 | Z4: 20 | AA4: 21 | AB4: 22 | AC4: 23 | AD4: 24 | AE4: 25 | AF4: 26 | AG4: 27 | AH4: 28 | AI4: 29 | AJ4: 30 | AL4: 1 | AM4: 2 | AN4: 3 | AO4: 4
E5: Total | F5: Média Anual
A6: x | B6: OPEX Total | E6: =SUM(G6:AJ6) -> -1391717376 | F6: =SUM(F8:F38) -> -46390579.22 | G6: =SUM(G8:G38) -> -17767213.75 | H6: =SUM(H8:H38) -> -23060500.45 | I6: -31358740.77 | J6: -35832886.57 | K6: -37916290.97 | L6: -40131727.15 | M6: -43464153.69 | N6: -46245416.98 | O6: -47684179.51 | P6: -48940958.21 | Q6: -49579349.45 | R6: -50078814.5 | S6: -50432615.4 | T6: -50765986.22 | U6: -50947232.11 | V6: -50974087.85 | W6: -51001153.86 | X6: -51028277.55 | Y6: -51055459.03 | Z6: -51082698.43 | AA6: -51110526.25 | AB6: -51138666.57 | AC6: -51166866.82 | AD6: -51195127.14 | AE6: -51223447.66 | AF6: -51251828.5 | AG6: -51280269.8 | AH6: -51308771.68 | AI6: -51332753.09 | AJ6: -51361376.52 | AL6: =SUM(AL8:AL38) -> 0 | AM6: 0 | AN6: 0 | AO6: 0
B8: =B377 -> Bilheteria | E8: =SUM(G8:AJ8) -> -53147879.95 | F8: =AVERAGE(G8:AJ8) -> -1771595.998 | G8: =-IF(G$4>'01. PAINEL DE CONTROLE'!$D$6,0,G124*G$110)*G$108 -> -203631.7239 | H8: =-IF(H$4>'01. PAINEL DE CONTROLE'!$D$6,0,H124*H$110)*H$108 -> -407263.4479 | I8: =-IF(I$4>'01. PAINEL DE CONTROLE'!$D$6,0,I124*I$110)*I$108 -> -814526.8957 | J8: =-IF(J$4>'01. PAINEL DE CONTROLE'!$D$6,0,J124*J$110)*J$108 -> -814526.8957 | K8: =-IF(K$4>'01. PAINEL DE CONTROLE'!$D$6,0,K124*K$110)*K$108 -> -1221790.344 | L8: =-IF(L$4>'01. PAINEL DE CONTROLE'!$D$6,0,L124*L$110)*L$108 -> -1221790.344 | M8: =-IF(M$4>'01. PAINEL DE CONTROLE'!$D$6,0,M124*M$110)*M$108 -> -1629053.791 | N8: =-IF(N$4>'01. PAINEL DE CONTROLE'!$D$6,0,N124*N$110)*N$108 -> -2036317.239 | O8: =-IF(O$4>'01. PAINEL DE CONTROLE'!$D$6,0,O124*O$110)*O$108 -> -2036317.239 | P8: =-IF(P$4>'01. PAINEL DE CONTROLE'!$D$6,0,P124*P$110)*P$108 -> -2036317.239 | Q8: =-IF(Q$4>'01. PAINEL DE CONTROLE'!$D$6,0,Q124*Q$110)*Q$108 -> -2036317.239 | R8: =-IF(R$4>'01. PAINEL DE CONTROLE'!$D$6,0,R124*R$110)*R$108 -> -2036317.239 | S8: =-IF(S$4>'01. PAINEL DE CONTROLE'!$D$6,0,S124*S$110)*S$108 -> -2036317.239 | T8: =-IF(T$4>'01. PAINEL DE CONTROLE'!$D$6,0,T124*T$110)*T$108 -> -2036317.239 | U8: =-IF(U$4>'01. PAINEL DE CONTROLE'!$D$6,0,U124*U$110)*U$108 -> -2036317.239 | V8: =-IF(V$4>'01. PAINEL DE CONTROLE'!$D$6,0,V124*V$110)*V$108 -> -2036317.239 | W8: =-IF(W$4>'01. PAINEL DE CONTROLE'!$D$6,0,W124*W$110)*W$108 -> -2036317.239 | X8: =-IF(X$4>'01. PAINEL DE CONTROLE'!$D$6,0,X124*X$110)*X$108 -> -2036317.239 | Y8: =-IF(Y$4>'01. PAINEL DE CONTROLE'!$D$6,0,Y124*Y$110)*Y$108 -> -2036317.239 | Z8: =-IF(Z$4>'01. PAINEL DE CONTROLE'!$D$6,0,Z124*Z$110)*Z$108 -> -2036317.239 | AA8: =-IF(AA$4>'01. PAINEL DE CONTROLE'!$D$6,0,AA124*AA$110)*AA$108 -> -2036317.239 | AB8: =-IF(AB$4>'01. PAINEL DE CONTROLE'!$D$6,0,AB124*AB$110)*AB$108 -> -2036317.239 | AC8: =-IF(AC$4>'01. PAINEL DE CONTROLE'!$D$6,0,AC124*AC$110)*AC$108 -> -2036317.239 | AD8: =-IF(AD$4>'01. PAINEL DE CONTROLE'!$D$6,0,AD124*AD$110)*AD$108 -> -2036317.239 | AE8: =-IF(AE$4>'01. PAINEL DE CONTROLE'!$D$6,0,AE124*AE$110)*AE$108 -> -2036317.239 | AF8: =-IF(AF$4>'01. PAINEL DE CONTROLE'!$D$6,0,AF124*AF$110)*AF$108 -> -2036317.239 | AG8: =-IF(AG$4>'01. PAINEL DE CONTROLE'!$D$6,0,AG124*AG$110)*AG$108 -> -2036317.239 | AH8: =-IF(AH$4>'01. PAINEL DE CONTROLE'!$D$6,0,AH124*AH$110)*AH$108 -> -2036317.239 | AI8: =-IF(AI$4>'01. PAINEL DE CONTROLE'!$D$6,0,AI124*AI$110)*AI$108 -> -2036317.239 | AJ8: =-IF(AJ$4>'01. PAINEL DE CONTROLE'!$D$6,0,AJ124*AJ$110)*AJ$108 -> -2036317.239 | AL8: =-IF(AL$4>'01. PAINEL DE CONTROLE'!$D$6,0,AL124*AL$110)*AL$108 -> 0 | AM8: =-IF(AM$4>'01. PAINEL DE CONTROLE'!$D$6,0,AM124*AM$110)*AM$108 -> 0 | AN8: =-IF(AN$4>'01. PAINEL DE CONTROLE'!$D$6,0,AN124*AN$110)*AN$108 -> 0 | AO8: =-IF(AO$4>'01. PAINEL DE CONTROLE'!$D$6,0,AO124*AO$110)*AO$108 -> 0
B9: =B403 -> Teleferico | E9: -133072152.4 | F9: =AVERAGE(G9:AJ9) -> -4435738.413 | G9: =-IF(G$4>'01. PAINEL DE CONTROLE'!$D$6,0,G132*G$110)*G$108 -> 0 | H9: =-IF(H$4>'01. PAINEL DE CONTROLE'!$D$6,0,H132*H$110)*H$108 -> 0 | I9: =-IF(I$4>'01. PAINEL DE CONTROLE'!$D$6,0,I132*I$110)*I$108 -> -609290.9312 | J9: =-IF(J$4>'01. PAINEL DE CONTROLE'!$D$6,0,J132*J$110)*J$108 -> -1752581.412 | K9: =-IF(K$4>'01. PAINEL DE CONTROLE'!$D$6,0,K132*K$110)*K$108 -> -2144393.275 | L9: =-IF(L$4>'01. PAINEL DE CONTROLE'!$D$6,0,L132*L$110)*L$108 -> -2633674.125 | M9: =-IF(M$4>'01. PAINEL DE CONTROLE'!$D$6,0,M132*M$110)*M$108 -> -3286496.964 | N9: =-IF(N$4>'01. PAINEL DE CONTROLE'!$D$6,0,N132*N$110)*N$108 -> -3926813.781 | O9: =-IF(O$4>'01. PAINEL DE CONTROLE'!$D$6,0,O132*O$110)*O$108 -> -4443192.297 | P9: =-IF(P$4>'01. PAINEL DE CONTROLE'!$D$6,0,P132*P$110)*P$108 -> -4927590.596 | Q9: =-IF(Q$4>'01. PAINEL DE CONTROLE'!$D$6,0,Q132*Q$110)*Q$108 -> -5097455.924 | R9: =-IF(R$4>'01. PAINEL DE CONTROLE'!$D$6,0,R132*R$110)*R$108 -> -5230351.029 | S9: =-IF(S$4>'01. PAINEL DE CONTROLE'!$D$6,0,S132*S$110)*S$108 -> -5324554.727 | T9: =-IF(T$4>'01. PAINEL DE CONTROLE'!$D$6,0,T132*T$110)*T$108 -> -5413357.172 | U9: =-IF(U$4>'01. PAINEL DE CONTROLE'!$D$6,0,U132*U$110)*U$108 -> -5461729.937 | V9: =-IF(V$4>'01. PAINEL DE CONTROLE'!$D$6,0,V132*V$110)*V$108 -> -5469112.055 | W9: =-IF(W$4>'01. PAINEL DE CONTROLE'!$D$6,0,W132*W$110)*W$108 -> -5476509.898 | X9: =-IF(X$4>'01. PAINEL DE CONTROLE'!$D$6,0,X132*X$110)*X$108 -> -5483923.499 | Y9: =-IF(Y$4>'01. PAINEL DE CONTROLE'!$D$6,0,Y132*Y$110)*Y$108 -> -5491352.891 | Z9: =-IF(Z$4>'01. PAINEL DE CONTROLE'!$D$6,0,Z132*Z$110)*Z$108 -> -5498798.108 | AA9: =-IF(AA$4>'01. PAINEL DE CONTROLE'!$D$6,0,AA132*AA$110)*AA$108 -> -5506259.185 | AB9: =-IF(AB$4>'01. PAINEL DE CONTROLE'!$D$6,0,AB132*AB$110)*AB$108 -> -5513736.154 | AC9: =-IF(AC$4>'01. PAINEL DE CONTROLE'!$D$6,0,AC132*AC$110)*AC$108 -> -5521229.049 | AD9: =-IF(AD$4>'01. PAINEL DE CONTROLE'!$D$6,0,AD132*AD$110)*AD$108 -> -5528737.905 | AE9: =-IF(AE$4>'01. PAINEL DE CONTROLE'!$D$6,0,AE132*AE$110)*AE$108 -> -5536262.756 | AF9: =-IF(AF$4>'01. PAINEL DE CONTROLE'!$D$6,0,AF132*AF$110)*AF$108 -> -5543803.635 | AG9: =-IF(AG$4>'01. PAINEL DE CONTROLE'!$D$6,0,AG132*AG$110)*AG$108 -> -5551360.576 | AH9: =-IF(AH$4>'01. PAINEL DE CONTROLE'!$D$6,0,AH132*AH$110)*AH$108 -> -5558933.615 | AI9: =-IF(AI$4>'01. PAINEL DE CONTROLE'!$D$6,0,AI132*AI$110)*AI$108 -> -5566522.784 | AJ9: =-IF(AJ$4>'01. PAINEL DE CONTROLE'!$D$6,0,AJ132*AJ$110)*AJ$108 -> -5574128.12 | AL9: =-IF(AL$4>'01. PAINEL DE CONTROLE'!$D$6,0,AL132*AL$110)*AL$108 -> 0 | AM9: =-IF(AM$4>'01. PAINEL DE CONTROLE'!$D$6,0,AM132*AM$110)*AM$108 -> 0 | AN9: =-IF(AN$4>'01. PAINEL DE CONTROLE'!$D$6,0,AN132*AN$110)*AN$108 -> 0 | AO9: =-IF(AO$4>'01. PAINEL DE CONTROLE'!$D$6,0,AO132*AO$110)*AO$108 -> 0
B10: =B431 -> Trenó de Montanha | E10: 0 | F10: 0 | G10: =-IF(G$4>'01. PAINEL DE CONTROLE'!$D$6,0,G140*G$110)*G$108 -> 0 | H10: =-IF(H$4>'01. PAINEL DE CONTROLE'!$D$6,0,H140*H$110)*H$108 -> 0 | I10: =-IF(I$4>'01. PAINEL DE CONTROLE'!$D$6,0,I140*I$110)*I$108 -> 0 | J10: =-IF(J$4>'01. PAINEL DE CONTROLE'!$D$6,0,J140*J$110)*J$108 -> 0 | K10: =-IF(K$4>'01. PAINEL DE CONTROLE'!$D$6,0,K140*K$110)*K$108 -> 0 | L10: =-IF(L$4>'01. PAINEL DE CONTROLE'!$D$6,0,L140*L$110)*L$108 -> 0 | M10: =-IF(M$4>'01. PAINEL DE CONTROLE'!$D$6,0,M140*M$110)*M$108 -> 0 | N10: =-IF(N$4>'01. PAINEL DE CONTROLE'!$D$6,0,N140*N$110)*N$108 -> 0 | O10: =-IF(O$4>'01. PAINEL DE CONTROLE'!$D$6,0,O140*O$110)*O$108 -> 0 | P10: =-IF(P$4>'01. PAINEL DE CONTROLE'!$D$6,0,P140*P$110)*P$108 -> 0 | Q10: =-IF(Q$4>'01. PAINEL DE CONTROLE'!$D$6,0,Q140*Q$110)*Q$108 -> 0 | R10: =-IF(R$4>'01. PAINEL DE CONTROLE'!$D$6,0,R140*R$110)*R$108 -> 0 | S10: =-IF(S$4>'01. PAINEL DE CONTROLE'!$D$6,0,S140*S$110)*S$108 -> 0 | T10: =-IF(T$4>'01. PAINEL DE CONTROLE'!$D$6,0,T140*T$110)*T$108 -> 0 | U10: =-IF(U$4>'01. PAINEL DE CONTROLE'!$D$6,0,U140*U$110)*U$108 -> 0 | V10: =-IF(V$4>'01. PAINEL DE CONTROLE'!$D$6,0,V140*V$110)*V$108 -> 0 | W10: =-IF(W$4>'01. PAINEL DE CONTROLE'!$D$6,0,W140*W$110)*W$108 -> 0 | X10: =-IF(X$4>'01. PAINEL DE CONTROLE'!$D$6,0,X140*X$110)*X$108 -> 0 | Y10: =-IF(Y$4>'01. PAINEL DE CONTROLE'!$D$6,0,Y140*Y$110)*Y$108 -> 0 | Z10: =-IF(Z$4>'01. PAINEL DE CONTROLE'!$D$6,0,Z140*Z$110)*Z$108 -> 0 | AA10: =-IF(AA$4>'01. PAINEL DE CONTROLE'!$D$6,0,AA140*AA$110)*AA$108 -> 0 | AB10: =-IF(AB$4>'01. PAINEL DE CONTROLE'!$D$6,0,AB140*AB$110)*AB$108 -> 0 | AC10: =-IF(AC$4>'01. PAINEL DE CONTROLE'!$D$6,0,AC140*AC$110)*AC$108 -> 0 | AD10: =-IF(AD$4>'01. PAINEL DE CONTROLE'!$D$6,0,AD140*AD$110)*AD$108 -> 0 | AE10: =-IF(AE$4>'01. PAINEL DE CONTROLE'!$D$6,0,AE140*AE$110)*AE$108 -> 0 | AF10: =-IF(AF$4>'01. PAINEL DE CONTROLE'!$D$6,0,AF140*AF$110)*AF$108 -> 0 | AG10: =-IF(AG$4>'01. PAINEL DE CONTROLE'!$D$6,0,AG140*AG$110)*AG$108 -> 0 | AH10: =-IF(AH$4>'01. PAINEL DE CONTROLE'!$D$6,0,AH140*AH$110)*AH$108 -> 0 | AI10: =-IF(AI$4>'01. PAINEL DE CONTROLE'!$D$6,0,AI140*AI$110)*AI$108 -> 0 | AJ10: =-IF(AJ$4>'01. PAINEL DE CONTROLE'!$D$6,0,AJ140*AJ$110)*AJ$108 -> 0 | AL10: =-IF(AL$4>'01. PAINEL DE CONTROLE'!$D$6,0,AL140*AL$110)*AL$108 -> 0 | AM10: =-IF(AM$4>'01. PAINEL DE CONTROLE'!$D$6,0,AM140*AM$110)*AM$108 -> 0 | AN10: =-IF(AN$4>'01. PAINEL DE CONTROLE'!$D$6,0,AN140*AN$110)*AN$108 -> 0 | AO10: =-IF(AO$4>'01. PAINEL DE CONTROLE'!$D$6,0,AO140*AO$110)*AO$108 -> 0
B11: =B455 -> Cachoeiras | E11: 0 | F11: 0 | G11: =-IF(G$4>'01. PAINEL DE CONTROLE'!$D$6,0,G148*G$110)*G$108 -> 0 | H11: =-IF(H$4>'01. PAINEL DE CONTROLE'!$D$6,0,H148*H$110)*H$108 -> 0 | I11: =-IF(I$4>'01. PAINEL DE CONTROLE'!$D$6,0,I148*I$110)*I$108 -> 0 | J11: =-IF(J$4>'01. PAINEL DE CONTROLE'!$D$6,0,J148*J$110)*J$108 -> 0 | K11: =-IF(K$4>'01. PAINEL DE CONTROLE'!$D$6,0,K148*K$110)*K$108 -> 0 | L11: =-IF(L$4>'01. PAINEL DE CONTROLE'!$D$6,0,L148*L$110)*L$108 -> 0 | M11: =-IF(M$4>'01. PAINEL DE CONTROLE'!$D$6,0,M148*M$110)*M$108 -> 0 | N11: =-IF(N$4>'01. PAINEL DE CONTROLE'!$D$6,0,N148*N$110)*N$108 -> 0 | O11: =-IF(O$4>'01. PAINEL DE CONTROLE'!$D$6,0,O148*O$110)*O$108 -> 0 | P11: =-IF(P$4>'01. PAINEL DE CONTROLE'!$D$6,0,P148*P$110)*P$108 -> 0 | Q11: =-IF(Q$4>'01. PAINEL DE CONTROLE'!$D$6,0,Q148*Q$110)*Q$108 -> 0 | R11: =-IF(R$4>'01. PAINEL DE CONTROLE'!$D$6,0,R148*R$110)*R$108 -> 0 | S11: =-IF(S$4>'01. PAINEL DE CONTROLE'!$D$6,0,S148*S$110)*S$108 -> 0 | T11: =-IF(T$4>'01. PAINEL DE CONTROLE'!$D$6,0,T148*T$110)*T$108 -> 0 | U11: =-IF(U$4>'01. PAINEL DE CONTROLE'!$D$6,0,U148*U$110)*U$108 -> 0 | V11: =-IF(V$4>'01. PAINEL DE CONTROLE'!$D$6,0,V148*V$110)*V$108 -> 0 | W11: =-IF(W$4>'01. PAINEL DE CONTROLE'!$D$6,0,W148*W$110)*W$108 -> 0 | X11: =-IF(X$4>'01. PAINEL DE CONTROLE'!$D$6,0,X148*X$110)*X$108 -> 0 | Y11: =-IF(Y$4>'01. PAINEL DE CONTROLE'!$D$6,0,Y148*Y$110)*Y$108 -> 0 | Z11: =-IF(Z$4>'01. PAINEL DE CONTROLE'!$D$6,0,Z148*Z$110)*Z$108 -> 0 | AA11: =-IF(AA$4>'01. PAINEL DE CONTROLE'!$D$6,0,AA148*AA$110)*AA$108 -> 0 | AB11: =-IF(AB$4>'01. PAINEL DE CONTROLE'!$D$6,0,AB148*AB$110)*AB$108 -> 0 | AC11: =-IF(AC$4>'01. PAINEL DE CONTROLE'!$D$6,0,AC148*AC$110)*AC$108 -> 0 | AD11: =-IF(AD$4>'01. PAINEL DE CONTROLE'!$D$6,0,AD148*AD$110)*AD$108 -> 0 | AE11: =-IF(AE$4>'01. PAINEL DE CONTROLE'!$D$6,0,AE148*AE$110)*AE$108 -> 0 | AF11: =-IF(AF$4>'01. PAINEL DE CONTROLE'!$D$6,0,AF148*AF$110)*AF$108 -> 0 | AG11: =-IF(AG$4>'01. PAINEL DE CONTROLE'!$D$6,0,AG148*AG$110)*AG$108 -> 0 | AH11: =-IF(AH$4>'01. PAINEL DE CONTROLE'!$D$6,0,AH148*AH$110)*AH$108 -> 0 | AI11: =-IF(AI$4>'01. PAINEL DE CONTROLE'!$D$6,0,AI148*AI$110)*AI$108 -> 0 | AJ11: =-IF(AJ$4>'01. PAINEL DE CONTROLE'!$D$6,0,AJ148*AJ$110)*AJ$108 -> 0 | AL11: =-IF(AL$4>'01. PAINEL DE CONTROLE'!$D$6,0,AL148*AL$110)*AL$108 -> 0 | AM11: =-IF(AM$4>'01. PAINEL DE CONTROLE'!$D$6,0,AM148*AM$110)*AM$108 -> 0 | AN11: =-IF(AN$4>'01. PAINEL DE CONTROLE'!$D$6,0,AN148*AN$110)*AN$108 -> 0 | AO11: =-IF(AO$4>'01. PAINEL DE CONTROLE'!$D$6,0,AO148*AO$110)*AO$108 -> 0
B12: =B469 -> Mirantes | E12: 0 | F12: 0 | G12: =-IF(G$4>'01. PAINEL DE CONTROLE'!$D$6,0,G156*G$110)*G$108 -> 0 | H12: =-IF(H$4>'01. PAINEL DE CONTROLE'!$D$6,0,H156*H$110)*H$108 -> 0 | I12: =-IF(I$4>'01. PAINEL DE CONTROLE'!$D$6,0,I156*I$110)*I$108 -> 0 | J12: =-IF(J$4>'01. PAINEL DE CONTROLE'!$D$6,0,J156*J$110)*J$108 -> 0 | K12: =-IF(K$4>'01. PAINEL DE CONTROLE'!$D$6,0,K156*K$110)*K$108 -> 0 | L12: =-IF(L$4>'01. PAINEL DE CONTROLE'!$D$6,0,L156*L$110)*L$108 -> 0 | M12: =-IF(M$4>'01. PAINEL DE CONTROLE'!$D$6,0,M156*M$110)*M$108 -> 0 | N12: =-IF(N$4>'01. PAINEL DE CONTROLE'!$D$6,0,N156*N$110)*N$108 -> 0 | O12: =-IF(O$4>'01. PAINEL DE CONTROLE'!$D$6,0,O156*O$110)*O$108 -> 0 | P12: =-IF(P$4>'01. PAINEL DE CONTROLE'!$D$6,0,P156*P$110)*P$108 -> 0 | Q12: =-IF(Q$4>'01. PAINEL DE CONTROLE'!$D$6,0,Q156*Q$110)*Q$108 -> 0 | R12: =-IF(R$4>'01. PAINEL DE CONTROLE'!$D$6,0,R156*R$110)*R$108 -> 0 | S12: =-IF(S$4>'01. PAINEL DE CONTROLE'!$D$6,0,S156*S$110)*S$108 -> 0 | T12: =-IF(T$4>'01. PAINEL DE CONTROLE'!$D$6,0,T156*T$110)*T$108 -> 0 | U12: =-IF(U$4>'01. PAINEL DE CONTROLE'!$D$6,0,U156*U$110)*U$108 -> 0 | V12: =-IF(V$4>'01. PAINEL DE CONTROLE'!$D$6,0,V156*V$110)*V$108 -> 0 | W12: =-IF(W$4>'01. PAINEL DE CONTROLE'!$D$6,0,W156*W$110)*W$108 -> 0 | X12: =-IF(X$4>'01. PAINEL DE CONTROLE'!$D$6,0,X156*X$110)*X$108 -> 0 | Y12: =-IF(Y$4>'01. PAINEL DE CONTROLE'!$D$6,0,Y156*Y$110)*Y$108 -> 0 | Z12: =-IF(Z$4>'01. PAINEL DE CONTROLE'!$D$6,0,Z156*Z$110)*Z$108 -> 0 | AA12: =-IF(AA$4>'01. PAINEL DE CONTROLE'!$D$6,0,AA156*AA$110)*AA$108 -> 0 | AB12: =-IF(AB$4>'01. PAINEL DE CONTROLE'!$D$6,0,AB156*AB$110)*AB$108 -> 0 | AC12: =-IF(AC$4>'01. PAINEL DE CONTROLE'!$D$6,0,AC156*AC$110)*AC$108 -> 0 | AD12: =-IF(AD$4>'01. PAINEL DE CONTROLE'!$D$6,0,AD156*AD$110)*AD$108 -> 0 | AE12: =-IF(AE$4>'01. PAINEL DE CONTROLE'!$D$6,0,AE156*AE$110)*AE$108 -> 0 | AF12: =-IF(AF$4>'01. PAINEL DE CONTROLE'!$D$6,0,AF156*AF$110)*AF$108 -> 0 | AG12: =-IF(AG$4>'01. PAINEL DE CONTROLE'!$D$6,0,AG156*AG$110)*AG$108 -> 0 | AH12: =-IF(AH$4>'01. PAINEL DE CONTROLE'!$D$6,0,AH156*AH$110)*AH$108 -> 0 | AI12: =-IF(AI$4>'01. PAINEL DE CONTROLE'!$D$6,0,AI156*AI$110)*AI$108 -> 0 | AJ12: =-IF(AJ$4>'01. PAINEL DE CONTROLE'!$D$6,0,AJ156*AJ$110)*AJ$108 -> 0 | AL12: =-IF(AL$4>'01. PAINEL DE CONTROLE'!$D$6,0,AL156*AL$110)*AL$108 -> 0 | AM12: =-IF(AM$4>'01. PAINEL DE CONTROLE'!$D$6,0,AM156*AM$110)*AM$108 -> 0 | AN12: =-IF(AN$4>'01. PAINEL DE CONTROLE'!$D$6,0,AN156*AN$110)*AN$108 -> 0 | AO12: =-IF(AO$4>'01. PAINEL DE CONTROLE'!$D$6,0,AO156*AO$110)*AO$108 -> 0
B13: =B483 -> Trilhas Guiadas | E13: -34732352.88 | F13: -1157745.096 | G13: =-IF(G$4>'01. PAINEL DE CONTROLE'!$D$6,0,G164*G$110)*G$108 -> -191187.2636 | H13: =-IF(H$4>'01. PAINEL DE CONTROLE'!$D$6,0,H164*H$110)*H$108 -> -382374.5271 | I13: =-IF(I$4>'01. PAINEL DE CONTROLE'!$D$6,0,I164*I$110)*I$108 -> -764749.0543 | J13: =-IF(J$4>'01. PAINEL DE CONTROLE'!$D$6,0,J164*J$110)*J$108 -> -764749.0543 | K13: =-IF(K$4>'01. PAINEL DE CONTROLE'!$D$6,0,K164*K$110)*K$108 -> -1019665.406 | L13: =-IF(L$4>'01. PAINEL DE CONTROLE'!$D$6,0,L164*L$110)*L$108 -> -1019665.406 | M13: =-IF(M$4>'01. PAINEL DE CONTROLE'!$D$6,0,M164*M$110)*M$108 -> -1274581.757 | N13: =-IF(N$4>'01. PAINEL DE CONTROLE'!$D$6,0,N164*N$110)*N$108 -> -1274581.757 | O13: =-IF(O$4>'01. PAINEL DE CONTROLE'!$D$6,0,O164*O$110)*O$108 -> -1274581.757 | P13: =-IF(P$4>'01. PAINEL DE CONTROLE'!$D$6,0,P164*P$110)*P$108 -> -1274581.757 | Q13: =-IF(Q$4>'01. PAINEL DE CONTROLE'!$D$6,0,Q164*Q$110)*Q$108 -> -1274581.757 | R13: =-IF(R$4>'01. PAINEL DE CONTROLE'!$D$6,0,R164*R$110)*R$108 -> -1274581.757 | S13: =-IF(S$4>'01. PAINEL DE CONTROLE'!$D$6,0,S164*S$110)*S$108 -> -1274581.757 | T13: =-IF(T$4>'01. PAINEL DE CONTROLE'!$D$6,0,T164*T$110)*T$108 -> -1274581.757 | U13: =-IF(U$4>'01. PAINEL DE CONTROLE'!$D$6,0,U164*U$110)*U$108 -> -1274581.757 | V13: =-IF(V$4>'01. PAINEL DE CONTROLE'!$D$6,0,V164*V$110)*V$108 -> -1274581.757 | W13: =-IF(W$4>'01. PAINEL DE CONTROLE'!$D$6,0,W164*W$110)*W$108 -> -1274581.757 | X13: =-IF(X$4>'01. PAINEL DE CONTROLE'!$D$6,0,X164*X$110)*X$108 -> -1274581.757 | Y13: =-IF(Y$4>'01. PAINEL DE CONTROLE'!$D$6,0,Y164*Y$110)*Y$108 -> -1274581.757 | Z13: =-IF(Z$4>'01. PAINEL DE CONTROLE'!$D$6,0,Z164*Z$110)*Z$108 -> -1274581.757 | AA13: =-IF(AA$4>'01. PAINEL DE CONTROLE'!$D$6,0,AA164*AA$110)*AA$108 -> -1274581.757 | AB13: =-IF(AB$4>'01. PAINEL DE CONTROLE'!$D$6,0,AB164*AB$110)*AB$108 -> -1274581.757 | AC13: =-IF(AC$4>'01. PAINEL DE CONTROLE'!$D$6,0,AC164*AC$110)*AC$108 -> -1274581.757 | AD13: =-IF(AD$4>'01. PAINEL DE CONTROLE'!$D$6,0,AD164*AD$110)*AD$108 -> -1274581.757 | AE13: =-IF(AE$4>'01. PAINEL DE CONTROLE'!$D$6,0,AE164*AE$110)*AE$108 -> -1274581.757 | AF13: =-IF(AF$4>'01. PAINEL DE CONTROLE'!$D$6,0,AF164*AF$110)*AF$108 -> -1274581.757 | AG13: =-IF(AG$4>'01. PAINEL DE CONTROLE'!$D$6,0,AG164*AG$110)*AG$108 -> -1274581.757 | AH13: =-IF(AH$4>'01. PAINEL DE CONTROLE'!$D$6,0,AH164*AH$110)*AH$108 -> -1274581.757 | AI13: =-IF(AI$4>'01. PAINEL DE CONTROLE'!$D$6,0,AI164*AI$110)*AI$108 -> -1274581.757 | AJ13: =-IF(AJ$4>'01. PAINEL DE CONTROLE'!$D$6,0,AJ164*AJ$110)*AJ$108 -> -1274581.757 | AL13: =-IF(AL$4>'01. PAINEL DE CONTROLE'!$D$6,0,AL164*AL$110)*AL$108 -> 0 | AM13: =-IF(AM$4>'01. PAINEL DE CONTROLE'!$D$6,0,AM164*AM$110)*AM$108 -> 0 | AN13: =-IF(AN$4>'01. PAINEL DE CONTROLE'!$D$6,0,AN164*AN$110)*AN$108 -> 0 | AO13: =-IF(AO$4>'01. PAINEL DE CONTROLE'!$D$6,0,AO164*AO$110)*AO$108 -> 0
B14: =B497 -> Atividades de Educação Ambiental - Total | E14: -83852848.12 | F14: -2795094.937 | G14: =-IF(G$4>'01. PAINEL DE CONTROLE'!$D$6,0,G172*G$110)*G$108 -> -491323.421 | H14: =-IF(H$4>'01. PAINEL DE CONTROLE'!$D$6,0,H172*H$110)*H$108 -> -1636689.649 | I14: =-IF(I$4>'01. PAINEL DE CONTROLE'!$D$6,0,I172*I$110)*I$108 -> -2178461.7 | J14: =-IF(J$4>'01. PAINEL DE CONTROLE'!$D$6,0,J172*J$110)*J$108 -> -2946161.976 | K14: =-IF(K$4>'01. PAINEL DE CONTROLE'!$D$6,0,K172*K$110)*K$108 -> -2946161.976 | L14: =-IF(L$4>'01. PAINEL DE CONTROLE'!$D$6,0,L172*L$110)*L$108 -> -2946161.976 | M14: =-IF(M$4>'01. PAINEL DE CONTROLE'!$D$6,0,M172*M$110)*M$108 -> -2946161.976 | N14: =-IF(N$4>'01. PAINEL DE CONTROLE'!$D$6,0,N172*N$110)*N$108 -> -2946161.976 | O14: =-IF(O$4>'01. PAINEL DE CONTROLE'!$D$6,0,O172*O$110)*O$108 -> -2946161.976 | P14: =-IF(P$4>'01. PAINEL DE CONTROLE'!$D$6,0,P172*P$110)*P$108 -> -2946161.976 | Q14: =-IF(Q$4>'01. PAINEL DE CONTROLE'!$D$6,0,Q172*Q$110)*Q$108 -> -2946161.976 | R14: =-IF(R$4>'01. PAINEL DE CONTROLE'!$D$6,0,R172*R$110)*R$108 -> -2946161.976 | S14: =-IF(S$4>'01. PAINEL DE CONTROLE'!$D$6,0,S172*S$110)*S$108 -> -2946161.976 | T14: =-IF(T$4>'01. PAINEL DE CONTROLE'!$D$6,0,T172*T$110)*T$108 -> -2946161.976 | U14: =-IF(U$4>'01. PAINEL DE CONTROLE'!$D$6,0,U172*U$110)*U$108 -> -2946161.976 | V14: =-IF(V$4>'01. PAINEL DE CONTROLE'!$D$6,0,V172*V$110)*V$108 -> -2946161.976 | W14: =-IF(W$4>'01. PAINEL DE CONTROLE'!$D$6,0,W172*W$110)*W$108 -> -2946161.976 | X14: =-IF(X$4>'01. PAINEL DE CONTROLE'!$D$6,0,X172*X$110)*X$108 -> -2946161.976 | Y14: =-IF(Y$4>'01. PAINEL DE CONTROLE'!$D$6,0,Y172*Y$110)*Y$108 -> -2946161.976 | Z14: =-IF(Z$4>'01. PAINEL DE CONTROLE'!$D$6,0,Z172*Z$110)*Z$108 -> -2946161.976 | AA14: =-IF(AA$4>'01. PAINEL DE CONTROLE'!$D$6,0,AA172*AA$110)*AA$108 -> -2946161.976 | AB14: =-IF(AB$4>'01. PAINEL DE CONTROLE'!$D$6,0,AB172*AB$110)*AB$108 -> -2946161.976 | AC14: =-IF(AC$4>'01. PAINEL DE CONTROLE'!$D$6,0,AC172*AC$110)*AC$108 -> -2946161.976 | AD14: =-IF(AD$4>'01. PAINEL DE CONTROLE'!$D$6,0,AD172*AD$110)*AD$108 -> -2946161.976 | AE14: =-IF(AE$4>'01. PAINEL DE CONTROLE'!$D$6,0,AE172*AE$110)*AE$108 -> -2946161.976 | AF14: =-IF(AF$4>'01. PAINEL DE CONTROLE'!$D$6,0,AF172*AF$110)*AF$108 -> -2946161.976 | AG14: =-IF(AG$4>'01. PAINEL DE CONTROLE'!$D$6,0,AG172*AG$110)*AG$108 -> -2946161.976 | AH14: =-IF(AH$4>'01. PAINEL DE CONTROLE'!$D$6,0,AH172*AH$110)*AH$108 -> -2946161.976 | AI14: =-IF(AI$4>'01. PAINEL DE CONTROLE'!$D$6,0,AI172*AI$110)*AI$108 -> -2946161.976 | AJ14: =-IF(AJ$4>'01. PAINEL DE CONTROLE'!$D$6,0,AJ172*AJ$110)*AJ$108 -> -2946161.976 | AL14: =-IF(AL$4>'01. PAINEL DE CONTROLE'!$D$6,0,AL172*AL$110)*AL$108 -> 0 | AM14: =-IF(AM$4>'01. PAINEL DE CONTROLE'!$D$6,0,AM172*AM$110)*AM$108 -> 0 | AN14: =-IF(AN$4>'01. PAINEL DE CONTROLE'!$D$6,0,AN172*AN$110)*AN$108 -> 0 | AO14: =-IF(AO$4>'01. PAINEL DE CONTROLE'!$D$6,0,AO172*AO$110)*AO$108 -> 0
B15: =B617 -> Avistamento de Aves | E15: 0 | F15: 0 | G15: =-IF(G$4>'01. PAINEL DE CONTROLE'!$D$6,0,G180*G$110)*G$108 -> 0 | H15: =-IF(H$4>'01. PAINEL DE CONTROLE'!$D$6,0,H180*H$110)*H$108 -> 0 | I15: =-IF(I$4>'01. PAINEL DE CONTROLE'!$D$6,0,I180*I$110)*I$108 -> 0 | J15: =-IF(J$4>'01. PAINEL DE CONTROLE'!$D$6,0,J180*J$110)*J$108 -> 0 | K15: =-IF(K$4>'01. PAINEL DE CONTROLE'!$D$6,0,K180*K$110)*K$108 -> 0 | L15: =-IF(L$4>'01. PAINEL DE CONTROLE'!$D$6,0,L180*L$110)*L$108 -> 0 | M15: =-IF(M$4>'01. PAINEL DE CONTROLE'!$D$6,0,M180*M$110)*M$108 -> 0 | N15: =-IF(N$4>'01. PAINEL DE CONTROLE'!$D$6,0,N180*N$110)*N$108 -> 0 | O15: =-IF(O$4>'01. PAINEL DE CONTROLE'!$D$6,0,O180*O$110)*O$108 -> 0 | P15: =-IF(P$4>'01. PAINEL DE CONTROLE'!$D$6,0,P180*P$110)*P$108 -> 0 | Q15: =-IF(Q$4>'01. PAINEL DE CONTROLE'!$D$6,0,Q180*Q$110)*Q$108 -> 0 | R15: =-IF(R$4>'01. PAINEL DE CONTROLE'!$D$6,0,R180*R$110)*R$108 -> 0 | S15: =-IF(S$4>'01. PAINEL DE CONTROLE'!$D$6,0,S180*S$110)*S$108 -> 0 | T15: =-IF(T$4>'01. PAINEL DE CONTROLE'!$D$6,0,T180*T$110)*T$108 -> 0 | U15: =-IF(U$4>'01. PAINEL DE CONTROLE'!$D$6,0,U180*U$110)*U$108 -> 0 | V15: =-IF(V$4>'01. PAINEL DE CONTROLE'!$D$6,0,V180*V$110)*V$108 -> 0 | W15: =-IF(W$4>'01. PAINEL DE CONTROLE'!$D$6,0,W180*W$110)*W$108 -> 0 | X15: =-IF(X$4>'01. PAINEL DE CONTROLE'!$D$6,0,X180*X$110)*X$108 -> 0 | Y15: =-IF(Y$4>'01. PAINEL DE CONTROLE'!$D$6,0,Y180*Y$110)*Y$108 -> 0 | Z15: =-IF(Z$4>'01. PAINEL DE CONTROLE'!$D$6,0,Z180*Z$110)*Z$108 -> 0 | AA15: =-IF(AA$4>'01. PAINEL DE CONTROLE'!$D$6,0,AA180*AA$110)*AA$108 -> 0 | AB15: =-IF(AB$4>'01. PAINEL DE CONTROLE'!$D$6,0,AB180*AB$110)*AB$108 -> 0 | AC15: =-IF(AC$4>'01. PAINEL DE CONTROLE'!$D$6,0,AC180*AC$110)*AC$108 -> 0 | AD15: =-IF(AD$4>'01. PAINEL DE CONTROLE'!$D$6,0,AD180*AD$110)*AD$108 -> 0 | AE15: =-IF(AE$4>'01. PAINEL DE CONTROLE'!$D$6,0,AE180*AE$110)*AE$108 -> 0 | AF15: =-IF(AF$4>'01. PAINEL DE CONTROLE'!$D$6,0,AF180*AF$110)*AF$108 -> 0 | AG15: =-IF(AG$4>'01. PAINEL DE CONTROLE'!$D$6,0,AG180*AG$110)*AG$108 -> 0 | AH15: =-IF(AH$4>'01. PAINEL DE CONTROLE'!$D$6,0,AH180*AH$110)*AH$108 -> 0 | AI15: =-IF(AI$4>'01. PAINEL DE CONTROLE'!$D$6,0,AI180*AI$110)*AI$108 -> 0 | AJ15: =-IF(AJ$4>'01. PAINEL DE CONTROLE'!$D$6,0,AJ180*AJ$110)*AJ$108 -> 0 | AL15: =-IF(AL$4>'01. PAINEL DE CONTROLE'!$D$6,0,AL180*AL$110)*AL$108 -> 0 | AM15: =-IF(AM$4>'01. PAINEL DE CONTROLE'!$D$6,0,AM180*AM$110)*AM$108 -> 0 | AN15: =-IF(AN$4>'01. PAINEL DE CONTROLE'!$D$6,0,AN180*AN$110)*AN$108 -> 0 | AO15: =-IF(AO$4>'01. PAINEL DE CONTROLE'!$D$6,0,AO180*AO$110)*AO$108 -> 0
B16: =B632 -> Aluguel de Bicileta | E16: 0 | F16: 0 | G16: =-IF(G$4>'01. PAINEL DE CONTROLE'!$D$6,0,G188*G$110)*G$108 -> 0 | H16: =-IF(H$4>'01. PAINEL DE CONTROLE'!$D$6,0,H188*H$110)*H$108 -> 0 | I16: =-IF(I$4>'01. PAINEL DE CONTROLE'!$D$6,0,I188*I$110)*I$108 -> 0 | J16: =-IF(J$4>'01. PAINEL DE CONTROLE'!$D$6,0,J188*J$110)*J$108 -> 0 | K16: =-IF(K$4>'01. PAINEL DE CONTROLE'!$D$6,0,K188*K$110)*K$108 -> 0 | L16: =-IF(L$4>'01. PAINEL DE CONTROLE'!$D$6,0,L188*L$110)*L$108 -> 0 | M16: =-IF(M$4>'01. PAINEL DE CONTROLE'!$D$6,0,M188*M$110)*M$108 -> 0 | N16: =-IF(N$4>'01. PAINEL DE CONTROLE'!$D$6,0,N188*N$110)*N$108 -> 0 | O16: =-IF(O$4>'01. PAINEL DE CONTROLE'!$D$6,0,O188*O$110)*O$108 -> 0 | P16: =-IF(P$4>'01. PAINEL DE CONTROLE'!$D$6,0,P188*P$110)*P$108 -> 0 | Q16: =-IF(Q$4>'01. PAINEL DE CONTROLE'!$D$6,0,Q188*Q$110)*Q$108 -> 0 | R16: =-IF(R$4>'01. PAINEL DE CONTROLE'!$D$6,0,R188*R$110)*R$108 -> 0 | S16: =-IF(S$4>'01. PAINEL DE CONTROLE'!$D$6,0,S188*S$110)*S$108 -> 0 | T16: =-IF(T$4>'01. PAINEL DE CONTROLE'!$D$6,0,T188*T$110)*T$108 -> 0 | U16: =-IF(U$4>'01. PAINEL DE CONTROLE'!$D$6,0,U188*U$110)*U$108 -> 0 | V16: =-IF(V$4>'01. PAINEL DE CONTROLE'!$D$6,0,V188*V$110)*V$108 -> 0 | W16: =-IF(W$4>'01. PAINEL DE CONTROLE'!$D$6,0,W188*W$110)*W$108 -> 0 | X16: =-IF(X$4>'01. PAINEL DE CONTROLE'!$D$6,0,X188*X$110)*X$108 -> 0 | Y16: =-IF(Y$4>'01. PAINEL DE CONTROLE'!$D$6,0,Y188*Y$110)*Y$108 -> 0 | Z16: =-IF(Z$4>'01. PAINEL DE CONTROLE'!$D$6,0,Z188*Z$110)*Z$108 -> 0 | AA16: =-IF(AA$4>'01. PAINEL DE CONTROLE'!$D$6,0,AA188*AA$110)*AA$108 -> 0 | AB16: =-IF(AB$4>'01. PAINEL DE CONTROLE'!$D$6,0,AB188*AB$110)*AB$108 -> 0 | AC16: =-IF(AC$4>'01. PAINEL DE CONTROLE'!$D$6,0,AC188*AC$110)*AC$108 -> 0 | AD16: =-IF(AD$4>'01. PAINEL DE CONTROLE'!$D$6,0,AD188*AD$110)*AD$108 -> 0 | AE16: =-IF(AE$4>'01. PAINEL DE CONTROLE'!$D$6,0,AE188*AE$110)*AE$108 -> 0 | AF16: =-IF(AF$4>'01. PAINEL DE CONTROLE'!$D$6,0,AF188*AF$110)*AF$108 -> 0 | AG16: =-IF(AG$4>'01. PAINEL DE CONTROLE'!$D$6,0,AG188*AG$110)*AG$108 -> 0 | AH16: =-IF(AH$4>'01. PAINEL DE CONTROLE'!$D$6,0,AH188*AH$110)*AH$108 -> 0 | AI16: =-IF(AI$4>'01. PAINEL DE CONTROLE'!$D$6,0,AI188*AI$110)*AI$108 -> 0 | AJ16: =-IF(AJ$4>'01. PAINEL DE CONTROLE'!$D$6,0,AJ188*AJ$110)*AJ$108 -> 0 | AL16: =-IF(AL$4>'01. PAINEL DE CONTROLE'!$D$6,0,AL188*AL$110)*AL$108 -> 0 | AM16: =-IF(AM$4>'01. PAINEL DE CONTROLE'!$D$6,0,AM188*AM$110)*AM$108 -> 0 | AN16: =-IF(AN$4>'01. PAINEL DE CONTROLE'!$D$6,0,AN188*AN$110)*AN$108 -> 0 | AO16: =-IF(AO$4>'01. PAINEL DE CONTROLE'!$D$6,0,AO188*AO$110)*AO$108 -> 0
B17: =B652 -> Locação de bicicleta / quadriciclo elétricos | E17: 0 | F17: 0 | G17: =-IF(G$4>'01. PAINEL DE CONTROLE'!$D$6,0,G196*G$110)*G$108 -> 0 | H17: =-IF(H$4>'01. PAINEL DE CONTROLE'!$D$6,0,H196*H$110)*H$108 -> 0 | I17: =-IF(I$4>'01. PAINEL DE CONTROLE'!$D$6,0,I196*I$110)*I$108 -> 0 | J17: =-IF(J$4>'01. PAINEL DE CONTROLE'!$D$6,0,J196*J$110)*J$108 -> 0 | K17: =-IF(K$4>'01. PAINEL DE CONTROLE'!$D$6,0,K196*K$110)*K$108 -> 0 | L17: =-IF(L$4>'01. PAINEL DE CONTROLE'!$D$6,0,L196*L$110)*L$108 -> 0 | M17: =-IF(M$4>'01. PAINEL DE CONTROLE'!$D$6,0,M196*M$110)*M$108 -> 0 | N17: =-IF(N$4>'01. PAINEL DE CONTROLE'!$D$6,0,N196*N$110)*N$108 -> 0 | O17: =-IF(O$4>'01. PAINEL DE CONTROLE'!$D$6,0,O196*O$110)*O$108 -> 0 | P17: =-IF(P$4>'01. PAINEL DE CONTROLE'!$D$6,0,P196*P$110)*P$108 -> 0 | Q17: =-IF(Q$4>'01. PAINEL DE CONTROLE'!$D$6,0,Q196*Q$110)*Q$108 -> 0 | R17: =-IF(R$4>'01. PAINEL DE CONTROLE'!$D$6,0,R196*R$110)*R$108 -> 0 | S17: =-IF(S$4>'01. PAINEL DE CONTROLE'!$D$6,0,S196*S$110)*S$108 -> 0 | T17: =-IF(T$4>'01. PAINEL DE CONTROLE'!$D$6,0,T196*T$110)*T$108 -> 0 | U17: =-IF(U$4>'01. PAINEL DE CONTROLE'!$D$6,0,U196*U$110)*U$108 -> 0 | V17: =-IF(V$4>'01. PAINEL DE CONTROLE'!$D$6,0,V196*V$110)*V$108 -> 0 | W17: =-IF(W$4>'01. PAINEL DE CONTROLE'!$D$6,0,W196*W$110)*W$108 -> 0 | X17: =-IF(X$4>'01. PAINEL DE CONTROLE'!$D$6,0,X196*X$110)*X$108 -> 0 | Y17: =-IF(Y$4>'01. PAINEL DE CONTROLE'!$D$6,0,Y196*Y$110)*Y$108 -> 0 | Z17: =-IF(Z$4>'01. PAINEL DE CONTROLE'!$D$6,0,Z196*Z$110)*Z$108 -> 0 | AA17: =-IF(AA$4>'01. PAINEL DE CONTROLE'!$D$6,0,AA196*AA$110)*AA$108 -> 0 | AB17: =-IF(AB$4>'01. PAINEL DE CONTROLE'!$D$6,0,AB196*AB$110)*AB$108 -> 0 | AC17: =-IF(AC$4>'01. PAINEL DE CONTROLE'!$D$6,0,AC196*AC$110)*AC$108 -> 0 | AD17: =-IF(AD$4>'01. PAINEL DE CONTROLE'!$D$6,0,AD196*AD$110)*AD$108 -> 0 | AE17: =-IF(AE$4>'01. PAINEL DE CONTROLE'!$D$6,0,AE196*AE$110)*AE$108 -> 0 | AF17: =-IF(AF$4>'01. PAINEL DE CONTROLE'!$D$6,0,AF196*AF$110)*AF$108 -> 0 | AG17: =-IF(AG$4>'01. PAINEL DE CONTROLE'!$D$6,0,AG196*AG$110)*AG$108 -> 0 | AH17: =-IF(AH$4>'01. PAINEL DE CONTROLE'!$D$6,0,AH196*AH$110)*AH$108 -> 0 | AI17: =-IF(AI$4>'01. PAINEL DE CONTROLE'!$D$6,0,AI196*AI$110)*AI$108 -> 0 | AJ17: =-IF(AJ$4>'01. PAINEL DE CONTROLE'!$D$6,0,AJ196*AJ$110)*AJ$108 -> 0 | AL17: =-IF(AL$4>'01. PAINEL DE CONTROLE'!$D$6,0,AL196*AL$110)*AL$108 -> 0 | AM17: =-IF(AM$4>'01. PAINEL DE CONTROLE'!$D$6,0,AM196*AM$110)*AM$108 -> 0 | AN17: =-IF(AN$4>'01. PAINEL DE CONTROLE'!$D$6,0,AN196*AN$110)*AN$108 -> 0 | AO17: =-IF(AO$4>'01. PAINEL DE CONTROLE'!$D$6,0,AO196*AO$110)*AO$108 -> 0
B18: =B676 -> Pista de Voo Livre | E18: 0 | F18: 0 | G18: =-IF(G$4>'01. PAINEL DE CONTROLE'!$D$6,0,G204*G$110)*G$108 -> 0 | H18: =-IF(H$4>'01. PAINEL DE CONTROLE'!$D$6,0,H204*H$110)*H$108 -> 0 | I18: =-IF(I$4>'01. PAINEL DE CONTROLE'!$D$6,0,I204*I$110)*I$108 -> 0 | J18: =-IF(J$4>'01. PAINEL DE CONTROLE'!$D$6,0,J204*J$110)*J$108 -> 0 | K18: =-IF(K$4>'01. PAINEL DE CONTROLE'!$D$6,0,K204*K$110)*K$108 -> 0 | L18: =-IF(L$4>'01. PAINEL DE CONTROLE'!$D$6,0,L204*L$110)*L$108 -> 0 | M18: =-IF(M$4>'01. PAINEL DE CONTROLE'!$D$6,0,M204*M$110)*M$108 -> 0 | N18: =-IF(N$4>'01. PAINEL DE CONTROLE'!$D$6,0,N204*N$110)*N$108 -> 0 | O18: =-IF(O$4>'01. PAINEL DE CONTROLE'!$D$6,0,O204*O$110)*O$108 -> 0 | P18: =-IF(P$4>'01. PAINEL DE CONTROLE'!$D$6,0,P204*P$110)*P$108 -> 0 | Q18: =-IF(Q$4>'01. PAINEL DE CONTROLE'!$D$6,0,Q204*Q$110)*Q$108 -> 0 | R18: =-IF(R$4>'01. PAINEL DE CONTROLE'!$D$6,0,R204*R$110)*R$108 -> 0 | S18: =-IF(S$4>'01. PAINEL DE CONTROLE'!$D$6,0,S204*S$110)*S$108 -> 0 | T18: =-IF(T$4>'01. PAINEL DE CONTROLE'!$D$6,0,T204*T$110)*T$108 -> 0 | U18: =-IF(U$4>'01. PAINEL DE CONTROLE'!$D$6,0,U204*U$110)*U$108 -> 0 | V18: =-IF(V$4>'01. PAINEL DE CONTROLE'!$D$6,0,V204*V$110)*V$108 -> 0 | W18: =-IF(W$4>'01. PAINEL DE CONTROLE'!$D$6,0,W204*W$110)*W$108 -> 0 | X18: =-IF(X$4>'01. PAINEL DE CONTROLE'!$D$6,0,X204*X$110)*X$108 -> 0 | Y18: =-IF(Y$4>'01. PAINEL DE CONTROLE'!$D$6,0,Y204*Y$110)*Y$108 -> 0 | Z18: =-IF(Z$4>'01. PAINEL DE CONTROLE'!$D$6,0,Z204*Z$110)*Z$108 -> 0 | AA18: =-IF(AA$4>'01. PAINEL DE CONTROLE'!$D$6,0,AA204*AA$110)*AA$108 -> 0 | AB18: =-IF(AB$4>'01. PAINEL DE CONTROLE'!$D$6,0,AB204*AB$110)*AB$108 -> 0 | AC18: =-IF(AC$4>'01. PAINEL DE CONTROLE'!$D$6,0,AC204*AC$110)*AC$108 -> 0 | AD18: =-IF(AD$4>'01. PAINEL DE CONTROLE'!$D$6,0,AD204*AD$110)*AD$108 -> 0 | AE18: =-IF(AE$4>'01. PAINEL DE CONTROLE'!$D$6,0,AE204*AE$110)*AE$108 -> 0 | AF18: =-IF(AF$4>'01. PAINEL DE CONTROLE'!$D$6,0,AF204*AF$110)*AF$108 -> 0 | AG18: =-IF(AG$4>'01. PAINEL DE CONTROLE'!$D$6,0,AG204*AG$110)*AG$108 -> 0 | AH18: =-IF(AH$4>'01. PAINEL DE CONTROLE'!$D$6,0,AH204*AH$110)*AH$108 -> 0 | AI18: =-IF(AI$4>'01. PAINEL DE CONTROLE'!$D$6,0,AI204*AI$110)*AI$108 -> 0 | AJ18: =-IF(AJ$4>'01. PAINEL DE CONTROLE'!$D$6,0,AJ204*AJ$110)*AJ$108 -> 0 | AL18: =-IF(AL$4>'01. PAINEL DE CONTROLE'!$D$6,0,AL204*AL$110)*AL$108 -> 0 | AM18: =-IF(AM$4>'01. PAINEL DE CONTROLE'!$D$6,0,AM204*AM$110)*AM$108 -> 0 | AN18: =-IF(AN$4>'01. PAINEL DE CONTROLE'!$D$6,0,AN204*AN$110)*AN$108 -> 0 | AO18: =-IF(AO$4>'01. PAINEL DE CONTROLE'!$D$6,0,AO204*AO$110)*AO$108 -> 0
B19: =B694 -> Restaurante Panorâmico | E19: 0 | F19: 0 | G19: =-IF(G$4>'01. PAINEL DE CONTROLE'!$D$6,0,G212*G$110)*G$108 -> 0 | H19: =-IF(H$4>'01. PAINEL DE CONTROLE'!$D$6,0,H212*H$110)*H$108 -> 0 | I19: =-IF(I$4>'01. PAINEL DE CONTROLE'!$D$6,0,I212*I$110)*I$108 -> 0 | J19: =-IF(J$4>'01. PAINEL DE CONTROLE'!$D$6,0,J212*J$110)*J$108 -> 0 | K19: =-IF(K$4>'01. PAINEL DE CONTROLE'!$D$6,0,K212*K$110)*K$108 -> 0 | L19: =-IF(L$4>'01. PAINEL DE CONTROLE'!$D$6,0,L212*L$110)*L$108 -> 0 | M19: =-IF(M$4>'01. PAINEL DE CONTROLE'!$D$6,0,M212*M$110)*M$108 -> 0 | N19: =-IF(N$4>'01. PAINEL DE CONTROLE'!$D$6,0,N212*N$110)*N$108 -> 0 | O19: =-IF(O$4>'01. PAINEL DE CONTROLE'!$D$6,0,O212*O$110)*O$108 -> 0 | P19: =-IF(P$4>'01. PAINEL DE CONTROLE'!$D$6,0,P212*P$110)*P$108 -> 0 | Q19: =-IF(Q$4>'01. PAINEL DE CONTROLE'!$D$6,0,Q212*Q$110)*Q$108 -> 0 | R19: =-IF(R$4>'01. PAINEL DE CONTROLE'!$D$6,0,R212*R$110)*R$108 -> 0 | S19: =-IF(S$4>'01. PAINEL DE CONTROLE'!$D$6,0,S212*S$110)*S$108 -> 0 | T19: =-IF(T$4>'01. PAINEL DE CONTROLE'!$D$6,0,T212*T$110)*T$108 -> 0 | U19: =-IF(U$4>'01. PAINEL DE CONTROLE'!$D$6,0,U212*U$110)*U$108 -> 0 | V19: =-IF(V$4>'01. PAINEL DE CONTROLE'!$D$6,0,V212*V$110)*V$108 -> 0 | W19: =-IF(W$4>'01. PAINEL DE CONTROLE'!$D$6,0,W212*W$110)*W$108 -> 0 | X19: =-IF(X$4>'01. PAINEL DE CONTROLE'!$D$6,0,X212*X$110)*X$108 -> 0 | Y19: =-IF(Y$4>'01. PAINEL DE CONTROLE'!$D$6,0,Y212*Y$110)*Y$108 -> 0 | Z19: =-IF(Z$4>'01. PAINEL DE CONTROLE'!$D$6,0,Z212*Z$110)*Z$108 -> 0 | AA19: =-IF(AA$4>'01. PAINEL DE CONTROLE'!$D$6,0,AA212*AA$110)*AA$108 -> 0 | AB19: =-IF(AB$4>'01. PAINEL DE CONTROLE'!$D$6,0,AB212*AB$110)*AB$108 -> 0 | AC19: =-IF(AC$4>'01. PAINEL DE CONTROLE'!$D$6,0,AC212*AC$110)*AC$108 -> 0 | AD19: =-IF(AD$4>'01. PAINEL DE CONTROLE'!$D$6,0,AD212*AD$110)*AD$108 -> 0 | AE19: =-IF(AE$4>'01. PAINEL DE CONTROLE'!$D$6,0,AE212*AE$110)*AE$108 -> 0 | AF19: =-IF(AF$4>'01. PAINEL DE CONTROLE'!$D$6,0,AF212*AF$110)*AF$108 -> 0 | AG19: =-IF(AG$4>'01. PAINEL DE CONTROLE'!$D$6,0,AG212*AG$110)*AG$108 -> 0 | AH19: =-IF(AH$4>'01. PAINEL DE CONTROLE'!$D$6,0,AH212*AH$110)*AH$108 -> 0 | AI19: =-IF(AI$4>'01. PAINEL DE CONTROLE'!$D$6,0,AI212*AI$110)*AI$108 -> 0 | AJ19: =-IF(AJ$4>'01. PAINEL DE CONTROLE'!$D$6,0,AJ212*AJ$110)*AJ$108 -> 0 | AL19: =-IF(AL$4>'01. PAINEL DE CONTROLE'!$D$6,0,AL212*AL$110)*AL$108 -> 0 | AM19: =-IF(AM$4>'01. PAINEL DE CONTROLE'!$D$6,0,AM212*AM$110)*AM$108 -> 0 | AN19: =-IF(AN$4>'01. PAINEL DE CONTROLE'!$D$6,0,AN212*AN$110)*AN$108 -> 0 | AO19: =-IF(AO$4>'01. PAINEL DE CONTROLE'!$D$6,0,AO212*AO$110)*AO$108 -> 0
B20: =B713 -> Lanchonete Snack/Bar | E20: 0 | F20: 0 | G20: =-IF(G$4>'01. PAINEL DE CONTROLE'!$D$6,0,G221*G$110)*G$108 -> 0 | H20: =-IF(H$4>'01. PAINEL DE CONTROLE'!$D$6,0,H221*H$110)*H$108 -> 0 | I20: =-IF(I$4>'01. PAINEL DE CONTROLE'!$D$6,0,I221*I$110)*I$108 -> 0 | J20: =-IF(J$4>'01. PAINEL DE CONTROLE'!$D$6,0,J221*J$110)*J$108 -> 0 | K20: =-IF(K$4>'01. PAINEL DE CONTROLE'!$D$6,0,K221*K$110)*K$108 -> 0 | L20: =-IF(L$4>'01. PAINEL DE CONTROLE'!$D$6,0,L221*L$110)*L$108 -> 0 | M20: =-IF(M$4>'01. PAINEL DE CONTROLE'!$D$6,0,M221*M$110)*M$108 -> 0 | N20: =-IF(N$4>'01. PAINEL DE CONTROLE'!$D$6,0,N221*N$110)*N$108 -> 0 | O20: =-IF(O$4>'01. PAINEL DE CONTROLE'!$D$6,0,O221*O$110)*O$108 -> 0 | P20: =-IF(P$4>'01. PAINEL DE CONTROLE'!$D$6,0,P221*P$110)*P$108 -> 0 | Q20: =-IF(Q$4>'01. PAINEL DE CONTROLE'!$D$6,0,Q221*Q$110)*Q$108 -> 0 | R20: =-IF(R$4>'01. PAINEL DE CONTROLE'!$D$6,0,R221*R$110)*R$108 -> 0 | S20: =-IF(S$4>'01. PAINEL DE CONTROLE'!$D$6,0,S221*S$110)*S$108 -> 0 | T20: =-IF(T$4>'01. PAINEL DE CONTROLE'!$D$6,0,T221*T$110)*T$108 -> 0 | U20: =-IF(U$4>'01. PAINEL DE CONTROLE'!$D$6,0,U221*U$110)*U$108 -> 0 | V20: =-IF(V$4>'01. PAINEL DE CONTROLE'!$D$6,0,V221*V$110)*V$108 -> 0 | W20: =-IF(W$4>'01. PAINEL DE CONTROLE'!$D$6,0,W221*W$110)*W$108 -> 0 | X20: =-IF(X$4>'01. PAINEL DE CONTROLE'!$D$6,0,X221*X$110)*X$108 -> 0 | Y20: =-IF(Y$4>'01. PAINEL DE CONTROLE'!$D$6,0,Y221*Y$110)*Y$108 -> 0 | Z20: =-IF(Z$4>'01. PAINEL DE CONTROLE'!$D$6,0,Z221*Z$110)*Z$108 -> 0 | AA20: =-IF(AA$4>'01. PAINEL DE CONTROLE'!$D$6,0,AA221*AA$110)*AA$108 -> 0 | AB20: =-IF(AB$4>'01. PAINEL DE CONTROLE'!$D$6,0,AB221*AB$110)*AB$108 -> 0 | AC20: =-IF(AC$4>'01. PAINEL DE CONTROLE'!$D$6,0,AC221*AC$110)*AC$108 -> 0 | AD20: =-IF(AD$4>'01. PAINEL DE CONTROLE'!$D$6,0,AD221*AD$110)*AD$108 -> 0 | AE20: =-IF(AE$4>'01. PAINEL DE CONTROLE'!$D$6,0,AE221*AE$110)*AE$108 -> 0 | AF20: =-IF(AF$4>'01. PAINEL DE CONTROLE'!$D$6,0,AF221*AF$110)*AF$108 -> 0 | AG20: =-IF(AG$4>'01. PAINEL DE CONTROLE'!$D$6,0,AG221*AG$110)*AG$108 -> 0 | AH20: =-IF(AH$4>'01. PAINEL DE CONTROLE'!$D$6,0,AH221*AH$110)*AH$108 -> 0 | AI20: =-IF(AI$4>'01. PAINEL DE CONTROLE'!$D$6,0,AI221*AI$110)*AI$108 -> 0 | AJ20: =-IF(AJ$4>'01. PAINEL DE CONTROLE'!$D$6,0,AJ221*AJ$110)*AJ$108 -> 0 | AL20: =-IF(AL$4>'01. PAINEL DE CONTROLE'!$D$6,0,AL221*AL$110)*AL$108 -> 0 | AM20: =-IF(AM$4>'01. PAINEL DE CONTROLE'!$D$6,0,AM221*AM$110)*AM$108 -> 0 | AN20: =-IF(AN$4>'01. PAINEL DE CONTROLE'!$D$6,0,AN221*AN$110)*AN$108 -> 0 | AO20: =-IF(AO$4>'01. PAINEL DE CONTROLE'!$D$6,0,AO221*AO$110)*AO$108 -> 0
B21: =B730 -> Loja de Souvenirs | E21: 0 | F21: 0 | G21: =-IF(G$4>'01. PAINEL DE CONTROLE'!$D$6,0,G230*G$110)*G$108 -> 0 | H21: =-IF(H$4>'01. PAINEL DE CONTROLE'!$D$6,0,H230*H$110)*H$108 -> 0 | I21: =-IF(I$4>'01. PAINEL DE CONTROLE'!$D$6,0,I230*I$110)*I$108 -> 0 | J21: =-IF(J$4>'01. PAINEL DE CONTROLE'!$D$6,0,J230*J$110)*J$108 -> 0 | K21: =-IF(K$4>'01. PAINEL DE CONTROLE'!$D$6,0,K230*K$110)*K$108 -> 0 | L21: =-IF(L$4>'01. PAINEL DE CONTROLE'!$D$6,0,L230*L$110)*L$108 -> 0 | M21: =-IF(M$4>'01. PAINEL DE CONTROLE'!$D$6,0,M230*M$110)*M$108 -> 0 | N21: =-IF(N$4>'01. PAINEL DE CONTROLE'!$D$6,0,N230*N$110)*N$108 -> 0 | O21: =-IF(O$4>'01. PAINEL DE CONTROLE'!$D$6,0,O230*O$110)*O$108 -> 0 | P21: =-IF(P$4>'01. PAINEL DE CONTROLE'!$D$6,0,P230*P$110)*P$108 -> 0 | Q21: =-IF(Q$4>'01. PAINEL DE CONTROLE'!$D$6,0,Q230*Q$110)*Q$108 -> 0 | R21: =-IF(R$4>'01. PAINEL DE CONTROLE'!$D$6,0,R230*R$110)*R$108 -> 0 | S21: =-IF(S$4>'01. PAINEL DE CONTROLE'!$D$6,0,S230*S$110)*S$108 -> 0 | T21: =-IF(T$4>'01. PAINEL DE CONTROLE'!$D$6,0,T230*T$110)*T$108 -> 0 | U21: =-IF(U$4>'01. PAINEL DE CONTROLE'!$D$6,0,U230*U$110)*U$108 -> 0 | V21: =-IF(V$4>'01. PAINEL DE CONTROLE'!$D$6,0,V230*V$110)*V$108 -> 0 | W21: =-IF(W$4>'01. PAINEL DE CONTROLE'!$D$6,0,W230*W$110)*W$108 -> 0 | X21: =-IF(X$4>'01. PAINEL DE CONTROLE'!$D$6,0,X230*X$110)*X$108 -> 0 | Y21: =-IF(Y$4>'01. PAINEL DE CONTROLE'!$D$6,0,Y230*Y$110)*Y$108 -> 0 | Z21: =-IF(Z$4>'01. PAINEL DE CONTROLE'!$D$6,0,Z230*Z$110)*Z$108 -> 0 | AA21: =-IF(AA$4>'01. PAINEL DE CONTROLE'!$D$6,0,AA230*AA$110)*AA$108 -> 0 | AB21: =-IF(AB$4>'01. PAINEL DE CONTROLE'!$D$6,0,AB230*AB$110)*AB$108 -> 0 | AC21: =-IF(AC$4>'01. PAINEL DE CONTROLE'!$D$6,0,AC230*AC$110)*AC$108 -> 0 | AD21: =-IF(AD$4>'01. PAINEL DE CONTROLE'!$D$6,0,AD230*AD$110)*AD$108 -> 0 | AE21: =-IF(AE$4>'01. PAINEL DE CONTROLE'!$D$6,0,AE230*AE$110)*AE$108 -> 0 | AF21: =-IF(AF$4>'01. PAINEL DE CONTROLE'!$D$6,0,AF230*AF$110)*AF$108 -> 0 | AG21: =-IF(AG$4>'01. PAINEL DE CONTROLE'!$D$6,0,AG230*AG$110)*AG$108 -> 0 | AH21: =-IF(AH$4>'01. PAINEL DE CONTROLE'!$D$6,0,AH230*AH$110)*AH$108 -> 0 | AI21: =-IF(AI$4>'01. PAINEL DE CONTROLE'!$D$6,0,AI230*AI$110)*AI$108 -> 0 | AJ21: =-IF(AJ$4>'01. PAINEL DE CONTROLE'!$D$6,0,AJ230*AJ$110)*AJ$108 -> 0 | AL21: =-IF(AL$4>'01. PAINEL DE CONTROLE'!$D$6,0,AL230*AL$110)*AL$108 -> 0 | AM21: =-IF(AM$4>'01. PAINEL DE CONTROLE'!$D$6,0,AM230*AM$110)*AM$108 -> 0 | AN21: =-IF(AN$4>'01. PAINEL DE CONTROLE'!$D$6,0,AN230*AN$110)*AN$108 -> 0 | AO21: =-IF(AO$4>'01. PAINEL DE CONTROLE'!$D$6,0,AO230*AO$110)*AO$108 -> 0
B22: =B749 -> Transporte Interno | E22: -8900222.82 | F22: -296674.094 | G22: =-IF(G$4>'01. PAINEL DE CONTROLE'!$D$6,0,G239*G$110)*G$108 -> 0 | H22: =-IF(H$4>'01. PAINEL DE CONTROLE'!$D$6,0,H239*H$110)*H$108 -> -156144.26 | I22: =-IF(I$4>'01. PAINEL DE CONTROLE'!$D$6,0,I239*I$110)*I$108 -> -312288.52 | J22: =-IF(J$4>'01. PAINEL DE CONTROLE'!$D$6,0,J239*J$110)*J$108 -> -312288.52 | K22: =-IF(K$4>'01. PAINEL DE CONTROLE'!$D$6,0,K239*K$110)*K$108 -> -312288.52 | L22: =-IF(L$4>'01. PAINEL DE CONTROLE'!$D$6,0,L239*L$110)*L$108 -> -312288.52 | M22: =-IF(M$4>'01. PAINEL DE CONTROLE'!$D$6,0,M239*M$110)*M$108 -> -312288.52 | N22: =-IF(N$4>'01. PAINEL DE CONTROLE'!$D$6,0,N239*N$110)*N$108 -> -312288.52 | O22: =-IF(O$4>'01. PAINEL DE CONTROLE'!$D$6,0,O239*O$110)*O$108 -> -312288.52 | P22: =-IF(P$4>'01. PAINEL DE CONTROLE'!$D$6,0,P239*P$110)*P$108 -> -312288.52 | Q22: =-IF(Q$4>'01. PAINEL DE CONTROLE'!$D$6,0,Q239*Q$110)*Q$108 -> -312288.52 | R22: =-IF(R$4>'01. PAINEL DE CONTROLE'!$D$6,0,R239*R$110)*R$108 -> -312288.52 | S22: =-IF(S$4>'01. PAINEL DE CONTROLE'!$D$6,0,S239*S$110)*S$108 -> -312288.52 | T22: =-IF(T$4>'01. PAINEL DE CONTROLE'!$D$6,0,T239*T$110)*T$108 -> -312288.52 | U22: =-IF(U$4>'01. PAINEL DE CONTROLE'!$D$6,0,U239*U$110)*U$108 -> -312288.52 | V22: =-IF(V$4>'01. PAINEL DE CONTROLE'!$D$6,0,V239*V$110)*V$108 -> -312288.52 | W22: =-IF(W$4>'01. PAINEL DE CONTROLE'!$D$6,0,W239*W$110)*W$108 -> -312288.52 | X22: =-IF(X$4>'01. PAINEL DE CONTROLE'!$D$6,0,X239*X$110)*X$108 -> -312288.52 | Y22: =-IF(Y$4>'01. PAINEL DE CONTROLE'!$D$6,0,Y239*Y$110)*Y$108 -> -312288.52 | Z22: =-IF(Z$4>'01. PAINEL DE CONTROLE'!$D$6,0,Z239*Z$110)*Z$108 -> -312288.52 | AA22: =-IF(AA$4>'01. PAINEL DE CONTROLE'!$D$6,0,AA239*AA$110)*AA$108 -> -312288.52 | AB22: =-IF(AB$4>'01. PAINEL DE CONTROLE'!$D$6,0,AB239*AB$110)*AB$108 -> -312288.52 | AC22: =-IF(AC$4>'01. PAINEL DE CONTROLE'!$D$6,0,AC239*AC$110)*AC$108 -> -312288.52 | AD22: =-IF(AD$4>'01. PAINEL DE CONTROLE'!$D$6,0,AD239*AD$110)*AD$108 -> -312288.52 | AE22: =-IF(AE$4>'01. PAINEL DE CONTROLE'!$D$6,0,AE239*AE$110)*AE$108 -> -312288.52 | AF22: =-IF(AF$4>'01. PAINEL DE CONTROLE'!$D$6,0,AF239*AF$110)*AF$108 -> -312288.52 | AG22: =-IF(AG$4>'01. PAINEL DE CONTROLE'!$D$6,0,AG239*AG$110)*AG$108 -> -312288.52 | AH22: =-IF(AH$4>'01. PAINEL DE CONTROLE'!$D$6,0,AH239*AH$110)*AH$108 -> -312288.52 | AI22: =-IF(AI$4>'01. PAINEL DE CONTROLE'!$D$6,0,AI239*AI$110)*AI$108 -> -312288.52 | AJ22: =-IF(AJ$4>'01. PAINEL DE CONTROLE'!$D$6,0,AJ239*AJ$110)*AJ$108 -> -312288.52 | AL22: =-IF(AL$4>'01. PAINEL DE CONTROLE'!$D$6,0,AL239*AL$110)*AL$108 -> 0 | AM22: =-IF(AM$4>'01. PAINEL DE CONTROLE'!$D$6,0,AM239*AM$110)*AM$108 -> 0 | AN22: =-IF(AN$4>'01. PAINEL DE CONTROLE'!$D$6,0,AN239*AN$110)*AN$108 -> 0 | AO22: =-IF(AO$4>'01. PAINEL DE CONTROLE'!$D$6,0,AO239*AO$110)*AO$108 -> 0
B23: =B773 -> Estacionamento | E23: -24229297.37 | F23: -807643.2457 | G23: =-IF(G$4>'01. PAINEL DE CONTROLE'!$D$6,0,G247*G$110)*G$108 -> -373396.7061 | H23: =-IF(H$4>'01. PAINEL DE CONTROLE'!$D$6,0,H247*H$110)*H$108 -> -622327.8434 | I23: =-IF(I$4>'01. PAINEL DE CONTROLE'!$D$6,0,I247*I$110)*I$108 -> -829770.4579 | J23: =-IF(J$4>'01. PAINEL DE CONTROLE'!$D$6,0,J247*J$110)*J$108 -> -829770.4579 | K23: =-IF(K$4>'01. PAINEL DE CONTROLE'!$D$6,0,K247*K$110)*K$108 -> -829770.4579 | L23: =-IF(L$4>'01. PAINEL DE CONTROLE'!$D$6,0,L247*L$110)*L$108 -> -829770.4579 | M23: =-IF(M$4>'01. PAINEL DE CONTROLE'!$D$6,0,M247*M$110)*M$108 -> -829770.4579 | N23: =-IF(N$4>'01. PAINEL DE CONTROLE'!$D$6,0,N247*N$110)*N$108 -> -829770.4579 | O23: =-IF(O$4>'01. PAINEL DE CONTROLE'!$D$6,0,O247*O$110)*O$108 -> -829770.4579 | P23: =-IF(P$4>'01. PAINEL DE CONTROLE'!$D$6,0,P247*P$110)*P$108 -> -829770.4579 | Q23: =-IF(Q$4>'01. PAINEL DE CONTROLE'!$D$6,0,Q247*Q$110)*Q$108 -> -829770.4579 | R23: =-IF(R$4>'01. PAINEL DE CONTROLE'!$D$6,0,R247*R$110)*R$108 -> -829770.4579 | S23: =-IF(S$4>'01. PAINEL DE CONTROLE'!$D$6,0,S247*S$110)*S$108 -> -829770.4579 | T23: =-IF(T$4>'01. PAINEL DE CONTROLE'!$D$6,0,T247*T$110)*T$108 -> -829770.4579 | U23: =-IF(U$4>'01. PAINEL DE CONTROLE'!$D$6,0,U247*U$110)*U$108 -> -829770.4579 | V23: =-IF(V$4>'01. PAINEL DE CONTROLE'!$D$6,0,V247*V$110)*V$108 -> -829770.4579 | W23: =-IF(W$4>'01. PAINEL DE CONTROLE'!$D$6,0,W247*W$110)*W$108 -> -829770.4579 | X23: =-IF(X$4>'01. PAINEL DE CONTROLE'!$D$6,0,X247*X$110)*X$108 -> -829770.4579 | Y23: =-IF(Y$4>'01. PAINEL DE CONTROLE'!$D$6,0,Y247*Y$110)*Y$108 -> -829770.4579 | Z23: =-IF(Z$4>'01. PAINEL DE CONTROLE'!$D$6,0,Z247*Z$110)*Z$108 -> -829770.4579 | AA23: =-IF(AA$4>'01. PAINEL DE CONTROLE'!$D$6,0,AA247*AA$110)*AA$108 -> -829770.4579 | AB23: =-IF(AB$4>'01. PAINEL DE CONTROLE'!$D$6,0,AB247*AB$110)*AB$108 -> -829770.4579 | AC23: =-IF(AC$4>'01. PAINEL DE CONTROLE'!$D$6,0,AC247*AC$110)*AC$108 -> -829770.4579 | AD23: =-IF(AD$4>'01. PAINEL DE CONTROLE'!$D$6,0,AD247*AD$110)*AD$108 -> -829770.4579 | AE23: =-IF(AE$4>'01. PAINEL DE CONTROLE'!$D$6,0,AE247*AE$110)*AE$108 -> -829770.4579 | AF23: =-IF(AF$4>'01. PAINEL DE CONTROLE'!$D$6,0,AF247*AF$110)*AF$108 -> -829770.4579 | AG23: =-IF(AG$4>'01. PAINEL DE CONTROLE'!$D$6,0,AG247*AG$110)*AG$108 -> -829770.4579 | AH23: =-IF(AH$4>'01. PAINEL DE CONTROLE'!$D$6,0,AH247*AH$110)*AH$108 -> -829770.4579 | AI23: =-IF(AI$4>'01. PAINEL DE CONTROLE'!$D$6,0,AI247*AI$110)*AI$108 -> -829770.4579 | AJ23: =-IF(AJ$4>'01. PAINEL DE CONTROLE'!$D$6,0,AJ247*AJ$110)*AJ$108 -> -829770.4579 | AL23: =-IF(AL$4>'01. PAINEL DE CONTROLE'!$D$6,0,AL247*AL$110)*AL$108 -> 0 | AM23: =-IF(AM$4>'01. PAINEL DE CONTROLE'!$D$6,0,AM247*AM$110)*AM$108 -> 0 | AN23: =-IF(AN$4>'01. PAINEL DE CONTROLE'!$D$6,0,AN247*AN$110)*AN$108 -> 0 | AO23: =-IF(AO$4>'01. PAINEL DE CONTROLE'!$D$6,0,AO247*AO$110)*AO$108 -> 0
B24: =B795 -> Tirolesa | E24: 0 | F24: 0 | G24: =-IF(G$4>'01. PAINEL DE CONTROLE'!$D$6,0,G255*G$110)*G$108 -> 0 | H24: =-IF(H$4>'01. PAINEL DE CONTROLE'!$D$6,0,H255*H$110)*H$108 -> 0 | I24: =-IF(I$4>'01. PAINEL DE CONTROLE'!$D$6,0,I255*I$110)*I$108 -> 0 | J24: =-IF(J$4>'01. PAINEL DE CONTROLE'!$D$6,0,J255*J$110)*J$108 -> 0 | K24: =-IF(K$4>'01. PAINEL DE CONTROLE'!$D$6,0,K255*K$110)*K$108 -> 0 | L24: =-IF(L$4>'01. PAINEL DE CONTROLE'!$D$6,0,L255*L$110)*L$108 -> 0 | M24: =-IF(M$4>'01. PAINEL DE CONTROLE'!$D$6,0,M255*M$110)*M$108 -> 0 | N24: =-IF(N$4>'01. PAINEL DE CONTROLE'!$D$6,0,N255*N$110)*N$108 -> 0 | O24: =-IF(O$4>'01. PAINEL DE CONTROLE'!$D$6,0,O255*O$110)*O$108 -> 0 | P24: =-IF(P$4>'01. PAINEL DE CONTROLE'!$D$6,0,P255*P$110)*P$108 -> 0 | Q24: =-IF(Q$4>'01. PAINEL DE CONTROLE'!$D$6,0,Q255*Q$110)*Q$108 -> 0 | R24: =-IF(R$4>'01. PAINEL DE CONTROLE'!$D$6,0,R255*R$110)*R$108 -> 0 | S24: =-IF(S$4>'01. PAINEL DE CONTROLE'!$D$6,0,S255*S$110)*S$108 -> 0 | T24: =-IF(T$4>'01. PAINEL DE CONTROLE'!$D$6,0,T255*T$110)*T$108 -> 0 | U24: =-IF(U$4>'01. PAINEL DE CONTROLE'!$D$6,0,U255*U$110)*U$108 -> 0 | V24: =-IF(V$4>'01. PAINEL DE CONTROLE'!$D$6,0,V255*V$110)*V$108 -> 0 | W24: =-IF(W$4>'01. PAINEL DE CONTROLE'!$D$6,0,W255*W$110)*W$108 -> 0 | X24: =-IF(X$4>'01. PAINEL DE CONTROLE'!$D$6,0,X255*X$110)*X$108 -> 0 | Y24: =-IF(Y$4>'01. PAINEL DE CONTROLE'!$D$6,0,Y255*Y$110)*Y$108 -> 0 | Z24: =-IF(Z$4>'01. PAINEL DE CONTROLE'!$D$6,0,Z255*Z$110)*Z$108 -> 0 | AA24: =-IF(AA$4>'01. PAINEL DE CONTROLE'!$D$6,0,AA255*AA$110)*AA$108 -> 0 | AB24: =-IF(AB$4>'01. PAINEL DE CONTROLE'!$D$6,0,AB255*AB$110)*AB$108 -> 0 | AC24: =-IF(AC$4>'01. PAINEL DE CONTROLE'!$D$6,0,AC255*AC$110)*AC$108 -> 0 | AD24: =-IF(AD$4>'01. PAINEL DE CONTROLE'!$D$6,0,AD255*AD$110)*AD$108 -> 0 | AE24: =-IF(AE$4>'01. PAINEL DE CONTROLE'!$D$6,0,AE255*AE$110)*AE$108 -> 0 | AF24: =-IF(AF$4>'01. PAINEL DE CONTROLE'!$D$6,0,AF255*AF$110)*AF$108 -> 0 | AG24: =-IF(AG$4>'01. PAINEL DE CONTROLE'!$D$6,0,AG255*AG$110)*AG$108 -> 0 | AH24: =-IF(AH$4>'01. PAINEL DE CONTROLE'!$D$6,0,AH255*AH$110)*AH$108 -> 0 | AI24: =-IF(AI$4>'01. PAINEL DE CONTROLE'!$D$6,0,AI255*AI$110)*AI$108 -> 0 | AJ24: =-IF(AJ$4>'01. PAINEL DE CONTROLE'!$D$6,0,AJ255*AJ$110)*AJ$108 -> 0 | AL24: =-IF(AL$4>'01. PAINEL DE CONTROLE'!$D$6,0,AL255*AL$110)*AL$108 -> 0 | AM24: =-IF(AM$4>'01. PAINEL DE CONTROLE'!$D$6,0,AM255*AM$110)*AM$108 -> 0 | AN24: =-IF(AN$4>'01. PAINEL DE CONTROLE'!$D$6,0,AN255*AN$110)*AN$108 -> 0 | AO24: =-IF(AO$4>'01. PAINEL DE CONTROLE'!$D$6,0,AO255*AO$110)*AO$108 -> 0
B25: =B818 -> Controle de Acesso | E25: -16276512.9 | F25: -542550.4299 | G25: =-IF(G$4>'01. PAINEL DE CONTROLE'!$D$6,0,G263*G$110)*G$108 -> -280629.5327 | H25: =-IF(H$4>'01. PAINEL DE CONTROLE'!$D$6,0,H263*H$110)*H$108 -> -280629.5327 | I25: =-IF(I$4>'01. PAINEL DE CONTROLE'!$D$6,0,I263*I$110)*I$108 -> -561259.0654 | J25: =-IF(J$4>'01. PAINEL DE CONTROLE'!$D$6,0,J263*J$110)*J$108 -> -561259.0654 | K25: =-IF(K$4>'01. PAINEL DE CONTROLE'!$D$6,0,K263*K$110)*K$108 -> -561259.0654 | L25: =-IF(L$4>'01. PAINEL DE CONTROLE'!$D$6,0,L263*L$110)*L$108 -> -561259.0654 | M25: =-IF(M$4>'01. PAINEL DE CONTROLE'!$D$6,0,M263*M$110)*M$108 -> -561259.0654 | N25: =-IF(N$4>'01. PAINEL DE CONTROLE'!$D$6,0,N263*N$110)*N$108 -> -561259.0654 | O25: =-IF(O$4>'01. PAINEL DE CONTROLE'!$D$6,0,O263*O$110)*O$108 -> -561259.0654 | P25: =-IF(P$4>'01. PAINEL DE CONTROLE'!$D$6,0,P263*P$110)*P$108 -> -561259.0654 | Q25: =-IF(Q$4>'01. PAINEL DE CONTROLE'!$D$6,0,Q263*Q$110)*Q$108 -> -561259.0654 | R25: =-IF(R$4>'01. PAINEL DE CONTROLE'!$D$6,0,R263*R$110)*R$108 -> -561259.0654 | S25: =-IF(S$4>'01. PAINEL DE CONTROLE'!$D$6,0,S263*S$110)*S$108 -> -561259.0654 | T25: =-IF(T$4>'01. PAINEL DE CONTROLE'!$D$6,0,T263*T$110)*T$108 -> -561259.0654 | U25: =-IF(U$4>'01. PAINEL DE CONTROLE'!$D$6,0,U263*U$110)*U$108 -> -561259.0654 | V25: =-IF(V$4>'01. PAINEL DE CONTROLE'!$D$6,0,V263*V$110)*V$108 -> -561259.0654 | W25: =-IF(W$4>'01. PAINEL DE CONTROLE'!$D$6,0,W263*W$110)*W$108 -> -561259.0654 | X25: =-IF(X$4>'01. PAINEL DE CONTROLE'!$D$6,0,X263*X$110)*X$108 -> -561259.0654 | Y25: =-IF(Y$4>'01. PAINEL DE CONTROLE'!$D$6,0,Y263*Y$110)*Y$108 -> -561259.0654 | Z25: =-IF(Z$4>'01. PAINEL DE CONTROLE'!$D$6,0,Z263*Z$110)*Z$108 -> -561259.0654 | AA25: =-IF(AA$4>'01. PAINEL DE CONTROLE'!$D$6,0,AA263*AA$110)*AA$108 -> -561259.0654 | AB25: =-IF(AB$4>'01. PAINEL DE CONTROLE'!$D$6,0,AB263*AB$110)*AB$108 -> -561259.0654 | AC25: =-IF(AC$4>'01. PAINEL DE CONTROLE'!$D$6,0,AC263*AC$110)*AC$108 -> -561259.0654 | AD25: =-IF(AD$4>'01. PAINEL DE CONTROLE'!$D$6,0,AD263*AD$110)*AD$108 -> -561259.0654 | AE25: =-IF(AE$4>'01. PAINEL DE CONTROLE'!$D$6,0,AE263*AE$110)*AE$108 -> -561259.0654 | AF25: =-IF(AF$4>'01. PAINEL DE CONTROLE'!$D$6,0,AF263*AF$110)*AF$108 -> -561259.0654 | AG25: =-IF(AG$4>'01. PAINEL DE CONTROLE'!$D$6,0,AG263*AG$110)*AG$108 -> -561259.0654 | AH25: =-IF(AH$4>'01. PAINEL DE CONTROLE'!$D$6,0,AH263*AH$110)*AH$108 -> -561259.0654 | AI25: =-IF(AI$4>'01. PAINEL DE CONTROLE'!$D$6,0,AI263*AI$110)*AI$108 -> -561259.0654 | AJ25: =-IF(AJ$4>'01. PAINEL DE CONTROLE'!$D$6,0,AJ263*AJ$110)*AJ$108 -> -561259.0654 | AL25: =-IF(AL$4>'01. PAINEL DE CONTROLE'!$D$6,0,AL263*AL$110)*AL$108 -> 0 | AM25: =-IF(AM$4>'01. PAINEL DE CONTROLE'!$D$6,0,AM263*AM$110)*AM$108 -> 0 | AN25: =-IF(AN$4>'01. PAINEL DE CONTROLE'!$D$6,0,AN263*AN$110)*AN$108 -> 0 | AO25: =-IF(AO$4>'01. PAINEL DE CONTROLE'!$D$6,0,AO263*AO$110)*AO$108 -> 0
B26: =B839 -> Segurança Patrimonial | E26: -279667016.4 | F26: -9322233.88 | G26: =-IF(G$4>'01. PAINEL DE CONTROLE'!$D$6,0,G271*G$110)*G$108 -> -4797032.871 | H26: =-IF(H$4>'01. PAINEL DE CONTROLE'!$D$6,0,H271*H$110)*H$108 -> -6236142.733 | I26: =-IF(I$4>'01. PAINEL DE CONTROLE'!$D$6,0,I271*I$110)*I$108 -> -9594065.743 | J26: =-IF(J$4>'01. PAINEL DE CONTROLE'!$D$6,0,J271*J$110)*J$108 -> -9594065.743 | K26: =-IF(K$4>'01. PAINEL DE CONTROLE'!$D$6,0,K271*K$110)*K$108 -> -9594065.743 | L26: =-IF(L$4>'01. PAINEL DE CONTROLE'!$D$6,0,L271*L$110)*L$108 -> -9594065.743 | M26: =-IF(M$4>'01. PAINEL DE CONTROLE'!$D$6,0,M271*M$110)*M$108 -> -9594065.743 | N26: =-IF(N$4>'01. PAINEL DE CONTROLE'!$D$6,0,N271*N$110)*N$108 -> -9594065.743 | O26: =-IF(O$4>'01. PAINEL DE CONTROLE'!$D$6,0,O271*O$110)*O$108 -> -9594065.743 | P26: =-IF(P$4>'01. PAINEL DE CONTROLE'!$D$6,0,P271*P$110)*P$108 -> -9594065.743 | Q26: =-IF(Q$4>'01. PAINEL DE CONTROLE'!$D$6,0,Q271*Q$110)*Q$108 -> -9594065.743 | R26: =-IF(R$4>'01. PAINEL DE CONTROLE'!$D$6,0,R271*R$110)*R$108 -> -9594065.743 | S26: =-IF(S$4>'01. PAINEL DE CONTROLE'!$D$6,0,S271*S$110)*S$108 -> -9594065.743 | T26: =-IF(T$4>'01. PAINEL DE CONTROLE'!$D$6,0,T271*T$110)*T$108 -> -9594065.743 | U26: =-IF(U$4>'01. PAINEL DE CONTROLE'!$D$6,0,U271*U$110)*U$108 -> -9594065.743 | V26: =-IF(V$4>'01. PAINEL DE CONTROLE'!$D$6,0,V271*V$110)*V$108 -> -9594065.743 | W26: =-IF(W$4>'01. PAINEL DE CONTROLE'!$D$6,0,W271*W$110)*W$108 -> -9594065.743 | X26: =-IF(X$4>'01. PAINEL DE CONTROLE'!$D$6,0,X271*X$110)*X$108 -> -9594065.743 | Y26: =-IF(Y$4>'01. PAINEL DE CONTROLE'!$D$6,0,Y271*Y$110)*Y$108 -> -9594065.743 | Z26: =-IF(Z$4>'01. PAINEL DE CONTROLE'!$D$6,0,Z271*Z$110)*Z$108 -> -9594065.743 | AA26: =-IF(AA$4>'01. PAINEL DE CONTROLE'!$D$6,0,AA271*AA$110)*AA$108 -> -9594065.743 | AB26: =-IF(AB$4>'01. PAINEL DE CONTROLE'!$D$6,0,AB271*AB$110)*AB$108 -> -9594065.743 | AC26: =-IF(AC$4>'01. PAINEL DE CONTROLE'!$D$6,0,AC271*AC$110)*AC$108 -> -9594065.743 | AD26: =-IF(AD$4>'01. PAINEL DE CONTROLE'!$D$6,0,AD271*AD$110)*AD$108 -> -9594065.743 | AE26: =-IF(AE$4>'01. PAINEL DE CONTROLE'!$D$6,0,AE271*AE$110)*AE$108 -> -9594065.743 | AF26: =-IF(AF$4>'01. PAINEL DE CONTROLE'!$D$6,0,AF271*AF$110)*AF$108 -> -9594065.743 | AG26: =-IF(AG$4>'01. PAINEL DE CONTROLE'!$D$6,0,AG271*AG$110)*AG$108 -> -9594065.743 | AH26: =-IF(AH$4>'01. PAINEL DE CONTROLE'!$D$6,0,AH271*AH$110)*AH$108 -> -9594065.743 | AI26: =-IF(AI$4>'01. PAINEL DE CONTROLE'!$D$6,0,AI271*AI$110)*AI$108 -> -9594065.743 | AJ26: =-IF(AJ$4>'01. PAINEL DE CONTROLE'!$D$6,0,AJ271*AJ$110)*AJ$108 -> -9594065.743 | AL26: =-IF(AL$4>'01. PAINEL DE CONTROLE'!$D$6,0,AL271*AL$110)*AL$108 -> 0 | AM26: =-IF(AM$4>'01. PAINEL DE CONTROLE'!$D$6,0,AM271*AM$110)*AM$108 -> 0 | AN26: =-IF(AN$4>'01. PAINEL DE CONTROLE'!$D$6,0,AN271*AN$110)*AN$108 -> 0 | AO26: =-IF(AO$4>'01. PAINEL DE CONTROLE'!$D$6,0,AO271*AO$110)*AO$108 -> 0
B27: =B867 -> Recepção e Atendimento aos Visitantes | E27: -46230781.91 | F27: -1541026.064 | G27: =-IF(G$4>'01. PAINEL DE CONTROLE'!$D$6,0,G279*G$110)*G$108 -> -790269.7762 | H27: =-IF(H$4>'01. PAINEL DE CONTROLE'!$D$6,0,H279*H$110)*H$108 -> -1185404.664 | I27: =-IF(I$4>'01. PAINEL DE CONTROLE'!$D$6,0,I279*I$110)*I$108 -> -1580539.552 | J27: =-IF(J$4>'01. PAINEL DE CONTROLE'!$D$6,0,J279*J$110)*J$108 -> -1580539.552 | K27: =-IF(K$4>'01. PAINEL DE CONTROLE'!$D$6,0,K279*K$110)*K$108 -> -1580539.552 | L27: =-IF(L$4>'01. PAINEL DE CONTROLE'!$D$6,0,L279*L$110)*L$108 -> -1580539.552 | M27: =-IF(M$4>'01. PAINEL DE CONTROLE'!$D$6,0,M279*M$110)*M$108 -> -1580539.552 | N27: =-IF(N$4>'01. PAINEL DE CONTROLE'!$D$6,0,N279*N$110)*N$108 -> -1580539.552 | O27: =-IF(O$4>'01. PAINEL DE CONTROLE'!$D$6,0,O279*O$110)*O$108 -> -1580539.552 | P27: =-IF(P$4>'01. PAINEL DE CONTROLE'!$D$6,0,P279*P$110)*P$108 -> -1580539.552 | Q27: =-IF(Q$4>'01. PAINEL DE CONTROLE'!$D$6,0,Q279*Q$110)*Q$108 -> -1580539.552 | R27: =-IF(R$4>'01. PAINEL DE CONTROLE'!$D$6,0,R279*R$110)*R$108 -> -1580539.552 | S27: =-IF(S$4>'01. PAINEL DE CONTROLE'!$D$6,0,S279*S$110)*S$108 -> -1580539.552 | T27: =-IF(T$4>'01. PAINEL DE CONTROLE'!$D$6,0,T279*T$110)*T$108 -> -1580539.552 | U27: =-IF(U$4>'01. PAINEL DE CONTROLE'!$D$6,0,U279*U$110)*U$108 -> -1580539.552 | V27: =-IF(V$4>'01. PAINEL DE CONTROLE'!$D$6,0,V279*V$110)*V$108 -> -1580539.552 | W27: =-IF(W$4>'01. PAINEL DE CONTROLE'!$D$6,0,W279*W$110)*W$108 -> -1580539.552 | X27: =-IF(X$4>'01. PAINEL DE CONTROLE'!$D$6,0,X279*X$110)*X$108 -> -1580539.552 | Y27: =-IF(Y$4>'01. PAINEL DE CONTROLE'!$D$6,0,Y279*Y$110)*Y$108 -> -1580539.552 | Z27: =-IF(Z$4>'01. PAINEL DE CONTROLE'!$D$6,0,Z279*Z$110)*Z$108 -> -1580539.552 | AA27: =-IF(AA$4>'01. PAINEL DE CONTROLE'!$D$6,0,AA279*AA$110)*AA$108 -> -1580539.552 | AB27: =-IF(AB$4>'01. PAINEL DE CONTROLE'!$D$6,0,AB279*AB$110)*AB$108 -> -1580539.552 | AC27: =-IF(AC$4>'01. PAINEL DE CONTROLE'!$D$6,0,AC279*AC$110)*AC$108 -> -1580539.552 | AD27: =-IF(AD$4>'01. PAINEL DE CONTROLE'!$D$6,0,AD279*AD$110)*AD$108 -> -1580539.552 | AE27: =-IF(AE$4>'01. PAINEL DE CONTROLE'!$D$6,0,AE279*AE$110)*AE$108 -> -1580539.552 | AF27: =-IF(AF$4>'01. PAINEL DE CONTROLE'!$D$6,0,AF279*AF$110)*AF$108 -> -1580539.552 | AG27: =-IF(AG$4>'01. PAINEL DE CONTROLE'!$D$6,0,AG279*AG$110)*AG$108 -> -1580539.552 | AH27: =-IF(AH$4>'01. PAINEL DE CONTROLE'!$D$6,0,AH279*AH$110)*AH$108 -> -1580539.552 | AI27: =-IF(AI$4>'01. PAINEL DE CONTROLE'!$D$6,0,AI279*AI$110)*AI$108 -> -1580539.552 | AJ27: =-IF(AJ$4>'01. PAINEL DE CONTROLE'!$D$6,0,AJ279*AJ$110)*AJ$108 -> -1580539.552 | AL27: =-IF(AL$4>'01. PAINEL DE CONTROLE'!$D$6,0,AL279*AL$110)*AL$108 -> 0 | AM27: =-IF(AM$4>'01. PAINEL DE CONTROLE'!$D$6,0,AM279*AM$110)*AM$108 -> 0 | AN27: =-IF(AN$4>'01. PAINEL DE CONTROLE'!$D$6,0,AN279*AN$110)*AN$108 -> 0 | AO27: =-IF(AO$4>'01. PAINEL DE CONTROLE'!$D$6,0,AO279*AO$110)*AO$108 -> 0
B28: =B882 -> Limpeza, Coleta e Combate a Pragas | E28: -168795593.5 | F28: -5626519.784 | G28: =-IF(G$4>'01. PAINEL DE CONTROLE'!$D$6,0,G287*G$110)*G$108 -> -3763881.159 | H28: =-IF(H$4>'01. PAINEL DE CONTROLE'!$D$6,0,H287*H$110)*H$108 -> -3763881.159 | I28: =-IF(I$4>'01. PAINEL DE CONTROLE'!$D$6,0,I287*I$110)*I$108 -> -4921998.439 | J28: =-IF(J$4>'01. PAINEL DE CONTROLE'!$D$6,0,J287*J$110)*J$108 -> -5790586.399 | K28: =-IF(K$4>'01. PAINEL DE CONTROLE'!$D$6,0,K287*K$110)*K$108 -> -5790586.399 | L28: =-IF(L$4>'01. PAINEL DE CONTROLE'!$D$6,0,L287*L$110)*L$108 -> -5790586.399 | M28: =-IF(M$4>'01. PAINEL DE CONTROLE'!$D$6,0,M287*M$110)*M$108 -> -5790586.399 | N28: =-IF(N$4>'01. PAINEL DE CONTROLE'!$D$6,0,N287*N$110)*N$108 -> -5790586.399 | O28: =-IF(O$4>'01. PAINEL DE CONTROLE'!$D$6,0,O287*O$110)*O$108 -> -5790586.399 | P28: =-IF(P$4>'01. PAINEL DE CONTROLE'!$D$6,0,P287*P$110)*P$108 -> -5790586.399 | Q28: =-IF(Q$4>'01. PAINEL DE CONTROLE'!$D$6,0,Q287*Q$110)*Q$108 -> -5790586.399 | R28: =-IF(R$4>'01. PAINEL DE CONTROLE'!$D$6,0,R287*R$110)*R$108 -> -5790586.399 | S28: =-IF(S$4>'01. PAINEL DE CONTROLE'!$D$6,0,S287*S$110)*S$108 -> -5790586.399 | T28: =-IF(T$4>'01. PAINEL DE CONTROLE'!$D$6,0,T287*T$110)*T$108 -> -5790586.399 | U28: =-IF(U$4>'01. PAINEL DE CONTROLE'!$D$6,0,U287*U$110)*U$108 -> -5790586.399 | V28: =-IF(V$4>'01. PAINEL DE CONTROLE'!$D$6,0,V287*V$110)*V$108 -> -5790586.399 | W28: =-IF(W$4>'01. PAINEL DE CONTROLE'!$D$6,0,W287*W$110)*W$108 -> -5790586.399 | X28: =-IF(X$4>'01. PAINEL DE CONTROLE'!$D$6,0,X287*X$110)*X$108 -> -5790586.399 | Y28: =-IF(Y$4>'01. PAINEL DE CONTROLE'!$D$6,0,Y287*Y$110)*Y$108 -> -5790586.399 | Z28: =-IF(Z$4>'01. PAINEL DE CONTROLE'!$D$6,0,Z287*Z$110)*Z$108 -> -5790586.399 | AA28: =-IF(AA$4>'01. PAINEL DE CONTROLE'!$D$6,0,AA287*AA$110)*AA$108 -> -5790586.399 | AB28: =-IF(AB$4>'01. PAINEL DE CONTROLE'!$D$6,0,AB287*AB$110)*AB$108 -> -5790586.399 | AC28: =-IF(AC$4>'01. PAINEL DE CONTROLE'!$D$6,0,AC287*AC$110)*AC$108 -> -5790586.399 | AD28: =-IF(AD$4>'01. PAINEL DE CONTROLE'!$D$6,0,AD287*AD$110)*AD$108 -> -5790586.399 | AE28: =-IF(AE$4>'01. PAINEL DE CONTROLE'!$D$6,0,AE287*AE$110)*AE$108 -> -5790586.399 | AF28: =-IF(AF$4>'01. PAINEL DE CONTROLE'!$D$6,0,AF287*AF$110)*AF$108 -> -5790586.399 | AG28: =-IF(AG$4>'01. PAINEL DE CONTROLE'!$D$6,0,AG287*AG$110)*AG$108 -> -5790586.399 | AH28: =-IF(AH$4>'01. PAINEL DE CONTROLE'!$D$6,0,AH287*AH$110)*AH$108 -> -5790586.399 | AI28: =-IF(AI$4>'01. PAINEL DE CONTROLE'!$D$6,0,AI287*AI$110)*AI$108 -> -5790586.399 | AJ28: =-IF(AJ$4>'01. PAINEL DE CONTROLE'!$D$6,0,AJ287*AJ$110)*AJ$108 -> -5790586.399 | AL28: =-IF(AL$4>'01. PAINEL DE CONTROLE'!$D$6,0,AL287*AL$110)*AL$108 -> 0 | AM28: =-IF(AM$4>'01. PAINEL DE CONTROLE'!$D$6,0,AM287*AM$110)*AM$108 -> 0 | AN28: =-IF(AN$4>'01. PAINEL DE CONTROLE'!$D$6,0,AN287*AN$110)*AN$108 -> 0 | AO28: =-IF(AO$4>'01. PAINEL DE CONTROLE'!$D$6,0,AO287*AO$110)*AO$108 -> 0
B29: =B916 -> Manutenção | E29: -60746822.35 | F29: -2024894.078 | G29: =-IF(G$4>'01. PAINEL DE CONTROLE'!$D$6,0,G295*G$110)*G$108 -> -467283.2489 | H29: =-IF(H$4>'01. PAINEL DE CONTROLE'!$D$6,0,H295*H$110)*H$108 -> -584104.0611 | I29: =-IF(I$4>'01. PAINEL DE CONTROLE'!$D$6,0,I295*I$110)*I$108 -> -700924.8733 | J29: =-IF(J$4>'01. PAINEL DE CONTROLE'!$D$6,0,J295*J$110)*J$108 -> -817745.6855 | K29: =-IF(K$4>'01. PAINEL DE CONTROLE'!$D$6,0,K295*K$110)*K$108 -> -934566.4977 | L29: =-IF(L$4>'01. PAINEL DE CONTROLE'!$D$6,0,L295*L$110)*L$108 -> -1518670.559 | M29: =-IF(M$4>'01. PAINEL DE CONTROLE'!$D$6,0,M295*M$110)*M$108 -> -1985953.808 | N29: =-IF(N$4>'01. PAINEL DE CONTROLE'!$D$6,0,N295*N$110)*N$108 -> -2336416.244 | O29: =-IF(O$4>'01. PAINEL DE CONTROLE'!$D$6,0,O295*O$110)*O$108 -> -2336416.244 | P29: =-IF(P$4>'01. PAINEL DE CONTROLE'!$D$6,0,P295*P$110)*P$108 -> -2336416.244 | Q29: =-IF(Q$4>'01. PAINEL DE CONTROLE'!$D$6,0,Q295*Q$110)*Q$108 -> -2336416.244 | R29: =-IF(R$4>'01. PAINEL DE CONTROLE'!$D$6,0,R295*R$110)*R$108 -> -2336416.244 | S29: =-IF(S$4>'01. PAINEL DE CONTROLE'!$D$6,0,S295*S$110)*S$108 -> -2336416.244 | T29: =-IF(T$4>'01. PAINEL DE CONTROLE'!$D$6,0,T295*T$110)*T$108 -> -2336416.244 | U29: =-IF(U$4>'01. PAINEL DE CONTROLE'!$D$6,0,U295*U$110)*U$108 -> -2336416.244 | V29: =-IF(V$4>'01. PAINEL DE CONTROLE'!$D$6,0,V295*V$110)*V$108 -> -2336416.244 | W29: =-IF(W$4>'01. PAINEL DE CONTROLE'!$D$6,0,W295*W$110)*W$108 -> -2336416.244 | X29: =-IF(X$4>'01. PAINEL DE CONTROLE'!$D$6,0,X295*X$110)*X$108 -> -2336416.244 | Y29: =-IF(Y$4>'01. PAINEL DE CONTROLE'!$D$6,0,Y295*Y$110)*Y$108 -> -2336416.244 | Z29: =-IF(Z$4>'01. PAINEL DE CONTROLE'!$D$6,0,Z295*Z$110)*Z$108 -> -2336416.244 | AA29: =-IF(AA$4>'01. PAINEL DE CONTROLE'!$D$6,0,AA295*AA$110)*AA$108 -> -2336416.244 | AB29: =-IF(AB$4>'01. PAINEL DE CONTROLE'!$D$6,0,AB295*AB$110)*AB$108 -> -2336416.244 | AC29: =-IF(AC$4>'01. PAINEL DE CONTROLE'!$D$6,0,AC295*AC$110)*AC$108 -> -2336416.244 | AD29: =-IF(AD$4>'01. PAINEL DE CONTROLE'!$D$6,0,AD295*AD$110)*AD$108 -> -2336416.244 | AE29: =-IF(AE$4>'01. PAINEL DE CONTROLE'!$D$6,0,AE295*AE$110)*AE$108 -> -2336416.244 | AF29: =-IF(AF$4>'01. PAINEL DE CONTROLE'!$D$6,0,AF295*AF$110)*AF$108 -> -2336416.244 | AG29: =-IF(AG$4>'01. PAINEL DE CONTROLE'!$D$6,0,AG295*AG$110)*AG$108 -> -2336416.244 | AH29: =-IF(AH$4>'01. PAINEL DE CONTROLE'!$D$6,0,AH295*AH$110)*AH$108 -> -2336416.244 | AI29: =-IF(AI$4>'01. PAINEL DE CONTROLE'!$D$6,0,AI295*AI$110)*AI$108 -> -2336416.244 | AJ29: =-IF(AJ$4>'01. PAINEL DE CONTROLE'!$D$6,0,AJ295*AJ$110)*AJ$108 -> -2336416.244 | AL29: =-IF(AL$4>'01. PAINEL DE CONTROLE'!$D$6,0,AL295*AL$110)*AL$108 -> 0 | AM29: =-IF(AM$4>'01. PAINEL DE CONTROLE'!$D$6,0,AM295*AM$110)*AM$108 -> 0 | AN29: =-IF(AN$4>'01. PAINEL DE CONTROLE'!$D$6,0,AN295*AN$110)*AN$108 -> 0 | AO29: =-IF(AO$4>'01. PAINEL DE CONTROLE'!$D$6,0,AO295*AO$110)*AO$108 -> 0
B30: =B949 -> Paisagismo/Jardinagem | E30: -58517290.45 | F30: -1950576.348 | G30: =-IF(G$4>'01. PAINEL DE CONTROLE'!$D$6,0,G303*G$110)*G$108 -> -619230.5868 | H30: =-IF(H$4>'01. PAINEL DE CONTROLE'!$D$6,0,H303*H$110)*H$108 -> -928845.8802 | I30: =-IF(I$4>'01. PAINEL DE CONTROLE'!$D$6,0,I303*I$110)*I$108 -> -1238461.174 | J30: =-IF(J$4>'01. PAINEL DE CONTROLE'!$D$6,0,J303*J$110)*J$108 -> -2064101.956 | K30: =-IF(K$4>'01. PAINEL DE CONTROLE'!$D$6,0,K303*K$110)*K$108 -> -2064101.956 | L30: =-IF(L$4>'01. PAINEL DE CONTROLE'!$D$6,0,L303*L$110)*L$108 -> -2064101.956 | M30: =-IF(M$4>'01. PAINEL DE CONTROLE'!$D$6,0,M303*M$110)*M$108 -> -2064101.956 | N30: =-IF(N$4>'01. PAINEL DE CONTROLE'!$D$6,0,N303*N$110)*N$108 -> -2064101.956 | O30: =-IF(O$4>'01. PAINEL DE CONTROLE'!$D$6,0,O303*O$110)*O$108 -> -2064101.956 | P30: =-IF(P$4>'01. PAINEL DE CONTROLE'!$D$6,0,P303*P$110)*P$108 -> -2064101.956 | Q30: =-IF(Q$4>'01. PAINEL DE CONTROLE'!$D$6,0,Q303*Q$110)*Q$108 -> -2064101.956 | R30: =-IF(R$4>'01. PAINEL DE CONTROLE'!$D$6,0,R303*R$110)*R$108 -> -2064101.956 | S30: =-IF(S$4>'01. PAINEL DE CONTROLE'!$D$6,0,S303*S$110)*S$108 -> -2064101.956 | T30: =-IF(T$4>'01. PAINEL DE CONTROLE'!$D$6,0,T303*T$110)*T$108 -> -2064101.956 | U30: =-IF(U$4>'01. PAINEL DE CONTROLE'!$D$6,0,U303*U$110)*U$108 -> -2064101.956 | V30: =-IF(V$4>'01. PAINEL DE CONTROLE'!$D$6,0,V303*V$110)*V$108 -> -2064101.956 | W30: =-IF(W$4>'01. PAINEL DE CONTROLE'!$D$6,0,W303*W$110)*W$108 -> -2064101.956 | X30: =-IF(X$4>'01. PAINEL DE CONTROLE'!$D$6,0,X303*X$110)*X$108 -> -2064101.956 | Y30: =-IF(Y$4>'01. PAINEL DE CONTROLE'!$D$6,0,Y303*Y$110)*Y$108 -> -2064101.956 | Z30: =-IF(Z$4>'01. PAINEL DE CONTROLE'!$D$6,0,Z303*Z$110)*Z$108 -> -2064101.956 | AA30: =-IF(AA$4>'01. PAINEL DE CONTROLE'!$D$6,0,AA303*AA$110)*AA$108 -> -2064101.956 | AB30: =-IF(AB$4>'01. PAINEL DE CONTROLE'!$D$6,0,AB303*AB$110)*AB$108 -> -2064101.956 | AC30: =-IF(AC$4>'01. PAINEL DE CONTROLE'!$D$6,0,AC303*AC$110)*AC$108 -> -2064101.956 | AD30: =-IF(AD$4>'01. PAINEL DE CONTROLE'!$D$6,0,AD303*AD$110)*AD$108 -> -2064101.956 | AE30: =-IF(AE$4>'01. PAINEL DE CONTROLE'!$D$6,0,AE303*AE$110)*AE$108 -> -2064101.956 | AF30: =-IF(AF$4>'01. PAINEL DE CONTROLE'!$D$6,0,AF303*AF$110)*AF$108 -> -2064101.956 | AG30: =-IF(AG$4>'01. PAINEL DE CONTROLE'!$D$6,0,AG303*AG$110)*AG$108 -> -2064101.956 | AH30: =-IF(AH$4>'01. PAINEL DE CONTROLE'!$D$6,0,AH303*AH$110)*AH$108 -> -2064101.956 | AI30: =-IF(AI$4>'01. PAINEL DE CONTROLE'!$D$6,0,AI303*AI$110)*AI$108 -> -2064101.956 | AJ30: =-IF(AJ$4>'01. PAINEL DE CONTROLE'!$D$6,0,AJ303*AJ$110)*AJ$108 -> -2064101.956 | AL30: =-IF(AL$4>'01. PAINEL DE CONTROLE'!$D$6,0,AL303*AL$110)*AL$108 -> 0 | AM30: =-IF(AM$4>'01. PAINEL DE CONTROLE'!$D$6,0,AM303*AM$110)*AM$108 -> 0 | AN30: =-IF(AN$4>'01. PAINEL DE CONTROLE'!$D$6,0,AN303*AN$110)*AN$108 -> 0 | AO30: =-IF(AO$4>'01. PAINEL DE CONTROLE'!$D$6,0,AO303*AO$110)*AO$108 -> 0
B31: =B974 -> Suporte TIC | E31: -32953310.23 | F31: -1098443.674 | G31: =-IF(G$4>'01. PAINEL DE CONTROLE'!$D$6,0,G311*G$110)*G$108 -> -1098443.674 | H31: =-IF(H$4>'01. PAINEL DE CONTROLE'!$D$6,0,H311*H$110)*H$108 -> -1098443.674 | I31: =-IF(I$4>'01. PAINEL DE CONTROLE'!$D$6,0,I311*I$110)*I$108 -> -1098443.674 | J31: =-IF(J$4>'01. PAINEL DE CONTROLE'!$D$6,0,J311*J$110)*J$108 -> -1098443.674 | K31: =-IF(K$4>'01. PAINEL DE CONTROLE'!$D$6,0,K311*K$110)*K$108 -> -1098443.674 | L31: =-IF(L$4>'01. PAINEL DE CONTROLE'!$D$6,0,L311*L$110)*L$108 -> -1098443.674 | M31: =-IF(M$4>'01. PAINEL DE CONTROLE'!$D$6,0,M311*M$110)*M$108 -> -1098443.674 | N31: =-IF(N$4>'01. PAINEL DE CONTROLE'!$D$6,0,N311*N$110)*N$108 -> -1098443.674 | O31: =-IF(O$4>'01. PAINEL DE CONTROLE'!$D$6,0,O311*O$110)*O$108 -> -1098443.674 | P31: =-IF(P$4>'01. PAINEL DE CONTROLE'!$D$6,0,P311*P$110)*P$108 -> -1098443.674 | Q31: =-IF(Q$4>'01. PAINEL DE CONTROLE'!$D$6,0,Q311*Q$110)*Q$108 -> -1098443.674 | R31: =-IF(R$4>'01. PAINEL DE CONTROLE'!$D$6,0,R311*R$110)*R$108 -> -1098443.674 | S31: =-IF(S$4>'01. PAINEL DE CONTROLE'!$D$6,0,S311*S$110)*S$108 -> -1098443.674 | T31: =-IF(T$4>'01. PAINEL DE CONTROLE'!$D$6,0,T311*T$110)*T$108 -> -1098443.674 | U31: =-IF(U$4>'01. PAINEL DE CONTROLE'!$D$6,0,U311*U$110)*U$108 -> -1098443.674 | V31: =-IF(V$4>'01. PAINEL DE CONTROLE'!$D$6,0,V311*V$110)*V$108 -> -1098443.674 | W31: =-IF(W$4>'01. PAINEL DE CONTROLE'!$D$6,0,W311*W$110)*W$108 -> -1098443.674 | X31: =-IF(X$4>'01. PAINEL DE CONTROLE'!$D$6,0,X311*X$110)*X$108 -> -1098443.674 | Y31: =-IF(Y$4>'01. PAINEL DE CONTROLE'!$D$6,0,Y311*Y$110)*Y$108 -> -1098443.674 | Z31: =-IF(Z$4>'01. PAINEL DE CONTROLE'!$D$6,0,Z311*Z$110)*Z$108 -> -1098443.674 | AA31: =-IF(AA$4>'01. PAINEL DE CONTROLE'!$D$6,0,AA311*AA$110)*AA$108 -> -1098443.674 | AB31: =-IF(AB$4>'01. PAINEL DE CONTROLE'!$D$6,0,AB311*AB$110)*AB$108 -> -1098443.674 | AC31: =-IF(AC$4>'01. PAINEL DE CONTROLE'!$D$6,0,AC311*AC$110)*AC$108 -> -1098443.674 | AD31: =-IF(AD$4>'01. PAINEL DE CONTROLE'!$D$6,0,AD311*AD$110)*AD$108 -> -1098443.674 | AE31: =-IF(AE$4>'01. PAINEL DE CONTROLE'!$D$6,0,AE311*AE$110)*AE$108 -> -1098443.674 | AF31: =-IF(AF$4>'01. PAINEL DE CONTROLE'!$D$6,0,AF311*AF$110)*AF$108 -> -1098443.674 | AG31: =-IF(AG$4>'01. PAINEL DE CONTROLE'!$D$6,0,AG311*AG$110)*AG$108 -> -1098443.674 | AH31: =-IF(AH$4>'01. PAINEL DE CONTROLE'!$D$6,0,AH311*AH$110)*AH$108 -> -1098443.674 | AI31: =-IF(AI$4>'01. PAINEL DE CONTROLE'!$D$6,0,AI311*AI$110)*AI$108 -> -1098443.674 | AJ31: =-IF(AJ$4>'01. PAINEL DE CONTROLE'!$D$6,0,AJ311*AJ$110)*AJ$108 -> -1098443.674 | AL31: =-IF(AL$4>'01. PAINEL DE CONTROLE'!$D$6,0,AL311*AL$110)*AL$108 -> 0 | AM31: =-IF(AM$4>'01. PAINEL DE CONTROLE'!$D$6,0,AM311*AM$110)*AM$108 -> 0 | AN31: =-IF(AN$4>'01. PAINEL DE CONTROLE'!$D$6,0,AN311*AN$110)*AN$108 -> 0 | AO31: =-IF(AO$4>'01. PAINEL DE CONTROLE'!$D$6,0,AO311*AO$110)*AO$108 -> 0
B32: =B1001 -> SPE | E32: -62206741.48 | F32: -2073558.049 | G32: =-IF(G$4>'01. PAINEL DE CONTROLE'!$D$6,0,G319*G$110)*G$108 -> -1573526.344 | H32: =-IF(H$4>'01. PAINEL DE CONTROLE'!$D$6,0,H319*H$110)*H$108 -> -1888231.613 | I32: =-IF(I$4>'01. PAINEL DE CONTROLE'!$D$6,0,I319*I$110)*I$108 -> -2098035.126 | J32: =-IF(J$4>'01. PAINEL DE CONTROLE'!$D$6,0,J319*J$110)*J$108 -> -2098035.126 | K32: =-IF(K$4>'01. PAINEL DE CONTROLE'!$D$6,0,K319*K$110)*K$108 -> -2098035.126 | L32: =-IF(L$4>'01. PAINEL DE CONTROLE'!$D$6,0,L319*L$110)*L$108 -> -2098035.126 | M32: =-IF(M$4>'01. PAINEL DE CONTROLE'!$D$6,0,M319*M$110)*M$108 -> -2098035.126 | N32: =-IF(N$4>'01. PAINEL DE CONTROLE'!$D$6,0,N319*N$110)*N$108 -> -2098035.126 | O32: =-IF(O$4>'01. PAINEL DE CONTROLE'!$D$6,0,O319*O$110)*O$108 -> -2098035.126 | P32: =-IF(P$4>'01. PAINEL DE CONTROLE'!$D$6,0,P319*P$110)*P$108 -> -2098035.126 | Q32: =-IF(Q$4>'01. PAINEL DE CONTROLE'!$D$6,0,Q319*Q$110)*Q$108 -> -2098035.126 | R32: =-IF(R$4>'01. PAINEL DE CONTROLE'!$D$6,0,R319*R$110)*R$108 -> -2098035.126 | S32: =-IF(S$4>'01. PAINEL DE CONTROLE'!$D$6,0,S319*S$110)*S$108 -> -2098035.126 | T32: =-IF(T$4>'01. PAINEL DE CONTROLE'!$D$6,0,T319*T$110)*T$108 -> -2098035.126 | U32: =-IF(U$4>'01. PAINEL DE CONTROLE'!$D$6,0,U319*U$110)*U$108 -> -2098035.126 | V32: =-IF(V$4>'01. PAINEL DE CONTROLE'!$D$6,0,V319*V$110)*V$108 -> -2098035.126 | W32: =-IF(W$4>'01. PAINEL DE CONTROLE'!$D$6,0,W319*W$110)*W$108 -> -2098035.126 | X32: =-IF(X$4>'01. PAINEL DE CONTROLE'!$D$6,0,X319*X$110)*X$108 -> -2098035.126 | Y32: =-IF(Y$4>'01. PAINEL DE CONTROLE'!$D$6,0,Y319*Y$110)*Y$108 -> -2098035.126 | Z32: =-IF(Z$4>'01. PAINEL DE CONTROLE'!$D$6,0,Z319*Z$110)*Z$108 -> -2098035.126 | AA32: =-IF(AA$4>'01. PAINEL DE CONTROLE'!$D$6,0,AA319*AA$110)*AA$108 -> -2098035.126 | AB32: =-IF(AB$4>'01. PAINEL DE CONTROLE'!$D$6,0,AB319*AB$110)*AB$108 -> -2098035.126 | AC32: =-IF(AC$4>'01. PAINEL DE CONTROLE'!$D$6,0,AC319*AC$110)*AC$108 -> -2098035.126 | AD32: =-IF(AD$4>'01. PAINEL DE CONTROLE'!$D$6,0,AD319*AD$110)*AD$108 -> -2098035.126 | AE32: =-IF(AE$4>'01. PAINEL DE CONTROLE'!$D$6,0,AE319*AE$110)*AE$108 -> -2098035.126 | AF32: =-IF(AF$4>'01. PAINEL DE CONTROLE'!$D$6,0,AF319*AF$110)*AF$108 -> -2098035.126 | AG32: =-IF(AG$4>'01. PAINEL DE CONTROLE'!$D$6,0,AG319*AG$110)*AG$108 -> -2098035.126 | AH32: =-IF(AH$4>'01. PAINEL DE CONTROLE'!$D$6,0,AH319*AH$110)*AH$108 -> -2098035.126 | AI32: =-IF(AI$4>'01. PAINEL DE CONTROLE'!$D$6,0,AI319*AI$110)*AI$108 -> -2098035.126 | AJ32: =-IF(AJ$4>'01. PAINEL DE CONTROLE'!$D$6,0,AJ319*AJ$110)*AJ$108 -> -2098035.126 | AL32: =-IF(AL$4>'01. PAINEL DE CONTROLE'!$D$6,0,AL319*AL$110)*AL$108 -> 0 | AM32: =-IF(AM$4>'01. PAINEL DE CONTROLE'!$D$6,0,AM319*AM$110)*AM$108 -> 0 | AN32: =-IF(AN$4>'01. PAINEL DE CONTROLE'!$D$6,0,AN319*AN$110)*AN$108 -> 0 | AO32: =-IF(AO$4>'01. PAINEL DE CONTROLE'!$D$6,0,AO319*AO$110)*AO$108 -> 0
B33: =B1036 -> Verificador Independente | E33: -72828000 | F33: -2427600 | G33: =-IF(G$4>'01. PAINEL DE CONTROLE'!$D$6,0,G327*G$110)*G$108 -> -1836000 | H33: =-IF(H$4>'01. PAINEL DE CONTROLE'!$D$6,0,H327*H$110)*H$108 -> -2448000 | I33: =-IF(I$4>'01. PAINEL DE CONTROLE'!$D$6,0,I327*I$110)*I$108 -> -2448000 | J33: =-IF(J$4>'01. PAINEL DE CONTROLE'!$D$6,0,J327*J$110)*J$108 -> -2448000 | K33: =-IF(K$4>'01. PAINEL DE CONTROLE'!$D$6,0,K327*K$110)*K$108 -> -2448000 | L33: =-IF(L$4>'01. PAINEL DE CONTROLE'!$D$6,0,L327*L$110)*L$108 -> -2448000 | M33: =-IF(M$4>'01. PAINEL DE CONTROLE'!$D$6,0,M327*M$110)*M$108 -> -2448000 | N33: =-IF(N$4>'01. PAINEL DE CONTROLE'!$D$6,0,N327*N$110)*N$108 -> -2448000 | O33: =-IF(O$4>'01. PAINEL DE CONTROLE'!$D$6,0,O327*O$110)*O$108 -> -2448000 | P33: =-IF(P$4>'01. PAINEL DE CONTROLE'!$D$6,0,P327*P$110)*P$108 -> -2448000 | Q33: =-IF(Q$4>'01. PAINEL DE CONTROLE'!$D$6,0,Q327*Q$110)*Q$108 -> -2448000 | R33: =-IF(R$4>'01. PAINEL DE CONTROLE'!$D$6,0,R327*R$110)*R$108 -> -2448000 | S33: =-IF(S$4>'01. PAINEL DE CONTROLE'!$D$6,0,S327*S$110)*S$108 -> -2448000 | T33: =-IF(T$4>'01. PAINEL DE CONTROLE'!$D$6,0,T327*T$110)*T$108 -> -2448000 | U33: =-IF(U$4>'01. PAINEL DE CONTROLE'!$D$6,0,U327*U$110)*U$108 -> -2448000 | V33: =-IF(V$4>'01. PAINEL DE CONTROLE'!$D$6,0,V327*V$110)*V$108 -> -2448000 | W33: =-IF(W$4>'01. PAINEL DE CONTROLE'!$D$6,0,W327*W$110)*W$108 -> -2448000 | X33: =-IF(X$4>'01. PAINEL DE CONTROLE'!$D$6,0,X327*X$110)*X$108 -> -2448000 | Y33: =-IF(Y$4>'01. PAINEL DE CONTROLE'!$D$6,0,Y327*Y$110)*Y$108 -> -2448000 | Z33: =-IF(Z$4>'01. PAINEL DE CONTROLE'!$D$6,0,Z327*Z$110)*Z$108 -> -2448000 | AA33: =-IF(AA$4>'01. PAINEL DE CONTROLE'!$D$6,0,AA327*AA$110)*AA$108 -> -2448000 | AB33: =-IF(AB$4>'01. PAINEL DE CONTROLE'!$D$6,0,AB327*AB$110)*AB$108 -> -2448000 | AC33: =-IF(AC$4>'01. PAINEL DE CONTROLE'!$D$6,0,AC327*AC$110)*AC$108 -> -2448000 | AD33: =-IF(AD$4>'01. PAINEL DE CONTROLE'!$D$6,0,AD327*AD$110)*AD$108 -> -2448000 | AE33: =-IF(AE$4>'01. PAINEL DE CONTROLE'!$D$6,0,AE327*AE$110)*AE$108 -> -2448000 | AF33: =-IF(AF$4>'01. PAINEL DE CONTROLE'!$D$6,0,AF327*AF$110)*AF$108 -> -2448000 | AG33: =-IF(AG$4>'01. PAINEL DE CONTROLE'!$D$6,0,AG327*AG$110)*AG$108 -> -2448000 | AH33: =-IF(AH$4>'01. PAINEL DE CONTROLE'!$D$6,0,AH327*AH$110)*AH$108 -> -2448000 | AI33: =-IF(AI$4>'01. PAINEL DE CONTROLE'!$D$6,0,AI327*AI$110)*AI$108 -> -2448000 | AJ33: =-IF(AJ$4>'01. PAINEL DE CONTROLE'!$D$6,0,AJ327*AJ$110)*AJ$108 -> -2448000 | AL33: =-IF(AL$4>'01. PAINEL DE CONTROLE'!$D$6,0,AL327*AL$110)*AL$108 -> 0 | AM33: =-IF(AM$4>'01. PAINEL DE CONTROLE'!$D$6,0,AM327*AM$110)*AM$108 -> 0 | AN33: =-IF(AN$4>'01. PAINEL DE CONTROLE'!$D$6,0,AN327*AN$110)*AN$108 -> 0 | AO33: =-IF(AO$4>'01. PAINEL DE CONTROLE'!$D$6,0,AO327*AO$110)*AO$108 -> 0
B34: =B1053 -> Seguros | E34: -15254442.05 | F34: =AVERAGE(G34:AJ34) -> -508481.4016 | G34: =-IF(G$4>'01. PAINEL DE CONTROLE'!$D$6,0,G335*G$110)*G$108 -> -406825.1946 | H34: =-IF(H$4>'01. PAINEL DE CONTROLE'!$D$6,0,H335*H$110)*H$108 -> -400511.966 | I34: =-IF(I$4>'01. PAINEL DE CONTROLE'!$D$6,0,I335*I$110)*I$108 -> -170804.7156 | J34: =-IF(J$4>'01. PAINEL DE CONTROLE'!$D$6,0,J335*J$110)*J$108 -> -188629.1792 | K34: =-IF(K$4>'01. PAINEL DE CONTROLE'!$D$6,0,K335*K$110)*K$108 -> -233948.1676 | L34: =-IF(L$4>'01. PAINEL DE CONTROLE'!$D$6,0,L335*L$110)*L$108 -> -290676.4371 | M34: =-IF(M$4>'01. PAINEL DE CONTROLE'!$D$6,0,M335*M$110)*M$108 -> -367742.0612 | N34: =-IF(N$4>'01. PAINEL DE CONTROLE'!$D$6,0,N335*N$110)*N$108 -> -436438.6221 | O34: =-IF(O$4>'01. PAINEL DE CONTROLE'!$D$6,0,O335*O$110)*O$108 -> -482024.0747 | P34: =-IF(P$4>'01. PAINEL DE CONTROLE'!$D$6,0,P335*P$110)*P$108 -> -520066.3196 | Q34: =-IF(Q$4>'01. PAINEL DE CONTROLE'!$D$6,0,Q335*Q$110)*Q$108 -> -542631.516 | R34: =-IF(R$4>'01. PAINEL DE CONTROLE'!$D$6,0,R335*R$110)*R$108 -> -560301.5628 | S34: =-IF(S$4>'01. PAINEL DE CONTROLE'!$D$6,0,S335*S$110)*S$108 -> -572578.4468 | T34: =-IF(T$4>'01. PAINEL DE CONTROLE'!$D$6,0,T335*T$110)*T$108 -> -584006.824 | U34: =-IF(U$4>'01. PAINEL DE CONTROLE'!$D$6,0,U335*U$110)*U$108 -> -589883.1486 | V34: =-IF(V$4>'01. PAINEL DE CONTROLE'!$D$6,0,V335*V$110)*V$108 -> -589975.9159 | W34: =-IF(W$4>'01. PAINEL DE CONTROLE'!$D$6,0,W335*W$110)*W$108 -> -590221.9555 | X34: =-IF(X$4>'01. PAINEL DE CONTROLE'!$D$6,0,X335*X$110)*X$108 -> -590468.5385 | Y34: =-IF(Y$4>'01. PAINEL DE CONTROLE'!$D$6,0,Y335*Y$110)*Y$108 -> -590715.666 | Z34: =-IF(Z$4>'01. PAINEL DE CONTROLE'!$D$6,0,Z335*Z$110)*Z$108 -> -590963.3392 | AA34: =-IF(AA$4>'01. PAINEL DE CONTROLE'!$D$6,0,AA335*AA$110)*AA$108 -> -591741.9363 | AB34: =-IF(AB$4>'01. PAINEL DE CONTROLE'!$D$6,0,AB335*AB$110)*AB$108 -> -592775.4082 | AC34: =-IF(AC$4>'01. PAINEL DE CONTROLE'!$D$6,0,AC335*AC$110)*AC$108 -> -593811.0815 | AD34: =-IF(AD$4>'01. PAINEL DE CONTROLE'!$D$6,0,AD335*AD$110)*AD$108 -> -594848.9609 | AE34: =-IF(AE$4>'01. PAINEL DE CONTROLE'!$D$6,0,AE335*AE$110)*AE$108 -> -595889.0511 | AF34: =-IF(AF$4>'01. PAINEL DE CONTROLE'!$D$6,0,AF335*AF$110)*AF$108 -> -596931.3567 | AG34: =-IF(AG$4>'01. PAINEL DE CONTROLE'!$D$6,0,AG335*AG$110)*AG$108 -> -597975.8825 | AH34: =-IF(AH$4>'01. PAINEL DE CONTROLE'!$D$6,0,AH335*AH$110)*AH$108 -> -599022.6332 | AI34: =-IF(AI$4>'01. PAINEL DE CONTROLE'!$D$6,0,AI335*AI$110)*AI$108 -> -595490.4366 | AJ34: =-IF(AJ$4>'01. PAINEL DE CONTROLE'!$D$6,0,AJ335*AJ$110)*AJ$108 -> -596541.6515 | AL34: =-IF(AL$4>'01. PAINEL DE CONTROLE'!$D$6,0,AL335*AL$110)*AL$108 -> 0 | AM34: =-IF(AM$4>'01. PAINEL DE CONTROLE'!$D$6,0,AM335*AM$110)*AM$108 -> 0 | AN34: =-IF(AN$4>'01. PAINEL DE CONTROLE'!$D$6,0,AN335*AN$110)*AN$108 -> 0 | AO34: =-IF(AO$4>'01. PAINEL DE CONTROLE'!$D$6,0,AO335*AO$110)*AO$108 -> 0
